Workbook

Sheet Checklist
B2: Navigate to Endnotes | C2: - | D2: Phius CORE Prescriptive 2021 Checklist - V2.9 - 03/2023
H3: *To view all content in this checklist, make sure to 'enable macros'* | R3: NR = No Requirement
H4: Required input cells. | L4: Requirement met. | N4: Calculated. | Q4: Threshold | R4: Input 'X' for verification in columns R & S. | V4: Round of Review: | W4: Round 1 | Y4: Round 2 | AA4: Round 3
H5: Required dropdown menu inputs. | L5: Requirement not met. | N5: Calculated from another sheet. | R5: If a particular requirement is not applicable, mark 'X' in column T. | V5: Date:
H6: Instructions: Use the [+] icon on the far left of the screen to expand and view built in compliance calculators. | V6: User Notes | W6: Phius Review Comments | X6: Submitter Response | Y6: Phius Review Comments | Z6: Submitter Response | AA6: Phius Review Comments | AB6: Submitter Response
C7: 0 | D7: Project Information | W7: -Select from Dropdown-
C8: Phius Project Number: | J8: Project Name: | S8: Date:
C9: 0.3 | E9: Climate Information
C10: State / Province: | J10: ILLINOIS | L10: City: | N10: CHICAGO OHARE INTL AP | R10: Climate Zone: | T10: ='Reference Climate Info_Vals'!C2 -> 5A
C11: 0.4 | E11: Project Location
C12: City: | L12: Street Address: | S12: Zip Code:
C13: 0.5 | E13: Project Team
C14: Submitter/CPHC Name: | R14: Phius ID:
C15: Builder Name: | R15: Phius ID:
C16: Rater Name: | R16: Phius ID:
C17: 0.6 | E17: Project Specifics
C18: Project Type: | F18: Single Family Detached - New Construction | K18: Interior Conditioned Floor Area (iCFA) [ft2]: | O18: Number of Stories: | R18: South Façade Azimuth [°]: | T18: 180
K19: Exterior Enclosure Area [ft2]: | O19: Number of Bedrooms:
C20: 1 | D20: General | R20: Design Verified | S20: Rater Verified | T20: NA | W20: -Select from Dropdown-
C21: 1.1 | E21: Scope
B22: 1,2 | C22: 1.1.1 | F22: The proposed building is a single-family detached or attached residence1 (one dwelling unit2 where the occupants are primarily permanent in nature.)
C23: 1.1.2 | F23: The iCFA (minus excluded floor levels) divided by the number of bedrooms < 900 [ft2]. Excluded Floor Levels are floor levels without egress windows/doors.
C24: 1.1.2.1 | G24: Area of Excluded Floor Levels [ft2] | O24: iCFA/Bedroom | Q24: < 900 [ft2]:
G25: 0 | O25: =IF(ISBLANK(N18), "", IF(ISBLANK(Q19),"",ROUND((N18-G25)/Q19,0))) ->  | Q25: =IF(O25<900, "YES", "NO") -> NO
C26: 1.1.3 | F26: No fossil fuel combustion equipment is to be installed.
C27: 1.1.4 | F27: No jetted tubs or indoor pools are planned.
C28: 1.1.5 | F28: No natural draft fireplaces are to be installed.
B29: 3 | C29: 1.2 | E29: Co-Requisites3
C30: 1.2.1 | F30: ENERGY STAR Certified Homes
C31: 1.2.2 | F31: DOE Zero Energy Ready Homes
C32: 1.2.3 | F32: EPA Indoor airPLUS
C33: 2 | D33: Air-Tightness | R33: Design Verified | S33: Rater Verified | T33: NA | W33: -Select from Dropdown-
B34: 4 | C34: 2.1 | E34: Measured building airtightness q50 ≤ 0.04 cfm/ft2 enclosure area.4
B35: 5 | C35: 2.1.1 | F35: Testing agent identified for preliminary blower door test.5 | W35: -Select from Dropdown-
C36: 2.1.2 | F36: Airtightness detail drawings must be comprehensible and show a continuous uninterrupted air barrier that forms from different materials and components at all junctions.
C37: 3 | D37: Compactness | R37: Design Verified | S37: Rater Verified | T37: NA | W37: -Select from Dropdown-
B38: 6 | C38: 3.1 | E38: Building Enclosure Area6
C39: 3.1.1 | F39: Does not exceed the calculated maximum limit [ft2] calculated to the right. | P39: =IF(AND(N19<=Q39,N19>0), "YES", "NO") -> NO | Q39: =IFERROR('Compliance Calcs'!C5,"-") -> -
C40: 4 | D40: Solar Protection | R40: Design Verified | S40: Rater Verified | T40: NA | W40: -Select from Dropdown-
B41: 7 | C41: 4.1 | E41: Glazed Fenestration Solar Heat Gain Coefficient7 (SHGC)
B42: 8 | C42: 4.1.1 | F42: Does not exceed the calculated maximum requirement.8 | Q42: ='Reference Climate Info_Vals'!BO2 -> NR
C43: 4.2 | E43: Glazed Fenestration Area
B44: 9 | C44: 4.2.1 | F44: The overall window-to-wall (WWR) area ratio9 is ≤ 18%.
C45: 4.2.1.1 | G45: Orientation (within 90°) | K45: North | L45: East | M45: South | N45: West | O45: Total | P45: Calculated WWR | Q45: ≤ 18%
G46: Window Area [ft2] | K46: =6*3+24+24+(6.667*3) -> 86.001 | L46: =36*2 -> 72 | M46: =(6*5.5)*3+(6*6.5)*2+(6*7.667) -> 223.002 | N46: =36+5.5*9 -> 85.5 | O46: =SUM(K46:N46) -> 466.503 | P46: =ROUND(O46/(O46+O47),2) -> 0.16 | Q46: =IF(P46<=18%,"YES","NO") -> YES
G47: Above-grade Wall Area [ft2] | K47: 756.6 | L47: 593.3 | M47: 616.6 | N47: 571.2 | O47: =SUM(K47:N47) -> 2537.7
B48: 10 | C48: 4.2.2 | F48: The skylight-to-roof (SRR) area ratio10 is ≤ 3%.
C49: 4.2.2.1 | G49: Roof Area [ft2] | L49: Skylight Area [ft2] | P49: Calculated SRR | Q49: ≤ 3%
G50: 1500 | L50: 50 | P50: =ROUND(L50/(L50+G50),2) -> 0.03 | Q50: =IF(P50<=3%,"YES","NO") -> YES
B51: 11 | C51: 4.3 | E51: Fenestration orientation - Adequate Exposure Diversity (AED) complies with a, b or c below.11 | O51: Choose one: | Q51: Select
B52: 12 | C52: 4.3.1a | G52: Window-to-floor (WFR) area ratio12 ≤ 15%. | Q52: =IF(OR(F18="Single Family Detached - New Construction",F18="Single Family Detached - Retrofit"),"≤ 15%","NR") -> ≤ 15%
C53: 4.3.1a.1 | H53: iCFA [ft2] | L53: Window Area [ft2] | P53: Calculated WFR | Q53: ≤ 15%
H54: =N18 -> 0 | L54: =O46 -> 466.503 | P54: =IFERROR(ROUND(SUM($K$46:$N$46)/$N$18,2),"-") -> - | Q54: =IF(P54<=15%,"YES","NO") -> NO
B55: 13, 14 | C55: 4.3.1b | G55: Adequate Exposure Diversity13 (AED) is achieved using the simplified method.14 | Q55: =IF(OR(F18="Single Family Detached - New Construction",F18="Single Family Detached - Retrofit"),"< 100%","NR") -> < 100%
C56: 4.3.1b.1 | H56: Orientation (within 90°) | K56: North | L56: East | M56: South | N56: West | O56: AED Score <100% Passes | Q56: Passes?
H57: Window Area [ft2] | K57: ='Net Gain - Angle Calculator'!I18 -> 86.001 | L57: ='Net Gain - Angle Calculator'!J18 -> 72 | M57: ='Net Gain - Angle Calculator'!K18 -> 223.002 | N57: ='Net Gain - Angle Calculator'!L18 -> 85.5 | O57: =Main!P405 -> 0.7894132103 | Q57: =IF(O57<=100%,"YES","NO") -> YES
C58: =IF(O57>1,"If AED is failing, try balancing the East & West window areas, distrubiting the fenestration more evenly, or shifting area to the North façade.","-") -> -
C59: 4.3.1c | G59: AED is achieved according to ACCA Manual J calculation. | Q59: =IF(OR(F18="Single Family Detached - New Construction",F18="Single Family Detached - Retrofit"),"Manual J","NR") -> Manual J
C60: 4.4 | E60: Fixed Overhangs
B61: 15, 16, 17 | C61: 4.4.1 | F61: In Climate Zones15 0-3, south-facing glazed fenestration16 is protected by fixed overhangs with a Projection Factor (PF) as calculated.17 | Q61: =IF(ISNUMBER('Reference Climate Info_Vals'!BM2),ROUND('Reference Climate Info_Vals'!BM2,2),'Reference Climate Info_Vals'!BM2) -> NR
C62: 4.4.1.1 | G62: South Facing Fenestration Mark | J62: Quantity | L62: Sill Height Above Finished Floor (AFF) | N62: Overhang Height (AFF) | P62: Minimum Overhang Depth Required based on PF
L63: [ft] | M63: [in] | N63: [ft] | O63: [in] | P63: [ft] | Q63: [in]
G64: South Door D100 | J64: 1 | L64: 0 | M64: 0 | N64: 7 | O64: 0 | P64: =IF($Q$61="NR","NR",ROUNDDOWN($Q$61*((N64+(O64/12))-(L64+(M64/12))),0)) -> NR | Q64: =IF($Q$61="NR","NR",ROUNDDOWN(($Q$61*((N64+(O64/12))-(L64+(M64/12)))-P64)*12,0)) -> NR
P65: =IF($Q$61="NR","NR",ROUNDDOWN($Q$61*((N65+(O65/12))-(L65+(M65/12))),0)) -> NR | Q65: =IF($Q$61="NR","NR",ROUNDDOWN(($Q$61*((N65+(O65/12))-(L65+(M65/12)))-P65)*12,0)) -> NR
P66: NR | Q66: NR
P67: NR | Q67: NR
P68: NR | Q68: NR
P69: NR | Q69: NR
P70: NR | Q70: NR
P71: NR | Q71: NR
P72: NR | Q72: NR
P73: NR | Q73: NR
C74: 4.5 | E74: In climate zones 4-7 except 4C & 5C, fenestration orientation - Net Heat Gain complies with calculation below.
C75: Orientation (within 90°) | K75: North | L75: East | M75: South | N75: West | O75: Net Gain Score >0 Passes | Q75: Passes?
C76: Window Area [ft2] | K76: =$K$57 -> 86.001 | L76: =$L$57 -> 72 | M76: =$M$57 -> 223.002 | N76: =$N$57 -> 85.5 | O76: =Main!Q405 -> 40 | Q76: =IF(OR(O76="NR",O76>=0)=TRUE,"YES","NO") -> YES
C77: =IF(O76<0,"If Net Heat Gain is failing, try reducing the north-facing window area and/or increasing south-facing window area.","-") -> -
C78: 5 | D78: Thermal Enclosure | R78: Design Verified | S78: Rater Verified | T78: NA | W78: -Select from Dropdown-
B79: 18, 19 | C79: 5.1 | E79: Enclosure meets 5.1.1 OR 5.1.2 below.18,19 | L79: Choose one: | N79: Select
C80: 5.1.1 | F80: Individual Component Compliance
C81: 5.1.1.1 | G81: Use the [+] icon on the far left of the screen to expand and input user-defined materials for the compliance calculators in sections 5.1.1b,c,d and 3 below.
M82: Materials | Q82: R-value/in
M83: Pink Panther XPS | Q83: 5.1
M84: Gravel | Q84: 0.2
B91: 20 | C91: 5.1.1a | G91: Fenestration U-Values20 ≤ maximum U-value [BTU/h.ft2.°F]. | Q91: ='Reference Climate Info_Vals'!BH2 -> 0.1546829849
B92: 21 | C92: 5.1.1b | G92: Above-grade walls and cantilevered floors effective R-Value21 [ft2.°F.h/BTU] meets calculated minimum. | Q92: ='Reference Climate Info_Vals'!BJ2 -> 38
C93: 5.1.1b.1 | H93: Use the [+] icon on the far left of the screen to expand and view built in compliance calculators.
C94: =IF(T108=0,"-",T108) -> 36 | D94: Above-Grade Wall Type 1
D95: Step 1: Choose Wall Assembly Type. | J95: Wall Type B (1) | N95: =HLOOKUP(J95,'Effective R-Values'!$P$2:$Y$11,'Effective R-Values'!$P$11,FALSE) -> Framed assemblies with some insulation value outside of the framing or structure.
D96: Step 2: Fill in assembly materials, thicknesses & framing.
D97: Material Layer | J97: Material Type | N97: Thickness [in] | P97: Framing Type | S97: R/in | T97: Effective R-Value
D98: =HLOOKUP(J95,'Effective R-Values'!$Q$2:$Z$9,'Effective R-Values'!$P$3,FALSE) -> Continous Exterior Insulation | J98: Polyisocyanurate | N98: 3 | P98: - | S98: =IFERROR(VLOOKUP(J98,'Effective R-Values'!$J$2:$K$34,2,FALSE),) -> 5.8 | T98: =IF(LEFT(J98,3)="air",S98, IFERROR(VLOOKUP(P98,'Effective R-Values'!$M$2:$N$13,2,FALSE)*N98*S98+(1-VLOOKUP(P98,'Effective R-Values'!$M$2:$N$13,2,FALSE))*1.25,)) -> 17.4
D99: =HLOOKUP(J95,'Effective R-Values'!$Q$2:$Z$9,'Effective R-Values'!$P$4,FALSE) -> Sheathing | J99: Plywood | N99: 0.75 | P99: - | S99: =IFERROR(VLOOKUP(J99,'Effective R-Values'!$J$2:$K$34,2,FALSE),) -> 1.4 | T99: =IF(LEFT(J99,3)="air",S99, IFERROR(VLOOKUP(P99,'Effective R-Values'!$M$2:$N$13,2,FALSE)*N99*S99+(1-VLOOKUP(P99,'Effective R-Values'!$M$2:$N$13,2,FALSE))*1.25,)) -> 1.05
D100: =HLOOKUP(J95,'Effective R-Values'!$Q$2:$Z$9,'Effective R-Values'!$P$5,FALSE) -> Insulated Cavity | J100: Cellulose (Blown-in Wall) | N100: 5.5 | P100: Wall Wood Frame (24" o.c.) | S100: =IFERROR(VLOOKUP(J100,'Effective R-Values'!$J$2:$K$34,2,FALSE),) -> 3.8 | T100: =IF(LEFT(J100,3)="air",S100, IFERROR(VLOOKUP(P100,'Effective R-Values'!$M$2:$N$13,2,FALSE)*N100*S100+(1-VLOOKUP(P100,'Effective R-Values'!$M$2:$N$13,2,FALSE))*1.25,)) -> 16.577
D101: =HLOOKUP(J95,'Effective R-Values'!$Q$2:$Z$9,'Effective R-Values'!$P$6,FALSE) -> Interior Finish | J101: Gypsum Wall Board | N101: 0.625 | P101: - | S101: =IFERROR(VLOOKUP(J101,'Effective R-Values'!$J$2:$K$34,2,FALSE),) -> 0.898 | T101: =IF(LEFT(J101,3)="air",S101, IFERROR(VLOOKUP(P101,'Effective R-Values'!$M$2:$N$13,2,FALSE)*N101*S101+(1-VLOOKUP(P101,'Effective R-Values'!$M$2:$N$13,2,FALSE))*1.25,)) -> 0.56125
D102: =HLOOKUP(J95,'Effective R-Values'!$Q$2:$Z$9,'Effective R-Values'!$P$7,FALSE) -> - | P102: - | S102: =IFERROR(VLOOKUP(J102,'Effective R-Values'!$J$2:$K$34,2,FALSE),) -> 0 | T102: =IF(LEFT(J102,3)="air",S102, IFERROR(VLOOKUP(P102,'Effective R-Values'!$M$2:$N$13,2,FALSE)*N102*S102+(1-VLOOKUP(P102,'Effective R-Values'!$M$2:$N$13,2,FALSE))*1.25,)) -> 0
D103: =HLOOKUP(J95,'Effective R-Values'!$Q$2:$Z$9,'Effective R-Values'!$P$8,FALSE) -> - | P103: - | S103: =IFERROR(VLOOKUP(J103,'Effective R-Values'!$J$2:$K$34,2,FALSE),) -> 0 | T103: =IF(LEFT(J103,3)="air",S103, IFERROR(VLOOKUP(P103,'Effective R-Values'!$M$2:$N$13,2,FALSE)*N103*S103+(1-VLOOKUP(P103,'Effective R-Values'!$M$2:$N$13,2,FALSE))*1.25,)) -> 0
D104: =HLOOKUP(J95,'Effective R-Values'!$Q$2:$Z$9,'Effective R-Values'!$P$9,FALSE) -> - | P104: - | S104: =IFERROR(VLOOKUP(J104,'Effective R-Values'!$J$2:$K$34,2,FALSE),) -> 0 | T104: =IF(LEFT(J104,3)="air",S104, IFERROR(VLOOKUP(P104,'Effective R-Values'!$M$2:$N$13,2,FALSE)*N104*S104+(1-VLOOKUP(P104,'Effective R-Values'!$M$2:$N$13,2,FALSE))*1.25,)) -> 0
D105: Step 3: Review hygrothermal & moisture guidelines. | Q105: =IF(R106="NR","NR","≥"&R106) -> ≥0.35 | R105: Required Ratio | T105: Calculated Ratio
D106: =HLOOKUP(J95,'Effective R-Values'!$Q$2:$Z$11,'Effective R-Values'!$P$10,FALSE) -> This wall type allows Class III interior vapor control so long as the sheathing-to-cavity R-value ratio is >0.35. | Q106: =IF(LEFT(RIGHT(J95,5),1)="b",IF(R106="NR","NR",IF(T106>R106,"YES","NO")),"NR") -> YES | R106: =IFERROR(IF(LEFT(RIGHT(J95,5),1)="B",VLOOKUP($T$10,'Effective R-Values'!$P$32:$U$48,5,FALSE),"NR"),"n/a") -> 0.35 | T106: =IFERROR(IF(LEFT(RIGHT(J95,5),5)="B (1)",(S98*N98)/(SUMPRODUCT(N98:N104,S98:S104)-(S98*N98)),IF(LEFT(RIGHT(J95,5),5)="B (2)",SUMPRODUCT(S98:S99,N98:N99)/(SUMPRODUCT(N98:N104,S98:S104)-SUMPRODUCT(S98:S99,N98:N99)),"-")),) -> 0.7729468599
D107: Step 4: Review Effective R-Value to confirm compliance with required R-value. | Q107: ="≥"&R108 -> ≥38 | R107: Required R-value | T107: Calculated R-value
Q108: =IF(T108>=R108,"YES","NO") -> NO | R108: =$Q$92 -> 38 | T108: =ROUND(SUM(T98:T104),0) -> 36
C109: =IF(T123=0,"-",T123) -> 40 | D109: Above-Grade Wall Type 2
D110: Step 1: Choose Wall Assembly Type. | J110: Wall Type B (1) | N110: =HLOOKUP(J110,'Effective R-Values'!$P$2:$Y$11,'Effective R-Values'!$P$11,FALSE) -> Framed assemblies with some insulation value outside of the framing or structure.
D111: Step 2: Fill in assembly materials, thicknesses & framing.
D112: Material Layer | J112: Material Type | N112: Thickness [in] | P112: Framing Type | S112: R/in | T112: Effective R-Value
D113: =HLOOKUP(J110,'Effective R-Values'!$Q$2:$Z$9,'Effective R-Values'!$P$3,FALSE) -> Continous Exterior Insulation | J113: Polyisocyanurate | N113: 4 | P113: - | S113: =IFERROR(VLOOKUP(J113,'Effective R-Values'!$J$2:$K$34,2,FALSE),) -> 5.8 | T113: =IF(LEFT(J113,3)="air",S113, IFERROR(VLOOKUP(P113,'Effective R-Values'!$M$2:$N$13,2,FALSE)*N113*S113+(1-VLOOKUP(P113,'Effective R-Values'!$M$2:$N$13,2,FALSE))*1.25,)) -> 23.2
D114: =HLOOKUP(J110,'Effective R-Values'!$Q$2:$Z$9,'Effective R-Values'!$P$4,FALSE) -> Sheathing | J114: Plywood | N114: 0.5 | P114: - | S114: =IFERROR(VLOOKUP(J114,'Effective R-Values'!$J$2:$K$34,2,FALSE),) -> 1.4 | T114: =IF(LEFT(J114,3)="air",S114, IFERROR(VLOOKUP(P114,'Effective R-Values'!$M$2:$N$13,2,FALSE)*N114*S114+(1-VLOOKUP(P114,'Effective R-Values'!$M$2:$N$13,2,FALSE))*1.25,)) -> 0.7
D115: =HLOOKUP(J110,'Effective R-Values'!$Q$2:$Z$9,'Effective R-Values'!$P$5,FALSE) -> Insulated Cavity | J115: Cellulose (Blown-in Wall) | N115: 5.5 | P115: Wall Wood Frame (16" o.c.) | S115: =IFERROR(VLOOKUP(J115,'Effective R-Values'!$J$2:$K$34,2,FALSE),) -> 3.8 | T115: =IF(LEFT(J115,3)="air",S115, IFERROR(VLOOKUP(P115,'Effective R-Values'!$M$2:$N$13,2,FALSE)*N115*S115+(1-VLOOKUP(P115,'Effective R-Values'!$M$2:$N$13,2,FALSE))*1.25,)) -> 15.9875
D116: =HLOOKUP(J110,'Effective R-Values'!$Q$2:$Z$9,'Effective R-Values'!$P$6,FALSE) -> Interior Finish | J116: Gypsum Wall Board | N116: 0.625 | P116: - | S116: =IFERROR(VLOOKUP(J116,'Effective R-Values'!$J$2:$K$34,2,FALSE),) -> 0.898 | T116: =IF(LEFT(J116,3)="air",S116, IFERROR(VLOOKUP(P116,'Effective R-Values'!$M$2:$N$13,2,FALSE)*N116*S116+(1-VLOOKUP(P116,'Effective R-Values'!$M$2:$N$13,2,FALSE))*1.25,)) -> 0.56125
D117: =HLOOKUP(J110,'Effective R-Values'!$Q$2:$Z$9,'Effective R-Values'!$P$7,FALSE) -> - | P117: - | S117: =IFERROR(VLOOKUP(J117,'Effective R-Values'!$J$2:$K$34,2,FALSE),) -> 0 | T117: =IF(LEFT(J117,3)="air",S117, IFERROR(VLOOKUP(P117,'Effective R-Values'!$M$2:$N$13,2,FALSE)*N117*S117+(1-VLOOKUP(P117,'Effective R-Values'!$M$2:$N$13,2,FALSE))*1.25,)) -> 0
D118: =HLOOKUP(J110,'Effective R-Values'!$Q$2:$Z$9,'Effective R-Values'!$P$8,FALSE) -> - | P118: - | S118: =IFERROR(VLOOKUP(J118,'Effective R-Values'!$J$2:$K$34,2,FALSE),) -> 0 | T118: =IF(LEFT(J118,3)="air",S118, IFERROR(VLOOKUP(P118,'Effective R-Values'!$M$2:$N$13,2,FALSE)*N118*S118+(1-VLOOKUP(P118,'Effective R-Values'!$M$2:$N$13,2,FALSE))*1.25,)) -> 0
D119: =HLOOKUP(J110,'Effective R-Values'!$Q$2:$Z$9,'Effective R-Values'!$P$9,FALSE) -> - | P119: - | S119: =IFERROR(VLOOKUP(J119,'Effective R-Values'!$J$2:$K$34,2,FALSE),) -> 0 | T119: =IF(LEFT(J119,3)="air",S119, IFERROR(VLOOKUP(P119,'Effective R-Values'!$M$2:$N$13,2,FALSE)*N119*S119+(1-VLOOKUP(P119,'Effective R-Values'!$M$2:$N$13,2,FALSE))*1.25,)) -> 0
D120: Step 3: Review hygrothermal & moisture guidelines. | Q120: =IF(R121="NR","NR","≥"&R121) -> ≥0.35 | R120: Required Ratio | T120: Calculated Ratio
D121: =HLOOKUP(J110,'Effective R-Values'!$Q$2:$Z$11,'Effective R-Values'!$P$10,FALSE) -> This wall type allows Class III interior vapor control so long as the sheathing-to-cavity R-value ratio is >0.35. | Q121: =IF(LEFT(RIGHT(J110,5),1)="b",IF(R121="NR","NR",IF(T121>R121,"YES","NO")),"NR") -> YES | R121: =IFERROR(IF(LEFT(RIGHT(J110,5),1)="B",VLOOKUP($T$10,'Effective R-Values'!$P$32:$U$48,5,FALSE),"NR"),"n/a") -> 0.35 | T121: =IFERROR(IF(LEFT(RIGHT(J110,5),5)="B (1)",(S113*N113)/(SUMPRODUCT(N113:N119,S113:S119)-(S113*N113)),IF(LEFT(RIGHT(J110,5),5)="B (2)",SUMPRODUCT(S113:S114,N113:N114)/(SUMPRODUCT(N113:N119,S113:S119)-SUMPRODUCT(S113:S114,N113:N114)),"-")),) -> 1.046872356
D122: Step 4: Review Effective R-Value to confirm compliance with required R-value. | Q122: ="≥"&R123 -> ≥38 | R122: Required R-value | T122: Calculated R-value
Q123: =IF(T123>=R123,"YES","NO") -> YES | R123: =$Q$92 -> 38 | T123: =ROUND(SUM(T113:T119),0) -> 40
C124: =IF(T135=0,"-",T135) -> - | D124: Cantileverd Floor Type 1
D125: Step 1: Choose Floor Assembly Type. | J125: Overhang Floor Type B | N125: =HLOOKUP(J125,'Effective R-Values'!$P$22:$W$29,'Effective R-Values'!$P$29,FALSE) -> Overhang floor (over crawlspace or cantilevered) without rigid insulation on the bottom using air permeable cavity insulation.
D126: Step 2: Fill in assembly materials, thicknesses & framing.
D127: Material Layer | J127: Material Type | N127: Thickness [in] | P127: Framing Type | S127: R/in | T127: Effective R-Value
D128: =HLOOKUP(J125,'Effective R-Values'!$Q$22:$W$27,'Effective R-Values'!$P$23,FALSE) -> Netting / Exterior GWB | P128: - | S128: =IFERROR(VLOOKUP(J128,'Effective R-Values'!$J$2:$K$34,2,FALSE),) -> 0 | T128: =IF(LEFT(J128,3)="air",S128, IFERROR(VLOOKUP(P128,'Effective R-Values'!$M$2:$N$13,2,FALSE)*N128*S128+(1-VLOOKUP(P128,'Effective R-Values'!$M$2:$N$13,2,FALSE))*1.25,)) -> 0
D129: =HLOOKUP(J125,'Effective R-Values'!$Q$22:$W$27,'Effective R-Values'!$P$24,FALSE) -> Insulated Cavity (vapor open) | P129: - | S129: =IFERROR(VLOOKUP(J129,'Effective R-Values'!$J$2:$K$34,2,FALSE),) -> 0 | T129: =IF(LEFT(J129,3)="air",S129, IFERROR(VLOOKUP(P129,'Effective R-Values'!$M$2:$N$13,2,FALSE)*N129*S129+(1-VLOOKUP(P129,'Effective R-Values'!$M$2:$N$13,2,FALSE))*1.25,)) -> 0
D130: =HLOOKUP(J125,'Effective R-Values'!$Q$22:$W$27,'Effective R-Values'!$P$25,FALSE) -> Subfloor (optional) | P130: - | S130: =IFERROR(VLOOKUP(J130,'Effective R-Values'!$J$2:$K$34,2,FALSE),) -> 0 | T130: =IF(LEFT(J130,3)="air",S130, IFERROR(VLOOKUP(P130,'Effective R-Values'!$M$2:$N$13,2,FALSE)*N130*S130+(1-VLOOKUP(P130,'Effective R-Values'!$M$2:$N$13,2,FALSE))*1.25,)) -> 0
D131: =HLOOKUP(J125,'Effective R-Values'!$Q$22:$W$27,'Effective R-Values'!$P$26,FALSE) -> - | P131: - | S131: =IFERROR(VLOOKUP(J131,'Effective R-Values'!$J$2:$K$34,2,FALSE),) -> 0 | T131: =IF(LEFT(J131,3)="air",S131, IFERROR(VLOOKUP(P131,'Effective R-Values'!$M$2:$N$13,2,FALSE)*N131*S131+(1-VLOOKUP(P131,'Effective R-Values'!$M$2:$N$13,2,FALSE))*1.25,)) -> 0
D132: =HLOOKUP(J125,'Effective R-Values'!$Q$22:$W$27,'Effective R-Values'!$P$27,FALSE) -> - | P132: - | S132: =IFERROR(VLOOKUP(J132,'Effective R-Values'!$J$2:$K$34,2,FALSE),) -> 0 | T132: =IF(LEFT(J132,3)="air",S132, IFERROR(VLOOKUP(P132,'Effective R-Values'!$M$2:$N$13,2,FALSE)*N132*S132+(1-VLOOKUP(P132,'Effective R-Values'!$M$2:$N$13,2,FALSE))*1.25,)) -> 0
D133: Step 3: Review hygrothermal & moisture guidelines. | K133: =HLOOKUP(J125,'Effective R-Values'!$Q$22:$W$29,'Effective R-Values'!$P$28,FALSE) -> Fiberglass or mineral wool is preferable to cellulose.
D134: Step 4: Review Effective R-Value to confirm compliance with required R-value. | Q134: ="≥"&R135 -> ≥38 | R134: Required R-value | T134: Calculated R-value
Q135: =IF(T135>=R135,"YES","NO") -> NO | R135: =$Q$92 -> 38 | T135: =ROUND(SUM(T128:T132),0) -> 0
C136: =IF(T147=0,"-",T147) -> - | D136: Cantileverd Floor Type 2
D137: Step 1: Choose Floor Assembly Type. | J137: Overhang Floor Type C (1) | N137: =HLOOKUP(J137,'Effective R-Values'!$P$22:$W$29,'Effective R-Values'!$P$29,FALSE) -> Overhang floor (over crawlspace or cantilevered) with cavity insulation comprised of only air-impermeable insulation.
D138: Step 2: Fill in assembly materials, thicknesses & framing.
D139: Material Layer | J139: Material Type | N139: Thickness [in] | P139: Framing Type | S139: R/in | T139: Effective R-Value
D140: =HLOOKUP(J137,'Effective R-Values'!$Q$22:$W$27,'Effective R-Values'!$P$23,FALSE) -> Exterior Sheathing | P140: - | S140: =IFERROR(VLOOKUP(J140,'Effective R-Values'!$J$2:$K$34,2,FALSE),) -> 0 | T140: =IF(LEFT(J140,3)="air",S140, IFERROR(VLOOKUP(P140,'Effective R-Values'!$M$2:$N$13,2,FALSE)*N140*S140+(1-VLOOKUP(P140,'Effective R-Values'!$M$2:$N$13,2,FALSE))*1.25,)) -> 0
D141: =HLOOKUP(J137,'Effective R-Values'!$Q$22:$W$27,'Effective R-Values'!$P$24,FALSE) -> Insulated Cavity (vapor closed) | P141: - | S141: =IFERROR(VLOOKUP(J141,'Effective R-Values'!$J$2:$K$34,2,FALSE),) -> 0 | T141: =IF(LEFT(J141,3)="air",S141, IFERROR(VLOOKUP(P141,'Effective R-Values'!$M$2:$N$13,2,FALSE)*N141*S141+(1-VLOOKUP(P141,'Effective R-Values'!$M$2:$N$13,2,FALSE))*1.25,)) -> 0
D142: =HLOOKUP(J137,'Effective R-Values'!$Q$22:$W$27,'Effective R-Values'!$P$25,FALSE) -> Subfloor (optional) | P142: - | S142: =IFERROR(VLOOKUP(J142,'Effective R-Values'!$J$2:$K$34,2,FALSE),) -> 0 | T142: =IF(LEFT(J142,3)="air",S142, IFERROR(VLOOKUP(P142,'Effective R-Values'!$M$2:$N$13,2,FALSE)*N142*S142+(1-VLOOKUP(P142,'Effective R-Values'!$M$2:$N$13,2,FALSE))*1.25,)) -> 0
D143: =HLOOKUP(J137,'Effective R-Values'!$Q$22:$W$27,'Effective R-Values'!$P$26,FALSE) -> - | P143: - | S143: =IFERROR(VLOOKUP(J143,'Effective R-Values'!$J$2:$K$34,2,FALSE),) -> 0 | T143: =IF(LEFT(J143,3)="air",S143, IFERROR(VLOOKUP(P143,'Effective R-Values'!$M$2:$N$13,2,FALSE)*N143*S143+(1-VLOOKUP(P143,'Effective R-Values'!$M$2:$N$13,2,FALSE))*1.25,)) -> 0
D144: =HLOOKUP(J137,'Effective R-Values'!$Q$22:$W$27,'Effective R-Values'!$P$27,FALSE) -> - | P144: - | S144: =IFERROR(VLOOKUP(J144,'Effective R-Values'!$J$2:$K$34,2,FALSE),) -> 0 | T144: =IF(LEFT(J144,3)="air",S144, IFERROR(VLOOKUP(P144,'Effective R-Values'!$M$2:$N$13,2,FALSE)*N144*S144+(1-VLOOKUP(P144,'Effective R-Values'!$M$2:$N$13,2,FALSE))*1.25,)) -> 0
D145: Step 3: Review hygrothermal & moisture guidelines. | K145: =HLOOKUP(J137,'Effective R-Values'!$Q$22:$W$29,'Effective R-Values'!$P$28,FALSE) -> This floor type requires an effective airflow control layer on the inside of the insulation and/or framing.
D146: Step 4: Review Effective R-Value to confirm compliance with required R-value. | Q146: ="≥"&R147 -> ≥38 | R146: Required R-value | T146: Calculated R-value
Q147: =IF(T147>=R147,"YES","NO") -> NO | R147: =$Q$92 -> 38 | T147: =ROUND(SUM(T140:T144),0) -> 0
C148: 5.1.1c | G148: Roof or ceiling effective R-Value [ft2.°F.h/BTU] meets calculated minimum. | Q148: ='Reference Climate Info_Vals'!BI2 -> 69
C149: 5.1.1c.1 | H149: Use the [+] icon on the far left of the screen to expand and view built in compliance calculators.
C150: =IF(T162=0,"-",T162) -> 79 | D150: Ceiling / Roof Type 1
D151: Step 1: Choose Roof Assembly Type: | J151: Roof Type D | N151: =HLOOKUP(J151,'Effective R-Values'!$P$13:$Y$20,'Effective R-Values'!$P$20,FALSE) -> Unvented roof assemblies with insulation comprised of only air-impermeable insulation.
D152: Step 2: Fill in assembly materials, thicknesses & framing.
D153: Material Layer | J153: Material Type | N153: Material Thickness (in) | P153: Framing Type | S153: R/in | T153: Effective R-Value
D154: =HLOOKUP(J151,'Effective R-Values'!$Q$13:$Y$18,'Effective R-Values'!$P$14,FALSE) -> Exterior Sheathing | J154: Cellulose (Loose-Fill) Attic | N154: 24 | P154: Roof Wood Frame (24" o.c.) | S154: =IFERROR(VLOOKUP(J154,'Effective R-Values'!$J$2:$K$31,2,FALSE),) -> 3.5 | T154: =IF(LEFT(J154,3)="air",S154, IFERROR(VLOOKUP(P154,'Effective R-Values'!$M$2:$N$12,2,FALSE)*N154*S154+(1-VLOOKUP(P154,'Effective R-Values'!$M$2:$N$12,2,FALSE))*1.25,)) -> 78.2075
D155: =HLOOKUP(J151,'Effective R-Values'!$Q$13:$Y$18,'Effective R-Values'!$P$15,FALSE) -> Insulated Cavity (vapor closed) | J155: Orient Strand Board (OSB) | N155: 0.625 | P155: - | S155: =IFERROR(VLOOKUP(J155,'Effective R-Values'!$J$2:$K$31,2,FALSE),) -> 1.1 | T155: =IF(LEFT(J155,3)="air",S155, IFERROR(VLOOKUP(P155,'Effective R-Values'!$M$2:$N$12,2,FALSE)*N155*S155+(1-VLOOKUP(P155,'Effective R-Values'!$M$2:$N$12,2,FALSE))*1.25,)) -> 0.6875
D156: =HLOOKUP(J151,'Effective R-Values'!$Q$13:$Y$18,'Effective R-Values'!$P$16,FALSE) -> Interior Finish | J156: Gypsum Wall Board | N156: 0.625 | P156: - | S156: =IFERROR(VLOOKUP(J156,'Effective R-Values'!$J$2:$K$31,2,FALSE),) -> 0.898 | T156: =IF(LEFT(J156,3)="air",S156, IFERROR(VLOOKUP(P156,'Effective R-Values'!$M$2:$N$12,2,FALSE)*N156*S156+(1-VLOOKUP(P156,'Effective R-Values'!$M$2:$N$12,2,FALSE))*1.25,)) -> 0.56125
D157: =HLOOKUP(J151,'Effective R-Values'!$Q$13:$Y$18,'Effective R-Values'!$P$17,FALSE) -> - | P157: - | S157: =IFERROR(VLOOKUP(J157,'Effective R-Values'!$J$2:$K$31,2,FALSE),) -> 0 | T157: =IF(LEFT(J157,3)="air",S157, IFERROR(VLOOKUP(P157,'Effective R-Values'!$M$2:$N$12,2,FALSE)*N157*S157+(1-VLOOKUP(P157,'Effective R-Values'!$M$2:$N$12,2,FALSE))*1.25,)) -> 0
D158: =HLOOKUP(J151,'Effective R-Values'!$Q$13:$Y$18,'Effective R-Values'!$P$18,FALSE) -> - | P158: - | S158: =IFERROR(VLOOKUP(J158,'Effective R-Values'!$J$2:$K$31,2,FALSE),) -> 0 | T158: =IF(LEFT(J158,3)="air",S158, IFERROR(VLOOKUP(P158,'Effective R-Values'!$M$2:$N$12,2,FALSE)*N158*S158+(1-VLOOKUP(P158,'Effective R-Values'!$M$2:$N$12,2,FALSE))*1.25,)) -> 0
D159: Step 3: Review hygrothermal & moisture guidelines. | Q159: =IF(R160="NR","NR","≥"&R160) -> NR | R159: Required Ratio | T159: Calculated Ratio
D160: =HLOOKUP(J151,'Effective R-Values'!$Q$13:$Y$19,'Effective R-Values'!$P$19,FALSE) -> This roof type requires an effective airflow control layer on the inside of the insulation and/or framing. | Q160: =IF(LEFT(RIGHT(J151,5),1)="c",IF(R160="NR","NR",IF(T160>R160,"YES","NO")),"NR") -> NR | R160: =IFERROR(IF(LEFT(RIGHT(J151,5),1)="C",VLOOKUP($T$10,'Effective R-Values'!$P$32:$U$48,3,FALSE)/100,"NR"),"n/a") -> NR | T160: =IFERROR(IF(LEFT(RIGHT(J151,5),5)="C (1)",(S154*N154)/SUMPRODUCT(N154:N158,S154:S158),IF(LEFT(RIGHT(J151,5),5)="C (2)",SUMPRODUCT(S154:S155,N154:N155)/SUMPRODUCT(N154:N158,S154:S158),"-")),) -> -
D161: Step 4: Review Effective R-Value to confirm compliance with required R-value. | Q161: ="≥"&R162 -> ≥69 | R161: Required R-value | T161: Calculated R-value
Q162: =IF(T162>=R162,"YES","NO") -> YES | R162: =$Q$148 -> 69 | T162: =ROUND(SUM(T154:T158),0) -> 79
C163: =IF(T175=0,"-",T175) -> - | D163: Ceiling / Roof Type 2
D164: Step 1: Choose Roof Assembly Type: | J164: Roof Type A | N164: =HLOOKUP(J164,'Effective R-Values'!$P$13:$Y$20,'Effective R-Values'!$P$20,FALSE) -> Unvented roof assemblies with most (>75%) of the insulation ouboard of the structure.
D165: Step 2: Fill in assembly materials, thicknesses & framing.
D166: Material Layer | J166: Material Type | N166: Material Thickness (in) | P166: Framing Type | S166: R/in | T166: Effective R-Value
D167: =HLOOKUP(J164,'Effective R-Values'!$Q$13:$Y$18,'Effective R-Values'!$P$14,FALSE) -> Continous Exterior Insulation | P167: - | S167: =IFERROR(VLOOKUP(J167,'Effective R-Values'!$J$2:$K$31,2,FALSE),) -> 0 | T167: =IF(LEFT(J167,3)="air",S167, IFERROR(VLOOKUP(P167,'Effective R-Values'!$M$2:$N$12,2,FALSE)*N167*S167+(1-VLOOKUP(P167,'Effective R-Values'!$M$2:$N$12,2,FALSE))*1.25,)) -> 0
D168: =HLOOKUP(J164,'Effective R-Values'!$Q$13:$Y$18,'Effective R-Values'!$P$15,FALSE) -> Sheathing | P168: - | S168: =IFERROR(VLOOKUP(J168,'Effective R-Values'!$J$2:$K$31,2,FALSE),) -> 0 | T168: =IF(LEFT(J168,3)="air",S168, IFERROR(VLOOKUP(P168,'Effective R-Values'!$M$2:$N$12,2,FALSE)*N168*S168+(1-VLOOKUP(P168,'Effective R-Values'!$M$2:$N$12,2,FALSE))*1.25,)) -> 0
D169: =HLOOKUP(J164,'Effective R-Values'!$Q$13:$Y$18,'Effective R-Values'!$P$16,FALSE) -> Insulated Cavity (optional) | P169: - | S169: =IFERROR(VLOOKUP(J169,'Effective R-Values'!$J$2:$K$31,2,FALSE),) -> 0 | T169: =IF(LEFT(J169,3)="air",S169, IFERROR(VLOOKUP(P169,'Effective R-Values'!$M$2:$N$12,2,FALSE)*N169*S169+(1-VLOOKUP(P169,'Effective R-Values'!$M$2:$N$12,2,FALSE))*1.25,)) -> 0
D170: =HLOOKUP(J164,'Effective R-Values'!$Q$13:$Y$18,'Effective R-Values'!$P$17,FALSE) -> Interior Finish | P170: - | S170: =IFERROR(VLOOKUP(J170,'Effective R-Values'!$J$2:$K$31,2,FALSE),) -> 0 | T170: =IF(LEFT(J170,3)="air",S170, IFERROR(VLOOKUP(P170,'Effective R-Values'!$M$2:$N$12,2,FALSE)*N170*S170+(1-VLOOKUP(P170,'Effective R-Values'!$M$2:$N$12,2,FALSE))*1.25,)) -> 0
D171: =HLOOKUP(J164,'Effective R-Values'!$Q$13:$Y$18,'Effective R-Values'!$P$18,FALSE) -> - | P171: - | S171: =IFERROR(VLOOKUP(J171,'Effective R-Values'!$J$2:$K$31,2,FALSE),) -> 0 | T171: =IF(LEFT(J171,3)="air",S171, IFERROR(VLOOKUP(P171,'Effective R-Values'!$M$2:$N$12,2,FALSE)*N171*S171+(1-VLOOKUP(P171,'Effective R-Values'!$M$2:$N$12,2,FALSE))*1.25,)) -> 0
D172: Step 3: Review hygrothermal & moisture guidelines. | Q172: =IF(R173="NR","NR","≥"&R173) -> NR | R172: Required Ratio | T172: Calculated Ratio
D173: =HLOOKUP(J164,'Effective R-Values'!$Q$13:$Y$19,'Effective R-Values'!$P$19,FALSE) -> This roof type does not require additional vapor control if a Class II vapor control insulation layer is used. | Q173: =IF(LEFT(RIGHT(J164,5),1)="c",IF(R173="NR","NR",IF(T173>R173,"YES","NO")),"NR") -> NR | R173: =IFERROR(IF(LEFT(RIGHT(J164,5),1)="C",VLOOKUP($T$10,'Effective R-Values'!$P$32:$U$48,3,FALSE)/100,"NR"),"n/a") -> NR | T173: =IFERROR(IF(LEFT(RIGHT(J164,5),5)="C (1)",(S167*N167)/SUMPRODUCT(N167:N171,S167:S171),IF(LEFT(RIGHT(J164,5),5)="C (2)",SUMPRODUCT(S167:S168,N167:N168)/SUMPRODUCT(N167:N171,S167:S171),"-")),) -> -
D174: Step 4: Review Effective R-Value to confirm compliance with required R-value. | Q174: ="≥"&R175 -> ≥69 | R174: Required R-value | T174: Calculated R-value
Q175: =IF(T175>=R175,"YES","NO") -> NO | R175: =$Q$148 -> 69 | T175: =ROUND(SUM(T167:T171),0) -> 0
C176: 5.1.1d | G176: For whole slab foundations, below-grade walls and floors of conditioned basements and crawl spaces, the effective R-Value [ft2.°F.h/BTU] meets the calculated minimum. | Q176: ='Reference Climate Info_Vals'!BK2 -> 20
C177: 5.1.1d.1 | H177: Use the [+] icon on the far left of the screen to expand and view built in compliance calculators.
C178: =IF(T192=0,"-",T192) -> - | D178: Below-Grade Wall Type 1
D179: Step 1: Choose Wall Assembly Type. | J179: Wall Type C | N179: =HLOOKUP(J179,'Effective R-Values'!$P$2:$Y$11,'Effective R-Values'!$P$11,FALSE) -> Assemblies with most (>75%) of the insulation outboard of the structure.
D180: Step 2: Fill in assembly materials, thicknesses & framing.
D181: Material Layer | J181: Material Type | N181: Thickness [in] | P181: Framing Type | S181: R/in | T181: Effective R-Value
D182: =HLOOKUP(J179,'Effective R-Values'!$Q$2:$Z$9,'Effective R-Values'!$P$3,FALSE) -> Continous Exterior Insulation | P182: - | S182: =IFERROR(VLOOKUP(J182,'Effective R-Values'!$J$2:$K$34,2,FALSE),) -> 0 | T182: =IF(LEFT(J182,3)="air",S182, IFERROR(VLOOKUP(P182,'Effective R-Values'!$M$2:$N$13,2,FALSE)*N182*S182+(1-VLOOKUP(P182,'Effective R-Values'!$M$2:$N$13,2,FALSE))*1.25,)) -> 0
D183: =HLOOKUP(J179,'Effective R-Values'!$Q$2:$Z$9,'Effective R-Values'!$P$4,FALSE) -> Sheathing | P183: - | S183: =IFERROR(VLOOKUP(J183,'Effective R-Values'!$J$2:$K$34,2,FALSE),) -> 0 | T183: =IF(LEFT(J183,3)="air",S183, IFERROR(VLOOKUP(P183,'Effective R-Values'!$M$2:$N$13,2,FALSE)*N183*S183+(1-VLOOKUP(P183,'Effective R-Values'!$M$2:$N$13,2,FALSE))*1.25,)) -> 0
D184: =HLOOKUP(J179,'Effective R-Values'!$Q$2:$Z$9,'Effective R-Values'!$P$5,FALSE) -> Structure / Insulated Cavity (optional) | P184: - | S184: =IFERROR(VLOOKUP(J184,'Effective R-Values'!$J$2:$K$34,2,FALSE),) -> 0 | T184: =IF(LEFT(J184,3)="air",S184, IFERROR(VLOOKUP(P184,'Effective R-Values'!$M$2:$N$13,2,FALSE)*N184*S184+(1-VLOOKUP(P184,'Effective R-Values'!$M$2:$N$13,2,FALSE))*1.25,)) -> 0
D185: =HLOOKUP(J179,'Effective R-Values'!$Q$2:$Z$9,'Effective R-Values'!$P$6,FALSE) -> Interior Finish | P185: - | S185: =IFERROR(VLOOKUP(J185,'Effective R-Values'!$J$2:$K$34,2,FALSE),) -> 0 | T185: =IF(LEFT(J185,3)="air",S185, IFERROR(VLOOKUP(P185,'Effective R-Values'!$M$2:$N$13,2,FALSE)*N185*S185+(1-VLOOKUP(P185,'Effective R-Values'!$M$2:$N$13,2,FALSE))*1.25,)) -> 0
D186: =HLOOKUP(J179,'Effective R-Values'!$Q$2:$Z$9,'Effective R-Values'!$P$7,FALSE) -> - | P186: - | S186: =IFERROR(VLOOKUP(J186,'Effective R-Values'!$J$2:$K$34,2,FALSE),) -> 0 | T186: =IF(LEFT(J186,3)="air",S186, IFERROR(VLOOKUP(P186,'Effective R-Values'!$M$2:$N$13,2,FALSE)*N186*S186+(1-VLOOKUP(P186,'Effective R-Values'!$M$2:$N$13,2,FALSE))*1.25,)) -> 0
D187: =HLOOKUP(J179,'Effective R-Values'!$Q$2:$Z$9,'Effective R-Values'!$P$8,FALSE) -> - | P187: - | S187: =IFERROR(VLOOKUP(J187,'Effective R-Values'!$J$2:$K$34,2,FALSE),) -> 0 | T187: =IF(LEFT(J187,3)="air",S187, IFERROR(VLOOKUP(P187,'Effective R-Values'!$M$2:$N$13,2,FALSE)*N187*S187+(1-VLOOKUP(P187,'Effective R-Values'!$M$2:$N$13,2,FALSE))*1.25,)) -> 0
D188: =HLOOKUP(J179,'Effective R-Values'!$Q$2:$Z$9,'Effective R-Values'!$P$9,FALSE) -> - | P188: - | S188: =IFERROR(VLOOKUP(J188,'Effective R-Values'!$J$2:$K$34,2,FALSE),) -> 0 | T188: =IF(LEFT(J188,3)="air",S188, IFERROR(VLOOKUP(P188,'Effective R-Values'!$M$2:$N$13,2,FALSE)*N188*S188+(1-VLOOKUP(P188,'Effective R-Values'!$M$2:$N$13,2,FALSE))*1.25,)) -> 0
D189: Step 3: Review hygrothermal & moisture guidelines. | Q189: =IF(R190="NR","NR","≥"&R190) -> NR | R189: Required Ratio | T189: Calculated Ratio
D190: =IF(J179="Double-Stud Wall",HYPERLINK("https://www.buildingscience.com/documents/enclosures-that-work/high-r-value-wall-assemblies/high-r-value-double-stud-wall-construction?topic=doctypes/enclosures-that-work/etw-high-r-value-enclosure-assemblie",HLOOKUP(J179,'Effective R-Values'!$Q$2:$Z$11,'Effective R-Values'!$P$10,FALSE)),HLOOKUP(J179,'Effective R-Values'!$Q$2:$Z$11,'Effective R-Values'!$P$10,FALSE)) -> This wall type recommends Class I or II vapor control on the inside assuming the outboard components are moisture tolerant. The exterior of the vapor control layer is best detailed as a drainage plane water control layer. | Q190: =IF(LEFT(RIGHT(J179,5),1)="b",IF(R190="NR","NR",IF(T190>R190,"YES","NO")),"NR") -> NR | R190: =IFERROR(IF(LEFT(RIGHT(J179,5),1)="B",VLOOKUP($T$10,'Effective R-Values'!$P$32:$U$48,5,FALSE),"NR"),"n/a") -> NR | T190: =IFERROR(IF(LEFT(RIGHT(J179,5),5)="B (1)",(S182*N182)/(SUMPRODUCT(N182:N188,S182:S188)-(S182*N182)),IF(LEFT(RIGHT(J179,5),5)="B (2)",SUMPRODUCT(S182:S183,N182:N183)/(SUMPRODUCT(N182:N188,S182:S188)-SUMPRODUCT(S182:S183,N182:N183)),"-")),) -> -
D191: Step 4: Review Effective R-Value to confirm compliance with required R-value. | Q191: ="≥"&R192 -> ≥20 | R191: Required R-value | T191: Calculated R-value
Q192: =IF(T192>=R192,"YES","NO") -> NO | R192: =$Q$176 -> 20 | T192: =ROUND(SUM(T182:T188),0) -> 0
C193: =IF(T204=0,"-",T204) -> 50 | D193: Slab Type 1
D194: Step 1: Choose Floor Assembly Type. | J194: Slab on Grade Type A | N194: =HLOOKUP(J194,'Effective R-Values'!$P$22:$W$29,'Effective R-Values'!$P$29,FALSE) -> Typical slab on grade. Be sure to only use insulation types graded to be used in contact with the ground.
D195: Step 2: Fill in assembly materials, thicknesses & framing.
D196: Material Layer | J196: Material Type | N196: Thickness [in] | P196: Framing Type | S196: R/in | T196: Effective R-Value
D197: =HLOOKUP(J194,'Effective R-Values'!$Q$22:$W$27,'Effective R-Values'!$P$23,FALSE) -> Continous Exterior Insulation | J197: Expanded Polystyrene (EPS) | N197: 12 | P197: - | S197: =IFERROR(VLOOKUP(J197,'Effective R-Values'!$J$2:$K$34,2,FALSE),) -> 4 | T197: =IF(LEFT(J197,3)="air",S197, IFERROR(VLOOKUP(P197,'Effective R-Values'!$M$2:$N$13,2,FALSE)*N197*S197+(1-VLOOKUP(P197,'Effective R-Values'!$M$2:$N$13,2,FALSE))*1.25,)) -> 48
D198: =HLOOKUP(J194,'Effective R-Values'!$Q$22:$W$27,'Effective R-Values'!$P$24,FALSE) -> Concrete Slab | J198: Gravel | N198: 8 | P198: - | S198: =IFERROR(VLOOKUP(J198,'Effective R-Values'!$J$2:$K$34,2,FALSE),) -> 0.2 | T198: =IF(LEFT(J198,3)="air",S198, IFERROR(VLOOKUP(P198,'Effective R-Values'!$M$2:$N$13,2,FALSE)*N198*S198+(1-VLOOKUP(P198,'Effective R-Values'!$M$2:$N$13,2,FALSE))*1.25,)) -> 1.6
D199: =HLOOKUP(J194,'Effective R-Values'!$Q$22:$W$27,'Effective R-Values'!$P$25,FALSE) -> Subfloor (optional) | J199: Concrete | N199: 6 | P199: - | S199: =IFERROR(VLOOKUP(J199,'Effective R-Values'!$J$2:$K$34,2,FALSE),) -> 0.0625 | T199: =IF(LEFT(J199,3)="air",S199, IFERROR(VLOOKUP(P199,'Effective R-Values'!$M$2:$N$13,2,FALSE)*N199*S199+(1-VLOOKUP(P199,'Effective R-Values'!$M$2:$N$13,2,FALSE))*1.25,)) -> 0.375
D200: =HLOOKUP(J194,'Effective R-Values'!$Q$22:$W$27,'Effective R-Values'!$P$26,FALSE) -> - | P200: - | S200: =IFERROR(VLOOKUP(J200,'Effective R-Values'!$J$2:$K$34,2,FALSE),) -> 0 | T200: =IF(LEFT(J200,3)="air",S200, IFERROR(VLOOKUP(P200,'Effective R-Values'!$M$2:$N$13,2,FALSE)*N200*S200+(1-VLOOKUP(P200,'Effective R-Values'!$M$2:$N$13,2,FALSE))*1.25,)) -> 0
D201: =HLOOKUP(J194,'Effective R-Values'!$Q$22:$W$27,'Effective R-Values'!$P$27,FALSE) -> - | P201: - | S201: =IFERROR(VLOOKUP(J201,'Effective R-Values'!$J$2:$K$34,2,FALSE),) -> 0 | T201: =IF(LEFT(J201,3)="air",S201, IFERROR(VLOOKUP(P201,'Effective R-Values'!$M$2:$N$13,2,FALSE)*N201*S201+(1-VLOOKUP(P201,'Effective R-Values'!$M$2:$N$13,2,FALSE))*1.25,)) -> 0
D202: Step 3: Review hygrothermal & moisture guidelines. | K202: =HLOOKUP(J194,'Effective R-Values'!$Q$22:$W$29,'Effective R-Values'!$P$28,FALSE) -> Does not typically have hygrothermal concerns as long as the vapor control layer (Class I) is installed between the concrete and the rigid insulation.
D203: Step 4: Review Effective R-Value to confirm compliance with required R-value. | Q203: ="≥"&R204 -> ≥20 | R203: Required R-value | T203: Calculated R-value
Q204: =IF(T204>=R204,"YES","NO") -> YES | R204: =$Q$176 -> 20 | T204: =ROUND(SUM(T197:T201),0) -> 50
C205: =IF(T216=0,"-",T216) -> - | D205: Slab Type 2
D206: Step 1: Choose Floor Assembly Type. | J206: Slab on Grade Type A | N206: =HLOOKUP(J206,'Effective R-Values'!$P$22:$W$29,'Effective R-Values'!$P$29,FALSE) -> Typical slab on grade. Be sure to only use insulation types graded to be used in contact with the ground.
D207: Step 2: Fill in assembly materials, thicknesses & framing.
... 331 more rows

Sheet Canned Responses (hidden)
A1: Section Responses
A2: -Select from Dropdown-
A3: Review comments below by clicking the [+] to the left.
A4: Ok, for Design Certification.
A5: Ok, for Final Certification.
A7: 2.1.1
A8: -Select from Dropdown-
A9: Please have the Rater include this requirement in their LOI.
A10: Ok, for Design Certification.
A11: Ok, for Final Certification.

Sheet Net Gain - Angle Calculator (hidden)
I1: North Façade Azimuth | J1: East Façade Azimuth | K1: South Façade Azimuth | L1: West Azimuth
H2: Degrees | I2: =K2-180 -> 0 | J2: =K2-90 -> 90 | K2: =Checklist!T18 -> 180 | L2: =K2+90 -> 270
H3: Radians | I3: =RADIANS(I2-180) -> -3.141592654 | J3: =RADIANS(J2) -> 1.570796327 | K3: 0 | L3: =RADIANS(L2-180) -> 1.570796327
H5: SIN | I5: =ABS(SIN(I3)) -> 1.225148455e-16 | J5: =ABS(SIN(J3)) -> 1 | K5: =ABS(SIN(K3)) -> 0 | L5: =ABS(SIN(L3)) -> 1
H6: COS | I6: =ABS(COS(I3)) -> 1 | J6: =ABS(COS(J3)) -> 6.125742275e-17 | K6: =ABS(COS(K3)) -> 1 | L6: =ABS(COS(L3)) -> 6.125742275e-17
H8: TOTAL | I8: =SUM(I5:I6) -> 1 | J8: =SUM(J5:J6) -> 1 | K8: =SUM(K5:K6) -> 1 | L8: =SUM(L5:L6) -> 1
H10: % | I10: =I5/I$8 -> 1.225148455e-16 | J10: 1 | K10: 0 | L10: 1
I11: 1 | J11: 6.125742275e-17 | K11: 1 | L11: 6.125742275e-17
A13: 4.2.1.1 | E13: Orientation (within 90°) | I13: North | J13: East | K13: South | L13: West | M13: Total | N13: Calculated WWR | O13: ≤ 18%
E14: Window Area [ft2] | I14: =Checklist!K46 -> 86.001 | J14: =Checklist!L46 -> 72 | K14: =Checklist!M46 -> 223.002 | L14: =Checklist!N46 -> 85.5 | M14: =SUM(I14:L14) -> 466.503 | N14: =ROUND(M14/(M14+M15),2) -> 1 | O14: =IF(N14<=18%,"YES","NO") -> NO
E15: Above-grade Wall Area [ft2] | M15: =SUM(I15:L15) -> 0
A17: 4.3.1b.1 | F17: Orientation (within 90°) | I17: North | J17: East | K17: South | L17: West | M17: AED Score <100% Passes | O17: Passes?
F18: Window Area [ft2] | I18: =IF($K$2>180,I11*I14+L11*L14,I11*I14+J11*J14) -> 86.001 | J18: =IF($K$2>180,J10*J14+I10*I14,J10*J14+K10*K14) -> 72 | K18: =IF($K$2>180,K11*K14+J11*J14,K11*K14+L11*L14) -> 223.002 | L18: =IF($K$2>180,L10*L14+K10*K14,L10*L14+I10*I14) -> 85.5 | M18: =Main!N363 -> 0 | O18: =IF(M18<=100%,"YES","NO") -> YES
A19: =IF(M18>1,"If AED is failing, try balancing the East & West window areas, distrubiting the fenestration more evenly, or shifting area to the North façade.","-") -> -
I21: N & W | J21: E & N | K21: S & E | L21: W & S | M21: total
G22: Area | H22: >180 | I22: =I6*I14+L6*L14 -> 86.001 | J22: =J5*J14+I5*I14 -> 72 | K22: =K6*K14+J6*J14 -> 223.002 | L22: =L5*L14+K5*K14 -> 85.5 | M22: =SUM(I22:L22) -> 466.503
H23: <180 | I23: =I6*I14+J6*J14 -> 86.001 | J23: =J5*J14+K5*K14 -> 72 | K23: =K6*K14+L6*L14 -> 223.002 | L23: =L5*L14+I5*I14 -> 85.5 | M23: =SUM(I23:L23) -> 466.503
I24: N & E | J24: E & S | K24: S & W | L24: W & E

Sheet Compliance Calcs (hidden)
B1: iCFA (sf) | C1: =Checklist!N18 -> 0 | E1: per dwelling unit
B2: Number of Stories | C2: =Checklist!Q18 -> 0
A4: 3. COMPACTNESS
B5: Envelope Enclosure (sf) | C5: =CEILING(2*((MAX((C1/C2)/(7*5.5),SQRT(3*(C1/C2))+2)+(C1/C2)/(MAX((C1/C2)/(7*5.5),SQRT(3*(C1/C2))+2)-2)+2)*(12*C2)+(MAX((C1/C2)/(7*5.5),SQRT(3*(C1/C2))+2))*((C1/C2)/(MAX((C1/C2)/(7*5.5),SQRT(3*(C1/C2))+2)-2)+2)),25) ->  | D5: Reference Building
A6: REFERENCE CLIMATE INFORMATION
A8: HDD65 [F.days] | B8: ='Reference Climate Info_Vals'!D2 -> 6190 | D8: Jan | E8: Feb | F8: Mar | G8: Apr | H8: May | I8: Jun | J8: Jul | K8: Aug | L8: Sep | M8: Oct | N8: Nov | O8: Dec
A9: IGA [kWh/m2.yr] | B9: ='Reference Climate Info_Vals'!E2 -> 1380 | C9: Average Ambient Temp | D9: ='Reference Climate Info_Vals'!K2 -> 24.6 | E9: ='Reference Climate Info_Vals'!L2 -> 28.2 | F9: ='Reference Climate Info_Vals'!M2 -> 38.2 | G9: ='Reference Climate Info_Vals'!N2 -> 49.2 | H9: ='Reference Climate Info_Vals'!O2 -> 59.6 | I9: ='Reference Climate Info_Vals'!P2 -> 69.5 | J9: ='Reference Climate Info_Vals'!Q2 -> 74.2 | K9: ='Reference Climate Info_Vals'!R2 -> 72.7 | L9: ='Reference Climate Info_Vals'!S2 -> 64.9 | M9: ='Reference Climate Info_Vals'!T2 -> 53.1 | N9: ='Reference Climate Info_Vals'!U2 -> 40.6 | O9: ='Reference Climate Info_Vals'!V2 -> 29.3
A10: THD [F] | B10: ='Reference Climate Info_Vals'!F2 -> 14.35 | C10: HDD50 (Monthly) | D10: ='Reference Climate Info_Vals'!W2 -> 788 | E10: ='Reference Climate Info_Vals'!X2 -> 612 | F10: ='Reference Climate Info_Vals'!Y2 -> 397 | G10: ='Reference Climate Info_Vals'!Z2 -> 123 | H10: ='Reference Climate Info_Vals'!AA2 -> 14 | I10: ='Reference Climate Info_Vals'!AB2 -> 0 | J10: ='Reference Climate Info_Vals'!AC2 -> 0 | K10: ='Reference Climate Info_Vals'!AD2 -> 0 | L10: ='Reference Climate Info_Vals'!AE2 -> 2 | M10: ='Reference Climate Info_Vals'!AF2 -> 67 | N10: ='Reference Climate Info_Vals'!AG2 -> 307 | O10: ='Reference Climate Info_Vals'!AH2 -> 645
A11: TCD [F] | B11: ='Reference Climate Info_Vals'!G2 -> 80.8 | C11: CDD50 (Monthly) | D11: ='Reference Climate Info_Vals'!AI2 -> 0 | E11: ='Reference Climate Info_Vals'!AJ2 -> 2 | F11: ='Reference Climate Info_Vals'!AK2 -> 33 | G11: ='Reference Climate Info_Vals'!AL2 -> 98 | H11: ='Reference Climate Info_Vals'!AM2 -> 310 | I11: ='Reference Climate Info_Vals'!AN2 -> 585 | J11: ='Reference Climate Info_Vals'!AO2 -> 751 | K11: ='Reference Climate Info_Vals'!AP2 -> 704 | L11: ='Reference Climate Info_Vals'!AQ2 -> 448 | M11: ='Reference Climate Info_Vals'!AR2 -> 163 | N11: ='Reference Climate Info_Vals'!AS2 -> 25 | O11: ='Reference Climate Info_Vals'!AT2 -> 3
A12: Marginal Elec Price ($/kWh) | B12: ='Reference Climate Info_Vals'!H2 -> 0.1144 | C12: Dew Pt (Monthly) | D12: ='Reference Climate Info_Vals'!AU2 -> 15.1 | E12: ='Reference Climate Info_Vals'!AV2 -> 17.24 | F12: ='Reference Climate Info_Vals'!AW2 -> 29.3 | G12: ='Reference Climate Info_Vals'!AX2 -> 39.2 | H12: ='Reference Climate Info_Vals'!AY2 -> 45 | I12: ='Reference Climate Info_Vals'!AZ2 -> 55.4 | J12: ='Reference Climate Info_Vals'!BA2 -> 65.66 | K12: ='Reference Climate Info_Vals'!BB2 -> 61.88 | L12: ='Reference Climate Info_Vals'!BC2 -> 55.2 | M12: ='Reference Climate Info_Vals'!BD2 -> 32.7 | N12: ='Reference Climate Info_Vals'!BE2 -> 32.7 | O12: ='Reference Climate Info_Vals'!BF2 -> 18.3
A13: Latitude | B13: ='Reference Climate Info_Vals'!I2 -> 41.995N
A14: 99% Dry Bulb [F] | B14: ='Reference Climate Info_Vals'!J2 -> 4.4
A15: Average Annual Ambient Temp | B15: =AVERAGE(D9:O9) -> 50.34166667
A17: Roof | B17: =Checklist!Q148 -> 69
A18: Ceiling | B18: =B17 -> 69
A19: Wall (Below Grade) | B19: =Checklist!Q176 -> 20
A20: Wall (Above Grade) | B20: =Checklist!Q92 -> 38
A21: Overhang Floor | B21: =B20 -> 38
A22: Crawlspace Floor | B22: =Checklist!Q217 -> 25
A23: Crawlspace Ceiling | B23: =B22 -> 25
A24: Slab | B24: =B19 -> 20

Sheet Main (hidden)
A1: 5.2 | B1: For effective U-values of wood-framed base wall assemblies, see ASHRAE 90.1-2019 Table A3.4.3.1 | D1: Window Area Per Orientation | K1: Projection Factor Calculation
B2: For effective U-values of steel-framed base wall assemblies, see ASHRAE 90.1-2019 Table A3.3.3.1 | D2: Manual J Adequate Exposure Diversity | K2: Climate Zone | L2: Latitude Addition Factor
B3: Alternate: Use the listed framing factors in the calculation of R-values for wood construction: | D3: Climate Zone | K3: 0A | L3: 0
B4: Framing factor, 2x4 16 in. on ctr | C4: 0.25 | D4: =Checklist!T10 -> 5A | E4: =VLOOKUP(D4, A48:D67, 4, FALSE) -> NR | K4: 0B | L4: 0
B5: Framing factor, 2x6 24 in. on ctr | C5: 0.22 | K5: 1A | L5: 0
K6: 1B | L6: 0
A7: 5.3 | B7: For effective U-values of attic roofs with wood joists, see ASHRAE 90.1-2019 Table A2.4.3 | K7: 2A | L7: 0
B8: Alternate: Use the listed framing factors in the calculation of R-values for wood construction: | K8: 2B | L8: 0
B9: Framing factor, ceilings below unconditioned space, 24 in. on ctr | C9: 0.07 | K9: 3A | L9: 0
B10: Roof, when insulated at roof, 24 in. on ctr | C10: 0.07 | K10: 3B | L10: 0
K11: 3C | L11: 0
A12: 5.4 | B12: For effective U-values of wood-joist floors, see ASHRAE 90.1-2019 Table A5.4.3.1 | K12: 4A | L12: 0
B13: Alternate: Use the listed framing factors in the calculation of R-values for wood construction: | K13: 4B | L13: 0
B14: Framing factor, 2x4 walls below grade, 16 in. on ctr | C14: 0.18 | K14: 4C | L14: -23.5
B15: Floor/basement ceiling, 16 in. on ctr | C15: 0.13 | K15: 5A | L15: -23.5
K16: 5B | L16: -23.5
B17: Fenestration Condensation resistance requirement fRsi, is met by one of the following methods. | C17: ='Window ISO 13788 Calc'!B42 -> 0.642 | D17: Function of climate (ISO 13788 low thermal inertia) set for simple method, high occupancy | H17: =VLOOKUP(Checklist!$K$319, Main!$H$18:$J$24, 1, FALSE) -> Select | I17: =VLOOKUP(Checklist!$K$319, Main!$H$18:$J$24, 2, FALSE) -> 0 | J17: =VLOOKUP(Checklist!$K$319, Main!$H$18:$J$24, 3, FALSE) -> Pending | K17: 5C | L17: -23.5
B18: Method 1: By general type | C18: =VLOOKUP(Checklist!F321, B20:C24, 2) -> YES | H18: Select | I18: 0 | J18: Pending | K18: 6A | L18: -23.5
B19: Kind | C19: Meets requirement | D19: frame fRsi | E19: U frame Btu/h.ft2.F | F19: frame width in | H19: Method 1: General Frame Type U-Value. | I19: 1 | J19: =C18 -> YES | K19: 6B | L19: -23.5
B20: double pane metal | C20: =IF(D20>=$C$17,"YES","NO") -> NO | D20: =1-0.74/(0.74+1/E20) -> 0.4208045784 | E20: 1.86 | F20: 2 | H20: Method 2: U-frame inferred from Uw and Ucog | I20: 2 | J20: See 6.2.1.2 | K20: 7 | L20: -23.5
B21: double pane metal break | C21: NO | D21: 0.605620155 | E21: 0.88 | F21: 2 | H21: Method 3: AAMA 1503 CRF rating | I21: 3 | J21: =C28 -> NO | K21: 8 | L21: -23.5
B22: double pane nonmetal | C22: YES | D22: 0.710732054 | E22: 0.55 | F22: 2.5 | H22: Method 4: NFRC 500-2020 Condensation Resistance | I22: 4 | J22: =C30 -> NO
B23: double pane nonmetal improved | C23: YES | D23: 0.808538163 | E23: 0.32 | F23: 2.5 | H23: Method 5: CAN/CSA A440.2 Temperature Index | I23: 5 | J23: =C32 -> NO
B24: triple pane nonmetal improved | C24: YES | D24: 0.8386447501 | E24: 0.26 | F24: 2.5 | H24: Method 6: fRSI Method | I24: 6 | J24: =C34 -> NO
B25: Method 3: AAMA CRF rating | C25: =Checklist!M360/100 -> 0
B26: Safety factor on U-value | C26: 0.15
B27: derated | C27: =1-1/(1+C25/((1-C25)*(1+C26))) -> 0
B28: Meets requirement | C28: =IF(C27>=C17,"YES","NO") -> NO
B29: Method 4: NFRC 500-2020 Condensation Resistance | C29: =Checklist!M362 -> 0
B30: Meets requirement | C30: =IF(C29>=C17,"YES","NO") -> NO
B31: Method 5: CAN/CSA A440.2 Temperature Index | C31: =Checklist!M364 -> 0
B32: Meets requirement | C32: =IF(C31>=C17,"YES","NO") -> NO
B33: Method 6: fRSI Method | C33: =Checklist!M366 -> 0
B34: Meets requirement | C34: =IF(C33>=C17,"YES","NO") -> NO
B36: The length (each) of the ventilation ducts connected to outside is no greater than 0.4*sqrt(iCFA/(stories)). In feet:
B37: =IF(ISBLANK(Checklist!N18),"Missing iCFA input.",IF(ISBLANK(Checklist!Q18),"Missing story input.",0.4*SQRT(Checklist!N18/Checklist!Q18))) -> Missing iCFA input.
C38: for 'checklist'
B39: ACTIVE SELECTION | C39: HSPF or COP @5F | D39: SEER | E39: Rating | F39: SEER | G39: GSHP: COP | H39: GSHP: EER
B40: =Checklist!M385 -> Select | C40: =IF(B40="Select","Select System",IF(B40="Air Source Heat Pump",E40,G40)) -> Select System | D40: =IF(B40="Select","-",IF(B40="Air Source Heat Pump",F40,H40)) -> - | E40: =VLOOKUP($B$41, $A$49:$I$67,F47, FALSE) -> 1.75 | F40: =VLOOKUP($B$41, $A$49:$I$67,G47, FALSE) -> 15 | G40: =VLOOKUP($B$41, $A$49:$I$67,H47, FALSE) -> 3.1 | H40: =VLOOKUP($B$41, $A$49:$I$67,I47, FALSE) -> 16.1
B41: =Checklist!T10 -> 5A | C41: =IF(B40="Select","",IF(B40="Ground Source Heat Pump","Minimum COP",VLOOKUP($B$41,$A$49:$I$67,E47,FALSE))) ->  | D41: =IF(B40="Select","",IF(B40="Ground Source Heat Pump","Minimum EER:","Minimum SEER:")) -> 
B43: NEW TABLE - Minimum Values | D43: HSPF | E43: SEER | F43: COP @ 5F | G43: SEER | H43: COP | I43: EER
B44: Air Source Heat Pump | C44: Climate Zones 0-3C, 4C, 5C | D44: 9.6 | E44: 18
C45: Climate Zones 4A-B, 5A-B, 6-8 | F45: 1.75 | G45: 15
B46: Ground Source Heat Pump | C46: All Climate Zones | H46: 3.1 | I46: 16.1
A47: 1 | B47: 2 | C47: 3 | D47: 4 | E47: 5 | F47: 6 | G47: 7 | H47: 8 | I47: 9
A48: Zone | B48: Minimum total recovery efficiency, cooling mode | C48: Maximum whole-window SHGC | D48: East WWR Requirement | E48: HSPF or COP @5F | F48: Rating | G48: SEER | H48: GSHP: COP | I48: GSHP: EER | J48: climate zone for window ISO calc
A49: 0A | B49: 0.6 | C49: 0.21 | D49: 0.2 | E49: Minimum HSPF: | F49: 9.6 | G49: 18 | H49: 3.1 | I49: 16.1 | J49: 0
A50: 0B | B50: 0.6 | C50: 0.21 | D50: 0.2 | E50: Minimum HSPF: | F50: 9.6 | G50: 18 | H50: 3.1 | I50: 16.1 | J50: 0
A51: 1A | B51: 0.6 | C51: 0.25 | D51: 0.2 | E51: Minimum HSPF: | F51: 9.6 | G51: 18 | H51: 3.1 | I51: 16.1 | J51: 1
A52: 1B | B52: 0.6 | C52: 0.25 | D52: 0.2 | E52: Minimum HSPF: | F52: 9.6 | G52: 18 | H52: 3.1 | I52: 16.1 | J52: 1
A53: 2A | B53: 0.6 | C53: 0.25 | D53: 0.2 | E53: Minimum HSPF: | F53: 9.6 | G53: 18 | H53: 3.1 | I53: 16.1 | J53: 2
A54: 2B | B54: 0.6 | C54: 0.25 | D54: 0.2 | E54: Minimum HSPF: | F54: 9.6 | G54: 18 | H54: 3.1 | I54: 16.1 | J54: 2
A55: 3A | B55: 0.6 | C55: 0.25 | D55: 0.2 | E55: Minimum HSPF: | F55: 9.6 | G55: 18 | H55: 3.1 | I55: 16.1 | J55: 3
A56: 3B | B56: NR | C56: 0.25 | D56: 0.2 | E56: Minimum HSPF: | F56: 9.6 | G56: 18 | H56: 3.1 | I56: 16.1 | J56: 3
A57: 3C | B57: NR | C57: 0.25 | D57: 0.2 | E57: Minimum HSPF: | F57: 9.6 | G57: 18 | H57: 3.1 | I57: 16.1 | J57: 3
A58: 4A | B58: 0.5 | C58: 0.25 | D58: 0.2 | E58: Minimum HSPF: | F58: 9.6 | G58: 18 | H58: 3.1 | I58: 16.1 | J58: 4
A59: 4B | B59: NR | C59: 0.25 | D59: 0.2 | E59: Minimum HSPF: | F59: 9.6 | G59: 18 | H59: 3.1 | I59: 16.1 | J59: 4
A60: 4C | B60: NR | C60: =IF(Checklist!$I$385="No",0.33,"NR") -> NR | D60: NR | E60: Minimum HSPF: | F60: 9.6 | G60: 18 | H60: 3.1 | I60: 16.1 | J60: 4
A61: 5A | B61: NR | C61: =IF(Checklist!$I$385="No",0.33,"NR") -> NR | D61: NR | E61: Minimum COP @ 5°F: | F61: 1.75 | G61: 15 | H61: 3.1 | I61: 16.1 | J61: 5
A62: 5B | B62: NR | C62: =IF(Checklist!$I$385="No",0.33,"NR") -> NR | D62: NR | E62: Minimum COP @ 5°F: | F62: 1.75 | G62: 15 | H62: 3.1 | I62: 16.1 | J62: 5
A63: 5C | B63: NR | C63: =IF(Checklist!$I$385="No",0.33,"NR") -> NR | D63: NR | E63: Minimum HSPF: | F63: 9.6 | G63: 18 | H63: 3.1 | I63: 16.1 | J63: 5
A64: 6A | B64: NR | C64: =IF(Checklist!$I$385="No",0.34,"NR") -> NR | D64: NR | E64: Minimum COP @ 5°F: | F64: 1.75 | G64: 15 | H64: 3.1 | I64: 16.1 | J64: 6
A65: 6B | B65: NR | C65: =IF(Checklist!$I$385="No",0.34,"NR") -> NR | D65: NR | E65: Minimum COP @ 5°F: | F65: 1.75 | G65: 15 | H65: 3.1 | I65: 16.1 | J65: 6
A66: 7 | B66: NR | C66: =IF(Checklist!$I$385="No",0.4,"NR") -> NR | D66: NR | E66: Minimum COP @ 5°F: | F66: 1.75 | G66: 15 | H66: 3.1 | I66: 16.1 | J66: 7
A67: 8 | B67: NR | C67: =IF(Checklist!$I$385="No",0.5,"NR") -> NR | D67: NR | E67: Minimum COP @ 5°F: | F67: 1.75 | G67: 15 | H67: 3.1 | I67: 16.1 | J67: 8
A69: From Building America House Simulation Protocols 2014
B70: Reference Hours Table | C70: Daily HOU per Lamp
B71: Bathroom | C71: 1.79
B72: Bedroom | C72: 1.18
B73: Closet | C73: 1.05
B74: Dining Room | C74: 2.52
B75: Living Room | C75: 2.27
B76: Garage | C76: 1.98
B77: Hall | C77: 1.53
B78: Kitchen | C78: 2.99
B79: Office | C79: 1.51
B80: Exterior | C80: 2.91
B81: Utility Room | C81: 1.72
B82: Other | C82: 0.8
B83: Unfinished Basement | C83: 0.98
A85: 10 | B85: Building installed lighting, appliances, and water heating comply with A or B: | C85: Component Based
B86: A) Listed items all meet their respective reference performance requirements. | C86: Performance Tradeoff | D86: `
B88: B) Performance tradeoff calculation for the proposed design shows energy use no higher than the reference design.
C89: Bedrooms | D89: Interior conditioned floor area (ft2) | E89: Verdict | F89: Equipment energy for proposed design, kWh | G89: Equipment energy budget, kWh | L89: Range-limited iCFA | M89: Source factor electricity (Future) | N89: Source factor gas | O89: Source factor biofuel
B90: Performance tradeoff worksheet for builder-installed appliances, lighting, and water heating | C90: =Checklist!Q19 -> 0 | D90: =Checklist!N18 -> 0 | E90: =IF(ISNUMBER(F90),IF(F90<=G90,"YES","NO"),"Error, review inputs.") -> Error, review inputs. | F90: =IFERROR(ROUND((F106+F114+F109+F112)/250,0)*250,"Cannot calculate.") -> Cannot calculate. | G90: =IFERROR(ROUND((G106+G114+G109+G112)/250,0)*250,"N/A") -> N/A | L90: =MIN(MAX(D90,200),2750) -> 200 | N90: 1.1 | O90: 0.2
C92: Efficiency Unit | D92: Proposed Efficiency | E92: Number of Devices Planned | F92: kWh/yr, Proposed | G92: kWh/yr, Reference | H92: Reference Efficiency
B93: Clothes Washers | C93: LER (kWh/yr) | D93: =Checklist!L464 -> 0 | E93: =Checklist!N464 -> 0 | F93: =IF(D93*E93=0,"-",D93*E93) -> - | G93: =IF(H93*E93=0,"-",H93*E93) -> - | H93: 135
B94: Clothes Dryers | C94: CEF (lbs/kWh) | D94: =Checklist!L465 -> 0 | E94: =Checklist!N465 -> 0 | F94: =IFERROR($L$114*(283/4.5)/D94*8.45,"-") -> - | G94: =IF(E94=0,"-",$L$114*(283/4.5)/H94*8.45) -> - | H94: 3.93
B95: Dishwashers | C95: LER (kWh/yr) | D95: =Checklist!L466 -> 0 | E95: =Checklist!N466 -> 0 | F95: =IF(D95*E95=0,"-",D95*E95) -> - | G95: =IF(H95*E95=0,"-",H95*E95) -> - | H95: 239
B96: Refrigerator-freezer | C96: LER (kWh/yr) | D96: =Checklist!L467 -> 0 | E96: =Checklist!N467 -> 0 | F96: - | G96: - | H96: 358
B97: Compact Refrigerator-Freezer | C97: LER (kWh/yr) | D97: =Checklist!L468 -> 0 | E97: =Checklist!N468 -> 0 | F97: - | G97: - | H97: 218
B98: Stand-alone Refrigerator | C98: LER (kWh/yr) | D98: =Checklist!L469 -> 0 | E98: =Checklist!N469 -> 0 | F98: - | G98: - | H98: 374
B99: Compact Stand-alone Refrigerator | C99: LER (kWh/yr) | D99: =Checklist!L470 -> 0 | E99: =Checklist!N470 -> 0 | F99: - | G99: - | H99: 216
B100: Stand-alone Freezer | C100: LER (kWh/yr) | D100: =Checklist!L471 -> 0 | E100: =Checklist!N471 -> 0 | F100: - | G100: - | H100: 394
B101: Compact Stand-alone Freezer | C101: LER (kWh/yr) | D101: =Checklist!L472 -> 0 | E101: =Checklist!N472 -> 0 | F101: - | G101: - | H101: 196
B102: Ceiling fans | C102: cfm/w | D102: =Checklist!L473 -> 0 | E102: =Checklist!N473 -> 0 | F102: =IFERROR(E102*(84.1*220.1)/D102,"-") -> - | G102: =IF(E102*84.1=0,"-",E102*84.1) -> - | H102: 220.1
B103: Pool pumps | C103: WEF (kgal/kWh) | D103: =Checklist!L474 -> 0 | E103: =Checklist!N474 -> 0 | F103: =IFERROR(E103*158.5*H103/D103,"-") -> - | G103: =IF(E103*158.5=0,"-",E103*158.5) -> - | H103: 9.3
B104: Electric vehicle chargers | C104: Standby power (W) | D104: =Checklist!L475 -> 0 | E104: =Checklist!N475 -> 0 | F104: =IF(E104*D104*8760/1000=0,"-",E104*D104*8760/1000) -> - | G104: =IF(H104*E104=0,"-",H104*E104*8760/1000) -> - | H104: 1.81 | L104: Interior | M104: Exterior | N104: Garage
B105: Smart home energy management systems ("Thermostat") | C105: Standby Power (W) | D105: =Checklist!L476 -> 0 | E105: =Checklist!N476 -> 0 | F105: =IF(E105*D105*8760/1000=0,"-",E105*D105*8760/1000) -> - | G105: =IF(H105*E105=0,"-",H105*E105*8760/1000) -> - | H105: 0.17 | L105: =0.8*((4-3*1)/3.7)*(455+0.8*$L$90)+0.2*(455+0.8*$L$90) -> 255.972973 | M105: =(100+0.05*$L$90)*(1-1)+0.25*(100+0.05*$L$90)*1 -> 27.5 | N105: =100*(1-1)+25*1 -> 25
E106: Subtotal Appliances | F106: =IF(SUM(F93:F105)=0,"N/A",ROUND(SUM(F93:F105),0)) -> N/A | G106: =ROUND(SUM(G93:G105),0) -> 0
C108: iCFA | D108: beds
C109: =Checklist!N18 -> 0 | D109: =Checklist!Q19 -> 0 | E109: Subtotal Lighting | F109: =Checklist!P458 -> N/A | G109: =Checklist!Q458 -> N/A
C110: Fan W/cfm | D110: ASHRAE 62.2 2019 cfm required | E110: kHours
C111: =Checklist!H377 -> 0 | D111: =ROUND(0.03*C109+7.5*(MAX(D109,1)+1),0) -> 15 | E111: 8.76 | F111: =IF(C111=0,"N/A",ROUND(C111*D111*E111,0)) -> N/A | G111: =ROUND(0.83*D111*E111,0) -> 109
E112: Subtotal Ventilation Fan | F112: =IF(SUM(F111)=0,"N/A",SUM(F111)) -> N/A | G112: =SUM(G111) -> 109
B113: Water heating | D113: Choose water heating type | L113: Occupants | M113: Water heating amenity demand, at fixtures, annual site kWh/person
D114: Heat Pump Water Heater (choose scenario below) | E114: Water heating | F114: =Checklist!P483 -> - | G114: =Checklist!Q483 -> - | L114: =C90+1 -> 1 | M114: =(6.6*8.345404*1*(140-50)*365.25/3412)*1.25 -> 663.3229534
B373: NET GAIN COEFFICIENTS - 1-3, 4C, 5C & 8 - no requirement | C373: 4A | D373: 4B | E373: 5A | F373: 5B | G373: 6A | H373: 6B | I373: 7
B374: k0 | C374: -510.5643 | D374: 842.16548 | E374: -50.59316 | F374: 242.41198 | G374: -1017.493 | H374: -631.8389 | I374: -676.1772
B375: k1 | C375: -800.754 | D375: -1515.787 | E375: -935.4783 | F375: -1148.946 | G375: -863.3445 | H375: -795.6443 | I375: -751.6433
B376: k2 | C376: 2443.9635 | D376: 2457.9292 | E376: 3157.5128 | F376: 3085.8164 | G376: 2160.5079 | H376: 3025.5004 | I376: 1502.1667
B377: k3 | C377: -309.4878 | D377: -1175.087 | E377: -725.1459 | F377: -982.4979 | G377: 0 | H377: -268.6123 | I377: 0
B378: k4 | C378: -1420.432 | D378: -4680.651 | E378: -3526.689 | F378: -4213.493 | G378: 0 | H378: -1396.972 | I378: 0
B379: Net Gain - Median | C379: -217.7 | D379: 567.5 | E379: 216.7 | F379: 383.5 | G379: -672.2 | H379: -183.3 | I379: -473
B381: AED COEFFICIENTS
B382: Term | C382: Intercept | D382: East | E382: West | F382: MaxConc | G382: (East-0.24933)*(West-0.24933) | H382: (North-0.24933)*(MaxConc-0.57133) | I382: Limit mean
B383: Zone | C383: k0 | D383: k1 | E383: k2 | F383: k3 | G383: k4 | H383: k5
B384: 0A | C384: 1.581 | D384: 0.2036558 | F384: 0.1610816 | G384: -1.941436 | I384: 1.776
B385: 0B | C385: 1.7696618 | G385: -5.462549 | I385: 1.916
B386: 1A | C386: 1.7719521 | G386: -4.745617 | I386: 1.899
B387: 1B | C387: 1.7889391 | G387: -5.728183 | I387: 1.943
B388: 2A | C388: 1.7377996 | G388: -4.194376 | I388: 1.85
B389: 2B | C389: 1.7401104 | G389: -4.202674 | I389: 1.853
B390: 3A | C390: 1.7487906 | G390: -3.951054 | I390: 1.855
B391: 3B | C391: 1.9757267 | E391: -0.578452 | G391: -6.706778 | I391: 2.011
B392: 3C | C392: 1.8455023 | G392: -5.381477 | I392: 1.99
B393: 4A | C393: 1.600036 | F393: 0.3983087 | G393: -3.002455 | H393: -1.099386 | I393: 1.908
B394: 4B | C394: 1.8672288 | D394: 0.400077 | G394: -4.570485 | I394: 2.09
B395: 4C | C395: 1.5817994 | F395: 0.4999889 | G395: -1.91422 | H395: -1.163481 | I395: 1.919
B396: 5A | C396: 1.4579348 | D396: 0.5364107 | F396: 0.4625049 | G396: -3.150458 | I396: 1.94
B397: 5B | C397: 1.7795085 | E397: -0.459222 | F397: 0.412294 | G397: -4.013493 | H397: -1.139917 | I397: 2.008
B398: 5C | C398: 1.6455128 | F398: 0.4666985 | G398: -1.363338 | H398: -1.509137 | I398: 1.948
B399: 6A | C399: 1.6245901 | F399: 0.4653492 | G399: -2.433327 | H399: -1.075091 | I399: 1.956
B400: 6B | C400: 1.5920004 | F400: 0.5456874 | G400: -2.572731 | H400: -1.374152 | I400: 1.973
B401: 7 | C401: 1.5837607 | D401: 0.4298399 | F401: 0.45019 | G401: -4.624138 | I401: 2.072
B402: 8 | C402: 1.7478694 | F402: 0.6548865 | G402: -1.732217 | H402: -2.124586 | I402: 2.168 | P402: AED Pass? | Q402: Net Gain Pass | R402: AED - PASS? | S402: NET GAIN - PASS?
P403: Score on delta of the range tested <100% is a pass | Q403: Score on delta of the range tested >0 is a pass
A404: CZ | B404: N | C404: E | D404: S | E404: W | F404: N | G404: E | H404: S | I404: W | J404: Max Conc over cardinal directions | K404: Zone 0-8 Regression formula ST Pk/Av | L404: AED LIMIT: Using mean for the tested city in each zone | M404: Net Gain: Zones 4-7 (> (median of tested zones) is pass) (not 4C or 5C) | N404: Net Gain Limit Median (kBtu/worst month) | O404: Centered Target (Delta from Target). Positive passes, negative fails
A405: =Checklist!T10 -> 5A | B405: =Checklist!K46 -> 86.001 | C405: =Checklist!L46 -> 72 | D405: =Checklist!M46 -> 223.002 | E405: =Checklist!N46 -> 85.5 | F405: =IFERROR(B405/SUM($B405:$E405),"-") -> 0.1843525122 | G405: =IFERROR(C405/SUM($B405:$E405),"-") -> 0.1543398435 | H405: 0.4780290802 | I405: 0.1832785641 | J405: =MAX(F405:I405) -> 0.4780290802 | K405: =IFERROR(VLOOKUP(A405,$B$384:$I$402,2,FALSE)+VLOOKUP(A405,$B$384:$I$402,3,FALSE)*G405+VLOOKUP(A405,$B$384:$I$402,4,FALSE)*I405+VLOOKUP(A405,$B$384:$I$402,5,FALSE)*J405+VLOOKUP(A405,$B$384:$I$402,6,FALSE)*(G405-0.24933)*(I405-0.24933)+VLOOKUP(A405,$B$384:$I$402,7,FALSE)*(F4225-0.24933)*(J405-0.57133),"-") -> 1.742048418 | L405: =IFERROR(VLOOKUP(A405,B383:I402,8,FALSE),"-") -> 1.94 | M405: =IFERROR(IFERROR(F405*HLOOKUP(A405,$B$373:$I$379,3,FALSE)+(HLOOKUP(A405,$B$373:$I$379,2,FALSE)+HLOOKUP(A405,$B$373:$I$379,4,FALSE)*H405+HLOOKUP(A405,$B$373:$I$379,5,FALSE)*J405+HLOOKUP(A405,$B$373:$I$379,6,FALSE)*(H405-0.2493)*(J405-0.5713)),"NR"),"NR") -> 1014.928755 | N405: =IFERROR(HLOOKUP(A405,B373:I379,7,FALSE),0) -> 216.7 | O405: =IF(M405="NR","NR",M405-N405) -> 798.2287552 | P405: =IFERROR((K405-1)/(L405-1),"-") -> 0.7894132103 | Q405: =IF(O405="NR","NR",ROUND(O405/20,0)) -> 40 | R405: =IF(K405<=L405,"YES","NO") -> YES | S405: =IF(Q405="NR","NR",IF(Q405>0,"YES","NO")) -> YES
B408: Project Types
B409: Single Family Detached - New Construction
B410: Duplex - New Construction
B411: Triplex - New Construction
B412: Townhouse - New Construction
B413: Single Family Detached - Retrofit
B414: Duplex - Retrofit
B415: Triplex - Retrofit
B416: Townhouse - Retrofit

Sheet DHW (hidden)
K1: Source Energy Total
A2: DHW System Type | B2: Rating | C2: Reference Efficiency | D2: Proposed Efficiency | E2: Adj. Reference Efficiency. | F2: Adj. Prop. Efficiency | G2: J463 | H2: J465 | I2: K465 | J2: K466 | K2: Reference | L2: Proposed
A3: Solar Water Heater, Electric Backup | B3: Rated SEF | C3: 1.9 | D3: =Checklist!J480 -> 0 | E3: 1.9 | F3: =D3 -> 0 | G3: =VLOOKUP(Checklist!$F$481,DHW!$A$6:$J$11,7,FALSE) -> Heat Pump for Space Heating | H3: =VLOOKUP(Checklist!$F$481,DHW!$A$6:$J$11,8,FALSE) -> Input COP at: | I3: =VLOOKUP(Checklist!$F$481,DHW!$A$6:$J$11,9,FALSE) -> 47F | J3: =VLOOKUP(Checklist!$F$481,DHW!$A$6:$J$11,10,FALSE) -> 5F | K3: =ROUND(Main!$L$114*Main!$M$114/DHW!E3,0) -> 349 | L3: =ROUND(Main!$L$114*Main!$M$114/DHW!F3,0) -> 
A4: Heat Pump Water Heater | B4: =VLOOKUP(Checklist!F481,DHW!A6:K11,11,FALSE) -> Rated UEF | C4: 3 | D4: =Checklist!J480 -> 0 | E4: =VLOOKUP(Checklist!F481,DHW!A6:F11,5,FALSE) -> - | F4: =VLOOKUP(Checklist!F481,DHW!A6:F11,6,FALSE) -> - | G4: =VLOOKUP(Checklist!$F$481,DHW!$A$6:$J$11,7,FALSE) -> Heat Pump for Space Heating | H4: =VLOOKUP(Checklist!$F$481,DHW!$A$6:$J$11,8,FALSE) -> Input COP at: | I4: =VLOOKUP(Checklist!$F$481,DHW!$A$6:$J$11,9,FALSE) -> 47F | J4: =VLOOKUP(Checklist!$F$481,DHW!$A$6:$J$11,10,FALSE) -> 5F | K4: =ROUND(Main!$L$114*Main!$M$114/DHW!E4,0) ->  | L4: =ROUND(Main!$L$114*Main!$M$114/DHW!F4,0) -> 
A6: =IF(Checklist!F479=DHW!A4,"V1-Sanden CO2","-") -> V1-Sanden CO2 | B6: COP | C6: 3 | D6: =Checklist!J480 -> 0 | E6: =C4 -> 3 | F6: ='V1 Sanden CO2'!E4 -> 2.834290598 | G6: - | H6: - | I6: - | J6: - | K6: -
A7: =IF(Checklist!F479=DHW!A4,"V2-Sanden CO2 GS3-45HPA","-") -> V2-Sanden CO2 GS3-45HPA | B7: COP | C7: 3 | D7: =Checklist!J480 -> 0 | E7: =C4 -> 3 | F7: ='V2-Sanden CO2 GS3-45HPA'!E4 -> 4.360187243 | G7: - | H7: - | I7: - | J7: - | K7: -
A8: =IF(Checklist!F479=DHW!A4,"Other HPWH Outside of the Thermal Envelope","-") -> Other HPWH Outside of the Thermal Envelope | B8: UEF | C8: 3 | D8: =Checklist!J480 -> 0 | E8: =AVERAGE(C19:N19) -> 2.457283951 | F8: =AVERAGE(C18:N18) -> 0 | G8: EF = 1 at [°F] | H8: Input | I8: Temp. (F): | J8: - | K8: Rated UEF
A9: =IF(Checklist!F479=DHW!A4,"HPWH Inside, Biofueled Space Heat","-") -> HPWH Inside, Biofueled Space Heat | B9: UEF | C9: 3 | D9: =Checklist!J480 -> 0 | E9: =K23 ->  | F9: =K22 ->  | G9: Stove AFUE [%] | H9: Input | I9: AFUE (%): | J9: - | K9: Rated UEF
A10: =IF(Checklist!F479=DHW!A4,"HPWH Inside, Heat Pump Space Heat","-") -> HPWH Inside, Heat Pump Space Heat | B10: UEF | C10: 3 | D10: =Checklist!J480 -> 0 | E10: =C32 -> - | F10: =C31 -> - | G10: Heat Pump for Space Heating | H10: =VLOOKUP(Checklist!$T$10,DHW!$Q$30:$T$47,2,FALSE) -> Input COP at: | I10: =VLOOKUP(Checklist!$T$10,DHW!$Q$30:$T$47,3,FALSE) -> 47F | J10: =VLOOKUP(Checklist!$T$10,DHW!$Q$30:$T$47,4,FALSE) -> 5F | K10: Rated UEF
A11: - | B11: SEF | C11: 1.9 | D11: =Checklist!J480 -> 0 | E11: 1.9 | F11: =D11 -> 0 | G11: - | H11: - | I11: - | J11: - | K11: -
A13: Other HPWH Outside of the Thermal Envelope | C13: EF at 67.5 F air temp | D13: EF=1 at F air temp | E13: slope per F | F13: intercept
A14: Proposed | C14: =D8 -> 0 | D14: =Checklist!M481 -> 0 | E14: =(C14-1)/(67.5-D14) -> -0.01481481481 | F14: =C14-E14*67.5 -> 1
A15: Reference | C15: =C8 -> 3 | D15: =D14 -> 0 | E15: =(C15-1)/(67.5-D15) -> 0.02962962963 | F15: =C15-E15*67.5 -> 1
A16: Month | C16: Jan | D16: Feb | E16: Mar | F16: Apr | G16: May | H16: Jun | I16: Jul | J16: Aug | K16: Sep | L16: Oct | M16: Nov | N16: Dec
A17: Ambient Temp (°F) | C17: ='Reference Climate Info_Vals'!K2 -> 24.6 | D17: ='Reference Climate Info_Vals'!L2 -> 28.2 | E17: ='Reference Climate Info_Vals'!M2 -> 38.2 | F17: ='Reference Climate Info_Vals'!N2 -> 49.2 | G17: ='Reference Climate Info_Vals'!O2 -> 59.6 | H17: ='Reference Climate Info_Vals'!P2 -> 69.5 | I17: ='Reference Climate Info_Vals'!Q2 -> 74.2 | J17: ='Reference Climate Info_Vals'!R2 -> 72.7 | K17: ='Reference Climate Info_Vals'!S2 -> 64.9 | L17: ='Reference Climate Info_Vals'!T2 -> 53.1 | M17: ='Reference Climate Info_Vals'!U2 -> 40.6 | N17: ='Reference Climate Info_Vals'!V2 -> 29.3
A18: Proposed Monthly COPs | C18: =MIN(MAX($E14*C$17+$F14,1),$C14) -> 0 | D18: =MIN(MAX($E14*D$17+$F14,1),$C14) -> 0 | E18: 0 | F18: 0 | G18: 0 | H18: 0 | I18: 0 | J18: 0 | K18: 0 | L18: 0 | M18: 0 | N18: 0
A19: Ref Monthly COPs | C19: =MIN(MAX($E15*C$17+$F15,1),$C15) -> 1.728888889 | D19: =MIN(MAX($E15*D$17+$F15,1),$C15) -> 1.835555556 | E19: 2.131851852 | F19: 2.457777778 | G19: 2.765925926 | H19: 3 | I19: 3 | J19: 3 | K19: 2.922962963 | L19: 2.573333333 | M19: 2.202962963 | N19: 1.868148148
A21: HPWH Inside, Biofueled Space Heat | C21: Stove AFUE | D21: DHW heating season COP | E21: DHW cooling season COP | F21: Length of heating season: months for which HDD50 > CDD50 | G21: Heating season, source energy for electricity | H21: Heating season, source energy for fuel | I21: Cooling season, source energy for electricity | J21: Source Energy Sum | K21: Effective UEF
A22: Proposed | C22: =Checklist!M481/100 -> 0 | D22: =1/(1/E22+(1-1/E22)/C22) ->  | E22: =D9 -> 0 | F22: =SUM(C27:N27) -> 6 | G22: =Main!$L$114*Main!$M$114/(D22)*((1/E22)*F22/12) ->  | H22: =Main!$L$114*Main!$M$114/(C22/Main!$O$90)*((1-1/E22)*F22/12) ->  | I22: =Main!$L$114*Main!$M$114/(E22)*((12-F22)/12) ->  | J22: =SUM(G22:I22) ->  | K22: =Main!$L$114*Main!$M$114/J22 -> 
A23: Reference | C23: =Checklist!M481/100 -> 0 | D23: =1/(1/E23+(1-1/E23)/C23) ->  | E23: =C9 -> 3 | F23: =SUM(C27:N27) -> 6 | G23: =Main!$L$114*Main!$M$114/(D23)*((1/E23)*F23/12) ->  | H23: =Main!$L$114*Main!$M$114/(C23/Main!$O$90)*((1-1/E23)*F23/12) ->  | I23: =Main!$L$114*Main!$M$114/(E23)*((12-F23)/12) -> 110.5538256 | J23: =SUM(G23:I23) ->  | K23: =Main!$L$114*Main!$M$114/J23 -> 
A24: Month | C24: Jan | D24: Feb | E24: Mar | F24: Apr | G24: May | H24: Jun | I24: Jul | J24: Aug | K24: Sep | L24: Oct | M24: Nov | N24: Dec
A25: HDD50 | C25: ='Reference Climate Info_Vals'!W2 -> 788 | D25: ='Reference Climate Info_Vals'!X2 -> 612 | E25: ='Reference Climate Info_Vals'!Y2 -> 397 | F25: ='Reference Climate Info_Vals'!Z2 -> 123 | G25: ='Reference Climate Info_Vals'!AA2 -> 14 | H25: ='Reference Climate Info_Vals'!AB2 -> 0 | I25: ='Reference Climate Info_Vals'!AC2 -> 0 | J25: ='Reference Climate Info_Vals'!AD2 -> 0 | K25: ='Reference Climate Info_Vals'!AE2 -> 2 | L25: ='Reference Climate Info_Vals'!AF2 -> 67 | M25: ='Reference Climate Info_Vals'!AG2 -> 307 | N25: ='Reference Climate Info_Vals'!AH2 -> 645
A26: CDD50 | C26: ='Reference Climate Info_Vals'!AI2 -> 0 | D26: ='Reference Climate Info_Vals'!AJ2 -> 2 | E26: ='Reference Climate Info_Vals'!AK2 -> 33 | F26: ='Reference Climate Info_Vals'!AL2 -> 98 | G26: ='Reference Climate Info_Vals'!AM2 -> 310 | H26: ='Reference Climate Info_Vals'!AN2 -> 585 | I26: ='Reference Climate Info_Vals'!AO2 -> 751 | J26: ='Reference Climate Info_Vals'!AP2 -> 704 | K26: ='Reference Climate Info_Vals'!AQ2 -> 448 | L26: ='Reference Climate Info_Vals'!AR2 -> 163 | M26: ='Reference Climate Info_Vals'!AS2 -> 25 | N26: ='Reference Climate Info_Vals'!AT2 -> 3
C27: =IF(C25>C26,1,0) -> 1 | D27: =IF(D25>D26,1,0) -> 1 | E27: 1 | F27: 1 | G27: 0 | H27: 0 | I27: 0 | J27: 0 | K27: 0 | L27: 0 | M27: 1 | N27: 1
A29: HPWH Inside, Heat Pump Space Heat | B29: Method
C30: Adjusted Efficiency | Q30: 0A | R30: Input | S30: HSPF: | T30: -
A31: Proposed | B31: =IF(I10="HSPF:",1,2) -> 2 | C31: =IFERROR(ROUND(IF(B31=1,F35,I38),2),"-") -> - | Q31: 0B | R31: Input | S31: HSPF: | T31: -
A32: Reference | B32: =IF(I10="HSPF:",1,2) -> 2 | C32: =IFERROR(ROUND(IF(B32=1,F36,I39),2),"-") -> - | Q32: 1A | R32: Input | S32: HSPF: | T32: -
Q33: 1B | R33: Input | S33: HSPF: | T33: -
A34: Method 1 | C34: HSPF | D34: DHW heating season COP | E34: DHW cooling season COP | F34: UEF - Re-Rated | Q34: 2A | R34: Input | S34: HSPF: | T34: -
A35: Proposed | C35: =IF(ISBLANK(Checklist!M481),"-",Checklist!M481) -> - | D35: =IFERROR(C35/3.412,"-") -> - | E35: =D10 -> 0 | F35: =IFERROR(D35*F22/12+E35*(12-F22)/12,"-") -> - | Q35: 2B | R35: Input | S35: HSPF: | T35: -
A36: Reference | C36: 9.6 | D36: =C36/3.412 -> 2.813599062 | E36: 3 | F36: =D36*F23/12+E36*(12-F23)/12 -> 2.906799531 | Q36: 3A | R36: Input | S36: HSPF: | T36: -
A37: Method 2 | C37: COP at 47F | D37: COP at 5F | E37: Slope per F | F37: Intercept | G37: DHW heating season COP | H37: DHW cooling season COP | I37: UEF - Re-Rated | Q37: 3C | R37: Input | S37: HSPF: | T37: -
A38: Proposed | C38: =IF(ISBLANK(Checklist!M481),"-",Checklist!M481) -> - | D38: =IF(ISBLANK(Checklist!M482),"-",Checklist!M482) -> - | E38: =(C38-D38)/(47-5) ->  | F38: =C38-E38*47 ->  | G38: =1/(1/H38+(1/(O45/O43)*(1-1/H38))) ->  | H38: =D10 -> 0 | I38: =G38*F22/12+H38*(12-F22)/12 ->  | Q38: 4A | R38: Input COP at: | S38: 47F | T38: 5F
A39: Reference | C39: =C38 -> - | D39: 1.75 | E39: =(C39-D39)/(47-5) ->  | F39: =C39-E39*47 ->  | G39: =1/(1/H39+(1/(O47/O43)*(1-1/H39))) ->  | H39: =C10 -> 3 | I39: =G39*F23/12+H39*(12-F23)/12 ->  | Q39: 4B | R39: Input COP at: | S39: 47F | T39: 5F
Q40: 4C | R40: Input | S40: HSPF: | T40: -
A41: Month | C41: =C24 -> Jan | D41: Feb | E41: Mar | F41: Apr | G41: May | H41: Jun | I41: Jul | J41: Aug | K41: Sep | L41: Oct | M41: Nov | N41: Dec | O41: Total | Q41: 5A | R41: Input COP at: | S41: 47F | T41: 5F
A42: Average ambient temperature (F) | C42: =C17 -> 24.6 | D42: 28.2 | E42: 38.2 | F42: 49.2 | G42: 59.6 | H42: 69.5 | I42: 74.2 | J42: 72.7 | K42: 64.9 | L42: 53.1 | M42: 40.6 | N42: 29.3 | Q42: 5B | R42: Input COP at: | S42: 47F | T42: 5F
A43: HDD50 | C43: =C25 -> 788 | D43: 612 | E43: 397 | F43: 123 | G43: 14 | H43: 0 | I43: 0 | J43: 0 | K43: 2 | L43: 67 | M43: 307 | N43: 645 | O43: =SUM(C43:N43) -> 2955 | Q43: 5C | R43: Input | S43: HSPF: | T43: -
A44: Proposed - Monthly average COP (W/W) | C44: =($E$38*C42)+$F$38 ->  | D44: =($E$38*D42)+$F$38 ->  | Q44: 6A | R44: Input COP at: | S44: 47F | T44: 5F
A45: Proposed - Monthly weighted COP * HDD | C45: =C43*C44 ->  | D45: =D43*D44 ->  | O45: =SUM(C45:N45) ->  | Q45: 6B | R45: Input COP at: | S45: 47F | T45: 5F
A46: Reference - Monthly average COP (W/W) | C46: =($E$39*C42)+$F$39 ->  | D46: =($E$39*D42)+$F$39 ->  | Q46: 7 | R46: Input COP at: | S46: 47F | T46: 5F
A47: Reference - Monthly weighted COP * HDD | C47: =C43*C46 ->  | D47: =D43*D46 ->  | O47: =SUM(C47:N47) ->  | Q47: 8 | R47: Input COP at: | S47: 47F | T47: 5F
A79: Water heating | D79: Choose water heating type | H79: Reference Source UEF | I79: Reference Efficiency Rationale | L79: Occupants | M79: Water heating amenity demand, at fixtures, annual site kWh/person
D80: Heat Pump Water Heater (choose scenario below) | E80: Water heating | F80: =IF(VLOOKUP(D80,C83:F84,4,FALSE)="0","Incomplete.",VLOOKUP(D80,C83:F84,4,FALSE)) -> Incomplete | G80: =IF(VLOOKUP(D80,C83:G84,5,FALSE)="0","Incomplete.",VLOOKUP(D80,C83:G84,5,FALSE)) -> 0 | I80: SEF=1.975. Energy Star top quartile for solar with electric backup (2020) | L80: =#REF!+1 ->  | M80: =(6.6*8.345404*1*(140-50)*365.25/3412)*1.25 -> 663.3229534
E82: Proposed efficiency | F82: Source kWh/yr, proposed | G82: Source kWh/yr, reference | H82: Reference Efficiency
A83: Solar Water Heater, Electric Backup | C83: Solar Water Heaters, electric backup | D83: Rated SEF | E83: =Checklist!H352 -> 0 | F83: =IF(ISBLANK('Compliance Calcs'!#REF!),0,ROUND($M$192*$N$192/(E83),0)) ->  | G83: =ROUND($M$192*$N$192/(H83),0) -> 0 | H83: 1.9
A84: Heat Pump Water Heater | C84: Heat Pump Water Heater (choose scenario below) | D84: Rated UEF | E84: =IF(ISBLANK(Checklist!H352), "", Checklist!H352) ->  | F84: =IF(ISNUMBER(F87),ROUND(F87,0),"Incomplete") -> Incomplete | G84: =ROUND($M$192*$N$192/(H84),0) -> 0 | H84: 3
A86: =Checklist!E351 -> 0 | D86: Choose HPWH scenario
A87: Heat pump water heater scenarios: | D87: =Checklist!E353 -> 0 | F87: =VLOOKUP(D87,C88:F92,4,FALSE) ->  | G87: Derated Ref Efficiency
A88: =IF($C$196=$C$198,C88,"-") -> V1-Sanden CO2 | C88: =C94 -> V1-Sanden CO2 | D88: COP Derated | I88: - | J88: - | K88: - | L88: -
A89: =IF($C$196=$C$198,C89,"-") -> V2-Sanden CO2 GS3-45HPA | C89: V2-Sanden CO2 GS3-45HPA | D89: COP Derated | I89: - | J89: - | K89: - | L89: -
A90: =IF($C$196=$C$198,C90,"-") -> Other HPWH Outside of the Thermal Envelope | C90: =A13 -> Other HPWH Outside of the Thermal Envelope | D90: =H7 -> - | E90: =I7 -> - | F90: =J7 -> - | I90: EF = 1 at [°F] | J90: Input | K90: - | L90: EF:
A91: =IF($C$196=$C$198,C91,"-") -> HPWH Inside, Biofueled Space Heat | C91: =A21 -> HPWH Inside, Biofueled Space Heat | D91: =K21 -> Effective UEF | E91: =IFERROR(K22,"Input stove AFUE.") -> Input stove AFUE. | F91: =IFERROR(J22,"Input AFUE.") -> Input AFUE. | I91: Stove AFUE [%] | J91: Input | K91: - | L91: AFUE:
A92: =IF($C$196=$C$198,C92,"-") -> HPWH Inside, Heat Pump Space Heat | C92: =A29 -> HPWH Inside, Heat Pump Space Heat | D92: =#REF! ->  | E92: =#REF! ->  | F92: =#REF! ->  | I92: Heat Pump for Space Heating | J92: =VLOOKUP(#REF!, Q30:R47, 3, FALSE) ->  | K92: =VLOOKUP(#REF!, Q30:T47, 5, FALSE) ->  | L92: =VLOOKUP(#REF!, Q30:T47, 4, FALSE) -> 
C94: V1-Sanden CO2 | D94: COP Derated | E94: ='V1 Sanden CO2'!#REF! ->  | F94: =$M$192*$N$192/(E94) -> 
C95: V2-Sanden CO2 GS3-45HPA | D95: COP Derated | E95: ='V2-Sanden CO2 GS3-45HPA'!#REF! -> 

Sheet Update Tracker
A1: Version | B1: Update | C1: Date | D1: Description
A2: v2.9.1 | B2: 37 | C2: 2023-03-09 | D2: Endnote 34 updated to align with revised protocol for HVI rated ventilators.
A3: v2.9.1 | B3: 36 | C3: 2023-03-09 | D3: Heat Pump efficiency criteria for climate zones 4A and 4B revised to align with the warmer and more temperature climates.
A4: v2.9 | B4: 35 | C4: 2023-02-02 | D4: Revision made to section 4.4.1 to determine the minimum required overhang for south facing windows in climate zones 0-3. Separate calculation used to determine overhangs required when no cooling system provided in climate zones 4-8.
A5: v2.9 | B5: 34 | C5: 2023-01-27 | D5: Conditional formatting updates made to section 9.1 to improve clarity of which path (component or performance) chosen for compliance.
A6: v2.9 | B6: 33 | C6: 2023-01-27 | D6: Correction to SHGC requirements for warmer climates to align with ZERH. Additional SHGC limits placed on colder climates when no cooling system is planned.
A7: v2.9 | B7: 32 | C7: 2023-01-27 | D7: Update to section 8.2.1 and clarification on when a cooling system is required. Related updates to Section 4.1.1 (endnote 8) and 4.4.1 (endnote 16). Added endnotes 41, 42 and 43. Endnotes 44-51 renumbered to keep numerical order of endnotes.
A8: v2.8 | B8: 31 | C8: 2023-01-06 | D8: 40 additional climate data sets added.
A9: v2.8 | B9: 30 | C9: 2022-12-20 | D9: Added 15 more light fixture lines for the 9.1.1.1b.1 tradeoff path.
A10: v2.8 | B10: 30 | C10: 2022-12-20 | D10: Corrected Effective R-value calculation in section 5.1.1e.
A11: v2.7 | B11: 29 | C11: 2022-11-15 | D11: Functionality related to the AED requirement added to section 4.3 which deems these requirements NR for attached dwellings.
A12: v2.7 | B12: 28 | C12: 2022-11-15 | D12: Submittal' column was removed and deemed unnecessary for certification. All submission files should be available in the project DropBox folder.
A13: v2.7 | B13: 27 | C13: 2022-11-15 | D13: Added requirement 8.5 and new corresponding endnote 43. Endnotes 44-48 renumbered to keep numerical order of endnotes.
A14: v2.7 | B14: 26 | C14: 2022-11-14 | D14: Clarified language provided for Endnote 11.
A15: v2.7 | B15: 25 | C15: 2022-11-14 | D15: Phius developed AED calculation and Net Gain calculation adapted to allow for projects oriented off of 'due south' where the azimuth of the south façade is not 180 degrees.
A16: v2.7 | B16: 24 | C16: 2022-10-18 | D16: R-value/in inputs in section 5.1.1.1 revised to 'number' entries to allow hygrothermal calculations to function with user-defined materials.
A17: v2.7 | B17: 23 | C17: 2022-09-15 | D17: Formatting revised to include space for Phius review comments & submitter responses.
A18: v2.7 | B18: 23 | C18: 2022-09-15 | D18: Expansion of lookup function that didn't include full list of climate data locations. (Gillette, WY through Whitehorse, YT)
A19: v2.7 | B19: 22 | C19: 2022-07-05 | D19: Alternate compliance path for section 5.2.2 and revised endnote 28.
A20: v2.6 | B20: 21 | C20: 2022-06-28 | D20: Revised tradeoff path calculations for DHW. Reference efficiency now includes an adjusted efficiency based on heating system and climate data. Revised the expandable groups of cells associated with section 9.1.2.
A21: V2.6 | B21: 20 | C21: 2022-06-24 | D21: Update conditional formatting of fenestration pass/fail in section 5.1.2a.1.
A22: V2.5 | B22: 19 | C22: 2022-03-25 | D22: Upper limit on maximum U-value for UA path revised to evalulate maximums for 16'+, 10'-15.99' and <10' window heights. Aligns with Appendix N-4 in Certification Guidebook.
A23: V2.5 | B23: 18 | C23: 2022-03-22 | D23: Spelling correction & reorganized 'update tracker' from newest to oldest.
A24: V2.4 | B24: 17 | C24: 2022-03-22 | D24: Rounded envelope area limit up to nearest 25 square feet.
A25: V2.4 | B25: 16 | C25: 2022-03-22 | D25: Included maximum U-values for windows dependent on window height for the UA trade-off path.
A26: V2.4 | B26: 15 | C26: 2022-03-16 | D26: Updates made to curve-fit formulas of R-values for all opaque assemblies. See Phius 2021 Standard Setting Document for Details
A27: V2.4 | B27: 14 | C27: 2022-02-08 | D27: Update to endnotes. Formatting removed numbers from first sentence. (11, 13, 36)
A28: V2.3 | B28: 13 | C28: 2021-10-29 | D28: Philadelphia updated to climate zone 4A. ASHRAE 169-2020 climate zones used.
A29: V2.3 | B29: 12 | C29: 2021-05-27 | D29: Section 4 formatting updated with bold fonts.
A30: V2.2 | B30: 11 | C30: 2021-05-17 | D30: All 'filter' formulas removed for older version of excel support.
A31: V2.2 | B31: 10 | C31: 2021-05-17 | D31: All 'ifna' formulas updated to 'iferror' for older version of excel support.
A32: V2.2 | B32: 9 | C32: 2021-04-15 | D32: Updated endnote 15. Corrected date noted for ASHRAE 169 climate zones to 2017 from 2013.
A33: V2.2 | B33: 8 | C33: 2021-04-15 | D33: Interlinks updated with new format for ease of use.
A34: V2.1 | B34: 7 | C34: 2021-03-11 | D34: Corrected calculations for electric vehicle chargers & smart home energy management systems within the tradeoff path calculation.
A35: V2.1 | B35: 6 | C35: 2021-03-11 | D35: Corrected link to tradeoff path calculation for DHW reference energy use.
A36: v2.1 | B36: 5 | C36: 2021-03-11 | D36: Corrected tradeoff path calculation for appliances, lighting and hot water to include lighting within the calculation.
A37: v2.1 | B37: 4 | C37: 2021-03-11 | D37: Tradeoff path incorporated for fresh air ventilation system fan efficiency.
A38: v2.1 | B38: 3 | C38: 2021-03-10 | D38: GSHP cooling requirement corrected from minimum SEER to minimum EER.
A39: v2.1 | B39: 2 | C39: 2021-03-08 | D39: Corrected R/in for user-defined materials to populate on 'Checklist' tab.
A40: v2.1 | B40: 1 | C40: 2021-03-08 | D40: Interlinks provided between footnotes and endnotes.

Sheet Reference Climate Info_Vals (hidden)
B1: 1 | C1: =B1+1 -> 2 | D1: 3 | E1: 4 | F1: 5 | G1: 6 | H1: 7 | I1: 8 | J1: 9 | K1: 10 | L1: 11 | M1: 12 | N1: 13 | O1: 14 | P1: 15 | Q1: 16 | R1: 17 | S1: 18 | T1: 19 | U1: 20 | V1: 21 | W1: 22 | X1: 23 | Y1: 24 | Z1: 25 | AA1: 26 | AB1: 27 | AC1: 28 | AD1: 29 | AE1: 30 | AF1: 31 | AG1: 32 | AH1: 33 | AI1: 34 | AJ1: 35 | AK1: 36 | AL1: 37 | AM1: 38 | AN1: 39 | AO1: 40 | AP1: 41 | AQ1: 42 | AR1: 43 | AS1: 44 | AT1: 45 | AU1: 46 | AV1: 47 | AW1: 48 | AX1: 49 | AY1: 50 | AZ1: 51 | BA1: 52 | BB1: 53 | BC1: 54 | BD1: 55 | BE1: 56 | BF1: 57 | BG1: 58 | BH1: 59 | BI1: 60 | BJ1: 61 | BK1: 62 | BL1: 63 | BM1: 64 | BN1: 65 | BO1: 66 | BP1: 67 | BQ1: 68 | BR1: 69 | BS1: 70 | BT1: 71
A2: ACTIVE DATA SET | B2: =Checklist!N10 -> CHICAGO OHARE INTL AP | C2: =VLOOKUP($B$2, $B$5:$BT$1093, C1, FALSE) -> 5A | D2: 6190 | E2: 1380 | F2: 14.35 | G2: 80.8 | H2: 0.1144 | I2: 41.995N | J2: 4.4 | K2: 24.6 | L2: 28.2 | M2: 38.2 | N2: 49.2 | O2: 59.6 | P2: 69.5 | Q2: 74.2 | R2: 72.7 | S2: 64.9 | T2: 53.1 | U2: 40.6 | V2: 29.3 | W2: 788 | X2: 612 | Y2: 397 | Z2: 123 | AA2: 14 | AB2: 0 | AC2: 0 | AD2: 0 | AE2: 2 | AF2: 67 | AG2: 307 | AH2: 645 | AI2: 0 | AJ2: 2 | AK2: 33 | AL2: 98 | AM2: 310 | AN2: 585 | AO2: 751 | AP2: 704 | AQ2: 448 | AR2: 163 | AS2: 25 | AT2: 3 | AU2: 15.1 | AV2: 17.24 | AW2: 29.3 | AX2: 39.2 | AY2: 45 | AZ2: 55.4 | BA2: 65.66 | BB2: 61.88 | BC2: 55.2 | BD2: 32.7 | BE2: 32.7 | BF2: 18.3 | BG2: 0.8156682028 | BH2: 0.1546829849 | BI2: 69 | BJ2: 38 | BK2: 20 | BL2: 25 | BM2: NR | BN2: NR | BO2: =VLOOKUP($B$2, $B$5:$BT$1093, BO1, FALSE) -> NR | BP2: Minimum COP @ 5°F:: 1.75 | BQ2: 15 | BR2: =VLOOKUP($B$2, $B$5:$BT$1093, BR1, FALSE) -> 3.1 | BS2: =VLOOKUP($B$2, $B$5:$BT$1093, BS1, FALSE) -> 16.1 | BT2: 3122
K3: Average Ambient Temp (F) | W3: HDD50 | AI3: CDD50 | AU3: Monthly Dew Pt Values | BG3: 60 | BH3: a | BI3: c | BJ3: b | BK3: d | BL3: e
A4: State | B4: City_WUFIp Data Set | C4: Zone | D4: HDD65 [F.days] | E4: IGA [kWh/m2.yr] | F4: THD [F] | G4: TCD [F] | H4: Marginal Elec Price ($/kWh) | I4: Lat | J4: 99% DB | K4: Jan | L4: Feb | M4: Mar | N4: Apr | O4: May | P4: Jun | Q4: Jul | R4: Aug | S4: Sep | T4: Oct | U4: Nov | V4: Dec | W4: Jan | X4: Feb | Y4: Mar | Z4: Apr | AA4: May | AB4: Jun | AC4: Jul | AD4: Aug | AE4: Sep | AF4: Oct | AG4: Nov | AH4: Dec | AI4: Jan | AJ4: Feb | AK4: Mar | AL4: Apr | AM4: May | AN4: Jun | AO4: Jul | AP4: Aug | AQ4: Sep | AR4: Oct | AS4: Nov | AT4: Dec | AU4: Jan | AV4: Feb | AW4: Mar | AX4: Apr | AY4: May | AZ4: Jun | BA4: Jul | BB4: Aug | BC4: Sep | BD4: Nov | BE4: Nov | BF4: Dec | BG4: Min Supply Air Temp SRE | BH4: Window Comfort @ 10' | BI4: Roof R-Value (Conserverative) | BJ4: Wall R-value (Conservative) | BK4: Slab R-value (Best) | BL4: Crawlspace Floor R-Value | BM4: Projection Factor | BN4: Min TRE | BO4: Max SHGC | BP4: Heating | BQ4: SEER | BR4: GSHP: COP | BS4: GSHP: EER | BT4: CDD50
A5: AB | B5: CALGARY INT AP | C5: 7 | D5: 9197 | E5: 1364 | F5: -3.8 | G5: 69.6 | H5: 0.1086 | I5: 51.120N | J5: -12.8 | K5: 18.9 | L5: 22.3 | M5: 28.4 | N5: 39.5 | O5: 49 | P5: 55.9 | Q5: 61.9 | R5: 60.7 | S5: 53.1 | T5: 41.1 | U5: 28 | V5: 20 | W5: 964 | X5: 776 | Y5: 670 | Z5: 329 | AA5: 114 | AB5: 12 | AC5: 1 | AD5: 6 | AE5: 59 | AF5: 300 | AG5: 661 | AH5: 931 | AI5: 0 | AJ5: 1 | AK5: 1 | AL5: 14 | AM5: 84 | AN5: 188 | AO5: 369 | AP5: 337 | AQ5: 151 | AR5: 24 | AS5: 1 | AT5: 0 | AU5: 9.1 | AV5: 10.76 | AW5: 15.4 | AX5: 23.36 | AY5: 32.4 | AZ5: 43.16 | BA5: 48.56 | BB5: 45.14 | BC5: 36.9 | BD5: 17.6 | BE5: 17.6 | BF5: 9.7 | BG5: =IF(MIN(K5:V5)>60,"NR",IF((60-MIN(K5:V5))/(68-MIN(K5:V5))<0.5,"NR",MAX(0.6,(60-MIN(K5:V5))/(68-MIN(K5:V5))))) -> 0.8370672098 | BH5: =IF(ISBLANK($J5),"-",IF((14.7-(0.742*10))/(0.74*(68-$J5))<0,0.5,MIN((14.7-(0.742*10))/(0.74*(68-$J5)),0.5))) -> 0.1217554188 | BI5: =ROUNDDOWN((33.97238548+(2.143484655*3.14219615)+(0.00253108806*D5)+(-0.2767683543*J5)+(66.9384076*H5)+((3.14219615-3.14219615)^2*-1.607593659)+((J5-12.48681818)*(H5-0.2016890909)*-1.8168457)+8.4234),0) -> 78 | BJ5: =ROUNDDOWN((2.975122788+(0.003896731237*D5)+(59.88697433*H5)+((D5-5520.854545)*(H5-0.2016890909)*0.01119327314)+5.3792),0) -> 46 | BK5: =ROUNDDOWN(-18.64576148+(5.900367721*3.14219615)+(0.002662134083*D5)+(38.92365332*H5)+((BT5-3890.577273)*(G5-78.59)*0.00005765875867)+((D5-5520.854545)*(H5-0.2016890909)*0.006047043516),0) -> 27 | BL5: =ROUNDDOWN(BK5+5.9089,0) -> 32 | BM5: =IF(OR(C5="OA",C5="OB",C5="1B",C5="1A",C5="2A",C5="2B",C5="3A",C5="3B",C5="3C"),TAN((LEFT(I5, 5)+VLOOKUP(C5,Main!$K$3:$L$21,2,FALSE))*PI()/180),IF(Checklist!$I$385="No",TAN((LEFT(I5, 5)+VLOOKUP(C5,Main!$K$3:$L$21,2,FALSE))*PI()/180),"NR")) -> NR | BN5: =VLOOKUP(C5,Main!$A$49:$I$67,Main!$B$47,FALSE) -> NR | BO5: =VLOOKUP(C5,Main!$A$49:$I$67,Main!$C$47,FALSE) -> NR | BP5: =VLOOKUP(C5,Main!$A$49:$I$67,Main!$E$47,FALSE)&":"&" "&VLOOKUP(C5,Main!$A$49:$I$67,Main!$F$47,FALSE) -> Minimum COP @ 5°F:: 1.75 | BQ5: =VLOOKUP(C5,Main!$A$49:$I$67,Main!$G$47,FALSE) -> 15 | BR5: =VLOOKUP(C5,Main!$A$49:$I$67,Main!$H$47,FALSE) -> 3.1 | BS5: =VLOOKUP(C5,Main!$A$49:$I$67,Main!$I$47,FALSE) -> 16.1 | BT5: 1170
A6: AB | B6: COP UPPER | C6: 7 | D6: 9071 | E6: 1355 | F6: -1.4 | G6: 69.8 | H6: 0.1086 | I6: 51.080N | J6: -11.6 | K6: 20.5 | L6: 23.1 | M6: 28.7 | N6: 39 | O6: 48.6 | P6: 54.8 | Q6: 61.6 | R6: 60.3 | S6: 52.8 | T6: 41.8 | U6: 29.2 | V6: 22.7 | W6: 915 | X6: 753 | Y6: 660 | Z6: 347 | AA6: 129 | AB6: 20 | AC6: 3 | AD6: 8 | AE6: 71 | AF6: 284 | AG6: 627 | AH6: 848 | AI6: 0 | AJ6: 0 | AK6: 1 | AL6: 15 | AM6: 84 | AN6: 165 | AO6: 362 | AP6: 328 | AQ6: 155 | AR6: 29 | AS6: 1 | AT6: 0 | AU6: 9 | AV6: 10.4 | AW6: 15.1 | AX6: 22.28 | AY6: 30 | AZ6: 40.64 | BA6: 45.5 | BB6: 42.8 | BC6: 35.4 | BD6: 16.5 | BE6: 16.5 | BF6: 10 | BG6: 0.8315789474 | BH6: 0.1235909276 | BI6: =ROUNDDOWN((33.97238548+(2.143484655*3.14219615)+(0.00253108806*D6)+(-0.2767683543*J6)+(66.9384076*H6)+((3.14219615-3.14219615)^2*-1.607593659)+((J6-12.48681818)*(H6-0.2016890909)*-1.8168457)+8.4234),0) -> 78 | BJ6: =ROUNDDOWN((2.975122788+(0.003896731237*D6)+(59.88697433*H6)+((D6-5520.854545)*(H6-0.2016890909)*0.01119327314)+5.3792),0) -> 46 | BK6: =ROUNDDOWN(-18.64576148+(5.900367721*3.14219615)+(0.002662134083*D6)+(38.92365332*H6)+((BT6-3890.577273)*(G6-78.59)*0.00005765875867)+((D6-5520.854545)*(H6-0.2016890909)*0.006047043516),0) -> 27 | BL6: =ROUNDDOWN(BK6+5.9089,0) -> 32 | BM6: =IF(OR(C6="OA",C6="OB",C6="1B",C6="1A",C6="2A",C6="2B",C6="3A",C6="3B",C6="3C"),TAN((LEFT(I6, 5)+VLOOKUP(C6,Main!$K$3:$L$21,2,FALSE))*PI()/180),IF(Checklist!$I$385="No",TAN((LEFT(I6, 5)+VLOOKUP(C6,Main!$K$3:$L$21,2,FALSE))*PI()/180),"NR")) -> NR | BN6: =VLOOKUP(C6,Main!$A$49:$I$67,Main!$B$47,FALSE) -> NR | BO6: =VLOOKUP(C6,Main!$A$49:$I$67,Main!$C$47,FALSE) -> NR | BP6: =VLOOKUP(C6,Main!$A$49:$I$67,Main!$E$47,FALSE)&":"&" "&VLOOKUP(C6,Main!$A$49:$I$67,Main!$F$47,FALSE) -> Minimum COP @ 5°F:: 1.75 | BQ6: =VLOOKUP(C6,Main!$A$49:$I$67,Main!$G$47,FALSE) -> 15 | BR6: =VLOOKUP(C6,Main!$A$49:$I$67,Main!$H$47,FALSE) -> 3.1 | BS6: =VLOOKUP(C6,Main!$A$49:$I$67,Main!$I$47,FALSE) -> 16.1 | BT6: 1140
A7: AB | B7: EDMONTON AP | C7: 7 | D7: 10473 | E7: 1287 | F7: -11.55 | G7: 68.4 | H7: 0.1086 | I7: 53.310N | J7: -20.6 | K7: 9.8 | L7: 14.1 | M7: 22.7 | N7: 38.5 | O7: 49.9 | P7: 57.1 | Q7: 61 | R7: 59.2 | S7: 51.1 | T7: 38.4 | U7: 22.4 | V7: 11.7 | W7: 1246 | X7: 1007 | Y7: 848 | Z7: 356 | AA7: 100 | AB7: 7 | AC7: 1 | AD7: 7 | AE7: 76 | AF7: 370 | AG7: 829 | AH7: 1188 | AI7: 0 | AJ7: 0 | AK7: 0 | AL7: 10 | AM7: 97 | AN7: 219 | AO7: 342 | AP7: 293 | AQ7: 109 | AR7: 10 | AS7: 0 | AT7: 0 | AU7: 4.5 | AV7: 6.62 | AW7: 13.5 | AX7: 24.62 | AY7: 32.5 | AZ7: 44.42 | BA7: 51.44 | BB7: 48.74 | BC7: 39.4 | BD7: 17.8 | BE7: 17.8 | BF7: 5 | BG7: 0.8625429553 | BH7: 0.1110365444 | BI7: 83 | BJ7: 50 | BK7: =ROUNDDOWN(-18.64576148+(5.900367721*3.14219615)+(0.002662134083*D7)+(38.92365332*H7)+((BT7-3890.577273)*(G7-78.59)*0.00005765875867)+((D7-5520.854545)*(H7-0.2016890909)*0.006047043516),0) -> 30 | BL7: 35 | BM7: =IF(OR(C7="OA",C7="OB",C7="1B",C7="1A",C7="2A",C7="2B",C7="3A",C7="3B",C7="3C"),TAN((LEFT(I7, 5)+VLOOKUP(C7,Main!$K$3:$L$21,2,FALSE))*PI()/180),IF(Checklist!$I$385="No",TAN((LEFT(I7, 5)+VLOOKUP(C7,Main!$K$3:$L$21,2,FALSE))*PI()/180),"NR")) -> NR | BN7: =VLOOKUP(C7,Main!$A$49:$I$67,Main!$B$47,FALSE) -> NR | BO7: =VLOOKUP(C7,Main!$A$49:$I$67,Main!$C$47,FALSE) -> NR | BP7: =VLOOKUP(C7,Main!$A$49:$I$67,Main!$E$47,FALSE)&":"&" "&VLOOKUP(C7,Main!$A$49:$I$67,Main!$F$47,FALSE) -> Minimum COP @ 5°F:: 1.75 | BQ7: =VLOOKUP(C7,Main!$A$49:$I$67,Main!$G$47,FALSE) -> 15 | BR7: =VLOOKUP(C7,Main!$A$49:$I$67,Main!$H$47,FALSE) -> 3.1 | BS7: =VLOOKUP(C7,Main!$A$49:$I$67,Main!$I$47,FALSE) -> 16.1 | BT7: 1080
A8: AB | B8: EDMONTON MUN AP | C8: 7 | D8: 9423 | E8: 1282 | F8: -6.7 | G8: 72.3 | H8: 0.1086 | I8: 53.570N | J8: -14.5 | K8: 13.3 | L8: 18.3 | M8: 26.5 | N8: 40.8 | O8: 52.3 | P8: 59.7 | Q8: 64.3 | R8: 62.5 | S8: 53.9 | T8: 41.1 | U8: 25.4 | V8: 15.1 | W8: 1137 | X8: 888 | Y8: 729 | Z8: 298 | AA8: 71 | AB8: 4 | AC8: 0 | AD8: 3 | AE8: 47 | AF8: 295 | AG8: 739 | AH8: 1081 | AI8: 0 | AJ8: 0 | AK8: 0 | AL8: 22 | AM8: 141 | AN8: 295 | AO8: 443 | AP8: 391 | AQ8: 165 | AR8: 20 | AS8: 0 | AT8: 0 | AU8: 5.5 | AV8: 8.6 | AW8: 13.6 | AX8: 23.54 | AY8: 32.7 | AZ8: 44.96 | BA8: 51.8 | BB8: 49.1 | BC8: 40.3 | BD8: 18.1 | BE8: 18.1 | BF8: 5.4 | BG8: 0.8537477148 | BH8: 0.1192465192 | BI8: 79 | BJ8: 47 | BK8: =ROUNDDOWN(-18.64576148+(5.900367721*3.14219615)+(0.002662134083*D8)+(38.92365332*H8)+((BT8-3890.577273)*(G8-78.59)*0.00005765875867)+((D8-5520.854545)*(H8-0.2016890909)*0.006047043516),0) -> 27 | BL8: 32 | BM8: =IF(OR(C8="OA",C8="OB",C8="1B",C8="1A",C8="2A",C8="2B",C8="3A",C8="3B",C8="3C"),TAN((LEFT(I8, 5)+VLOOKUP(C8,Main!$K$3:$L$21,2,FALSE))*PI()/180),IF(Checklist!$I$385="No",TAN((LEFT(I8, 5)+VLOOKUP(C8,Main!$K$3:$L$21,2,FALSE))*PI()/180),"NR")) -> NR | BN8: =VLOOKUP(C8,Main!$A$49:$I$67,Main!$B$47,FALSE) -> NR | BO8: =VLOOKUP(C8,Main!$A$49:$I$67,Main!$C$47,FALSE) -> NR | BP8: =VLOOKUP(C8,Main!$A$49:$I$67,Main!$E$47,FALSE)&":"&" "&VLOOKUP(C8,Main!$A$49:$I$67,Main!$F$47,FALSE) -> Minimum COP @ 5°F:: 1.75 | BQ8: =VLOOKUP(C8,Main!$A$49:$I$67,Main!$G$47,FALSE) -> 15 | BR8: =VLOOKUP(C8,Main!$A$49:$I$67,Main!$H$47,FALSE) -> 3.1 | BS8: =VLOOKUP(C8,Main!$A$49:$I$67,Main!$I$47,FALSE) -> 16.1 | BT8: 1477
A9: AB | B9: EDMONTON NAMAO | C9: 7 | D9: 10060 | E9: 1277 | F9: -9.75 | G9: 69.4 | H9: 0.1086 | I9: 53.670N | J9: -16.6 | K9: 12.9 | L9: 15 | M9: 24.7 | N9: 38.8 | O9: 50.4 | P9: 57.7 | Q9: 62.1 | R9: 60.3 | S9: 52 | T9: 39.3 | U9: 24.1 | V9: 12.8 | W9: 1150 | X9: 981 | Y9: 785 | Z9: 352 | AA9: 93 | AB9: 6 | AC9: 1 | AD9: 6 | AE9: 66 | AF9: 347 | AG9: 778 | AH9: 1152 | AI9: 0 | AJ9: 0 | AK9: 0 | AL9: 16 | AM9: 107 | AN9: 237 | AO9: 375 | AP9: 324 | AQ9: 126 | AR9: 14 | AS9: 0 | AT9: 0 | AU9: 5 | AV9: 7.7 | AW9: 13.3 | AX9: 23.54 | AY9: 32 | AZ9: 44.78 | BA9: 52.16 | BB9: 49.46 | BC9: 40.5 | BD9: 18.3 | BE9: 18.3 | BF9: 5.5 | BG9: 0.8550724638 | BH9: 0.1162864993 | BI9: 81 | BJ9: 49 | BK9: 29 | BL9: 34 | BM9: =IF(OR(C9="OA",C9="OB",C9="1B",C9="1A",C9="2A",C9="2B",C9="3A",C9="3B",C9="3C"),TAN((LEFT(I9, 5)+VLOOKUP(C9,Main!$K$3:$L$21,2,FALSE))*PI()/180),IF(Checklist!$I$385="No",TAN((LEFT(I9, 5)+VLOOKUP(C9,Main!$K$3:$L$21,2,FALSE))*PI()/180),"NR")) -> NR | BN9: =VLOOKUP(C9,Main!$A$49:$I$67,Main!$B$47,FALSE) -> NR | BO9: =VLOOKUP(C9,Main!$A$49:$I$67,Main!$C$47,FALSE) -> NR | BP9: =VLOOKUP(C9,Main!$A$49:$I$67,Main!$E$47,FALSE)&":"&" "&VLOOKUP(C9,Main!$A$49:$I$67,Main!$F$47,FALSE) -> Minimum COP @ 5°F:: 1.75 | BQ9: =VLOOKUP(C9,Main!$A$49:$I$67,Main!$G$47,FALSE) -> 15 | BR9: =VLOOKUP(C9,Main!$A$49:$I$67,Main!$H$47,FALSE) -> 3.1 | BS9: =VLOOKUP(C9,Main!$A$49:$I$67,Main!$I$47,FALSE) -> 16.1 | BT9: 1199
A10: AB | B10: FORT MCMURRAY AP | C10: 7 | D10: 11459 | E10: 1192 | F10: -18.05 | G10: 70.2 | H10: 0.1086 | I10: 56.650N | J10: -28.2 | K10: 0.6 | L10: 8.1 | M10: 20 | N10: 37 | O10: 49.3 | P10: 58.4 | Q10: 62.9 | R10: 59.9 | S10: 50.2 | T10: 36.4 | U10: 17.6 | V10: 4 | W10: 1533 | X10: 1174 | Y10: 929 | Z10: 400 | AA10: 118 | AB10: 8 | AC10: 0 | AD10: 7 | AE10: 93 | AF10: 430 | AG10: 971 | AH10: 1425 | AI10: 0 | AJ10: 0 | AK10: 0 | AL10: 9 | AM10: 97 | AN10: 260 | AO10: 399 | AP10: 314 | AQ10: 98 | AR10: 9 | AS10: 0 | AT10: 0 | AU10: -4.4 | AV10: -1.12 | AW10: 7 | AX10: 20.12 | AY10: 30.7 | AZ10: 43.88 | BA10: 51.44 | BB10: 49.28 | BC10: 41.2 | BD10: 14.7 | BE10: 14.7 | BF10: -2.7 | BG10: 0.881305638 | BH10: 0.1022644266 | BI10: 86 | BJ10: 53 | BK10: 32 | BL10: 37 | BM10: =IF(OR(C10="OA",C10="OB",C10="1B",C10="1A",C10="2A",C10="2B",C10="3A",C10="3B",C10="3C"),TAN((LEFT(I10, 5)+VLOOKUP(C10,Main!$K$3:$L$21,2,FALSE))*PI()/180),IF(Checklist!$I$385="No",TAN((LEFT(I10, 5)+VLOOKUP(C10,Main!$K$3:$L$21,2,FALSE))*PI()/180),"NR")) -> NR | BN10: =VLOOKUP(C10,Main!$A$49:$I$67,Main!$B$47,FALSE) -> NR | BO10: =VLOOKUP(C10,Main!$A$49:$I$67,Main!$C$47,FALSE) -> NR | BP10: =VLOOKUP(C10,Main!$A$49:$I$67,Main!$E$47,FALSE)&":"&" "&VLOOKUP(C10,Main!$A$49:$I$67,Main!$F$47,FALSE) -> Minimum COP @ 5°F:: 1.75 | BQ10: =VLOOKUP(C10,Main!$A$49:$I$67,Main!$G$47,FALSE) -> 15 | BR10: =VLOOKUP(C10,Main!$A$49:$I$67,Main!$H$47,FALSE) -> 3.1 | BS10: =VLOOKUP(C10,Main!$A$49:$I$67,Main!$I$47,FALSE) -> 16.1 | BT10: 1186
A11: AB | B11: GRAND PRAIRIE | C11: 7 | D11: 10674 | E11: 1201 | F11: -16.05 | G11: 68.4 | H11: 0.1086 | I11: 55.180N | J11: -24.4 | K11: 7.2 | L11: 13.3 | M11: 22.1 | N11: 38.5 | O11: 50 | P11: 57.5 | Q11: 61.3 | R11: 59.5 | S11: 51.2 | T11: 38.4 | U11: 20.5 | V11: 9.7 | W11: 1325 | X11: 1027 | Y11: 865 | Z11: 350 | AA11: 92 | AB11: 5 | AC11: 1 | AD11: 6 | AE11: 70 | AF11: 370 | AG11: 886 | AH11: 1248 | AI11: 0 | AJ11: 0 | AK11: 0 | AL11: 5 | AM11: 91 | AN11: 232 | AO11: 351 | AP11: 299 | AQ11: 107 | AR11: 9 | AS11: 0 | AT11: 0 | AU11: 2.5 | AV11: 5.9 | AW11: 11.3 | AX11: 23.18 | AY11: 32 | AZ11: 42.26 | BA11: 48.2 | BB11: 46.58 | BC11: 39.4 | BD11: 17.4 | BE11: 17.4 | BF11: 4.8 | BG11: 0.8684210526 | BH11: 0.1064701065 | BI11: 83 | BJ11: 51 | BK11: 31 | BL11: 36 | BM11: =IF(OR(C11="OA",C11="OB",C11="1B",C11="1A",C11="2A",C11="2B",C11="3A",C11="3B",C11="3C"),TAN((LEFT(I11, 5)+VLOOKUP(C11,Main!$K$3:$L$21,2,FALSE))*PI()/180),IF(Checklist!$I$385="No",TAN((LEFT(I11, 5)+VLOOKUP(C11,Main!$K$3:$L$21,2,FALSE))*PI()/180),"NR")) -> NR | BN11: =VLOOKUP(C11,Main!$A$49:$I$67,Main!$B$47,FALSE) -> NR | BO11: =VLOOKUP(C11,Main!$A$49:$I$67,Main!$C$47,FALSE) -> NR | BP11: =VLOOKUP(C11,Main!$A$49:$I$67,Main!$E$47,FALSE)&":"&" "&VLOOKUP(C11,Main!$A$49:$I$67,Main!$F$47,FALSE) -> Minimum COP @ 5°F:: 1.75 | BQ11: =VLOOKUP(C11,Main!$A$49:$I$67,Main!$G$47,FALSE) -> 15 | BR11: =VLOOKUP(C11,Main!$A$49:$I$67,Main!$H$47,FALSE) -> 3.1 | BS11: =VLOOKUP(C11,Main!$A$49:$I$67,Main!$I$47,FALSE) -> 16.1 | BT11: 1094
A12: AB | B12: LACOMBE | C12: 7 | D12: 10318 | E12: 1319 | F12: -6.9 | G12: 68.5 | H12: 0.1086 | I12: 52.450N | J12: -19 | K12: 10.8 | L12: 15.4 | M12: 23.9 | N12: 38.2 | O12: 49.1 | P12: 56.2 | Q12: 60.9 | R12: 58.9 | S12: 50.9 | T12: 39.2 | U12: 23.5 | V12: 13.7 | W12: 1215 | X12: 968 | Y12: 808 | Z12: 361 | AA12: 111 | AB12: 10 | AC12: 1 | AD12: 5 | AE12: 78 | AF12: 346 | AG12: 795 | AH12: 1126 | AI12: 0 | AJ12: 0 | AK12: 0 | AL12: 7 | AM12: 84 | AN12: 195 | AO12: 340 | AP12: 282 | AQ12: 104 | AR12: 10 | AS12: 0 | AT12: 0 | AU12: 7 | AV12: 9.32 | AW12: 16.2 | AX12: 26.24 | AY12: 34.3 | AZ12: 45.5 | BA12: 52.16 | BB12: 49.1 | BC12: 40.6 | BD12: 19 | BE12: 19 | BF12: 7.3 | BG12: 0.8601398601 | BH12: 0.1130785958 | BI12: 82 | BJ12: 50 | BK12: 30 | BL12: 35 | BM12: =IF(OR(C12="OA",C12="OB",C12="1B",C12="1A",C12="2A",C12="2B",C12="3A",C12="3B",C12="3C"),TAN((LEFT(I12, 5)+VLOOKUP(C12,Main!$K$3:$L$21,2,FALSE))*PI()/180),IF(Checklist!$I$385="No",TAN((LEFT(I12, 5)+VLOOKUP(C12,Main!$K$3:$L$21,2,FALSE))*PI()/180),"NR")) -> NR | BN12: =VLOOKUP(C12,Main!$A$49:$I$67,Main!$B$47,FALSE) -> NR | BO12: =VLOOKUP(C12,Main!$A$49:$I$67,Main!$C$47,FALSE) -> NR | BP12: =VLOOKUP(C12,Main!$A$49:$I$67,Main!$E$47,FALSE)&":"&" "&VLOOKUP(C12,Main!$A$49:$I$67,Main!$F$47,FALSE) -> Minimum COP @ 5°F:: 1.75 | BQ12: =VLOOKUP(C12,Main!$A$49:$I$67,Main!$G$47,FALSE) -> 15 | BR12: =VLOOKUP(C12,Main!$A$49:$I$67,Main!$H$47,FALSE) -> 3.1 | BS12: =VLOOKUP(C12,Main!$A$49:$I$67,Main!$I$47,FALSE) -> 16.1 | BT12: 1022
A13: AB | B13: LETHBRIDGE | C13: 6A | D13: 8419 | E13: 1397 | F13: -1.65 | G13: 74.3 | H13: 0.1086 | I13: 49.630N | J13: -14.6 | K13: 20.6 | L13: 24.6 | M13: 30.6 | N13: 41.8 | O13: 50.9 | P13: 57.9 | Q13: 64 | R13: 63.9 | S13: 56 | T13: 43.5 | U13: 30.2 | V13: 22.8 | W13: 911 | X13: 712 | Y13: 602 | Z13: 270 | AA13: 81 | AB13: 6 | AC13: 1 | AD13: 3 | AE13: 36 | AF13: 246 | AG13: 596 | AH13: 844 | AI13: 1 | AJ13: 1 | AK13: 2 | AL13: 24 | AM13: 109 | AN13: 244 | AO13: 436 | AP13: 434 | AQ13: 214 | AR13: 46 | AS13: 3 | AT13: 0 | AU13: 12.2 | AV13: 13.82 | AW13: 18.9 | AX13: 25.88 | AY13: 32.4 | AZ13: 39.74 | BA13: 47.84 | BB13: 45.14 | BC13: 38.8 | BD13: 20.3 | BE13: 20.3 | BF13: 12.7 | BG13: 0.8312236287 | BH13: 0.119102153 | BI13: 77 | BJ13: 44 | BK13: 25 | BL13: 30 | BM13: =IF(OR(C13="OA",C13="OB",C13="1B",C13="1A",C13="2A",C13="2B",C13="3A",C13="3B",C13="3C"),TAN((LEFT(I13, 5)+VLOOKUP(C13,Main!$K$3:$L$21,2,FALSE))*PI()/180),IF(Checklist!$I$385="No",TAN((LEFT(I13, 5)+VLOOKUP(C13,Main!$K$3:$L$21,2,FALSE))*PI()/180),"NR")) -> NR | BN13: =VLOOKUP(C13,Main!$A$49:$I$67,Main!$B$47,FALSE) -> NR | BO13: =VLOOKUP(C13,Main!$A$49:$I$67,Main!$C$47,FALSE) -> NR | BP13: =VLOOKUP(C13,Main!$A$49:$I$67,Main!$E$47,FALSE)&":"&" "&VLOOKUP(C13,Main!$A$49:$I$67,Main!$F$47,FALSE) -> Minimum COP @ 5°F:: 1.75 | BQ13: =VLOOKUP(C13,Main!$A$49:$I$67,Main!$G$47,FALSE) -> 15 | BR13: =VLOOKUP(C13,Main!$A$49:$I$67,Main!$H$47,FALSE) -> 3.1 | BS13: =VLOOKUP(C13,Main!$A$49:$I$67,Main!$I$47,FALSE) -> 16.1 | BT13: 1514
A14: AB | B14: MEDICINE AP | C14: 6B | D14: 8434 | E14: 1426 | F14: -4.8 | G14: 78.1 | H14: 0.1086 | I14: 50.020N | J14: -15.5 | K14: 16.5 | L14: 21.6 | M14: 31.5 | N14: 43.3 | O14: 53.3 | P14: 60.9 | Q14: 67.6 | R14: 66.7 | S14: 57.3 | T14: 44.1 | U14: 29.7 | V14: 18.9 | W14: 1038 | X14: 794 | Y14: 577 | Z14: 237 | AA14: 57 | AB14: 3 | AC14: 0 | AD14: 1 | AE14: 28 | AF14: 230 | AG14: 614 | AH14: 965 | AI14: 0 | AJ14: 0 | AK14: 3 | AL14: 36 | AM14: 159 | AN14: 329 | AO14: 546 | AP14: 520 | AQ14: 246 | AR14: 48 | AS14: 3 | AT14: 0 | AU14: 10.4 | AV14: 11.66 | AW14: 18.1 | AX14: 26.24 | AY14: 35.2 | AZ14: 46.04 | BA14: 50 | BB14: 46.94 | BC14: 40.3 | BD14: 20.5 | BE14: 20.5 | BF14: 10.2 | BG14: 0.8446601942 | BH14: 0.1178184172 | BI14: 77 | BJ14: 44 | BK14: 24 | BL14: 29 | BM14: =IF(OR(C14="OA",C14="OB",C14="1B",C14="1A",C14="2A",C14="2B",C14="3A",C14="3B",C14="3C"),TAN((LEFT(I14, 5)+VLOOKUP(C14,Main!$K$3:$L$21,2,FALSE))*PI()/180),IF(Checklist!$I$385="No",TAN((LEFT(I14, 5)+VLOOKUP(C14,Main!$K$3:$L$21,2,FALSE))*PI()/180),"NR")) -> NR | BN14: =VLOOKUP(C14,Main!$A$49:$I$67,Main!$B$47,FALSE) -> NR | BO14: =VLOOKUP(C14,Main!$A$49:$I$67,Main!$C$47,FALSE) -> NR | BP14: =VLOOKUP(C14,Main!$A$49:$I$67,Main!$E$47,FALSE)&":"&" "&VLOOKUP(C14,Main!$A$49:$I$67,Main!$F$47,FALSE) -> Minimum COP @ 5°F:: 1.75 | BQ14: =VLOOKUP(C14,Main!$A$49:$I$67,Main!$G$47,FALSE) -> 15 | BR14: =VLOOKUP(C14,Main!$A$49:$I$67,Main!$H$47,FALSE) -> 3.1 | BS14: =VLOOKUP(C14,Main!$A$49:$I$67,Main!$I$47,FALSE) -> 16.1 | BT14: 1890
A15: AB | B15: RED DEER AP | C15: 7 | D15: 10309 | E15: 1329 | F15: -6.8 | G15: 68.7 | H15: 0.1086 | I15: 52.180N | J15: -18.8 | K15: 11 | L15: 15.3 | M15: 24.4 | N15: 38.6 | O15: 49.1 | P15: 56.4 | Q15: 60.9 | R15: 59.2 | S15: 51.2 | T15: 38.6 | U15: 23.6 | V15: 12.8 | W15: 1208 | X15: 971 | Y15: 795 | Z15: 350 | AA15: 110 | AB15: 9 | AC15: 1 | AD15: 6 | AE15: 71 | AF15: 364 | AG15: 792 | AH15: 1154 | AI15: 0 | AJ15: 0 | AK15: 0 | AL15: 7 | AM15: 82 | AN15: 201 | AO15: 340 | AP15: 293 | AQ15: 107 | AR15: 10 | AS15: 0 | AT15: 0 | AU15: 5 | AV15: 6.62 | AW15: 14.2 | AX15: 24.62 | AY15: 32.5 | AZ15: 44.06 | BA15: 50.36 | BB15: 47.48 | BC15: 39 | BD15: 16.9 | BE15: 16.9 | BF15: 5.5 | BG15: 0.8596491228 | BH15: 0.1133391456 | BI15: 82 | BJ15: 50 | BK15: 30 | BL15: 35 | BM15: =IF(OR(C15="OA",C15="OB",C15="1B",C15="1A",C15="2A",C15="2B",C15="3A",C15="3B",C15="3C"),TAN((LEFT(I15, 5)+VLOOKUP(C15,Main!$K$3:$L$21,2,FALSE))*PI()/180),IF(Checklist!$I$385="No",TAN((LEFT(I15, 5)+VLOOKUP(C15,Main!$K$3:$L$21,2,FALSE))*PI()/180),"NR")) -> NR | BN15: =VLOOKUP(C15,Main!$A$49:$I$67,Main!$B$47,FALSE) -> NR | BO15: =VLOOKUP(C15,Main!$A$49:$I$67,Main!$C$47,FALSE) -> NR | BP15: =VLOOKUP(C15,Main!$A$49:$I$67,Main!$E$47,FALSE)&":"&" "&VLOOKUP(C15,Main!$A$49:$I$67,Main!$F$47,FALSE) -> Minimum COP @ 5°F:: 1.75 | BQ15: =VLOOKUP(C15,Main!$A$49:$I$67,Main!$G$47,FALSE) -> 15 | BR15: =VLOOKUP(C15,Main!$A$49:$I$67,Main!$H$47,FALSE) -> 3.1 | BS15: =VLOOKUP(C15,Main!$A$49:$I$67,Main!$I$47,FALSE) -> 16.1 | BT15: 1040
A16: AB | B16: SPRINGBANK | C16: 7 | D16: 10296 | E16: 1346 | F16: -0.85 | G16: 69.6 | H16: 0.1086 | I16: 51.100N | J16: -17.9 | K16: 15.1 | L16: 20.8 | M16: 25.9 | N16: 37.1 | O16: 45.7 | P16: 52.5 | Q16: 57.3 | R16: 57.3 | S16: 49.6 | T16: 38.1 | U16: 24.8 | V16: 16.6 | W16: 1081 | X16: 816 | Y16: 747 | Z16: 392 | AA16: 173 | AB16: 33 | AC16: 7 | AD16: 13 | AE16: 94 | AF16: 380 | AG16: 757 | AH16: 1037 | AI16: 0 | AJ16: 0 | AK16: 0 | AL16: 5 | AM16: 39 | AN16: 108 | AO16: 231 | AP16: 240 | AQ16: 81 | AR16: 12 | AS16: 0 | AT16: 0 | AU16: 9 | AV16: 10.4 | AW16: 15.4 | AX16: 22.82 | AY16: 30.7 | AZ16: 41.54 | BA16: 46.4 | BB16: 43.88 | BC16: 36.1 | BD16: 17.1 | BE16: 17.1 | BF16: 9.9 | BG16: 0.8487712665 | BH16: 0.1145266337 | BI16: 82 | BJ16: 50 | BK16: 30 | BL16: 35 | BM16: =IF(OR(C16="OA",C16="OB",C16="1B",C16="1A",C16="2A",C16="2B",C16="3A",C16="3B",C16="3C"),TAN((LEFT(I16, 5)+VLOOKUP(C16,Main!$K$3:$L$21,2,FALSE))*PI()/180),IF(Checklist!$I$385="No",TAN((LEFT(I16, 5)+VLOOKUP(C16,Main!$K$3:$L$21,2,FALSE))*PI()/180),"NR")) -> NR | BN16: =VLOOKUP(C16,Main!$A$49:$I$67,Main!$B$47,FALSE) -> NR | BO16: =VLOOKUP(C16,Main!$A$49:$I$67,Main!$C$47,FALSE) -> NR | BP16: =VLOOKUP(C16,Main!$A$49:$I$67,Main!$E$47,FALSE)&":"&" "&VLOOKUP(C16,Main!$A$49:$I$67,Main!$F$47,FALSE) -> Minimum COP @ 5°F:: 1.75 | BQ16: =VLOOKUP(C16,Main!$A$49:$I$67,Main!$G$47,FALSE) -> 15 | BR16: =VLOOKUP(C16,Main!$A$49:$I$67,Main!$H$47,FALSE) -> 3.1 | BS16: =VLOOKUP(C16,Main!$A$49:$I$67,Main!$I$47,FALSE) -> 16.1 | BT16: 716
A17: AK | B17: ADAK NAS | C17: 7 | D17: 9017 | E17: 752 | F17: 28.2 | G17: 50.4 | H17: 0.1892 | I17: 51.883N | J17: 22.6 | K17: 32.3 | L17: 33.3 | M17: 33.9 | N17: 36.4 | O17: 40.3 | P17: 45.2 | Q17: 49.1 | R17: 51.3 | S17: 47.9 | T17: 42.3 | U17: 37.6 | V17: 33.5 | W17: 548 | X17: 468 | Y17: 499 | Z17: 408 | AA17: 299 | AB17: 144 | AC17: 50 | AD17: 19 | AE17: 77 | AF17: 239 | AG17: 373 | AH17: 513 | AI17: 0 | AJ17: 0 | AK17: 0 | AL17: 0 | AM17: 0 | AN17: 1 | AO17: 21 | AP17: 58 | AQ17: 14 | AR17: 0 | AS17: 0 | AT17: 0 | AU17: 25.9 | AV17: 29.48 | AW17: 30.4 | AX17: 25.88 | AY17: 32.4 | AZ17: 36.5 | BA17: 42.98 | BB17: 41.36 | BC17: 34.5 | BD17: 30.6 | BE17: 30.6 | BF17: 27.1 | BG17: 0.7759103641 | BH17: 0.2166924634 | BI17: 78 | BJ17: 54 | BK17: 37 | BL17: 42 | BM17: =IF(OR(C17="OA",C17="OB",C17="1B",C17="1A",C17="2A",C17="2B",C17="3A",C17="3B",C17="3C"),TAN((LEFT(I17, 5)+VLOOKUP(C17,Main!$K$3:$L$21,2,FALSE))*PI()/180),IF(Checklist!$I$385="No",TAN((LEFT(I17, 5)+VLOOKUP(C17,Main!$K$3:$L$21,2,FALSE))*PI()/180),"NR")) -> NR | BN17: =VLOOKUP(C17,Main!$A$49:$I$67,Main!$B$47,FALSE) -> NR | BO17: =VLOOKUP(C17,Main!$A$49:$I$67,Main!$C$47,FALSE) -> NR | BP17: =VLOOKUP(C17,Main!$A$49:$I$67,Main!$E$47,FALSE)&":"&" "&VLOOKUP(C17,Main!$A$49:$I$67,Main!$F$47,FALSE) -> Minimum COP @ 5°F:: 1.75 | BQ17: =VLOOKUP(C17,Main!$A$49:$I$67,Main!$G$47,FALSE) -> 15 | BR17: =VLOOKUP(C17,Main!$A$49:$I$67,Main!$H$47,FALSE) -> 3.1 | BS17: =VLOOKUP(C17,Main!$A$49:$I$67,Main!$I$47,FALSE) -> 16.1 | BT17: 94
A18: AK | B18: AMBLER | C18: 8 | D18: 14478 | E18: 795 | F18: -42.05 | G18: 60.8 | H18: 0.1892 | I18: 67.100N | J18: -36.5 | K18: -3 | L18: 3.1 | M18: 5.4 | N18: 20.9 | O18: 39.2 | P18: 56.3 | Q18: 58.2 | R18: 52.2 | S18: 41.1 | T18: 21.9 | U18: 7 | V18: 1.1 | W18: 1642 | X18: 1312 | Y18: 1381 | Z18: 874 | AA18: 362 | AB18: 22 | AC18: 10 | AD18: 49 | AE18: 278 | AF18: 872 | AG18: 1291 | AH18: 1516 | AI18: 0 | AJ18: 0 | AK18: 0 | AL18: 0 | AM18: 27 | AN18: 211 | AO18: 265 | AP18: 116 | AQ18: 12 | AR18: 0 | AS18: 0 | AT18: 0 | AU18: -15.2 | AV18: -3.46 | AW18: 6.8 | AX18: 15.08 | AY18: 28 | AZ18: 35.24 | BA18: 43.7 | BB18: 36.32 | BC18: 29.1 | BD18: 2.5 | BE18: 2.5 | BF18: -0.8 | BG18: 0.8873239437 | BH18: 0.09414198888 | BI18: 107 | BJ18: 74 | BK18: 48 | BL18: 53 | BM18: =IF(OR(C18="OA",C18="OB",C18="1B",C18="1A",C18="2A",C18="2B",C18="3A",C18="3B",C18="3C"),TAN((LEFT(I18, 5)+VLOOKUP(C18,Main!$K$3:$L$21,2,FALSE))*PI()/180),IF(Checklist!$I$385="No",TAN((LEFT(I18, 5)+VLOOKUP(C18,Main!$K$3:$L$21,2,FALSE))*PI()/180),"NR")) -> NR | BN18: =VLOOKUP(C18,Main!$A$49:$I$67,Main!$B$47,FALSE) -> NR | BO18: =VLOOKUP(C18,Main!$A$49:$I$67,Main!$C$47,FALSE) -> NR | BP18: =VLOOKUP(C18,Main!$A$49:$I$67,Main!$E$47,FALSE)&":"&" "&VLOOKUP(C18,Main!$A$49:$I$67,Main!$F$47,FALSE) -> Minimum COP @ 5°F:: 1.75 | BQ18: =VLOOKUP(C18,Main!$A$49:$I$67,Main!$G$47,FALSE) -> 15 | BR18: =VLOOKUP(C18,Main!$A$49:$I$67,Main!$H$47,FALSE) -> 3.1 | BS18: =VLOOKUP(C18,Main!$A$49:$I$67,Main!$I$47,FALSE) -> 16.1 | BT18: 631
A19: AK | B19: ANAKTUVUK PASS | C19: 8 | D19: 17269 | E19: 756 | F19: -22.9 | G19: 56.1 | H19: 0.1892 | I19: 68.135N | J19: -33.4 | K19: -8.4 | L19: -6.2 | M19: -4.1 | N19: 10.5 | O19: 31.6 | P19: 50 | Q19: 52.7 | R19: 45.6 | S19: 34.2 | T19: 12.7 | U19: -0.7 | V19: -7 | W19: 1810 | X19: 1575 | Y19: 1678 | Z19: 1185 | AA19: 572 | AB19: 81 | AC19: 43 | AD19: 169 | AE19: 474 | AF19: 1156 | AG19: 1522 | AH19: 1767 | AI19: 0 | AJ19: 0 | AK19: 0 | AL19: 0 | AM19: 2 | AN19: 81 | AO19: 126 | AP19: 32 | AQ19: 1 | AR19: 0 | AS19: 0 | AT19: 0 | AU19: -14.8 | AV19: -11.56 | AW19: -4.9 | AX19: 7.88 | AY19: 27.9 | AZ19: 33.98 | BA19: 37.94 | BB19: 29.12 | BC19: 30 | BD19: -0.4 | BE19: -0.4 | BF19: -7.1 | BG19: 0.8952879581 | BH19: 0.09702009702 | BI19: 113 | BJ19: 85 | BK19: 57 | BL19: 62 | BM19: =IF(OR(C19="OA",C19="OB",C19="1B",C19="1A",C19="2A",C19="2B",C19="3A",C19="3B",C19="3C"),TAN((LEFT(I19, 5)+VLOOKUP(C19,Main!$K$3:$L$21,2,FALSE))*PI()/180),IF(Checklist!$I$385="No",TAN((LEFT(I19, 5)+VLOOKUP(C19,Main!$K$3:$L$21,2,FALSE))*PI()/180),"NR")) -> NR | BN19: =VLOOKUP(C19,Main!$A$49:$I$67,Main!$B$47,FALSE) -> NR | BO19: =VLOOKUP(C19,Main!$A$49:$I$67,Main!$C$47,FALSE) -> NR | BP19: =VLOOKUP(C19,Main!$A$49:$I$67,Main!$E$47,FALSE)&":"&" "&VLOOKUP(C19,Main!$A$49:$I$67,Main!$F$47,FALSE) -> Minimum COP @ 5°F:: 1.75 | BQ19: =VLOOKUP(C19,Main!$A$49:$I$67,Main!$G$47,FALSE) -> 15 | BR19: =VLOOKUP(C19,Main!$A$49:$I$67,Main!$H$47,FALSE) -> 3.1 | BS19: =VLOOKUP(C19,Main!$A$49:$I$67,Main!$I$47,FALSE) -> 16.1 | BT19: 242
A20: AK | B20: ANCHORAGE INTL AP | C20: 7 | D20: 10115 | E20: 894 | F20: 1.8 | G20: 58.8 | H20: 0.1892 | I20: 61.169N | J20: -4.5 | K20: 17 | L20: 20.8 | M20: 25.7 | N20: 37.3 | O20: 48 | P20: 55.6 | Q20: 59 | R20: 57.1 | S20: 49 | T20: 35.6 | U20: 22.8 | V20: 18.7 | W20: 1024 | X20: 819 | Y20: 754 | Z20: 383 | AA20: 102 | AB20: 3 | AC20: 0 | AD20: 1 | AE20: 76 | AF20: 448 | AG20: 815 | AH20: 970 | AI20: 0 | AJ20: 0 | AK20: 0 | AL20: 0 | AM20: 40 | AN20: 170 | AO20: 279 | AP20: 222 | AQ20: 46 | AR20: 1 | AS20: 0 | AT20: 0 | AU20: 10.9 | AV20: 11.48 | AW20: 13.5 | AX20: 25.88 | AY20: 36 | AZ20: 43.88 | BA20: 48.74 | BB20: 47.3 | BC20: 42.6 | BD20: 16.5 | BE20: 16.5 | BF20: 15.1 | BG20: 0.8431372549 | BH20: 0.135694315 | BI20: 88 | BJ20: 58 | BK20: 37 | BL20: 42 | BM20: =IF(OR(C20="OA",C20="OB",C20="1B",C20="1A",C20="2A",C20="2B",C20="3A",C20="3B",C20="3C"),TAN((LEFT(I20, 5)+VLOOKUP(C20,Main!$K$3:$L$21,2,FALSE))*PI()/180),IF(Checklist!$I$385="No",TAN((LEFT(I20, 5)+VLOOKUP(C20,Main!$K$3:$L$21,2,FALSE))*PI()/180),"NR")) -> NR | BN20: =VLOOKUP(C20,Main!$A$49:$I$67,Main!$B$47,FALSE) -> NR | BO20: =VLOOKUP(C20,Main!$A$49:$I$67,Main!$C$47,FALSE) -> NR | BP20: =VLOOKUP(C20,Main!$A$49:$I$67,Main!$E$47,FALSE)&":"&" "&VLOOKUP(C20,Main!$A$49:$I$67,Main!$F$47,FALSE) -> Minimum COP @ 5°F:: 1.75 | BQ20: =VLOOKUP(C20,Main!$A$49:$I$67,Main!$G$47,FALSE) -> 15 | BR20: =VLOOKUP(C20,Main!$A$49:$I$67,Main!$H$47,FALSE) -> 3.1 | BS20: =VLOOKUP(C20,Main!$A$49:$I$67,Main!$I$47,FALSE) -> 16.1 | BT20: 758
A21: AK | B21: ANCHORAGE MERRILL FIELD | C21: 7 | D21: 9961 | E21: 837 | F21: 10.05 | G21: 62.2 | H21: 0.1892 | I21: 61.217N | J21: -7 | K21: 15.9 | L21: 20.1 | M21: 25.8 | N21: 38.6 | O21: 49.7 | P21: 57.5 | Q21: 60.6 | R21: 58.2 | S21: 49.6 | T21: 35.8 | U21: 22.2 | V21: 17.7 | W21: 1056 | X21: 836 | Y21: 751 | Z21: 342 | AA21: 70 | AB21: 1 | AC21: 0 | AD21: 0 | AE21: 70 | AF21: 441 | AG21: 833 | AH21: 1002 | AI21: 0 | AJ21: 0 | AK21: 0 | AL21: 1 | AM21: 59 | AN21: 226 | AO21: 329 | AP21: 255 | AQ21: 59 | AR21: 2 | AS21: 0 | AT21: 0 | AU21: 23 | AV21: 15.26 | AW21: 20.7 | AX21: 26.24 | AY21: 32.2 | AZ21: 41.9 | BA21: 48.74 | BB21: 50.36 | BC21: 35.2 | BD21: 30.2 | BE21: 30.2 | BF21: 20.1 | BG21: 0.8464491363 | BH21: 0.1311711712 | BI21: 88 | BJ21: 57 | BK21: 36 | BL21: 41 | BM21: =IF(OR(C21="OA",C21="OB",C21="1B",C21="1A",C21="2A",C21="2B",C21="3A",C21="3B",C21="3C"),TAN((LEFT(I21, 5)+VLOOKUP(C21,Main!$K$3:$L$21,2,FALSE))*PI()/180),IF(Checklist!$I$385="No",TAN((LEFT(I21, 5)+VLOOKUP(C21,Main!$K$3:$L$21,2,FALSE))*PI()/180),"NR")) -> NR | BN21: =VLOOKUP(C21,Main!$A$49:$I$67,Main!$B$47,FALSE) -> NR | BO21: =VLOOKUP(C21,Main!$A$49:$I$67,Main!$C$47,FALSE) -> NR | BP21: =VLOOKUP(C21,Main!$A$49:$I$67,Main!$E$47,FALSE)&":"&" "&VLOOKUP(C21,Main!$A$49:$I$67,Main!$F$47,FALSE) -> Minimum COP @ 5°F:: 1.75 | BQ21: =VLOOKUP(C21,Main!$A$49:$I$67,Main!$G$47,FALSE) -> 15 | BR21: =VLOOKUP(C21,Main!$A$49:$I$67,Main!$H$47,FALSE) -> 3.1 | BS21: =VLOOKUP(C21,Main!$A$49:$I$67,Main!$I$47,FALSE) -> 16.1 | BT21: 931
A22: AK | B22: ANCHORAGE/ELMENDORF | C22: 7 | D22: 10324 | E22: 939 | F22: 6.85 | G22: 61.2 | H22: 0.1892 | I22: 61.253N | J22: -10.6 | K22: 14.6 | L22: 18.8 | M22: 25.3 | N22: 37.6 | O22: 48.9 | P22: 56.8 | Q22: 59.9 | R22: 57.6 | S22: 48.8 | T22: 34.5 | U22: 21.1 | V22: 15.9 | W22: 1098 | X22: 872 | Y22: 766 | Z22: 372 | AA22: 87 | AB22: 2 | AC22: 0 | AD22: 1 | AE22: 85 | AF22: 482 | AG22: 866 | AH22: 1057 | AI22: 0 | AJ22: 0 | AK22: 0 | AL22: 1 | AM22: 52 | AN22: 205 | AO22: 306 | AP22: 237 | AQ22: 48 | AR22: 1 | AS22: 0 | AT22: 0 | AU22: 24.1 | AV22: 27.86 | AW22: 20.3 | AX22: 27.68 | AY22: 32.4 | AZ22: 39.56 | BA22: 51.26 | BB22: 49.1 | BC22: 33.4 | BD22: 31.3 | BE22: 31.3 | BF22: 20.5 | BG22: 0.8501872659 | BH22: 0.1251633313 | BI22: 90 | BJ22: 59 | BK22: 37 | BL22: 42 | BM22: =IF(OR(C22="OA",C22="OB",C22="1B",C22="1A",C22="2A",C22="2B",C22="3A",C22="3B",C22="3C"),TAN((LEFT(I22, 5)+VLOOKUP(C22,Main!$K$3:$L$21,2,FALSE))*PI()/180),IF(Checklist!$I$385="No",TAN((LEFT(I22, 5)+VLOOKUP(C22,Main!$K$3:$L$21,2,FALSE))*PI()/180),"NR")) -> NR | BN22: =VLOOKUP(C22,Main!$A$49:$I$67,Main!$B$47,FALSE) -> NR | BO22: =VLOOKUP(C22,Main!$A$49:$I$67,Main!$C$47,FALSE) -> NR | BP22: =VLOOKUP(C22,Main!$A$49:$I$67,Main!$E$47,FALSE)&":"&" "&VLOOKUP(C22,Main!$A$49:$I$67,Main!$F$47,FALSE) -> Minimum COP @ 5°F:: 1.75 | BQ22: =VLOOKUP(C22,Main!$A$49:$I$67,Main!$G$47,FALSE) -> 15 | BR22: =VLOOKUP(C22,Main!$A$49:$I$67,Main!$H$47,FALSE) -> 3.1 | BS22: =VLOOKUP(C22,Main!$A$49:$I$67,Main!$I$47,FALSE) -> 16.1 | BT22: 850
A23: AK | B23: ANIAK AIRPORT | C23: 7 | D23: 12448 | E23: 930 | F23: -12.85 | G23: 57.2 | H23: 0.1892 | I23: 61.582N | J23: -30.2 | K23: 5 | L23: 13.5 | M23: 13.7 | N23: 30.4 | O23: 44.7 | P23: 53.9 | Q23: 56.6 | R23: 53.3 | S23: 45.2 | T23: 30.5 | U23: 15.3 | V23: 7.8 | W23: 1396 | X23: 1022 | Y23: 1124 | Z23: 587 | AA23: 195 | AB23: 17 | AC23: 4 | AD23: 18 | AE23: 164 | AF23: 607 | AG23: 1042 | AH23: 1308 | AI23: 0 | AJ23: 0 | AK23: 0 | AL23: 0 | AM23: 30 | AN23: 133 | AO23: 210 | AP23: 121 | AQ23: 19 | AR23: 1 | AS23: 0 | AT23: 0 | AU23: 0.9 | AV23: 20.3 | AW23: 13.6 | AX23: 18.5 | AY23: 28 | AZ23: 35.96 | BA23: 43.16 | BB23: 41 | BC23: 28.2 | BD23: 20.5 | BE23: 20.5 | BF23: 9.1 | BG23: 0.873015873 | BH23: 0.100181648 | BI23: 100 | BJ23: 67 | BK23: 44 | BL23: 49 | BM23: =IF(OR(C23="OA",C23="OB",C23="1B",C23="1A",C23="2A",C23="2B",C23="3A",C23="3B",C23="3C"),TAN((LEFT(I23, 5)+VLOOKUP(C23,Main!$K$3:$L$21,2,FALSE))*PI()/180),IF(Checklist!$I$385="No",TAN((LEFT(I23, 5)+VLOOKUP(C23,Main!$K$3:$L$21,2,FALSE))*PI()/180),"NR")) -> NR | BN23: =VLOOKUP(C23,Main!$A$49:$I$67,Main!$B$47,FALSE) -> NR | BO23: =VLOOKUP(C23,Main!$A$49:$I$67,Main!$C$47,FALSE) -> NR | BP23: =VLOOKUP(C23,Main!$A$49:$I$67,Main!$E$47,FALSE)&":"&" "&VLOOKUP(C23,Main!$A$49:$I$67,Main!$F$47,FALSE) -> Minimum COP @ 5°F:: 1.75 | BQ23: =VLOOKUP(C23,Main!$A$49:$I$67,Main!$G$47,FALSE) -> 15 | BR23: =VLOOKUP(C23,Main!$A$49:$I$67,Main!$H$47,FALSE) -> 3.1 | BS23: =VLOOKUP(C23,Main!$A$49:$I$67,Main!$I$47,FALSE) -> 16.1 | BT23: 514
A24: AK | B24: ANNETTE ISLAND AP | C24: 5C | D24: 6788 | E24: 926 | F24: 30.65 | G24: 65.8 | H24: 0.1892 | I24: 55.039N | J24: 21.6 | K24: 36.9 | L24: 37.4 | M24: 38.6 | N24: 43.7 | O24: 49.8 | P24: 55.2 | Q24: 58.1 | R24: 58.8 | S24: 53.8 | T24: 46.9 | U24: 40.3 | V24: 37.2 | W24: 407 | X24: 353 | Y24: 354 | Z24: 196 | AA24: 61 | AB24: 2 | AC24: 0 | AD24: 0 | AE24: 9 | AF24: 111 | AG24: 293 | AH24: 397 | AI24: 0 | AJ24: 0 | AK24: 0 | AL24: 8 | AM24: 56 | AN24: 158 | AO24: 252 | AP24: 273 | AQ24: 123 | AR24: 16 | AS24: 2 | AT24: 0 | AU24: 30.7 | AV24: 32.9 | AW24: 29.1 | AX24: 36.32 | AY24: 41.5 | AZ24: 46.4 | BA24: 50.54 | BB24: 51.62 | BC24: 49.8 | BD24: 36.7 | BE24: 36.7 | BF24: 32.7 | BG24: 0.7427652733 | BH24: 0.2120223672 | BI24: 73 | BJ24: 45 | BK24: 27 | BL24: 32 | BM24: =IF(OR(C24="OA",C24="OB",C24="1B",C24="1A",C24="2A",C24="2B",C24="3A",C24="3B",C24="3C"),TAN((LEFT(I24, 5)+VLOOKUP(C24,Main!$K$3:$L$21,2,FALSE))*PI()/180),IF(Checklist!$I$385="No",TAN((LEFT(I24, 5)+VLOOKUP(C24,Main!$K$3:$L$21,2,FALSE))*PI()/180),"NR")) -> NR | BN24: =VLOOKUP(C24,Main!$A$49:$I$67,Main!$B$47,FALSE) -> NR | BO24: =VLOOKUP(C24,Main!$A$49:$I$67,Main!$C$47,FALSE) -> NR | BP24: =VLOOKUP(C24,Main!$A$49:$I$67,Main!$E$47,FALSE)&":"&" "&VLOOKUP(C24,Main!$A$49:$I$67,Main!$F$47,FALSE) -> Minimum HSPF:: 9.6 | BQ24: =VLOOKUP(C24,Main!$A$49:$I$67,Main!$G$47,FALSE) -> 18 | BR24: =VLOOKUP(C24,Main!$A$49:$I$67,Main!$H$47,FALSE) -> 3.1 | BS24: =VLOOKUP(C24,Main!$A$49:$I$67,Main!$I$47,FALSE) -> 16.1 | BT24: 888
A25: AK | B25: ANVIK | C25: 8 | D25: 12836 | E25: 941 | F25: -5 | G25: 68 | H25: 0.1892 | I25: 62.650N | J25: -20.2 | K25: 4.2 | L25: 11.1 | M25: 13 | N25: 28.8 | O25: 44.2 | P25: 54.5 | Q25: 56.5 | R25: 52.4 | S25: 45 | T25: 29.2 | U25: 12.9 | V25: 5.4 | W25: 1419 | X25: 1090 | Y25: 1148 | Z25: 635 | AA25: 223 | AB25: 21 | AC25: 8 | AD25: 28 | AE25: 165 | AF25: 646 | AG25: 1112 | AH25: 1381 | AI25: 0 | AJ25: 0 | AK25: 0 | AL25: 0 | AM25: 41 | AN25: 156 | AO25: 209 | AP25: 104 | AQ25: 16 | AR25: 0 | AS25: 0 | AT25: 0 | AU25: -0.6 | AV25: 12.2 | AW25: 9.1 | AX25: 21.56 | AY25: 27.5 | AZ25: 30.74 | BA25: 37.04 | BB25: 33.44 | BC25: 26.6 | BD25: 16.7 | BE25: 16.7 | BF25: 10.4 | BG25: 0.8746081505 | BH25: 0.1115401115 | BI25: 99 | BJ25: 68 | BK25: 42 | BL25: 47 | BM25: =IF(OR(C25="OA",C25="OB",C25="1B",C25="1A",C25="2A",C25="2B",C25="3A",C25="3B",C25="3C"),TAN((LEFT(I25, 5)+VLOOKUP(C25,Main!$K$3:$L$21,2,FALSE))*PI()/180),IF(Checklist!$I$385="No",TAN((LEFT(I25, 5)+VLOOKUP(C25,Main!$K$3:$L$21,2,FALSE))*PI()/180),"NR")) -> NR | BN25: =VLOOKUP(C25,Main!$A$49:$I$67,Main!$B$47,FALSE) -> NR | BO25: =VLOOKUP(C25,Main!$A$49:$I$67,Main!$C$47,FALSE) -> NR | BP25: =VLOOKUP(C25,Main!$A$49:$I$67,Main!$E$47,FALSE)&":"&" "&VLOOKUP(C25,Main!$A$49:$I$67,Main!$F$47,FALSE) -> Minimum COP @ 5°F:: 1.75 | BQ25: =VLOOKUP(C25,Main!$A$49:$I$67,Main!$G$47,FALSE) -> 15 | BR25: =VLOOKUP(C25,Main!$A$49:$I$67,Main!$H$47,FALSE) -> 3.1 | BS25: =VLOOKUP(C25,Main!$A$49:$I$67,Main!$I$47,FALSE) -> 16.1 | BT25: 526
A26: AK | B26: BARROW W POST-W ROGERS ARPT [NSA - ARM] | C26: 8 | D26: 19024 | E26: 712 | F26: -24.7 | G26: 46.8 | H26: 0.1892 | I26: 71.283N | J26: -34.3 | K26: -13.2 | L26: -13.7 | M26: -11.9 | N26: 3.5 | O26: 22.2 | P26: 35.8 | Q26: 41.1 | R26: 39.6 | S26: 33.3 | T26: 19.9 | U26: 3.7 | V26: -7.5 | W26: 1960 | X26: 1785 | Y26: 1919 | Z26: 1396 | AA26: 861 | AB26: 428 | AC26: 284 | AD26: 329 | AE26: 502 | AF26: 934 | AG26: 1388 | AH26: 1781 | AI26: 0 | AJ26: 0 | AK26: 0 | AL26: 0 | AM26: 0 | AN26: 2 | AO26: 9 | AP26: 7 | AQ26: 0 | AR26: 0 | AS26: 0 | AT26: 0 | AU26: -15.7 | AV26: -20.02 | AW26: -15.3 | AX26: -6.52 | AY26: 17.4 | AZ26: 30.38 | BA26: 35.42 | BB26: 35.42 | BC26: 27.9 | BD26: -9.9 | BE26: -9.9 | BF26: -13.7 | BG26: 0.9020807834 | BH26: 0.09616654778 | BI26: 118 | BJ26: 91 | BK26: 63 | BL26: 68 | BM26: =IF(OR(C26="OA",C26="OB",C26="1B",C26="1A",C26="2A",C26="2B",C26="3A",C26="3B",C26="3C"),TAN((LEFT(I26, 5)+VLOOKUP(C26,Main!$K$3:$L$21,2,FALSE))*PI()/180),IF(Checklist!$I$385="No",TAN((LEFT(I26, 5)+VLOOKUP(C26,Main!$K$3:$L$21,2,FALSE))*PI()/180),"NR")) -> NR | BN26: =VLOOKUP(C26,Main!$A$49:$I$67,Main!$B$47,FALSE) -> NR | BO26: =VLOOKUP(C26,Main!$A$49:$I$67,Main!$C$47,FALSE) -> NR | BP26: =VLOOKUP(C26,Main!$A$49:$I$67,Main!$E$47,FALSE)&":"&" "&VLOOKUP(C26,Main!$A$49:$I$67,Main!$F$47,FALSE) -> Minimum COP @ 5°F:: 1.75 | BQ26: =VLOOKUP(C26,Main!$A$49:$I$67,Main!$G$47,FALSE) -> 15 | BR26: =VLOOKUP(C26,Main!$A$49:$I$67,Main!$H$47,FALSE) -> 3.1 | BS26: =VLOOKUP(C26,Main!$A$49:$I$67,Main!$I$47,FALSE) -> 16.1 | BT26: 18
A27: AK | B27: BETHEL AIRPORT | C27: 7 | D27: 12543 | E27: 871 | F27: -7 | G27: 57.9 | H27: 0.1892 | I27: 60.785N | J27: -22.6 | K27: 6.1 | L27: 11.5 | M27: 13.4 | N27: 28 | O27: 42.1 | P27: 52.6 | Q27: 55.8 | R27: 53.6 | S27: 45.7 | T27: 30.9 | U27: 17.6 | V27: 9.1 | W27: 1361 | X27: 1077 | Y27: 1133 | Z27: 660 | AA27: 262 | AB27: 28 | AC27: 7 | AD27: 13 | AE27: 149 | AF27: 591 | AG27: 972 | AH27: 1266 | AI27: 0 | AJ27: 0 | AK27: 0 | AL27: 0 | AM27: 19 | AN27: 106 | AO27: 186 | AP27: 126 | AQ27: 20 | AR27: 0 | AS27: 0 | AT27: 0 | AU27: 10.6 | AV27: 7.34 | AW27: 9.9 | AX27: 24.08 | AY27: 33.8 | AZ27: 44.24 | BA27: 48.74 | BB27: 49.1 | BC27: 39.2 | BD27: 13.1 | BE27: 13.1 | BF27: 8.4 | BG27: 0.8707592892 | BH27: 0.1085854066 | BI27: 99 | BJ27: 67 | BK27: 44 | BL27: 49 | BM27: =IF(OR(C27="OA",C27="OB",C27="1B",C27="1A",C27="2A",C27="2B",C27="3A",C27="3B",C27="3C"),TAN((LEFT(I27, 5)+VLOOKUP(C27,Main!$K$3:$L$21,2,FALSE))*PI()/180),IF(Checklist!$I$385="No",TAN((LEFT(I27, 5)+VLOOKUP(C27,Main!$K$3:$L$21,2,FALSE))*PI()/180),"NR")) -> NR | BN27: =VLOOKUP(C27,Main!$A$49:$I$67,Main!$B$47,FALSE) -> NR | BO27: =VLOOKUP(C27,Main!$A$49:$I$67,Main!$C$47,FALSE) -> NR | BP27: =VLOOKUP(C27,Main!$A$49:$I$67,Main!$E$47,FALSE)&":"&" "&VLOOKUP(C27,Main!$A$49:$I$67,Main!$F$47,FALSE) -> Minimum COP @ 5°F:: 1.75 | BQ27: =VLOOKUP(C27,Main!$A$49:$I$67,Main!$G$47,FALSE) -> 15 | BR27: =VLOOKUP(C27,Main!$A$49:$I$67,Main!$H$47,FALSE) -> 3.1 | BS27: =VLOOKUP(C27,Main!$A$49:$I$67,Main!$I$47,FALSE) -> 16.1 | BT27: 457
A28: AK | B28: BETTLES FIELD | C28: 8 | D28: 15082 | E28: 891 | F28: -28.2 | G28: 62.6 | H28: 0.1892 | I28: 66.914N | J28: -44.9 | K28: -11.2 | L28: -4.4 | M28: 3.1 | N28: 24.4 | O28: 45 | P28: 58.4 | Q28: 59.4 | R28: 52.9 | S28: 41.6 | T28: 21 | U28: -0.2 | V28: -6.6 | W28: 1898 | X28: 1523 | Y28: 1455 | Z28: 768 | AA28: 214 | AB28: 7 | AC28: 5 | AD28: 39 | AE28: 264 | AF28: 900 | AG28: 1506 | AH28: 1754 | AI28: 0 | AJ28: 0 | AK28: 0 | AL28: 0 | AM28: 58 | AN28: 260 | AO28: 296 | AP28: 130 | AQ28: 12 | AR28: 0 | AS28: 0 | AT28: 0 | AU28: -14.3 | AV28: -14.8 | AW28: -4.2 | AX28: 12.92 | AY28: 30.4 | AZ28: 40.28 | BA28: 47.48 | BB28: 46.04 | BC28: 30.9 | BD28: -1.3 | BE28: -1.3 | BF28: -15.9 | BG28: 0.898989899 | BH28: 0.08713762478 | BI28: 111 | BJ28: 77 | BK28: 49 | BL28: 54 | BM28: =IF(OR(C28="OA",C28="OB",C28="1B",C28="1A",C28="2A",C28="2B",C28="3A",C28="3B",C28="3C"),TAN((LEFT(I28, 5)+VLOOKUP(C28,Main!$K$3:$L$21,2,FALSE))*PI()/180),IF(Checklist!$I$385="No",TAN((LEFT(I28, 5)+VLOOKUP(C28,Main!$K$3:$L$21,2,FALSE))*PI()/180),"NR")) -> NR | BN28: =VLOOKUP(C28,Main!$A$49:$I$67,Main!$B$47,FALSE) -> NR | BO28: =VLOOKUP(C28,Main!$A$49:$I$67,Main!$C$47,FALSE) -> NR | BP28: =VLOOKUP(C28,Main!$A$49:$I$67,Main!$E$47,FALSE)&":"&" "&VLOOKUP(C28,Main!$A$49:$I$67,Main!$F$47,FALSE) -> Minimum COP @ 5°F:: 1.75 | BQ28: =VLOOKUP(C28,Main!$A$49:$I$67,Main!$G$47,FALSE) -> 15 | BR28: =VLOOKUP(C28,Main!$A$49:$I$67,Main!$H$47,FALSE) -> 3.1 | BS28: =VLOOKUP(C28,Main!$A$49:$I$67,Main!$I$47,FALSE) -> 16.1 | BT28: 756
A29: AK | B29: BIG DELTA ALLEN AAF | C29: 8 | D29: 12923 | E29: 896 | F29: -11.95 | G29: 70.7 | H29: 0.1892 | I29: 63.994N | J29: -32 | K29: -0.4 | L29: 6.3 | M29: 14.4 | N29: 33.3 | O29: 47.8 | P29: 58.1 | Q29: 60.1 | R29: 55.6 | S29: 44.5 | T29: 26.1 | U29: 7 | V29: 2 | W29: 1561 | X29: 1225 | Y29: 1103 | Z29: 503 | AA29: 140 | AB29: 6 | AC29: 3 | AD29: 18 | AE29: 200 | AF29: 744 | AG29: 1290 | AH29: 1487 | AI29: 0 | AJ29: 0 | AK29: 0 | AL29: 1 | AM29: 70 | AN29: 247 | AO29: 316 | AP29: 190 | AQ29: 36 | AR29: 2 | AS29: 0 | AT29: 0 | AU29: -3.3 | AV29: -3.46 | AW29: -0.4 | AX29: 16.34 | AY29: 35.4 | AZ29: 46.58 | BA29: 44.96 | BB29: 37.94 | BC29: 34.3 | BD29: -4.7 | BE29: -4.7 | BF29: -2.4 | BG29: 0.8830409357 | BH29: 0.09837837838 | BI29: 102 | BJ29: 69 | BK29: 42 | BL29: 47 | BM29: =IF(OR(C29="OA",C29="OB",C29="1B",C29="1A",C29="2A",C29="2B",C29="3A",C29="3B",C29="3C"),TAN((LEFT(I29, 5)+VLOOKUP(C29,Main!$K$3:$L$21,2,FALSE))*PI()/180),IF(Checklist!$I$385="No",TAN((LEFT(I29, 5)+VLOOKUP(C29,Main!$K$3:$L$21,2,FALSE))*PI()/180),"NR")) -> NR | BN29: =VLOOKUP(C29,Main!$A$49:$I$67,Main!$B$47,FALSE) -> NR | BO29: =VLOOKUP(C29,Main!$A$49:$I$67,Main!$C$47,FALSE) -> NR | BP29: =VLOOKUP(C29,Main!$A$49:$I$67,Main!$E$47,FALSE)&":"&" "&VLOOKUP(C29,Main!$A$49:$I$67,Main!$F$47,FALSE) -> Minimum COP @ 5°F:: 1.75 | BQ29: =VLOOKUP(C29,Main!$A$49:$I$67,Main!$G$47,FALSE) -> 15 | BR29: =VLOOKUP(C29,Main!$A$49:$I$67,Main!$H$47,FALSE) -> 3.1 | BS29: =VLOOKUP(C29,Main!$A$49:$I$67,Main!$I$47,FALSE) -> 16.1 | BT29: 862
A30: AK | B30: BIG RIVER LAKE | C30: 7 | D30: 9806 | E30: 882 | F30: 6.25 | G30: 58.6 | H30: 0.1892 | I30: 60.550N | J30: 4.7 | K30: 22.5 | L30: 25.6 | M30: 26.5 | N30: 35.8 | O30: 45.2 | P30: 49.7 | Q30: 53.9 | R30: 54.1 | S30: 49.2 | T30: 40.1 | U30: 28.7 | V30: 25.4 | W30: 852 | X30: 683 | Y30: 728 | Z30: 426 | AA30: 161 | AB30: 41 | AC30: 3 | AD30: 1 | AE30: 55 | AF30: 309 | AG30: 639 | AH30: 762 | AI30: 0 | AJ30: 0 | AK30: 0 | AL30: 0 | AM30: 13 | AN30: 32 | AO30: 125 | AP30: 128 | AQ30: 30 | AR30: 1 | AS30: 0 | AT30: 0 | AU30: 18 | AV30: 13.1 | AW30: 21.6 | AX30: 31.82 | AY30: 33.3 | AZ30: 46.58 | BA30: 50.54 | BB30: 50.18 | BC30: 35.6 | BD30: 14.5 | BE30: 14.5 | BF30: 20.7 | BG30: 0.8241758242 | BH30: 0.1554160796 | BI30: 85 | BJ30: 57 | BK30: 37 | BL30: 42 | BM30: =IF(OR(C30="OA",C30="OB",C30="1B",C30="1A",C30="2A",C30="2B",C30="3A",C30="3B",C30="3C"),TAN((LEFT(I30, 5)+VLOOKUP(C30,Main!$K$3:$L$21,2,FALSE))*PI()/180),IF(Checklist!$I$385="No",TAN((LEFT(I30, 5)+VLOOKUP(C30,Main!$K$3:$L$21,2,FALSE))*PI()/180),"NR")) -> NR | BN30: =VLOOKUP(C30,Main!$A$49:$I$67,Main!$B$47,FALSE) -> NR | BO30: =VLOOKUP(C30,Main!$A$49:$I$67,Main!$C$47,FALSE) -> NR | BP30: =VLOOKUP(C30,Main!$A$49:$I$67,Main!$E$47,FALSE)&":"&" "&VLOOKUP(C30,Main!$A$49:$I$67,Main!$F$47,FALSE) -> Minimum COP @ 5°F:: 1.75 | BQ30: =VLOOKUP(C30,Main!$A$49:$I$67,Main!$G$47,FALSE) -> 15 | BR30: =VLOOKUP(C30,Main!$A$49:$I$67,Main!$H$47,FALSE) -> 3.1 | BS30: =VLOOKUP(C30,Main!$A$49:$I$67,Main!$I$47,FALSE) -> 16.1 | BT30: 329
A31: AK | B31: BIRCHWOOD | C31: 7 | D31: 10552 | E31: 1008 | F31: 2.75 | G31: 60.3 | H31: 0.1892 | I31: 61.416N | J31: -8.5 | K31: 14.5 | L31: 19.7 | M31: 23.9 | N31: 37 | O31: 47.6 | P31: 55.5 | Q31: 58.4 | R31: 55.9 | S31: 48.1 | T31: 34.6 | U31: 21.1 | V31: 15.9 | W31: 1100 | X31: 850 | Y31: 810 | Z31: 389 | AA31: 109 | AB31: 2 | AC31: 0 | AD31: 2 | AE31: 87 | AF31: 479 | AG31: 866 | AH31: 1058 | AI31: 0 | AJ31: 0 | AK31: 0 | AL31: 1 | AM31: 33 | AN31: 166 | AO31: 260 | AP31: 186 | AQ31: 30 | AR31: 1 | AS31: 0 | AT31: 0 | AU31: 11.1 | AV31: 24.98 | AW31: 21.2 | AX31: 28.04 | AY31: 32.4 | AZ31: 39.38 | BA31: 47.66 | BB31: 41 | BC31: 34.3 | BD31: 27.9 | BE31: 27.9 | BF31: 19.8 | BG31: 0.8504672897 | BH31: 0.1285991874 | BI31: 90 | BJ31: 60 | BK31: 38 | BL31: 43 | BM31: =IF(OR(C31="OA",C31="OB",C31="1B",C31="1A",C31="2A",C31="2B",C31="3A",C31="3B",C31="3C"),TAN((LEFT(I31, 5)+VLOOKUP(C31,Main!$K$3:$L$21,2,FALSE))*PI()/180),IF(Checklist!$I$385="No",TAN((LEFT(I31, 5)+VLOOKUP(C31,Main!$K$3:$L$21,2,FALSE))*PI()/180),"NR")) -> NR | BN31: =VLOOKUP(C31,Main!$A$49:$I$67,Main!$B$47,FALSE) -> NR | BO31: =VLOOKUP(C31,Main!$A$49:$I$67,Main!$C$47,FALSE) -> NR | BP31: =VLOOKUP(C31,Main!$A$49:$I$67,Main!$E$47,FALSE)&":"&" "&VLOOKUP(C31,Main!$A$49:$I$67,Main!$F$47,FALSE) -> Minimum COP @ 5°F:: 1.75 | BQ31: =VLOOKUP(C31,Main!$A$49:$I$67,Main!$G$47,FALSE) -> 15 | BR31: =VLOOKUP(C31,Main!$A$49:$I$67,Main!$H$47,FALSE) -> 3.1 | BS31: =VLOOKUP(C31,Main!$A$49:$I$67,Main!$I$47,FALSE) -> 16.1 | BT31: 677
A32: AK | B32: COLD BAY ARPT | C32: 7 | D32: 9543 | E32: 741 | F32: 21.05 | G32: 49.5 | H32: 0.1892 | I32: 55.221N | J32: 11.7 | K32: 28.4 | L32: 29.3 | M32: 29.4 | N32: 34.4 | O32: 40.4 | P32: 46.4 | Q32: 50.8 | R32: 52.1 | S32: 48 | T32: 40.7 | U32: 34.7 | V32: 30.9 | W32: 669 | X32: 580 | Y32: 638 | Z32: 469 | AA32: 298 | AB32: 113 | AC32: 23 | AD32: 12 | AE32: 78 | AF32: 288 | AG32: 458 | AH32: 592 | AI32: 0 | AJ32: 0 | AK32: 0 | AL32: 0 | AM32: 1 | AN32: 5 | AO32: 49 | AP32: 76 | AQ32: 17 | AR32: 1 | AS32: 0 | AT32: 0 | AU32: 26.6 | AV32: 25.52 | AW32: 25.7 | AX32: 27.86 | AY32: 33.8 | AZ32: 41.72 | BA32: 45.5 | BB32: 46.4 | BC32: 44.1 | BD32: 30.4 | BE32: 30.4 | BF32: 28.4 | BG32: 0.797979798 | BH32: 0.1747395708 | BI32: 82 | BJ32: 56 | BK32: 38 | BL32: 43 | BM32: =IF(OR(C32="OA",C32="OB",C32="1B",C32="1A",C32="2A",C32="2B",C32="3A",C32="3B",C32="3C"),TAN((LEFT(I32, 5)+VLOOKUP(C32,Main!$K$3:$L$21,2,FALSE))*PI()/180),IF(Checklist!$I$385="No",TAN((LEFT(I32, 5)+VLOOKUP(C32,Main!$K$3:$L$21,2,FALSE))*PI()/180),"NR")) -> NR | BN32: =VLOOKUP(C32,Main!$A$49:$I$67,Main!$B$47,FALSE) -> NR | BO32: =VLOOKUP(C32,Main!$A$49:$I$67,Main!$C$47,FALSE) -> NR | BP32: =VLOOKUP(C32,Main!$A$49:$I$67,Main!$E$47,FALSE)&":"&" "&VLOOKUP(C32,Main!$A$49:$I$67,Main!$F$47,FALSE) -> Minimum COP @ 5°F:: 1.75 | BQ32: =VLOOKUP(C32,Main!$A$49:$I$67,Main!$G$47,FALSE) -> 15 | BR32: =VLOOKUP(C32,Main!$A$49:$I$67,Main!$H$47,FALSE) -> 3.1 | BS32: =VLOOKUP(C32,Main!$A$49:$I$67,Main!$I$47,FALSE) -> 16.1 | BT32: 149
A33: AK | B33: CORDOVA | C33: 7 | D33: 9182 | E33: 765 | F33: 5.45 | G33: 54.1 | H33: 0.1892 | I33: 60.49N | J33: 1.9 | K33: 26 | L33: 28.6 | M33: 30.9 | N33: 38.2 | O33: 45.5 | P33: 51.4 | Q33: 54.5 | R33: 54 | S33: 48.3 | T33: 40.2 | U33: 31.2 | V33: 28.6 | W33: 743 | X33: 600 | Y33: 593 | Z33: 354 | AA33: 151 | AB33: 24 | AC33: 2 | AD33: 4 | AE33: 76 | AF33: 307 | AG33: 563 | AH33: 662 | AI33: 0 | AJ33: 0 | AK33: 0 | AL33: 1 | AM33: 12 | AN33: 66 | AO33: 140 | AP33: 127 | AQ33: 24 | AR33: 2 | AS33: 0 | AT33: 0 | AU33: 23.5 | AV33: 26.78 | AW33: 27.1 | AX33: 30.38 | AY33: 35.4 | AZ33: 44.42 | BA33: 48.56 | BB33: 46.04 | BC33: 39.6 | BD33: 24.1 | BE33: 24.1 | BF33: 19.8 | BG33: 0.8095238095 | BH33: 0.1488326451 | BI33: 84 | BJ33: 54 | BK33: 36 | BL33: 41 | BM33: =IF(OR(C33="OA",C33="OB",C33="1B",C33="1A",C33="2A",C33="2B",C33="3A",C33="3B",C33="3C"),TAN((LEFT(I33, 5)+VLOOKUP(C33,Main!$K$3:$L$21,2,FALSE))*PI()/180),IF(Checklist!$I$385="No",TAN((LEFT(I33, 5)+VLOOKUP(C33,Main!$K$3:$L$21,2,FALSE))*PI()/180),"NR")) -> NR | BN33: =VLOOKUP(C33,Main!$A$49:$I$67,Main!$B$47,FALSE) -> NR | BO33: =VLOOKUP(C33,Main!$A$49:$I$67,Main!$C$47,FALSE) -> NR | BP33: =VLOOKUP(C33,Main!$A$49:$I$67,Main!$E$47,FALSE)&":"&" "&VLOOKUP(C33,Main!$A$49:$I$67,Main!$F$47,FALSE) -> Minimum COP @ 5°F:: 1.75 | BQ33: =VLOOKUP(C33,Main!$A$49:$I$67,Main!$G$47,FALSE) -> 15 | BR33: =VLOOKUP(C33,Main!$A$49:$I$67,Main!$H$47,FALSE) -> 3.1 | BS33: =VLOOKUP(C33,Main!$A$49:$I$67,Main!$I$47,FALSE) -> 16.1 | BT33: 372
A34: AK | B34: DEADHORSE | C34: 8 | D34: 19020 | E34: 625 | F34: -39.3 | G34: 57.2 | H34: 0.1892 | I34: 70.192N | J34: -41.3 | K34: -15.9 | L34: -16.6 | M34: -14.8 | N34: 3.2 | O34: 23.4 | P34: 40 | Q34: 47.3 | R34: 43.8 | S34: 34.5 | T34: 17.8 | U34: 0.1 | V34: -10 | W34: 2043 | X34: 1866 | Y34: 2009 | Z34: 1404 | AA34: 824 | AB34: 318 | AC34: 141 | AD34: 225 | AE34: 467 | AF34: 999 | AG34: 1497 | AH34: 1861 | AI34: 0 | AJ34: 0 | AK34: 0 | AL34: 0 | AM34: 0 | AN34: 18 | AO34: 56 | AP34: 33 | AQ34: 1 | AR34: 0 | AS34: 0 | AT34: 0 | AU34: -15.7 | AV34: -27.76 | AW34: -23.1 | AX34: 5.18 | AY34: 25.3 | AZ34: 35.6 | BA34: 36.86 | BB34: 35.24 | BC34: 32 | BD34: 5.9 | BE34: 5.9 | BF34: -7.4 | BG34: 0.9054373522 | BH34: 0.09000766549 | BI34: 120 | BJ34: 91 | BK34: 61 | BL34: 66 | BM34: =IF(OR(C34="OA",C34="OB",C34="1B",C34="1A",C34="2A",C34="2B",C34="3A",C34="3B",C34="3C"),TAN((LEFT(I34, 5)+VLOOKUP(C34,Main!$K$3:$L$21,2,FALSE))*PI()/180),IF(Checklist!$I$385="No",TAN((LEFT(I34, 5)+VLOOKUP(C34,Main!$K$3:$L$21,2,FALSE))*PI()/180),"NR")) -> NR | BN34: =VLOOKUP(C34,Main!$A$49:$I$67,Main!$B$47,FALSE) -> NR | BO34: =VLOOKUP(C34,Main!$A$49:$I$67,Main!$C$47,FALSE) -> NR | BP34: =VLOOKUP(C34,Main!$A$49:$I$67,Main!$E$47,FALSE)&":"&" "&VLOOKUP(C34,Main!$A$49:$I$67,Main!$F$47,FALSE) -> Minimum COP @ 5°F:: 1.75 | BQ34: =VLOOKUP(C34,Main!$A$49:$I$67,Main!$G$47,FALSE) -> 15 | BR34: =VLOOKUP(C34,Main!$A$49:$I$67,Main!$H$47,FALSE) -> 3.1 | BS34: =VLOOKUP(C34,Main!$A$49:$I$67,Main!$I$47,FALSE) -> 16.1 | BT34: 108
A35: AK | B35: DILLINGHAM (AMOS) | C35: 7 | D35: 11185 | E35: 799 | F35: -2.9 | G35: 60.8 | H35: 0.1892 | I35: 59.050N | J35: -14.7 | K35: 14.5 | L35: 19.1 | M35: 21.3 | N35: 32.4 | O35: 43.2 | P35: 50.8 | Q35: 54.7 | R35: 53.8 | S35: 47.1 | T35: 34.8 | U35: 22.4 | V35: 17.2 | W35: 1101 | X35: 864 | Y35: 891 | Z35: 529 | AA35: 227 | AB35: 40 | AC35: 7 | AD35: 11 | AE35: 109 | AF35: 470 | AG35: 827 | AH35: 1016 | AI35: 0 | AJ35: 0 | AK35: 0 | AL35: 0 | AM35: 16 | AN35: 63 | AO35: 153 | AP35: 129 | AQ35: 22 | AR35: 0 | AS35: 0 | AT35: 0 | AU35: 16.3 | AV35: 28.94 | AW35: 23.9 | AX35: 26.96 | AY35: 29.5 | AZ35: 39.2 | BA35: 45.86 | BB35: 47.66 | BC35: 32.4 | BD35: 18.9 | BE35: 18.9 | BF35: 14 | BG35: 0.8504672897 | BH35: 0.1189581359 | BI35: 93 | BJ35: 62 | BK35: 40 | BL35: 45 | BM35: =IF(OR(C35="OA",C35="OB",C35="1B",C35="1A",C35="2A",C35="2B",C35="3A",C35="3B",C35="3C"),TAN((LEFT(I35, 5)+VLOOKUP(C35,Main!$K$3:$L$21,2,FALSE))*PI()/180),IF(Checklist!$I$385="No",TAN((LEFT(I35, 5)+VLOOKUP(C35,Main!$K$3:$L$21,2,FALSE))*PI()/180),"NR")) -> NR | BN35: =VLOOKUP(C35,Main!$A$49:$I$67,Main!$B$47,FALSE) -> NR | BO35: =VLOOKUP(C35,Main!$A$49:$I$67,Main!$C$47,FALSE) -> NR | BP35: =VLOOKUP(C35,Main!$A$49:$I$67,Main!$E$47,FALSE)&":"&" "&VLOOKUP(C35,Main!$A$49:$I$67,Main!$F$47,FALSE) -> Minimum COP @ 5°F:: 1.75 | BQ35: =VLOOKUP(C35,Main!$A$49:$I$67,Main!$G$47,FALSE) -> 15 | BR35: =VLOOKUP(C35,Main!$A$49:$I$67,Main!$H$47,FALSE) -> 3.1 | BS35: =VLOOKUP(C35,Main!$A$49:$I$67,Main!$I$47,FALSE) -> 16.1 | BT35: 383
A36: AK | B36: DUTCH HARBOR | C36: 7 | D36: 8665 | E36: 664 | F36: 21.65 | G36: 55.6 | H36: 0.1892 | I36: 53.895N | J36: 21.2 | K36: 33.3 | L36: 33.8 | M36: 33.8 | N36: 36.6 | O36: 41.1 | P36: 46.4 | Q36: 51.1 | R36: 53 | S36: 49.1 | T36: 43 | U36: 38.2 | V36: 35.1 | W36: 517 | X36: 453 | Y36: 503 | Z36: 401 | AA36: 274 | AB36: 113 | AC36: 21 | AD36: 8 | AE36: 55 | AF36: 220 | AG36: 353 | AH36: 462 | AI36: 0 | AJ36: 0 | AK36: 0 | AL36: 0 | AM36: 0 | AN36: 6 | AO36: 55 | AP36: 100 | AQ36: 27 | AR36: 1 | AS36: 0 | AT36: 0 | AU36: 29.7 | AV36: 26.78 | AW36: 23.9 | AX36: 29.66 | AY36: 31.5 | AZ36: 36.5 | BA36: 44.42 | BB36: 46.58 | BC36: 38.5 | BD36: 31.1 | BE36: 31.1 | BF36: 24.6 | BG36: 0.7694524496 | BH36: 0.2102102102 | BI36: 78 | BJ36: 53 | BK36: 34 | BL36: 39 | BM36: =IF(OR(C36="OA",C36="OB",C36="1B",C36="1A",C36="2A",C36="2B",C36="3A",C36="3B",C36="3C"),TAN((LEFT(I36, 5)+VLOOKUP(C36,Main!$K$3:$L$21,2,FALSE))*PI()/180),IF(Checklist!$I$385="No",TAN((LEFT(I36, 5)+VLOOKUP(C36,Main!$K$3:$L$21,2,FALSE))*PI()/180),"NR")) -> NR | BN36: =VLOOKUP(C36,Main!$A$49:$I$67,Main!$B$47,FALSE) -> NR | BO36: =VLOOKUP(C36,Main!$A$49:$I$67,Main!$C$47,FALSE) -> NR | BP36: =VLOOKUP(C36,Main!$A$49:$I$67,Main!$E$47,FALSE)&":"&" "&VLOOKUP(C36,Main!$A$49:$I$67,Main!$F$47,FALSE) -> Minimum COP @ 5°F:: 1.75 | BQ36: =VLOOKUP(C36,Main!$A$49:$I$67,Main!$G$47,FALSE) -> 15 | BR36: =VLOOKUP(C36,Main!$A$49:$I$67,Main!$H$47,FALSE) -> 3.1 | BS36: =VLOOKUP(C36,Main!$A$49:$I$67,Main!$I$47,FALSE) -> 16.1 | BT36: 189
A37: AK | B37: EMMONAK | C37: 8 | D37: 13152 | E37: 793 | F37: -20.5 | G37: 59.9 | H37: 0.1892 | I37: 62.785N | J37: -19.6 | K37: 7.6 | L37: 10.3 | M37: 10.2 | N37: 21.7 | O37: 36.3 | P37: 49.6 | Q37: 53 | R37: 52.2 | S37: 44.9 | T37: 32 | U37: 19.6 | V37: 9.2 | W37: 1315 | X37: 1113 | Y37: 1234 | Z37: 849 | AA37: 430 | AB37: 71 | AC37: 18 | AD37: 29 | AE37: 162 | AF37: 559 | AG37: 913 | AH37: 1266 | AI37: 0 | AJ37: 0 | AK37: 0 | AL37: 0 | AM37: 6 | AN37: 59 | AO37: 111 | AP37: 96 | AQ37: 11 | AR37: 0 | AS37: 0 | AT37: 0 | AU37: 4.6 | AV37: 8.96 | AW37: 18.7 | AX37: 24.98 | AY37: 33.1 | AZ37: 40.64 | BA37: 44.24 | BB37: 43.34 | BC37: 34.5 | BD37: 22.1 | BE37: 22.1 | BF37: 14.4 | BG37: 0.8675496689 | BH37: 0.1123040849 | BI37: 99 | BJ37: 69 | BK37: 45 | BL37: 50 | BM37: =IF(OR(C37="OA",C37="OB",C37="1B",C37="1A",C37="2A",C37="2B",C37="3A",C37="3B",C37="3C"),TAN((LEFT(I37, 5)+VLOOKUP(C37,Main!$K$3:$L$21,2,FALSE))*PI()/180),IF(Checklist!$I$385="No",TAN((LEFT(I37, 5)+VLOOKUP(C37,Main!$K$3:$L$21,2,FALSE))*PI()/180),"NR")) -> NR | BN37: =VLOOKUP(C37,Main!$A$49:$I$67,Main!$B$47,FALSE) -> NR | BO37: =VLOOKUP(C37,Main!$A$49:$I$67,Main!$C$47,FALSE) -> NR | BP37: =VLOOKUP(C37,Main!$A$49:$I$67,Main!$E$47,FALSE)&":"&" "&VLOOKUP(C37,Main!$A$49:$I$67,Main!$F$47,FALSE) -> Minimum COP @ 5°F:: 1.75 | BQ37: =VLOOKUP(C37,Main!$A$49:$I$67,Main!$G$47,FALSE) -> 15 | BR37: =VLOOKUP(C37,Main!$A$49:$I$67,Main!$H$47,FALSE) -> 3.1 | BS37: =VLOOKUP(C37,Main!$A$49:$I$67,Main!$I$47,FALSE) -> 16.1 | BT37: 283
A38: AK | B38: FAIRBANKS INTL ARPT | C38: 8 | D38: 13577 | E38: 935 | F38: -17.3 | G38: 64.2 | H38: 0.1892 | I38: 64.804N | J38: -38.6 | K38: -8.5 | L38: -0.8 | M38: 10.6 | N38: 33.5 | O38: 50 | P38: 61 | Q38: 62.6 | R38: 56.9 | S38: 45.5 | T38: 25.3 | U38: 3.1 | V38: -5.1 | W38: 1814 | X38: 1423 | Y38: 1221 | Z38: 497 | AA38: 101 | AB38: 1 | AC38: 0 | AD38: 9 | AE38: 171 | AF38: 767 | AG38: 1408 | AH38: 1707 | AI38: 0 | AJ38: 0 | AK38: 0 | AL38: 2 | AM38: 101 | AN38: 331 | AO38: 392 | AP38: 223 | AQ38: 37 | AR38: 1 | AS38: 0 | AT38: 0 | AU38: -3.8 | AV38: -2.02 | AW38: 1.2 | AX38: 16.16 | AY38: 29.3 | AZ38: 43.52 | BA38: 49.82 | BB38: 45.68 | BC38: 35.2 | BD38: -4.5 | BE38: -4.5 | BF38: -7.4 | BG38: 0.8954248366 | BH38: 0.09228740936 | BI38: 105 | BJ38: 71 | BK38: 45 | BL38: 50 | BM38: =IF(OR(C38="OA",C38="OB",C38="1B",C38="1A",C38="2A",C38="2B",C38="3A",C38="3B",C38="3C"),TAN((LEFT(I38, 5)+VLOOKUP(C38,Main!$K$3:$L$21,2,FALSE))*PI()/180),IF(Checklist!$I$385="No",TAN((LEFT(I38, 5)+VLOOKUP(C38,Main!$K$3:$L$21,2,FALSE))*PI()/180),"NR")) -> NR | BN38: =VLOOKUP(C38,Main!$A$49:$I$67,Main!$B$47,FALSE) -> NR | BO38: =VLOOKUP(C38,Main!$A$49:$I$67,Main!$C$47,FALSE) -> NR | BP38: =VLOOKUP(C38,Main!$A$49:$I$67,Main!$E$47,FALSE)&":"&" "&VLOOKUP(C38,Main!$A$49:$I$67,Main!$F$47,FALSE) -> Minimum COP @ 5°F:: 1.75 | BQ38: =VLOOKUP(C38,Main!$A$49:$I$67,Main!$G$47,FALSE) -> 15 | BR38: =VLOOKUP(C38,Main!$A$49:$I$67,Main!$H$47,FALSE) -> 3.1 | BS38: =VLOOKUP(C38,Main!$A$49:$I$67,Main!$I$47,FALSE) -> 16.1 | BT38: 1087
A39: AK | B39: FAIRBANKS/EIELSON A | C39: 8 | D39: 13748 | E39: 849 | F39: -16 | G39: 63.5 | H39: 0.1892 | I39: 64.683N | J39: -39.6 | K39: -8.2 | L39: -1.5 | M39: 12.6 | N39: 33.9 | O39: 49.2 | P39: 59.8 | Q39: 62 | R39: 56.3 | S39: 45 | T39: 23 | U39: 2.4 | V39: -6.5 | W39: 1804 | X39: 1441 | Y39: 1158 | Z39: 485 | AA39: 113 | AB39: 1 | AC39: 0 | AD39: 10 | AE39: 186 | AF39: 838 | AG39: 1428 | AH39: 1752 | AI39: 0 | AJ39: 0 | AK39: 0 | AL39: 1 | AM39: 90 | AN39: 295 | AO39: 372 | AP39: 206 | AQ39: 35 | AR39: 0 | AS39: 0 | AT39: 0 | AU39: 5 | AV39: 9.32 | AW39: 12.4 | AX39: 16.34 | AY39: 28.8 | AZ39: 39.74 | BA39: 47.12 | BB39: 44.06 | BC39: 31.3 | BD39: 16 | BE39: 16 | BF39: -0.9 | BG39: 0.8950131234 | BH39: 0.09142971968 | BI39: 106 | BJ39: 72 | BK39: 45 | BL39: 50 | BM39: =IF(OR(C39="OA",C39="OB",C39="1B",C39="1A",C39="2A",C39="2B",C39="3A",C39="3B",C39="3C"),TAN((LEFT(I39, 5)+VLOOKUP(C39,Main!$K$3:$L$21,2,FALSE))*PI()/180),IF(Checklist!$I$385="No",TAN((LEFT(I39, 5)+VLOOKUP(C39,Main!$K$3:$L$21,2,FALSE))*PI()/180),"NR")) -> NR | BN39: =VLOOKUP(C39,Main!$A$49:$I$67,Main!$B$47,FALSE) -> NR | BO39: =VLOOKUP(C39,Main!$A$49:$I$67,Main!$C$47,FALSE) -> NR | BP39: =VLOOKUP(C39,Main!$A$49:$I$67,Main!$E$47,FALSE)&":"&" "&VLOOKUP(C39,Main!$A$49:$I$67,Main!$F$47,FALSE) -> Minimum COP @ 5°F:: 1.75 | BQ39: =VLOOKUP(C39,Main!$A$49:$I$67,Main!$G$47,FALSE) -> 15 | BR39: =VLOOKUP(C39,Main!$A$49:$I$67,Main!$H$47,FALSE) -> 3.1 | BS39: =VLOOKUP(C39,Main!$A$49:$I$67,Main!$I$47,FALSE) -> 16.1 | BT39: 999
A40: AK | B40: FORT YUKON | C40: 8 | D40: 15593 | E40: 936 | F40: -30.75 | G40: 61.9 | H40: 0.1892 | I40: 66.567N | J40: -50.7 | K40: -17.4 | L40: -11 | M40: 1 | N40: 25.5 | O40: 46.1 | P40: 59.7 | Q40: 61.8 | R40: 54.8 | S40: 42.3 | T40: 19.7 | U40: -5 | V40: -11 | W40: 2090 | X40: 1707 | Y40: 1518 | Z40: 735 | AA40: 183 | AB40: 4 | AC40: 2 | AD40: 24 | AE40: 247 | AF40: 940 | AG40: 1649 | AH40: 1892 | AI40: 0 | AJ40: 0 | AK40: 0 | AL40: 0 | AM40: 61 | AN40: 294 | AO40: 367 | AP40: 174 | AQ40: 15 | AR40: 0 | AS40: 0 | AT40: 0 | AU40: -12.8 | AV40: -18.76 | AW40: -6.2 | AX40: 10.22 | AY40: 29.8 | AZ40: 39.02 | BA40: 42.44 | BB40: 37.4 | BC40: 30.9 | BD40: 6.1 | BE40: 6.1 | BF40: -24.2 | BG40: 0.906323185 | BH40: 0.08287984699 | BI40: 113 | BJ40: 79 | BK40: 50 | BL40: 55 | BM40: =IF(OR(C40="OA",C40="OB",C40="1B",C40="1A",C40="2A",C40="2B",C40="3A",C40="3B",C40="3C"),TAN((LEFT(I40, 5)+VLOOKUP(C40,Main!$K$3:$L$21,2,FALSE))*PI()/180),IF(Checklist!$I$385="No",TAN((LEFT(I40, 5)+VLOOKUP(C40,Main!$K$3:$L$21,2,FALSE))*PI()/180),"NR")) -> NR | BN40: =VLOOKUP(C40,Main!$A$49:$I$67,Main!$B$47,FALSE) -> NR | BO40: =VLOOKUP(C40,Main!$A$49:$I$67,Main!$C$47,FALSE) -> NR | BP40: =VLOOKUP(C40,Main!$A$49:$I$67,Main!$E$47,FALSE)&":"&" "&VLOOKUP(C40,Main!$A$49:$I$67,Main!$F$47,FALSE) -> Minimum COP @ 5°F:: 1.75 | BQ40: =VLOOKUP(C40,Main!$A$49:$I$67,Main!$G$47,FALSE) -> 15 | BR40: =VLOOKUP(C40,Main!$A$49:$I$67,Main!$H$47,FALSE) -> 3.1 | BS40: =VLOOKUP(C40,Main!$A$49:$I$67,Main!$I$47,FALSE) -> 16.1 | BT40: 911
A41: AK | B41: GAMBELL | C41: 8 | D41: 14042 | E41: 680 | F41: -4 | G41: 46 | H41: 0.1892 | I41: 63.767N | J41: -11.4 | K41: 6.7 | L41: 9 | M41: 8.4 | N41: 18.5 | O41: 30.7 | P41: 39.3 | Q41: 46.1 | R41: 46.9 | S41: 41.8 | T41: 33.1 | U41: 25.1 | V41: 11.6 | W41: 1343 | X41: 1148 | Y41: 1289 | Z41: 944 | AA41: 598 | AB41: 321 | AC41: 126 | AD41: 104 | AE41: 248 | AF41: 525 | AG41: 747 | AH41: 1190 | AI41: 0 | AJ41: 0 | AK41: 0 | AL41: 0 | AM41: 0 | AN41: 0 | AO41: 5 | AP41: 10 | AQ41: 1 | AR41: 0 | AS41: 0 | AT41: 0 | AU41: 7.3 | AV41: 7.34 | AW41: 11.7 | AX41: 2.66 | AY41: 29.5 | AZ41: 34.52 | BA41: 32 | BB41: 34.16 | BC41: 32.5 | BD41: 21.9 | BE41: 21.9 | BF41: 9.7 | BG41: 0.8694942904 | BH41: 0.1239022398 | BI41: 99 | BJ41: 73 | BK41: 51 | BL41: 56 | BM41: =IF(OR(C41="OA",C41="OB",C41="1B",C41="1A",C41="2A",C41="2B",C41="3A",C41="3B",C41="3C"),TAN((LEFT(I41, 5)+VLOOKUP(C41,Main!$K$3:$L$21,2,FALSE))*PI()/180),IF(Checklist!$I$385="No",TAN((LEFT(I41, 5)+VLOOKUP(C41,Main!$K$3:$L$21,2,FALSE))*PI()/180),"NR")) -> NR | BN41: =VLOOKUP(C41,Main!$A$49:$I$67,Main!$B$47,FALSE) -> NR | BO41: =VLOOKUP(C41,Main!$A$49:$I$67,Main!$C$47,FALSE) -> NR | BP41: =VLOOKUP(C41,Main!$A$49:$I$67,Main!$E$47,FALSE)&":"&" "&VLOOKUP(C41,Main!$A$49:$I$67,Main!$F$47,FALSE) -> Minimum COP @ 5°F:: 1.75 | BQ41: =VLOOKUP(C41,Main!$A$49:$I$67,Main!$G$47,FALSE) -> 15 | BR41: =VLOOKUP(C41,Main!$A$49:$I$67,Main!$H$47,FALSE) -> 3.1 | BS41: =VLOOKUP(C41,Main!$A$49:$I$67,Main!$I$47,FALSE) -> 16.1 | BT41: 16
A42: AK | B42: GULKANA INTERMEDIATE FIELD | C42: 7 | D42: 13429 | E42: 922 | F42: -22.9 | G42: 61.9 | H42: 0.1892 | I42: 62.159N | J42: -33.2 | K42: -1.3 | L42: 5.7 | M42: 14.7 | N42: 32 | O42: 45.5 | P42: 54.7 | Q42: 57.3 | R42: 53.5 | S42: 43.2 | T42: 27.3 | U42: 5.6 | V42: -0.8 | W42: 1590 | X42: 1242 | Y42: 1095 | Z42: 540 | AA42: 169 | AB42: 14 | AC42: 2 | AD42: 23 | AE42: 217 | AF42: 703 | AG42: 1332 | AH42: 1576 | AI42: 0 | AJ42: 0 | AK42: 0 | AL42: 0 | AM42: 28 | AN42: 157 | AO42: 228 | AP42: 131 | AQ42: 12 | AR42: 1 | AS42: 0 | AT42: 0 | AU42: -7.8 | AV42: -0.04 | AW42: 5.9 | AX42: 17.24 | AY42: 26.8 | AZ42: 39.92 | BA42: 43.88 | BB42: 40.46 | BC42: 32 | BD42: 3.6 | BE42: 3.6 | BF42: -4 | BG42: 0.8845598846 | BH42: 0.09721183634 | BI42: 103 | BJ42: 70 | BK42: 45 | BL42: 50 | BM42: =IF(OR(C42="OA",C42="OB",C42="1B",C42="1A",C42="2A",C42="2B",C42="3A",C42="3B",C42="3C"),TAN((LEFT(I42, 5)+VLOOKUP(C42,Main!$K$3:$L$21,2,FALSE))*PI()/180),IF(Checklist!$I$385="No",TAN((LEFT(I42, 5)+VLOOKUP(C42,Main!$K$3:$L$21,2,FALSE))*PI()/180),"NR")) -> NR | BN42: =VLOOKUP(C42,Main!$A$49:$I$67,Main!$B$47,FALSE) -> NR | BO42: =VLOOKUP(C42,Main!$A$49:$I$67,Main!$C$47,FALSE) -> NR | BP42: =VLOOKUP(C42,Main!$A$49:$I$67,Main!$E$47,FALSE)&":"&" "&VLOOKUP(C42,Main!$A$49:$I$67,Main!$F$47,FALSE) -> Minimum COP @ 5°F:: 1.75 | BQ42: =VLOOKUP(C42,Main!$A$49:$I$67,Main!$G$47,FALSE) -> 15 | BR42: =VLOOKUP(C42,Main!$A$49:$I$67,Main!$H$47,FALSE) -> 3.1 | BS42: =VLOOKUP(C42,Main!$A$49:$I$67,Main!$I$47,FALSE) -> 16.1 | BT42: 557
A43: AK | B43: GUSTAVUS | C43: 6B | D43: 8573 | E43: 951 | F43: -0.5 | G43: 56.7 | H43: 0.1892 | I43: 58.411N | J43: 5.3 | K43: 28.1 | L43: 30.1 | M43: 32.7 | N43: 39.6 | O43: 46.7 | P43: 52.7 | Q43: 55.8 | R43: 55.6 | S43: 50.1 | T43: 42.4 | U43: 33.3 | V43: 30.3 | W43: 678 | X43: 558 | Y43: 538 | Z43: 312 | AA43: 123 | AB43: 10 | AC43: 0 | AD43: 1 | AE43: 43 | AF43: 237 | AG43: 500 | AH43: 610 | AI43: 0 | AJ43: 0 | AK43: 0 | AL43: 1 | AM43: 20 | AN43: 91 | AO43: 179 | AP43: 175 | AQ43: 45 | AR43: 2 | AS43: 0 | AT43: 0 | AU43: 27.9 | AV43: 27.5 | AW43: 26.2 | AX43: 28.76 | AY43: 24.1 | AZ43: 44.6 | BA43: 49.46 | BB43: 45.32 | BC43: 41 | BD43: 19.8 | BE43: 19.8 | BF43: 18 | BG43: 0.7994987469 | BH43: 0.1569033148 | BI43: 81 | BJ43: 52 | BK43: 34 | BL43: 39 | BM43: =IF(OR(C43="OA",C43="OB",C43="1B",C43="1A",C43="2A",C43="2B",C43="3A",C43="3B",C43="3C"),TAN((LEFT(I43, 5)+VLOOKUP(C43,Main!$K$3:$L$21,2,FALSE))*PI()/180),IF(Checklist!$I$385="No",TAN((LEFT(I43, 5)+VLOOKUP(C43,Main!$K$3:$L$21,2,FALSE))*PI()/180),"NR")) -> NR | BN43: =VLOOKUP(C43,Main!$A$49:$I$67,Main!$B$47,FALSE) -> NR | BO43: =VLOOKUP(C43,Main!$A$49:$I$67,Main!$C$47,FALSE) -> NR | BP43: =VLOOKUP(C43,Main!$A$49:$I$67,Main!$E$47,FALSE)&":"&" "&VLOOKUP(C43,Main!$A$49:$I$67,Main!$F$47,FALSE) -> Minimum COP @ 5°F:: 1.75 | BQ43: =VLOOKUP(C43,Main!$A$49:$I$67,Main!$G$47,FALSE) -> 15 | BR43: =VLOOKUP(C43,Main!$A$49:$I$67,Main!$H$47,FALSE) -> 3.1 | BS43: =VLOOKUP(C43,Main!$A$49:$I$67,Main!$I$47,FALSE) -> 16.1 | BT43: 513
A44: AK | B44: HOMER ARPT | C44: 7 | D44: 9502 | E44: 868 | F44: 11.9 | G44: 56.8 | H44: 0.1892 | I44: 59.642N | J44: 4 | K44: 24.7 | L44: 26.6 | M44: 29 | N44: 37.5 | O44: 44.8 | P44: 50.9 | Q44: 54.9 | R44: 54.2 | S44: 48.7 | T44: 39.3 | U44: 29.6 | V44: 26.6 | W44: 785 | X44: 654 | Y44: 651 | Z44: 374 | AA44: 171 | AB44: 27 | AC44: 2 | AD44: 5 | AE44: 74 | AF44: 334 | AG44: 613 | AH44: 726 | AI44: 0 | AJ44: 0 | AK44: 0 | AL44: 0 | AM44: 9 | AN44: 54 | AO44: 153 | AP44: 134 | AQ44: 35 | AR44: 3 | AS44: 0 | AT44: 0 | AU44: 20.5 | AV44: 11.66 | AW44: 20.8 | AX44: 31.46 | AY44: 37.2 | AZ44: 42.98 | BA44: 48.56 | BB44: 49.1 | BC44: 45 | BD44: 17.2 | BE44: 17.2 | BF44: 17.2 | BG44: 0.8152424942 | BH44: 0.1537162162 | BI44: 84 | BJ44: 56 | BK44: 36 | BL44: 41 | BM44: =IF(OR(C44="OA",C44="OB",C44="1B",C44="1A",C44="2A",C44="2B",C44="3A",C44="3B",C44="3C"),TAN((LEFT(I44, 5)+VLOOKUP(C44,Main!$K$3:$L$21,2,FALSE))*PI()/180),IF(Checklist!$I$385="No",TAN((LEFT(I44, 5)+VLOOKUP(C44,Main!$K$3:$L$21,2,FALSE))*PI()/180),"NR")) -> NR | BN44: =VLOOKUP(C44,Main!$A$49:$I$67,Main!$B$47,FALSE) -> NR | BO44: =VLOOKUP(C44,Main!$A$49:$I$67,Main!$C$47,FALSE) -> NR | BP44: =VLOOKUP(C44,Main!$A$49:$I$67,Main!$E$47,FALSE)&":"&" "&VLOOKUP(C44,Main!$A$49:$I$67,Main!$F$47,FALSE) -> Minimum COP @ 5°F:: 1.75 | BQ44: =VLOOKUP(C44,Main!$A$49:$I$67,Main!$G$47,FALSE) -> 15 | BR44: =VLOOKUP(C44,Main!$A$49:$I$67,Main!$H$47,FALSE) -> 3.1 | BS44: =VLOOKUP(C44,Main!$A$49:$I$67,Main!$I$47,FALSE) -> 16.1 | BT44: 388
A45: AK | B45: HOOPER BAY | C45: 8 | D45: 12683 | E45: 851 | F45: 1.65 | G45: 52.9 | H45: 0.1892 | I45: 61.524N | J45: -11.3 | K45: 11.6 | L45: 15 | M45: 12.3 | N45: 25.1 | O45: 35 | P45: 45.7 | Q45: 50.7 | R45: 51.4 | S45: 45.7 | T45: 33.3 | U45: 23.4 | V45: 13.3 | W45: 1194 | X45: 981 | Y45: 1169 | Z45: 751 | AA45: 467 | AB45: 153 | AC45: 45 | AD45: 34 | AE45: 152 | AF45: 522 | AG45: 799 | AH45: 1139 | AI45: 3 | AJ45: 0 | AK45: 0 | AL45: 3 | AM45: 4 | AN45: 23 | AO45: 66 | AP45: 77 | AQ45: 23 | AR45: 3 | AS45: 0 | AT45: 0 | AU45: 4.8 | AV45: 6.08 | AW45: 20.1 | AX45: 21.38 | AY45: 32.4 | AZ45: 35.78 | BA45: 44.06 | BB45: 43.52 | BC45: 36 | BD45: 25.3 | BE45: 25.3 | BF45: 9.1 | BG45: 0.8581560284 | BH45: 0.1240584847 | BI45: 96 | BJ45: 68 | BK45: 45 | BL45: 50 | BM45: =IF(OR(C45="OA",C45="OB",C45="1B",C45="1A",C45="2A",C45="2B",C45="3A",C45="3B",C45="3C"),TAN((LEFT(I45, 5)+VLOOKUP(C45,Main!$K$3:$L$21,2,FALSE))*PI()/180),IF(Checklist!$I$385="No",TAN((LEFT(I45, 5)+VLOOKUP(C45,Main!$K$3:$L$21,2,FALSE))*PI()/180),"NR")) -> NR | BN45: =VLOOKUP(C45,Main!$A$49:$I$67,Main!$B$47,FALSE) -> NR | BO45: =VLOOKUP(C45,Main!$A$49:$I$67,Main!$C$47,FALSE) -> NR | BP45: =VLOOKUP(C45,Main!$A$49:$I$67,Main!$E$47,FALSE)&":"&" "&VLOOKUP(C45,Main!$A$49:$I$67,Main!$F$47,FALSE) -> Minimum COP @ 5°F:: 1.75 | BQ45: =VLOOKUP(C45,Main!$A$49:$I$67,Main!$G$47,FALSE) -> 15 | BR45: =VLOOKUP(C45,Main!$A$49:$I$67,Main!$H$47,FALSE) -> 3.1 | BS45: =VLOOKUP(C45,Main!$A$49:$I$67,Main!$I$47,FALSE) -> 16.1 | BT45: 202
A46: AK | B46: HYDABURG SEAPLANE | C46: 5C | D46: 6984 | E46: 940 | F46: 21.1 | G46: 133.7 | H46: 0.1892 | I46: 55.206N | J46: 21.3 | K46: 36.5 | L46: 37.4 | M46: 38.4 | N46: 42.6 | O46: 47.5 | P46: 53.1 | Q46: 56.6 | R46: 57.3 | S46: 53.3 | T46: 47.7 | U46: 41.1 | V46: 38.3 | W46: 417 | X46: 352 | Y46: 359 | Z46: 227 | AA46: 98 | AB46: 6 | AC46: 0 | AD46: 0 | AE46: 15 | AF46: 104 | AG46: 268 | AH46: 363 | AI46: 0 | AJ46: 0 | AK46: 0 | AL46: 4 | AM46: 22 | AN46: 101 | AO46: 206 | AP46: 226 | AQ46: 112 | AR46: 33 | AS46: 1 | AT46: 0 | AU46: 27.7 | AV46: 26.96 | AW46: 23.4 | AX46: 32.36 | AY46: 34.3 | AZ46: 42.26 | BA46: 48.74 | BB46: 46.58 | BC46: 39.2 | BD46: 32.9 | BE46: 32.9 | BF46: 30.2 | BG46: 0.746031746 | BH46: 0.2106603391 | BI46: 73 | BJ46: 46 | BK46: 15 | BL46: 20 | BM46: =IF(OR(C46="OA",C46="OB",C46="1B",C46="1A",C46="2A",C46="2B",C46="3A",C46="3B",C46="3C"),TAN((LEFT(I46, 5)+VLOOKUP(C46,Main!$K$3:$L$21,2,FALSE))*PI()/180),IF(Checklist!$I$385="No",TAN((LEFT(I46, 5)+VLOOKUP(C46,Main!$K$3:$L$21,2,FALSE))*PI()/180),"NR")) -> NR | BN46: =VLOOKUP(C46,Main!$A$49:$I$67,Main!$B$47,FALSE) -> NR | BO46: =VLOOKUP(C46,Main!$A$49:$I$67,Main!$C$47,FALSE) -> NR | BP46: =VLOOKUP(C46,Main!$A$49:$I$67,Main!$E$47,FALSE)&":"&" "&VLOOKUP(C46,Main!$A$49:$I$67,Main!$F$47,FALSE) -> Minimum HSPF:: 9.6 | BQ46: =VLOOKUP(C46,Main!$A$49:$I$67,Main!$G$47,FALSE) -> 18 | BR46: =VLOOKUP(C46,Main!$A$49:$I$67,Main!$H$47,FALSE) -> 3.1 | BS46: =VLOOKUP(C46,Main!$A$49:$I$67,Main!$I$47,FALSE) -> 16.1 | BT46: 705
A47: AK | B47: ILIAMNA ARPT | C47: 7 | D47: 10628 | E47: 945 | F47: 3.2 | G47: 61.9 | H47: 0.1892 | I47: 59.749N | J47: -14.6 | K47: 16.8 | L47: 21.7 | M47: 21.9 | N47: 33.6 | O47: 44.1 | P47: 51.6 | Q47: 55.7 | R47: 55 | S47: 48.5 | T47: 36.3 | U47: 24.8 | V47: 19.8 | W47: 1030 | X47: 792 | Y47: 870 | Z47: 494 | AA47: 196 | AB47: 27 | AC47: 3 | AD47: 5 | AE47: 77 | AF47: 426 | AG47: 757 | AH47: 935 | AI47: 0 | AJ47: 0 | AK47: 0 | AL47: 0 | AM47: 15 | AN47: 75 | AO47: 178 | AP47: 161 | AQ47: 32 | AR47: 1 | AS47: 0 | AT47: 0 | AU47: 23.2 | AV47: 26.6 | AW47: 24.3 | AX47: 24.26 | AY47: 29.5 | AZ47: 40.46 | BA47: 48.2 | BB47: 47.66 | BC47: 36.9 | BD47: 21 | BE47: 21 | BF47: 19.6 | BG47: 0.84375 | BH47: 0.119102153 | BI47: 92 | BJ47: 60 | BK47: 38 | BL47: 43 | BM47: =IF(OR(C47="OA",C47="OB",C47="1B",C47="1A",C47="2A",C47="2B",C47="3A",C47="3B",C47="3C"),TAN((LEFT(I47, 5)+VLOOKUP(C47,Main!$K$3:$L$21,2,FALSE))*PI()/180),IF(Checklist!$I$385="No",TAN((LEFT(I47, 5)+VLOOKUP(C47,Main!$K$3:$L$21,2,FALSE))*PI()/180),"NR")) -> NR | BN47: =VLOOKUP(C47,Main!$A$49:$I$67,Main!$B$47,FALSE) -> NR | BO47: =VLOOKUP(C47,Main!$A$49:$I$67,Main!$C$47,FALSE) -> NR | BP47: =VLOOKUP(C47,Main!$A$49:$I$67,Main!$E$47,FALSE)&":"&" "&VLOOKUP(C47,Main!$A$49:$I$67,Main!$F$47,FALSE) -> Minimum COP @ 5°F:: 1.75 | BQ47: =VLOOKUP(C47,Main!$A$49:$I$67,Main!$G$47,FALSE) -> 15 | BR47: =VLOOKUP(C47,Main!$A$49:$I$67,Main!$H$47,FALSE) -> 3.1 | BS47: =VLOOKUP(C47,Main!$A$49:$I$67,Main!$I$47,FALSE) -> 16.1 | BT47: 462
A48: AK | B48: JUNEAU INT ARPT | C48: 6A | D48: 8377 | E48: 850 | F48: 10.95 | G48: 59.5 | H48: 0.1892 | I48: 58.357N | J48: 8.9 | K48: 28.1 | L48: 30.2 | M48: 33 | N48: 40.8 | O48: 48.7 | P48: 54.6 | Q48: 56.9 | R48: 56 | S48: 50.2 | T48: 42.2 | U48: 33.5 | V48: 29.7 | W48: 679 | X48: 554 | Y48: 528 | Z48: 278 | AA48: 86 | AB48: 6 | AC48: 1 | AD48: 1 | AE48: 38 | AF48: 242 | AG48: 496 | AH48: 628 | AI48: 0 | AJ48: 0 | AK48: 0 | AL48: 3 | AM48: 44 | AN48: 146 | AO48: 213 | AP48: 188 | AQ48: 43 | AR48: 1 | AS48: 0 | AT48: 0 | AU48: 20.5 | AV48: 21.02 | AW48: 23.4 | AX48: 36.5 | AY48: 42.4 | AZ48: 48.02 | BA48: 52.16 | BB48: 49.46 | BC48: 47.7 | BD48: 23 | BE48: 23 | BF48: 25.3 | BG48: 0.7994987469 | BH48: 0.1664608771 | BI48: 80 | BJ48: 51 | BK48: 32 | BL48: 37 | BM48: =IF(OR(C48="OA",C48="OB",C48="1B",C48="1A",C48="2A",C48="2B",C48="3A",C48="3B",C48="3C"),TAN((LEFT(I48, 5)+VLOOKUP(C48,Main!$K$3:$L$21,2,FALSE))*PI()/180),IF(Checklist!$I$385="No",TAN((LEFT(I48, 5)+VLOOKUP(C48,Main!$K$3:$L$21,2,FALSE))*PI()/180),"NR")) -> NR | BN48: =VLOOKUP(C48,Main!$A$49:$I$67,Main!$B$47,FALSE) -> NR | BO48: =VLOOKUP(C48,Main!$A$49:$I$67,Main!$C$47,FALSE) -> NR | BP48: =VLOOKUP(C48,Main!$A$49:$I$67,Main!$E$47,FALSE)&":"&" "&VLOOKUP(C48,Main!$A$49:$I$67,Main!$F$47,FALSE) -> Minimum COP @ 5°F:: 1.75 | BQ48: =VLOOKUP(C48,Main!$A$49:$I$67,Main!$G$47,FALSE) -> 15 | BR48: =VLOOKUP(C48,Main!$A$49:$I$67,Main!$H$47,FALSE) -> 3.1 | BS48: =VLOOKUP(C48,Main!$A$49:$I$67,Main!$I$47,FALSE) -> 16.1 | BT48: 638
A49: AK | B49: KAKE SEAPLANE BASE | C49: 8 | D49: 8025 | E49: 910 | F49: 14.7 | G49: 60.4 | H49: 0.1892 | I49: 56.967N | J49: 16.3 | K49: 32.4 | L49: 33.3 | M49: 34.8 | N49: 40.5 | O49: 46.8 | P49: 52.5 | Q49: 55.7 | R49: 55.5 | S49: 50.8 | T49: 43.6 | U49: 36.5 | V49: 33.2 | W49: 545 | X49: 468 | Y49: 472 | Z49: 287 | AA49: 119 | AB49: 11 | AC49: 0 | AD49: 1 | AE49: 29 | AF49: 204 | AG49: 405 | AH49: 520 | AI49: 0 | AJ49: 0 | AK49: 0 | AL49: 1 | AM49: 21 | AN49: 85 | AO49: 176 | AP49: 172 | AQ49: 54 | AR49: 4 | AS49: 0 | AT49: 0 | AU49: 23.4 | AV49: 27.68 | AW49: 26.2 | AX49: 31.82 | AY49: 34.2 | AZ49: 44.6 | BA49: 46.58 | BB49: 46.94 | BC49: 42.6 | BD49: 28.6 | BE49: 28.6 | BF49: 26.4 | BG49: 0.7752808989 | BH49: 0.1902869988 | BI49: 77 | BJ49: 50 | BK49: 31 | BL49: 36 | BM49: =IF(OR(C49="OA",C49="OB",C49="1B",C49="1A",C49="2A",C49="2B",C49="3A",C49="3B",C49="3C"),TAN((LEFT(I49, 5)+VLOOKUP(C49,Main!$K$3:$L$21,2,FALSE))*PI()/180),IF(Checklist!$I$385="No",TAN((LEFT(I49, 5)+VLOOKUP(C49,Main!$K$3:$L$21,2,FALSE))*PI()/180),"NR")) -> NR | BN49: =VLOOKUP(C49,Main!$A$49:$I$67,Main!$B$47,FALSE) -> NR | BO49: =VLOOKUP(C49,Main!$A$49:$I$67,Main!$C$47,FALSE) -> NR | BP49: =VLOOKUP(C49,Main!$A$49:$I$67,Main!$E$47,FALSE)&":"&" "&VLOOKUP(C49,Main!$A$49:$I$67,Main!$F$47,FALSE) -> Minimum COP @ 5°F:: 1.75 | BQ49: =VLOOKUP(C49,Main!$A$49:$I$67,Main!$G$47,FALSE) -> 15 | BR49: =VLOOKUP(C49,Main!$A$49:$I$67,Main!$H$47,FALSE) -> 3.1 | BS49: =VLOOKUP(C49,Main!$A$49:$I$67,Main!$I$47,FALSE) -> 16.1 | BT49: 513
A50: AK | B50: KENAI MUNICIPAL AP | C50: 7 | D50: 10721 | E50: 957 | F50: 4.75 | G50: 55.9 | H50: 0.1892 | I50: 60.580N | J50: -15.9 | K50: 15.1 | L50: 19.5 | M50: 23.9 | N50: 36.1 | O50: 45.6 | P50: 52.2 | Q50: 55.9 | R50: 54.7 | S50: 47.9 | T50: 35.5 | U50: 22.4 | V50: 17.7 | W50: 1081 | X50: 855 | Y50: 808 | Z50: 418 | AA50: 152 | AB50: 16 | AC50: 1 | AD50: 5 | AE50: 97 | AF50: 452 | AG50: 827 | AH50: 1001 | AI50: 0 | AJ50: 0 | AK50: 0 | AL50: 0 | AM50: 17 | AN50: 80 | AO50: 183 | AP50: 151 | AQ50: 33 | AR50: 2 | AS50: 0 | AT50: 0 | AU50: 24.1 | AV50: 27.86 | AW50: 20.8 | AX50: 28.22 | AY50: 31.6 | AZ50: 43.16 | BA50: 48.38 | BB50: 44.78 | BC50: 36 | BD50: 16.9 | BE50: 16.9 | BF50: 22.6 | BG50: 0.8487712665 | BH50: 0.1172567084 | BI50: 92 | BJ50: 60 | BK50: 39 | BL50: 44 | BM50: =IF(OR(C50="OA",C50="OB",C50="1B",C50="1A",C50="2A",C50="2B",C50="3A",C50="3B",C50="3C"),TAN((LEFT(I50, 5)+VLOOKUP(C50,Main!$K$3:$L$21,2,FALSE))*PI()/180),IF(Checklist!$I$385="No",TAN((LEFT(I50, 5)+VLOOKUP(C50,Main!$K$3:$L$21,2,FALSE))*PI()/180),"NR")) -> NR | BN50: =VLOOKUP(C50,Main!$A$49:$I$67,Main!$B$47,FALSE) -> NR | BO50: =VLOOKUP(C50,Main!$A$49:$I$67,Main!$C$47,FALSE) -> NR | BP50: =VLOOKUP(C50,Main!$A$49:$I$67,Main!$E$47,FALSE)&":"&" "&VLOOKUP(C50,Main!$A$49:$I$67,Main!$F$47,FALSE) -> Minimum COP @ 5°F:: 1.75 | BQ50: =VLOOKUP(C50,Main!$A$49:$I$67,Main!$G$47,FALSE) -> 15 | BR50: =VLOOKUP(C50,Main!$A$49:$I$67,Main!$H$47,FALSE) -> 3.1 | BS50: =VLOOKUP(C50,Main!$A$49:$I$67,Main!$I$47,FALSE) -> 16.1 | BT50: 466
A51: AK | B51: KETCHIKAN INTL AP | C51: 5C | D51: 7133 | E51: 901 | F51: 14.65 | G51: 65.5 | H51: 0.1892 | I51: 55.357N | J51: 18.9 | K51: 34.9 | L51: 35.9 | M51: 37.5 | N51: 42.9 | O51: 49.2 | P51: 54.7 | Q51: 58.1 | R51: 58.5 | S51: 53.2 | T51: 45.7 | U51: 39 | V51: 35.7 | W51: 467 | X51: 395 | Y51: 388 | Z51: 217 | AA51: 72 | AB51: 4 | AC51: 0 | AD51: 0 | AE51: 14 | AF51: 143 | AG51: 331 | AH51: 442 | AI51: 0 | AJ51: 0 | AK51: 0 | AL51: 3 | AM51: 46 | AN51: 145 | AO51: 251 | AP51: 262 | AQ51: 110 | AR51: 10 | AS51: 0 | AT51: 0 | AU51: 27 | AV51: 24.44 | AW51: 21.4 | AX51: 32.36 | AY51: 39.2 | AZ51: 47.48 | BA51: 51.62 | BB51: 57.02 | BC51: 47.1 | BD51: 27.7 | BE51: 27.7 | BF51: 20.7 | BG51: 0.7583081571 | BH51: 0.2003632961 | BI51: 74 | BJ51: 47 | BK51: 28 | BL51: 33 | BM51: =IF(OR(C51="OA",C51="OB",C51="1B",C51="1A",C51="2A",C51="2B",C51="3A",C51="3B",C51="3C"),TAN((LEFT(I51, 5)+VLOOKUP(C51,Main!$K$3:$L$21,2,FALSE))*PI()/180),IF(Checklist!$I$385="No",TAN((LEFT(I51, 5)+VLOOKUP(C51,Main!$K$3:$L$21,2,FALSE))*PI()/180),"NR")) -> NR | BN51: =VLOOKUP(C51,Main!$A$49:$I$67,Main!$B$47,FALSE) -> NR | BO51: =VLOOKUP(C51,Main!$A$49:$I$67,Main!$C$47,FALSE) -> NR | BP51: =VLOOKUP(C51,Main!$A$49:$I$67,Main!$E$47,FALSE)&":"&" "&VLOOKUP(C51,Main!$A$49:$I$67,Main!$F$47,FALSE) -> Minimum HSPF:: 9.6 | BQ51: =VLOOKUP(C51,Main!$A$49:$I$67,Main!$G$47,FALSE) -> 18 | BR51: =VLOOKUP(C51,Main!$A$49:$I$67,Main!$H$47,FALSE) -> 3.1 | BS51: =VLOOKUP(C51,Main!$A$49:$I$67,Main!$I$47,FALSE) -> 16.1 | BT51: 827
A52: AK | B52: KING SALMON ARPT | C52: 7 | D52: 10861 | E52: 845 | F52: -5.65 | G52: 60.3 | H52: 0.1892 | I52: 58.683N | J52: -19.1 | K52: 15.8 | L52: 19.8 | M52: 22.1 | N52: 34.8 | O52: 44.5 | P52: 51.5 | Q52: 55.4 | R52: 54.8 | S52: 47.8 | T52: 34.7 | U52: 23.3 | V52: 17.4 | W52: 1059 | X52: 844 | Y52: 865 | Z52: 455 | AA52: 185 | AB52: 30 | AC52: 4 | AD52: 7 | AE52: 101 | AF52: 477 | AG52: 802 | AH52: 1011 | AI52: 0 | AJ52: 0 | AK52: 0 | AL52: 1 | AM52: 15 | AN52: 76 | AO52: 173 | AP52: 154 | AQ52: 36 | AR52: 1 | AS52: 0 | AT52: 0 | AU52: 16.5 | AV52: 12.56 | AW52: 13.3 | AX52: 28.22 | AY52: 34.7 | AZ52: 43.16 | BA52: 49.28 | BB52: 46.94 | BC52: 41.5 | BD52: 18.9 | BE52: 18.9 | BF52: 18 | BG52: 0.846743295 | BH52: 0.1129487697 | BI52: 93 | BJ52: 61 | BK52: 39 | BL52: 44 | BM52: =IF(OR(C52="OA",C52="OB",C52="1B",C52="1A",C52="2A",C52="2B",C52="3A",C52="3B",C52="3C"),TAN((LEFT(I52, 5)+VLOOKUP(C52,Main!$K$3:$L$21,2,FALSE))*PI()/180),IF(Checklist!$I$385="No",TAN((LEFT(I52, 5)+VLOOKUP(C52,Main!$K$3:$L$21,2,FALSE))*PI()/180),"NR")) -> NR | BN52: =VLOOKUP(C52,Main!$A$49:$I$67,Main!$B$47,FALSE) -> NR | BO52: =VLOOKUP(C52,Main!$A$49:$I$67,Main!$C$47,FALSE) -> NR | BP52: =VLOOKUP(C52,Main!$A$49:$I$67,Main!$E$47,FALSE)&":"&" "&VLOOKUP(C52,Main!$A$49:$I$67,Main!$F$47,FALSE) -> Minimum COP @ 5°F:: 1.75 | BQ52: =VLOOKUP(C52,Main!$A$49:$I$67,Main!$G$47,FALSE) -> 15 | BR52: =VLOOKUP(C52,Main!$A$49:$I$67,Main!$H$47,FALSE) -> 3.1 | BS52: =VLOOKUP(C52,Main!$A$49:$I$67,Main!$I$47,FALSE) -> 16.1 | BT52: 456
A53: AK | B53: KODIAK AIRPORT | C53: 6A | D53: 8718 | E53: 904 | F53: 22.05 | G53: 60.4 | H53: 0.1892 | I53: 57.751N | J53: 12.8 | K53: 30.4 | L53: 31.1 | M53: 32 | N53: 38.1 | O53: 44.8 | P53: 50.3 | Q53: 54.7 | R53: 55.4 | S53: 49.7 | T53: 41 | U53: 34.4 | V53: 30.8 | W53: 607 | X53: 530 | Y53: 557 | Z53: 357 | AA53: 177 | AB53: 45 | AC53: 2 | AD53: 2 | AE53: 52 | AF53: 280 | AG53: 469 | AH53: 594 | AI53: 0 | AJ53: 0 | AK53: 0 | AL53: 0 | AM53: 15 | AN53: 54 | AO53: 147 | AP53: 170 | AQ53: 44 | AR53: 1 | AS53: 0 | AT53: 0 | AU53: 25.7 | AV53: 26.96 | AW53: 24.8 | AX53: 30.74 | AY53: 35.2 | AZ53: 44.24 | BA53: 48.74 | BB53: 49.46 | BC53: 43.9 | BD53: 25.3 | BE53: 25.3 | BF53: 25.3 | BG53: 0.7872340426 | BH53: 0.1782217 | BI53: 80 | BJ53: 53 | BK53: 33 | BL53: 38 | BM53: =IF(OR(C53="OA",C53="OB",C53="1B",C53="1A",C53="2A",C53="2B",C53="3A",C53="3B",C53="3C"),TAN((LEFT(I53, 5)+VLOOKUP(C53,Main!$K$3:$L$21,2,FALSE))*PI()/180),IF(Checklist!$I$385="No",TAN((LEFT(I53, 5)+VLOOKUP(C53,Main!$K$3:$L$21,2,FALSE))*PI()/180),"NR")) -> NR | BN53: =VLOOKUP(C53,Main!$A$49:$I$67,Main!$B$47,FALSE) -> NR | BO53: =VLOOKUP(C53,Main!$A$49:$I$67,Main!$C$47,FALSE) -> NR | BP53: =VLOOKUP(C53,Main!$A$49:$I$67,Main!$E$47,FALSE)&":"&" "&VLOOKUP(C53,Main!$A$49:$I$67,Main!$F$47,FALSE) -> Minimum COP @ 5°F:: 1.75 | BQ53: =VLOOKUP(C53,Main!$A$49:$I$67,Main!$G$47,FALSE) -> 15 | BR53: =VLOOKUP(C53,Main!$A$49:$I$67,Main!$H$47,FALSE) -> 3.1 | BS53: =VLOOKUP(C53,Main!$A$49:$I$67,Main!$I$47,FALSE) -> 16.1 | BT53: 431
A54: AK | B54: KOTZEBUE RALPH WEIN MEMORIAL | C54: 8 | D54: 15268 | E54: 836 | F54: -20.35 | G54: 56.3 | H54: 0.1892 | I54: 66.886N | J54: -31 | K54: -3.3 | L54: -0.8 | M54: 0.8 | N54: 15.1 | O54: 32 | P54: 46.4 | Q54: 54.9 | R54: 52.1 | S54: 42.7 | T54: 25.7 | U54: 9.7 | V54: 1.3 | W54: 1652 | X54: 1421 | Y54: 1525 | Z54: 1048 | AA54: 560 | AB54: 164 | AC54: 21 | AD54: 40 | AE54: 230 | AF54: 753 | AG54: 1210 | AH54: 1509 | AI54: 0 | AJ54: 0 | AK54: 0 | AL54: 0 | AM54: 1 | AN54: 56 | AO54: 173 | AP54: 105 | AQ54: 11 | AR54: 0 | AS54: 0 | AT54: 0 | AU54: -5.4 | AV54: -6.16 | AW54: -3.1 | AX54: 5.36 | AY54: 27 | AZ54: 39.38 | BA54: 48.56 | BB54: 47.84 | BC54: 38.3 | BD54: 4.5 | BE54: 4.5 | BF54: -1.3 | BG54: 0.8877980365 | BH54: 0.09937209937 | BI54: 108 | BJ54: 77 | BK54: 51 | BL54: 56 | BM54: =IF(OR(C54="OA",C54="OB",C54="1B",C54="1A",C54="2A",C54="2B",C54="3A",C54="3B",C54="3C"),TAN((LEFT(I54, 5)+VLOOKUP(C54,Main!$K$3:$L$21,2,FALSE))*PI()/180),IF(Checklist!$I$385="No",TAN((LEFT(I54, 5)+VLOOKUP(C54,Main!$K$3:$L$21,2,FALSE))*PI()/180),"NR")) -> NR | BN54: =VLOOKUP(C54,Main!$A$49:$I$67,Main!$B$47,FALSE) -> NR | BO54: =VLOOKUP(C54,Main!$A$49:$I$67,Main!$C$47,FALSE) -> NR | BP54: =VLOOKUP(C54,Main!$A$49:$I$67,Main!$E$47,FALSE)&":"&" "&VLOOKUP(C54,Main!$A$49:$I$67,Main!$F$47,FALSE) -> Minimum COP @ 5°F:: 1.75 | BQ54: =VLOOKUP(C54,Main!$A$49:$I$67,Main!$G$47,FALSE) -> 15 | BR54: =VLOOKUP(C54,Main!$A$49:$I$67,Main!$H$47,FALSE) -> 3.1 | BS54: =VLOOKUP(C54,Main!$A$49:$I$67,Main!$I$47,FALSE) -> 16.1 | BT54: 346
A55: AK | B55: LAKE HOOD SEAPLANE | C55: 7 | D55: 9741 | E55: 1054 | F55: 9.05 | G55: 58.3 | H55: 0.1892 | I55: 61.178N | J55: -3.7 | K55: 17.5 | L55: 22.1 | M55: 25.6 | N55: 37.7 | O55: 49.5 | P55: 57.5 | Q55: 60.8 | R55: 58.5 | S55: 50.3 | T55: 37.3 | U55: 23.4 | V55: 19 | W55: 1008 | X55: 781 | Y55: 756 | Z55: 369 | AA55: 76 | AB55: 1 | AC55: 0 | AD55: 1 | AE55: 57 | AF55: 396 | AG55: 799 | AH55: 960 | AI55: 0 | AJ55: 0 | AK55: 0 | AL55: 1 | AM55: 59 | AN55: 227 | AO55: 336 | AP55: 263 | AQ55: 65 | AR55: 2 | AS55: 0 | AT55: 0 | AU55: 18.9 | AV55: 26.06 | AW55: 20.3 | AX55: 24.98 | AY55: 32.9 | AZ55: 40.28 | BA55: 46.22 | BB55: 46.58 | BC55: 35.8 | BD55: 30.9 | BE55: 30.9 | BF55: 20.8 | BG55: 0.8415841584 | BH55: 0.137208338 | BI55: 87 | BJ55: 57 | BK55: 36 | BL55: 41 | BM55: =IF(OR(C55="OA",C55="OB",C55="1B",C55="1A",C55="2A",C55="2B",C55="3A",C55="3B",C55="3C"),TAN((LEFT(I55, 5)+VLOOKUP(C55,Main!$K$3:$L$21,2,FALSE))*PI()/180),IF(Checklist!$I$385="No",TAN((LEFT(I55, 5)+VLOOKUP(C55,Main!$K$3:$L$21,2,FALSE))*PI()/180),"NR")) -> NR | BN55: =VLOOKUP(C55,Main!$A$49:$I$67,Main!$B$47,FALSE) -> NR | BO55: =VLOOKUP(C55,Main!$A$49:$I$67,Main!$C$47,FALSE) -> NR | BP55: =VLOOKUP(C55,Main!$A$49:$I$67,Main!$E$47,FALSE)&":"&" "&VLOOKUP(C55,Main!$A$49:$I$67,Main!$F$47,FALSE) -> Minimum COP @ 5°F:: 1.75 | BQ55: =VLOOKUP(C55,Main!$A$49:$I$67,Main!$G$47,FALSE) -> 15 | BR55: =VLOOKUP(C55,Main!$A$49:$I$67,Main!$H$47,FALSE) -> 3.1 | BS55: =VLOOKUP(C55,Main!$A$49:$I$67,Main!$I$47,FALSE) -> 16.1 | BT55: 953
A56: AK | B56: MCGRATH ARPT | C56: 8 | D56: 13577 | E56: 902 | F56: -33.1 | G56: 60.3 | H56: 0.1892 | I56: 62.957N | J56: -41.6 | K56: -6.5 | L56: 2.7 | M56: 11 | N56: 31.3 | O56: 47.3 | P56: 57.8 | Q56: 59.8 | R56: 55 | S56: 45 | T56: 26.9 | U56: 6.5 | V56: -3.9 | W56: 1752 | X56: 1324 | Y56: 1209 | Z56: 562 | AA56: 143 | AB56: 4 | AC56: 1 | AD56: 15 | AE56: 173 | AF56: 718 | AG56: 1304 | AH56: 1672 | AI56: 0 | AJ56: 0 | AK56: 0 | AL56: 0 | AM56: 60 | AN56: 237 | AO56: 304 | AP56: 171 | AQ56: 24 | AR56: 1 | AS56: 0 | AT56: 0 | AU56: -5.6 | AV56: -5.8 | AW56: 0.3 | AX56: 16.34 | AY56: 32.4 | AZ56: 42.08 | BA56: 48.74 | BB56: 48.74 | BC56: 34 | BD56: -1.7 | BE56: -1.7 | BF56: -9.8 | BG56: 0.8926174497 | BH56: 0.08976129414 | BI56: 106 | BJ56: 71 | BK56: 46 | BL56: 51 | BM56: =IF(OR(C56="OA",C56="OB",C56="1B",C56="1A",C56="2A",C56="2B",C56="3A",C56="3B",C56="3C"),TAN((LEFT(I56, 5)+VLOOKUP(C56,Main!$K$3:$L$21,2,FALSE))*PI()/180),IF(Checklist!$I$385="No",TAN((LEFT(I56, 5)+VLOOKUP(C56,Main!$K$3:$L$21,2,FALSE))*PI()/180),"NR")) -> NR | BN56: =VLOOKUP(C56,Main!$A$49:$I$67,Main!$B$47,FALSE) -> NR | BO56: =VLOOKUP(C56,Main!$A$49:$I$67,Main!$C$47,FALSE) -> NR | BP56: =VLOOKUP(C56,Main!$A$49:$I$67,Main!$E$47,FALSE)&":"&" "&VLOOKUP(C56,Main!$A$49:$I$67,Main!$F$47,FALSE) -> Minimum COP @ 5°F:: 1.75 | BQ56: =VLOOKUP(C56,Main!$A$49:$I$67,Main!$G$47,FALSE) -> 15 | BR56: =VLOOKUP(C56,Main!$A$49:$I$67,Main!$H$47,FALSE) -> 3.1 | BS56: =VLOOKUP(C56,Main!$A$49:$I$67,Main!$I$47,FALSE) -> 16.1 | BT56: 797
A57: AK | B57: MEKORYUK | C57: 7 | D57: 12635 | E57: 720 | F57: -2.2 | G57: 49.6 | H57: 0.1892 | I57: 60.372N | J57: -10.6 | K57: 10.9 | L57: 15.2 | M57: 14.8 | N57: 24.5 | O57: 34.7 | P57: 43.2 | Q57: 48.5 | R57: 50.2 | S57: 45.4 | T57: 34.3 | U57: 25.6 | V57: 16.3 | W57: 1211 | X57: 974 | Y57: 1091 | Z57: 766 | AA57: 475 | AB57: 207 | AC57: 70 | AD57: 40 | AE57: 145 | AF57: 485 | AG57: 731 | AH57: 1045 | AI57: 0 | AJ57: 0 | AK57: 0 | AL57: 0 | AM57: 0 | AN57: 3 | AO57: 24 | AP57: 46 | AQ57: 8 | AR57: 0 | AS57: 0 | AT57: 0 | AU57: 10.2 | AV57: 22.64 | AW57: 22.6 | AX57: 24.26 | AY57: 30.7 | AZ57: 35.96 | BA57: 42.8 | BB57: 42.44 | BC57: 36.7 | BD57: 25.5 | BE57: 25.5 | BF57: 21.9 | BG57: 0.8598949212 | BH57: 0.1251633313 | BI57: 96 | BJ57: 67 | BK57: 46 | BL57: 51 | BM57: =IF(OR(C57="OA",C57="OB",C57="1B",C57="1A",C57="2A",C57="2B",C57="3A",C57="3B",C57="3C"),TAN((LEFT(I57, 5)+VLOOKUP(C57,Main!$K$3:$L$21,2,FALSE))*PI()/180),IF(Checklist!$I$385="No",TAN((LEFT(I57, 5)+VLOOKUP(C57,Main!$K$3:$L$21,2,FALSE))*PI()/180),"NR")) -> NR | BN57: =VLOOKUP(C57,Main!$A$49:$I$67,Main!$B$47,FALSE) -> NR | BO57: =VLOOKUP(C57,Main!$A$49:$I$67,Main!$C$47,FALSE) -> NR | BP57: =VLOOKUP(C57,Main!$A$49:$I$67,Main!$E$47,FALSE)&":"&" "&VLOOKUP(C57,Main!$A$49:$I$67,Main!$F$47,FALSE) -> Minimum COP @ 5°F:: 1.75 | BQ57: =VLOOKUP(C57,Main!$A$49:$I$67,Main!$G$47,FALSE) -> 15 | BR57: =VLOOKUP(C57,Main!$A$49:$I$67,Main!$H$47,FALSE) -> 3.1 | BS57: =VLOOKUP(C57,Main!$A$49:$I$67,Main!$I$47,FALSE) -> 16.1 | BT57: 81
A58: AK | B58: MIDDLETON ISLAND AUT | C58: 7 | D58: 7760 | E58: 949 | F58: 25.85 | G58: 53.1 | H58: 0.1892 | I58: 59.433N | J58: 23.1 | K58: 35.5 | L58: 35.3 | M58: 35.8 | N58: 40.6 | O58: 44.8 | P58: 50.4 | Q58: 54.6 | R58: 55.3 | S58: 51.6 | T58: 44.8 | U58: 38.8 | V58: 36.8 | W58: 450 | X58: 410 | Y58: 442 | Z58: 284 | AA58: 166 | AB58: 28 | AC58: 0 | AD58: 0 | AE58: 16 | AF58: 164 | AG58: 336 | AH58: 410 | AI58: 0 | AJ58: 0 | AK58: 0 | AL58: 1 | AM58: 6 | AN58: 41 | AO58: 142 | AP58: 166 | AQ58: 65 | AR58: 2 | AS58: 0 | AT58: 0 | AU58: 28.9 | AV58: 30.92 | AW58: 24.8 | AX58: 24.44 | AY58: 30.9 | AZ58: 44.06 | BA58: 28.76 | BB58: 37.76 | BC58: 34.9 | BD58: 27.9 | BE58: 27.9 | BF58: 24.6 | BG58: 0.755351682 | BH58: 0.2191055198 | BI58: 75 | BJ58: 49 | BK58: 32 | BL58: 37 | BM58: =IF(OR(C58="OA",C58="OB",C58="1B",C58="1A",C58="2A",C58="2B",C58="3A",C58="3B",C58="3C"),TAN((LEFT(I58, 5)+VLOOKUP(C58,Main!$K$3:$L$21,2,FALSE))*PI()/180),IF(Checklist!$I$385="No",TAN((LEFT(I58, 5)+VLOOKUP(C58,Main!$K$3:$L$21,2,FALSE))*PI()/180),"NR")) -> NR | BN58: =VLOOKUP(C58,Main!$A$49:$I$67,Main!$B$47,FALSE) -> NR | BO58: =VLOOKUP(C58,Main!$A$49:$I$67,Main!$C$47,FALSE) -> NR | BP58: =VLOOKUP(C58,Main!$A$49:$I$67,Main!$E$47,FALSE)&":"&" "&VLOOKUP(C58,Main!$A$49:$I$67,Main!$F$47,FALSE) -> Minimum COP @ 5°F:: 1.75 | BQ58: =VLOOKUP(C58,Main!$A$49:$I$67,Main!$G$47,FALSE) -> 15 | BR58: =VLOOKUP(C58,Main!$A$49:$I$67,Main!$H$47,FALSE) -> 3.1 | BS58: =VLOOKUP(C58,Main!$A$49:$I$67,Main!$I$47,FALSE) -> 16.1 | BT58: 423
A59: AK | B59: NENANA MUNICIPAL AP | C59: 8 | D59: 13573 | E59: 906 | F59: -28.3 | G59: 62.6 | H59: 0.1892 | I59: 64.550N | J59: -41 | K59: -4.7 | L59: 1.7 | M59: 9.9 | N59: 31.6 | O59: 48.2 | P59: 59 | Q59: 60.6 | R59: 55.6 | S59: 44.7 | T59: 25.2 | U59: 4.2 | V59: -2.9 | W59: 1695 | X59: 1353 | Y59: 1243 | Z59: 552 | AA59: 129 | AB59: 2 | AC59: 1 | AD59: 16 | AE59: 190 | AF59: 768 | AG59: 1375 | AH59: 1641 | AI59: 0 | AJ59: 0 | AK59: 0 | AL59: 1 | AM59: 75 | AN59: 271 | AO59: 329 | AP59: 189 | AQ59: 31 | AR59: 0 | AS59: 0 | AT59: 0 | AU59: 5.9 | AV59: 3.02 | AW59: 9.3 | AX59: 13.64 | AY59: 29.5 | AZ59: 30.02 | BA59: 34.88 | BB59: 31.1 | BC59: 23.4 | BD59: 13.8 | BE59: 13.8 | BF59: -15.7 | BG59: 0.8899587345 | BH59: 0.09025539301 | BI59: 106 | BJ59: 71 | BK59: 45 | BL59: 50 | BM59: =IF(OR(C59="OA",C59="OB",C59="1B",C59="1A",C59="2A",C59="2B",C59="3A",C59="3B",C59="3C"),TAN((LEFT(I59, 5)+VLOOKUP(C59,Main!$K$3:$L$21,2,FALSE))*PI()/180),IF(Checklist!$I$385="No",TAN((LEFT(I59, 5)+VLOOKUP(C59,Main!$K$3:$L$21,2,FALSE))*PI()/180),"NR")) -> NR | BN59: =VLOOKUP(C59,Main!$A$49:$I$67,Main!$B$47,FALSE) -> NR | BO59: =VLOOKUP(C59,Main!$A$49:$I$67,Main!$C$47,FALSE) -> NR | BP59: =VLOOKUP(C59,Main!$A$49:$I$67,Main!$E$47,FALSE)&":"&" "&VLOOKUP(C59,Main!$A$49:$I$67,Main!$F$47,FALSE) -> Minimum COP @ 5°F:: 1.75 | BQ59: =VLOOKUP(C59,Main!$A$49:$I$67,Main!$G$47,FALSE) -> 15 | BR59: =VLOOKUP(C59,Main!$A$49:$I$67,Main!$H$47,FALSE) -> 3.1 | BS59: =VLOOKUP(C59,Main!$A$49:$I$67,Main!$I$47,FALSE) -> 16.1 | BT59: 896
A60: AK | B60: NOME MUNICIPAL ARPT | C60: 8 | D60: 13702 | E60: 822 | F60: -8.75 | G60: 60.8 | H60: 0.1892 | I60: 64.511N | J60: -24.6 | K60: 4.9 | L60: 7.4 | M60: 9.3 | N60: 22 | O60: 36.5 | P60: 47.6 | Q60: 51.9 | R60: 50.5 | S60: 43.1 | T60: 29.6 | U60: 17.4 | V60: 8.2 | W60: 1398 | X60: 1192 | Y60: 1263 | Z60: 841 | AA60: 425 | AB60: 123 | AC60: 41 | AD60: 57 | AE60: 220 | AF60: 634 | AG60: 978 | AH60: 1294 | AI60: 0 | AJ60: 0 | AK60: 0 | AL60: 0 | AM60: 7 | AN60: 52 | AO60: 100 | AP60: 72 | AQ60: 12 | AR60: 0 | AS60: 0 | AT60: 0 | AU60: 8.2 | AV60: -0.22 | AW60: 0.3 | AX60: 10.22 | AY60: 31.8 | AZ60: 40.28 | BA60: 45.68 | BB60: 46.58 | BC60: 36.7 | BD60: 10.8 | BE60: 10.8 | BF60: 0.9 | BG60: 0.8732171157 | BH60: 0.1062401494 | BI60: 102 | BJ60: 71 | BK60: 46 | BL60: 51 | BM60: =IF(OR(C60="OA",C60="OB",C60="1B",C60="1A",C60="2A",C60="2B",C60="3A",C60="3B",C60="3C"),TAN((LEFT(I60, 5)+VLOOKUP(C60,Main!$K$3:$L$21,2,FALSE))*PI()/180),IF(Checklist!$I$385="No",TAN((LEFT(I60, 5)+VLOOKUP(C60,Main!$K$3:$L$21,2,FALSE))*PI()/180),"NR")) -> NR | BN60: =VLOOKUP(C60,Main!$A$49:$I$67,Main!$B$47,FALSE) -> NR | BO60: =VLOOKUP(C60,Main!$A$49:$I$67,Main!$C$47,FALSE) -> NR | BP60: =VLOOKUP(C60,Main!$A$49:$I$67,Main!$E$47,FALSE)&":"&" "&VLOOKUP(C60,Main!$A$49:$I$67,Main!$F$47,FALSE) -> Minimum COP @ 5°F:: 1.75 | BQ60: =VLOOKUP(C60,Main!$A$49:$I$67,Main!$G$47,FALSE) -> 15 | BR60: =VLOOKUP(C60,Main!$A$49:$I$67,Main!$H$47,FALSE) -> 3.1 | BS60: =VLOOKUP(C60,Main!$A$49:$I$67,Main!$I$47,FALSE) -> 16.1 | BT60: 243
A61: AK | B61: NORTHWAY AIRPORT | C61: 8 | D61: 15066 | E61: 836 | F61: -41.25 | G61: 65.1 | H61: 0.1892 | I61: 62.962N | J61: -44.9 | K61: -14.5 | L61: -4.6 | M61: 6.9 | N61: 29.6 | O61: 46.1 | P61: 56.4 | Q61: 58.8 | R61: 54.2 | S61: 42.3 | T61: 22 | U61: -2 | V61: -11.8 | W61: 2000 | X61: 1530 | Y61: 1336 | Z61: 611 | AA61: 165 | AB61: 10 | AC61: 2 | AD61: 21 | AE61: 241 | AF61: 868 | AG61: 1561 | AH61: 1916 | AI61: 0 | AJ61: 0 | AK61: 0 | AL61: 0 | AM61: 44 | AN61: 201 | AO61: 276 | AP61: 153 | AQ61: 11 | AR61: 0 | AS61: 0 | AT61: 0 | AU61: -16.4 | AV61: -8.32 | AW61: 2.1 | AX61: 8.42 | AY61: 29.1 | AZ61: 37.04 | BA61: 46.94 | BB61: 39.92 | BC61: 29.3 | BD61: -8.5 | BE61: -8.5 | BF61: -13.9 | BG61: 0.903030303 | BH61: 0.08713762478 | BI61: 111 | BJ61: 77 | BK61: 49 | BL61: 54 | BM61: =IF(OR(C61="OA",C61="OB",C61="1B",C61="1A",C61="2A",C61="2B",C61="3A",C61="3B",C61="3C"),TAN((LEFT(I61, 5)+VLOOKUP(C61,Main!$K$3:$L$21,2,FALSE))*PI()/180),IF(Checklist!$I$385="No",TAN((LEFT(I61, 5)+VLOOKUP(C61,Main!$K$3:$L$21,2,FALSE))*PI()/180),"NR")) -> NR | BN61: =VLOOKUP(C61,Main!$A$49:$I$67,Main!$B$47,FALSE) -> NR | BO61: =VLOOKUP(C61,Main!$A$49:$I$67,Main!$C$47,FALSE) -> NR | BP61: =VLOOKUP(C61,Main!$A$49:$I$67,Main!$E$47,FALSE)&":"&" "&VLOOKUP(C61,Main!$A$49:$I$67,Main!$F$47,FALSE) -> Minimum COP @ 5°F:: 1.75 | BQ61: =VLOOKUP(C61,Main!$A$49:$I$67,Main!$G$47,FALSE) -> 15 | BR61: =VLOOKUP(C61,Main!$A$49:$I$67,Main!$H$47,FALSE) -> 3.1 | BS61: =VLOOKUP(C61,Main!$A$49:$I$67,Main!$I$47,FALSE) -> 16.1 | BT61: 685
A62: AK | B62: PALMER MUNICIPAL | C62: 7 | D62: 10221 | E62: 852 | F62: 5.85 | G62: 62.2 | H62: 0.1892 | I62: 61.596N | J62: -9.3 | K62: 16 | L62: 21.4 | M62: 25.5 | N62: 37.8 | O62: 48.7 | P62: 55.7 | Q62: 58.5 | R62: 56 | S62: 48.4 | T62: 35.7 | U62: 21.9 | V62: 17.7 | W62: 1054 | X62: 802 | Y62: 759 | Z62: 368 | AA62: 91 | AB62: 3 | AC62: 0 | AD62: 2 | AE62: 83 | AF62: 447 | AG62: 844 | AH62: 1002 | AI62: 0 | AJ62: 0 | AK62: 0 | AL62: 2 | AM62: 50 | AN62: 173 | AO62: 263 | AP62: 188 | AQ62: 34 | AR62: 3 | AS62: 0 | AT62: 0 | AU62: 22.6 | AV62: 25.16 | AW62: 19.9 | AX62: 26.96 | AY62: 34.7 | AZ62: 36.86 | BA62: 47.3 | BB62: 48.38 | BC62: 34.3 | BD62: 29.8 | BE62: 29.8 | BF62: 19.2 | BG62: 0.8461538462 | BH62: 0.1272682773 | BI62: 89 | BJ62: 58 | BK62: 37 | BL62: 42 | BM62: =IF(OR(C62="OA",C62="OB",C62="1B",C62="1A",C62="2A",C62="2B",C62="3A",C62="3B",C62="3C"),TAN((LEFT(I62, 5)+VLOOKUP(C62,Main!$K$3:$L$21,2,FALSE))*PI()/180),IF(Checklist!$I$385="No",TAN((LEFT(I62, 5)+VLOOKUP(C62,Main!$K$3:$L$21,2,FALSE))*PI()/180),"NR")) -> NR | BN62: =VLOOKUP(C62,Main!$A$49:$I$67,Main!$B$47,FALSE) -> NR | BO62: =VLOOKUP(C62,Main!$A$49:$I$67,Main!$C$47,FALSE) -> NR | BP62: =VLOOKUP(C62,Main!$A$49:$I$67,Main!$E$47,FALSE)&":"&" "&VLOOKUP(C62,Main!$A$49:$I$67,Main!$F$47,FALSE) -> Minimum COP @ 5°F:: 1.75 | BQ62: =VLOOKUP(C62,Main!$A$49:$I$67,Main!$G$47,FALSE) -> 15 | BR62: =VLOOKUP(C62,Main!$A$49:$I$67,Main!$H$47,FALSE) -> 3.1 | BS62: =VLOOKUP(C62,Main!$A$49:$I$67,Main!$I$47,FALSE) -> 16.1 | BT62: 713
A63: AK | B63: PETERSBURG | C63: 6B | D63: 8124 | E63: 837 | F63: 8.45 | G63: 64.6 | H63: 0.1892 | I63: 56.806N | J63: 12.2 | K63: 30.5 | L63: 33 | M63: 34.4 | N63: 40.6 | O63: 47.4 | P63: 53.3 | Q63: 55.9 | R63: 55.3 | S63: 50.5 | T63: 43.4 | U63: 35.8 | V63: 32.2 | W63: 604 | X63: 477 | Y63: 482 | Z63: 284 | AA63: 111 | AB63: 8 | AC63: 1 | AD63: 1 | AE63: 32 | AF63: 209 | AG63: 427 | AH63: 551 | AI63: 0 | AJ63: 0 | AK63: 0 | AL63: 1 | AM63: 30 | AN63: 108 | AO63: 182 | AP63: 166 | AQ63: 48 | AR63: 4 | AS63: 0 | AT63: 0 | AU63: 23.5 | AV63: 28.4 | AW63: 26.1 | AX63: 32.54 | AY63: 35.4 | AZ63: 46.76 | BA63: 50.36 | BB63: 49.46 | BC63: 42.4 | BD63: 30.2 | BE63: 30.2 | BF63: 25.7 | BG63: 0.7866666667 | BH63: 0.1763053376 | BI63: 78 | BJ63: 50 | BK63: 31 | BL63: 36 | BM63: =IF(OR(C63="OA",C63="OB",C63="1B",C63="1A",C63="2A",C63="2B",C63="3A",C63="3B",C63="3C"),TAN((LEFT(I63, 5)+VLOOKUP(C63,Main!$K$3:$L$21,2,FALSE))*PI()/180),IF(Checklist!$I$385="No",TAN((LEFT(I63, 5)+VLOOKUP(C63,Main!$K$3:$L$21,2,FALSE))*PI()/180),"NR")) -> NR | BN63: =VLOOKUP(C63,Main!$A$49:$I$67,Main!$B$47,FALSE) -> NR | BO63: =VLOOKUP(C63,Main!$A$49:$I$67,Main!$C$47,FALSE) -> NR | BP63: =VLOOKUP(C63,Main!$A$49:$I$67,Main!$E$47,FALSE)&":"&" "&VLOOKUP(C63,Main!$A$49:$I$67,Main!$F$47,FALSE) -> Minimum COP @ 5°F:: 1.75 | BQ63: =VLOOKUP(C63,Main!$A$49:$I$67,Main!$G$47,FALSE) -> 15 | BR63: =VLOOKUP(C63,Main!$A$49:$I$67,Main!$H$47,FALSE) -> 3.1 | BS63: =VLOOKUP(C63,Main!$A$49:$I$67,Main!$I$47,FALSE) -> 16.1 | BT63: 539
A64: AK | B64: POINT HOPE (AWOS) | C64: 8 | D64: 16233 | E64: 753 | F64: -9.65 | G64: 47.7 | H64: 0.1892 | I64: 68.350N | J64: -24.1 | K64: -4.2 | L64: -3.7 | M64: -0.3 | N64: 10.1 | O64: 27.8 | P64: 37.8 | Q64: 46 | R64: 46.4 | S64: 40.3 | T64: 26.4 | U64: 14.8 | V64: 3.3 | W64: 1681 | X64: 1504 | Y64: 1560 | Z64: 1198 | AA64: 689 | AB64: 371 | AC64: 148 | AD64: 127 | AE64: 293 | AF64: 730 | AG64: 1055 | AH64: 1447 | AI64: 0 | AJ64: 0 | AK64: 0 | AL64: 0 | AM64: 0 | AN64: 4 | AO64: 23 | AP64: 17 | AQ64: 1 | AR64: 0 | AS64: 0 | AT64: 0 | AU64: 3.2 | AV64: -5.08 | AW64: 1.9 | AX64: 4.82 | AY64: 27.1 | AZ64: 30.38 | BA64: 30.38 | BB64: 39.74 | BC64: 30.6 | BD64: 14.2 | BE64: 14.2 | BF64: 8.8 | BG64: 0.8891966759 | BH64: 0.1068169146 | BI64: 108 | BJ64: 81 | BK64: 56 | BL64: 61 | BM64: =IF(OR(C64="OA",C64="OB",C64="1B",C64="1A",C64="2A",C64="2B",C64="3A",C64="3B",C64="3C"),TAN((LEFT(I64, 5)+VLOOKUP(C64,Main!$K$3:$L$21,2,FALSE))*PI()/180),IF(Checklist!$I$385="No",TAN((LEFT(I64, 5)+VLOOKUP(C64,Main!$K$3:$L$21,2,FALSE))*PI()/180),"NR")) -> NR | BN64: =VLOOKUP(C64,Main!$A$49:$I$67,Main!$B$47,FALSE) -> NR | BO64: =VLOOKUP(C64,Main!$A$49:$I$67,Main!$C$47,FALSE) -> NR | BP64: =VLOOKUP(C64,Main!$A$49:$I$67,Main!$E$47,FALSE)&":"&" "&VLOOKUP(C64,Main!$A$49:$I$67,Main!$F$47,FALSE) -> Minimum COP @ 5°F:: 1.75 | BQ64: =VLOOKUP(C64,Main!$A$49:$I$67,Main!$G$47,FALSE) -> 15 | BR64: =VLOOKUP(C64,Main!$A$49:$I$67,Main!$H$47,FALSE) -> 3.1 | BS64: =VLOOKUP(C64,Main!$A$49:$I$67,Main!$I$47,FALSE) -> 16.1 | BT64: 45
A65: AK | B65: PORT HEIDEN | C65: 7 | D65: 10190 | E65: 800 | F65: 12.3 | G65: 53.4 | H65: 0.1892 | I65: 56.959N | J65: -1.6 | K65: 24 | L65: 24.8 | M65: 26.3 | N65: 33.4 | O65: 40.2 | P65: 46.6 | Q65: 51 | R65: 52.5 | S65: 47.5 | T65: 38.4 | U65: 31.9 | V65: 27.6 | W65: 807 | X65: 706 | Y65: 734 | Z65: 499 | AA65: 306 | AB65: 119 | AC65: 37 | AD65: 15 | AE65: 98 | AF65: 362 | AG65: 542 | AH65: 699 | AI65: 0 | AJ65: 0 | AK65: 0 | AL65: 0 | AM65: 4 | AN65: 17 | AO65: 67 | AP65: 92 | AQ65: 23 | AR65: 2 | AS65: 1 | AT65: 4 | AU65: 28.8 | AV65: 17.42 | AW65: 20.8 | AX65: 25.7 | AY65: 27.7 | AZ65: 30.74 | BA65: 35.06 | BB65: 36.5 | BC65: 29.7 | BD65: 28.4 | BE65: 28.4 | BF65: 19 | BG65: 0.8181818182 | BH65: 0.1413482448 | BI65: 87 | BJ65: 58 | BK65: 39 | BL65: 44 | BM65: =IF(OR(C65="OA",C65="OB",C65="1B",C65="1A",C65="2A",C65="2B",C65="3A",C65="3B",C65="3C"),TAN((LEFT(I65, 5)+VLOOKUP(C65,Main!$K$3:$L$21,2,FALSE))*PI()/180),IF(Checklist!$I$385="No",TAN((LEFT(I65, 5)+VLOOKUP(C65,Main!$K$3:$L$21,2,FALSE))*PI()/180),"NR")) -> NR | BN65: =VLOOKUP(C65,Main!$A$49:$I$67,Main!$B$47,FALSE) -> NR | BO65: =VLOOKUP(C65,Main!$A$49:$I$67,Main!$C$47,FALSE) -> NR | BP65: =VLOOKUP(C65,Main!$A$49:$I$67,Main!$E$47,FALSE)&":"&" "&VLOOKUP(C65,Main!$A$49:$I$67,Main!$F$47,FALSE) -> Minimum COP @ 5°F:: 1.75 | BQ65: =VLOOKUP(C65,Main!$A$49:$I$67,Main!$G$47,FALSE) -> 15 | BR65: =VLOOKUP(C65,Main!$A$49:$I$67,Main!$H$47,FALSE) -> 3.1 | BS65: =VLOOKUP(C65,Main!$A$49:$I$67,Main!$I$47,FALSE) -> 16.1 | BT65: 210
A66: AK | B66: SAINT MARY`S (AWOS) | C66: 8 | D66: 13152 | E66: 762 | F66: -5.2 | G66: 57 | H66: 0.1892 | I66: 62.050N | J66: -18.4 | K66: 6.3 | L66: 10.7 | M66: 11 | N66: 24.7 | O66: 39.5 | P66: 50.1 | Q66: 53.2 | R66: 51.3 | S66: 44.1 | T66: 28.9 | U66: 17.6 | V66: 9.1 | W66: 1354 | X66: 1101 | Y66: 1208 | Z66: 760 | AA66: 338 | AB66: 61 | AC66: 22 | AD66: 43 | AE66: 186 | AF66: 653 | AG66: 972 | AH66: 1267 | AI66: 0 | AJ66: 0 | AK66: 0 | AL66: 0 | AM66: 11 | AN66: 64 | AO66: 121 | AP66: 83 | AQ66: 9 | AR66: 0 | AS66: 0 | AT66: 0 | AU66: 7.3 | AV66: 13.46 | AW66: 17.8 | AX66: 24.98 | AY66: 27 | AZ66: 38.84 | BA66: 44.96 | BB66: 43.88 | BC66: 33.4 | BD66: 19.9 | BE66: 19.9 | BF66: 11.8 | BG66: 0.8703403566 | BH66: 0.1138638639 | BI66: 99 | BJ66: 69 | BK66: 46 | BL66: 51 | BM66: =IF(OR(C66="OA",C66="OB",C66="1B",C66="1A",C66="2A",C66="2B",C66="3A",C66="3B",C66="3C"),TAN((LEFT(I66, 5)+VLOOKUP(C66,Main!$K$3:$L$21,2,FALSE))*PI()/180),IF(Checklist!$I$385="No",TAN((LEFT(I66, 5)+VLOOKUP(C66,Main!$K$3:$L$21,2,FALSE))*PI()/180),"NR")) -> NR | BN66: =VLOOKUP(C66,Main!$A$49:$I$67,Main!$B$47,FALSE) -> NR | BO66: =VLOOKUP(C66,Main!$A$49:$I$67,Main!$C$47,FALSE) -> NR | BP66: =VLOOKUP(C66,Main!$A$49:$I$67,Main!$E$47,FALSE)&":"&" "&VLOOKUP(C66,Main!$A$49:$I$67,Main!$F$47,FALSE) -> Minimum COP @ 5°F:: 1.75 | BQ66: =VLOOKUP(C66,Main!$A$49:$I$67,Main!$G$47,FALSE) -> 15 | BR66: =VLOOKUP(C66,Main!$A$49:$I$67,Main!$H$47,FALSE) -> 3.1 | BS66: =VLOOKUP(C66,Main!$A$49:$I$67,Main!$I$47,FALSE) -> 16.1 | BT66: 288
A67: AK | B67: SAND POINT | C67: 7 | D67: 8854 | E67: 828 | F67: 21.95 | G67: 53.1 | H67: 0.1892 | I67: 55.319N | J67: 15.5 | K67: 31.4 | L67: 32.7 | M67: 31.6 | N67: 35.7 | O67: 41.6 | P67: 47.3 | Q67: 51.6 | R67: 53.3 | S67: 49.7 | T67: 42.4 | U67: 37.2 | V67: 33.7 | W67: 575 | X67: 485 | Y67: 572 | Z67: 429 | AA67: 261 | AB67: 91 | AC67: 23 | AD67: 10 | AE67: 41 | AF67: 235 | AG67: 385 | AH67: 504 | AI67: 0 | AJ67: 0 | AK67: 0 | AL67: 0 | AM67: 1 | AN67: 10 | AO67: 74 | AP67: 113 | AQ67: 32 | AR67: 1 | AS67: 0 | AT67: 0 | AU67: 28.6 | AV67: 24.62 | AW67: 28.2 | AX67: 27.68 | AY67: 30.4 | AZ67: 39.2 | BA67: 42.98 | BB67: 47.12 | BC67: 38.1 | BD67: 23.9 | BE67: 23.9 | BF67: 23.2 | BG67: 0.781420765 | BH67: 0.1873873874 | BI67: 79 | BJ67: 53 | BK67: 35 | BL67: 40 | BM67: =IF(OR(C67="OA",C67="OB",C67="1B",C67="1A",C67="2A",C67="2B",C67="3A",C67="3B",C67="3C"),TAN((LEFT(I67, 5)+VLOOKUP(C67,Main!$K$3:$L$21,2,FALSE))*PI()/180),IF(Checklist!$I$385="No",TAN((LEFT(I67, 5)+VLOOKUP(C67,Main!$K$3:$L$21,2,FALSE))*PI()/180),"NR")) -> NR | BN67: =VLOOKUP(C67,Main!$A$49:$I$67,Main!$B$47,FALSE) -> NR | BO67: =VLOOKUP(C67,Main!$A$49:$I$67,Main!$C$47,FALSE) -> NR | BP67: =VLOOKUP(C67,Main!$A$49:$I$67,Main!$E$47,FALSE)&":"&" "&VLOOKUP(C67,Main!$A$49:$I$67,Main!$F$47,FALSE) -> Minimum COP @ 5°F:: 1.75 | BQ67: =VLOOKUP(C67,Main!$A$49:$I$67,Main!$G$47,FALSE) -> 15 | BR67: =VLOOKUP(C67,Main!$A$49:$I$67,Main!$H$47,FALSE) -> 3.1 | BS67: =VLOOKUP(C67,Main!$A$49:$I$67,Main!$I$47,FALSE) -> 16.1 | BT67: 231
A68: AK | B68: SAVOONGA | C68: 8 | D68: 14397 | E68: 711 | F68: -4.15 | G68: 54.5 | H68: 0.1892 | I68: 63.687N | J68: -17.8 | K68: 3.8 | L68: 3.5 | M68: 7.2 | N68: 16.2 | O68: 29.6 | P68: 40 | Q68: 47 | R68: 46.6 | S68: 41 | T68: 32.9 | U68: 25.4 | V68: 12.1 | W68: 1432 | X68: 1303 | Y68: 1326 | Z68: 1013 | AA68: 633 | AB68: 302 | AC68: 113 | AD68: 118 | AE68: 272 | AF68: 530 | AG68: 739 | AH68: 1175 | AI68: 0 | AJ68: 0 | AK68: 0 | AL68: 0 | AM68: 0 | AN68: 2 | AO68: 18 | AP68: 12 | AQ68: 0 | AR68: 0 | AS68: 0 | AT68: 0 | AU68: 3.9 | AV68: 9.68 | AW68: 3.2 | AX68: 13.1 | AY68: 28.6 | AZ68: 32.36 | BA68: 32.36 | BB68: 33.98 | BC68: 34 | BD68: 21.7 | BE68: 21.7 | BF68: 13.3 | BG68: 0.8759689922 | BH68: 0.1146601147 | BI68: 102 | BJ68: 74 | BK68: 50 | BL68: 55 | BM68: =IF(OR(C68="OA",C68="OB",C68="1B",C68="1A",C68="2A",C68="2B",C68="3A",C68="3B",C68="3C"),TAN((LEFT(I68, 5)+VLOOKUP(C68,Main!$K$3:$L$21,2,FALSE))*PI()/180),IF(Checklist!$I$385="No",TAN((LEFT(I68, 5)+VLOOKUP(C68,Main!$K$3:$L$21,2,FALSE))*PI()/180),"NR")) -> NR | BN68: =VLOOKUP(C68,Main!$A$49:$I$67,Main!$B$47,FALSE) -> NR | BO68: =VLOOKUP(C68,Main!$A$49:$I$67,Main!$C$47,FALSE) -> NR | BP68: =VLOOKUP(C68,Main!$A$49:$I$67,Main!$E$47,FALSE)&":"&" "&VLOOKUP(C68,Main!$A$49:$I$67,Main!$F$47,FALSE) -> Minimum COP @ 5°F:: 1.75 | BQ68: =VLOOKUP(C68,Main!$A$49:$I$67,Main!$G$47,FALSE) -> 15 | BR68: =VLOOKUP(C68,Main!$A$49:$I$67,Main!$H$47,FALSE) -> 3.1 | BS68: =VLOOKUP(C68,Main!$A$49:$I$67,Main!$I$47,FALSE) -> 16.1 | BT68: 32
A69: AK | B69: SELAWIK | C69: 8 | D69: 15196 | E69: 858 | F69: -43.45 | G69: 59.4 | H69: 0.1892 | I69: 66.600N | J69: -36.6 | K69: -5.1 | L69: -2.1 | M69: 1.3 | N69: 15 | O69: 34.7 | P69: 51.4 | Q69: 57.2 | R69: 53.7 | S69: 43.3 | T69: 24 | U69: 6.4 | V69: -0.9 | W69: 1708 | X69: 1458 | Y69: 1509 | Z69: 1049 | AA69: 478 | AB69: 73 | AC69: 8 | AD69: 28 | AE69: 214 | AF69: 806 | AG69: 1308 | AH69: 1578 | AI69: 0 | AJ69: 0 | AK69: 0 | AL69: 0 | AM69: 3 | AN69: 115 | AO69: 230 | AP69: 144 | AQ69: 12 | AR69: 0 | AS69: 0 | AT69: 0 | AU69: -14.6 | AV69: -6.34 | AW69: 8.6 | AX69: 16.52 | AY69: 29.5 | AZ69: 38.12 | BA69: 44.6 | BB69: 41 | BC69: 29.1 | BD69: 4.6 | BE69: 4.6 | BF69: 5 | BG69: 0.8905608755 | BH69: 0.09405198698 | BI69: 109 | BJ69: 77 | BK69: 50 | BL69: 55 | BM69: =IF(OR(C69="OA",C69="OB",C69="1B",C69="1A",C69="2A",C69="2B",C69="3A",C69="3B",C69="3C"),TAN((LEFT(I69, 5)+VLOOKUP(C69,Main!$K$3:$L$21,2,FALSE))*PI()/180),IF(Checklist!$I$385="No",TAN((LEFT(I69, 5)+VLOOKUP(C69,Main!$K$3:$L$21,2,FALSE))*PI()/180),"NR")) -> NR | BN69: =VLOOKUP(C69,Main!$A$49:$I$67,Main!$B$47,FALSE) -> NR | BO69: =VLOOKUP(C69,Main!$A$49:$I$67,Main!$C$47,FALSE) -> NR | BP69: =VLOOKUP(C69,Main!$A$49:$I$67,Main!$E$47,FALSE)&":"&" "&VLOOKUP(C69,Main!$A$49:$I$67,Main!$F$47,FALSE) -> Minimum COP @ 5°F:: 1.75 | BQ69: =VLOOKUP(C69,Main!$A$49:$I$67,Main!$G$47,FALSE) -> 15 | BR69: =VLOOKUP(C69,Main!$A$49:$I$67,Main!$H$47,FALSE) -> 3.1 | BS69: =VLOOKUP(C69,Main!$A$49:$I$67,Main!$I$47,FALSE) -> 16.1 | BT69: 504
A70: AK | B70: SEWARD | C70: 7 | D70: 9156 | E70: 859 | F70: 18.15 | G70: 58.5 | H70: 0.1892 | I70: 60.128N | J70: 7 | K70: 25.8 | L70: 27.4 | M70: 30.9 | N70: 38.1 | O70: 45.8 | P70: 51.9 | Q70: 55.6 | R70: 55.2 | S70: 49.6 | T70: 39.8 | U70: 31.1 | V70: 27.1 | W70: 749 | X70: 634 | Y70: 591 | Z70: 360 | AA70: 154 | AB70: 24 | AC70: 1 | AD70: 2 | AE70: 55 | AF70: 316 | AG70: 567 | AH70: 710 | AI70: 0 | AJ70: 0 | AK70: 0 | AL70: 2 | AM70: 23 | AN70: 82 | AO70: 175 | AP70: 164 | AQ70: 41 | AR70: 1 | AS70: 0 | AT70: 0 | AU70: 27 | AV70: 23 | AW70: 22.6 | AX70: 31.64 | AY70: 33.6 | AZ70: 43.52 | BA70: 49.1 | BB70: 46.4 | BC70: 38.3 | BD70: 20.1 | BE70: 20.1 | BF70: 26.6 | BG70: 0.8104265403 | BH70: 0.1612760301 | BI70: =ROUNDDOWN((33.97238548+(2.143484655*3.14219615)+(0.00253108806*D70)+(-0.2767683543*J70)+(66.9384076*H70)+((3.14219615-3.14219615)^2*-1.607593659)+((J70-12.48681818)*(H70-0.2016890909)*-1.8168457)+8.4234),0) -> 82 | BJ70: =ROUNDDOWN((2.975122788+(0.003896731237*D70)+(59.88697433*H70)+((D70-5520.854545)*(H70-0.2016890909)*0.01119327314)+5.3792),0) -> 54 | BK70: 35 | BL70: =ROUNDDOWN(BK70+5.9089,0) -> 40 | BM70: =IF(OR(C70="OA",C70="OB",C70="1B",C70="1A",C70="2A",C70="2B",C70="3A",C70="3B",C70="3C"),TAN((LEFT(I70, 5)+VLOOKUP(C70,Main!$K$3:$L$21,2,FALSE))*PI()/180),IF(Checklist!$I$385="No",TAN((LEFT(I70, 5)+VLOOKUP(C70,Main!$K$3:$L$21,2,FALSE))*PI()/180),"NR")) -> NR | BN70: =VLOOKUP(C70,Main!$A$49:$I$67,Main!$B$47,FALSE) -> NR | BO70: =VLOOKUP(C70,Main!$A$49:$I$67,Main!$C$47,FALSE) -> NR | BP70: =VLOOKUP(C70,Main!$A$49:$I$67,Main!$E$47,FALSE)&":"&" "&VLOOKUP(C70,Main!$A$49:$I$67,Main!$F$47,FALSE) -> Minimum COP @ 5°F:: 1.75 | BQ70: =VLOOKUP(C70,Main!$A$49:$I$67,Main!$G$47,FALSE) -> 15 | BR70: =VLOOKUP(C70,Main!$A$49:$I$67,Main!$H$47,FALSE) -> 3.1 | BS70: =VLOOKUP(C70,Main!$A$49:$I$67,Main!$I$47,FALSE) -> 16.1 | BT70: 488
A71: AK | B71: SHEMYA AFB | C71: 7 | D71: 9322 | E71: 576 | F71: 22.55 | G71: 46.8 | H71: 0.1892 | I71: 52.717N | J71: 23.3 | K71: 31.1 | L71: 31.9 | M71: 32.1 | N71: 35.4 | O71: 39 | P71: 43.3 | Q71: 47.5 | R71: 50.3 | S71: 48.6 | T71: 43.1 | U71: 37.8 | V71: 33 | W71: 587 | X71: 506 | Y71: 554 | Z71: 437 | AA71: 340 | AB71: 202 | AC71: 83 | AD71: 22 | AE71: 55 | AF71: 215 | AG71: 367 | AH71: 528 | AI71: 0 | AJ71: 0 | AK71: 0 | AL71: 0 | AM71: 0 | AN71: 0 | AO71: 5 | AP71: 31 | AQ71: 14 | AR71: 0 | AS71: 0 | AT71: 0 | AU71: 23.9 | AV71: 25.7 | AW71: 24.4 | AX71: 28.04 | AY71: 32.9 | AZ71: 37.58 | BA71: 43.7 | BB71: 46.58 | BC71: 43 | BD71: 27.7 | BE71: 27.7 | BF71: 24.3 | BG71: 0.783197832 | BH71: 0.2200858577 | BI71: 79 | BJ71: 55 | BK71: 38 | BL71: 43 | BM71: =IF(OR(C71="OA",C71="OB",C71="1B",C71="1A",C71="2A",C71="2B",C71="3A",C71="3B",C71="3C"),TAN((LEFT(I71, 5)+VLOOKUP(C71,Main!$K$3:$L$21,2,FALSE))*PI()/180),IF(Checklist!$I$385="No",TAN((LEFT(I71, 5)+VLOOKUP(C71,Main!$K$3:$L$21,2,FALSE))*PI()/180),"NR")) -> NR | BN71: =VLOOKUP(C71,Main!$A$49:$I$67,Main!$B$47,FALSE) -> NR | BO71: =VLOOKUP(C71,Main!$A$49:$I$67,Main!$C$47,FALSE) -> NR | BP71: =VLOOKUP(C71,Main!$A$49:$I$67,Main!$E$47,FALSE)&":"&" "&VLOOKUP(C71,Main!$A$49:$I$67,Main!$F$47,FALSE) -> Minimum COP @ 5°F:: 1.75 | BQ71: =VLOOKUP(C71,Main!$A$49:$I$67,Main!$G$47,FALSE) -> 15 | BR71: =VLOOKUP(C71,Main!$A$49:$I$67,Main!$H$47,FALSE) -> 3.1 | BS71: =VLOOKUP(C71,Main!$A$49:$I$67,Main!$I$47,FALSE) -> 16.1 | BT71: 50
A72: AK | B72: SHISHMAREF (AWOS) | C72: 8 | D72: 15512 | E72: 815 | F72: -20.8 | G72: 50.5 | H72: 0.1892 | I72: 66.250N | J72: -26.2 | K72: -0.2 | L72: 0.5 | M72: -0.7 | N72: 11.8 | O72: 28.9 | P72: 39.1 | Q72: 49.3 | R72: 48.5 | S72: 41.8 | T72: 29.5 | U72: 16.3 | V72: 3.8 | W72: 1556 | X72: 1387 | Y72: 1573 | Z72: 1147 | AA72: 654 | AB72: 332 | AC72: 69 | AD72: 81 | AE72: 248 | AF72: 636 | AG72: 1011 | AH72: 1432 | AI72: 0 | AJ72: 0 | AK72: 0 | AL72: 0 | AM72: 0 | AN72: 4 | AO72: 48 | AP72: 35 | AQ72: 3 | AR72: 0 | AS72: 0 | AT72: 0 | AU72: -0.9 | AV72: -8.5 | AW72: 1.9 | AX72: 14.54 | AY72: 27.1 | AZ72: 33.8 | BA72: 42.8 | BB72: 41 | BC72: 32 | BD72: 15.6 | BE72: 15.6 | BF72: 7.7 | BG72: 0.8835516739 | BH72: 0.1044356458 | BI72: 107 | BJ72: 78 | BK72: =ROUNDDOWN(-18.64576148+(5.900367721*3.14219615)+(0.002662134083*D72)+(38.92365332*H72)+((BT72-3890.577273)*(G72-78.59)*0.00005765875867)+((D72-5520.854545)*(H72-0.2016890909)*0.006047043516),0) -> 53 | BL72: 58 | BM72: =IF(OR(C72="OA",C72="OB",C72="1B",C72="1A",C72="2A",C72="2B",C72="3A",C72="3B",C72="3C"),TAN((LEFT(I72, 5)+VLOOKUP(C72,Main!$K$3:$L$21,2,FALSE))*PI()/180),IF(Checklist!$I$385="No",TAN((LEFT(I72, 5)+VLOOKUP(C72,Main!$K$3:$L$21,2,FALSE))*PI()/180),"NR")) -> NR | BN72: =VLOOKUP(C72,Main!$A$49:$I$67,Main!$B$47,FALSE) -> NR | BO72: =VLOOKUP(C72,Main!$A$49:$I$67,Main!$C$47,FALSE) -> NR | BP72: =VLOOKUP(C72,Main!$A$49:$I$67,Main!$E$47,FALSE)&":"&" "&VLOOKUP(C72,Main!$A$49:$I$67,Main!$F$47,FALSE) -> Minimum COP @ 5°F:: 1.75 | BQ72: =VLOOKUP(C72,Main!$A$49:$I$67,Main!$G$47,FALSE) -> 15 | BR72: =VLOOKUP(C72,Main!$A$49:$I$67,Main!$H$47,FALSE) -> 3.1 | BS72: =VLOOKUP(C72,Main!$A$49:$I$67,Main!$I$47,FALSE) -> 16.1 | BT72: 90
A73: AK | B73: SITKA JAPONSKI AP | C73: 5A | D73: 7216 | E73: 925 | F73: 21.1 | G73: 54.7 | H73: 0.1892 | I73: 57.048N | J73: 20.9 | K73: 36 | L73: 36.6 | M73: 37.3 | N73: 42.5 | O73: 47.8 | P73: 52.8 | Q73: 56.1 | R73: 57.1 | S73: 53.1 | T73: 46.1 | U73: 39.7 | V73: 37 | W73: 433 | X73: 375 | Y73: 392 | Z73: 229 | AA73: 92 | AB73: 8 | AC73: 0 | AD73: 0 | AE73: 10 | AF73: 131 | AG73: 310 | AH73: 404 | AI73: 0 | AJ73: 0 | AK73: 0 | AL73: 4 | AM73: 24 | AN73: 92 | AO73: 189 | AP73: 222 | AQ73: 103 | AR73: 12 | AS73: 1 | AT73: 0 | AU73: 24.8 | AV73: 19.04 | AW73: 25.5 | AX73: 27.14 | AY73: 37.4 | AZ73: 46.22 | BA73: 50.18 | BB73: 51.08 | BC73: 46.4 | BD73: 26.6 | BE73: 26.6 | BF73: 20.7 | BG73: 0.75 | BH73: 0.2088712917 | BI73: 74 | BJ73: 47 | BK73: 30 | BL73: 35 | BM73: =IF(OR(C73="OA",C73="OB",C73="1B",C73="1A",C73="2A",C73="2B",C73="3A",C73="3B",C73="3C"),TAN((LEFT(I73, 5)+VLOOKUP(C73,Main!$K$3:$L$21,2,FALSE))*PI()/180),IF(Checklist!$I$385="No",TAN((LEFT(I73, 5)+VLOOKUP(C73,Main!$K$3:$L$21,2,FALSE))*PI()/180),"NR")) -> NR | BN73: =VLOOKUP(C73,Main!$A$49:$I$67,Main!$B$47,FALSE) -> NR | BO73: =VLOOKUP(C73,Main!$A$49:$I$67,Main!$C$47,FALSE) -> NR | BP73: =VLOOKUP(C73,Main!$A$49:$I$67,Main!$E$47,FALSE)&":"&" "&VLOOKUP(C73,Main!$A$49:$I$67,Main!$F$47,FALSE) -> Minimum COP @ 5°F:: 1.75 | BQ73: =VLOOKUP(C73,Main!$A$49:$I$67,Main!$G$47,FALSE) -> 15 | BR73: =VLOOKUP(C73,Main!$A$49:$I$67,Main!$H$47,FALSE) -> 3.1 | BS73: =VLOOKUP(C73,Main!$A$49:$I$67,Main!$I$47,FALSE) -> 16.1 | BT73: 647
A74: AK | B74: SKAGWAY AIRPORT | C74: 6B | D74: 8384 | E74: 894 | F74: 3.95 | G74: 64 | H74: 0.1892 | I74: 59.456N | J74: 5.8 | K74: 26.5 | L74: 30.2 | M74: 32.2 | N74: 40.9 | O74: 49.4 | P74: 55.3 | Q74: 57.2 | R74: 56.4 | S74: 50.7 | T74: 43 | U74: 33.1 | V74: 28.7 | W74: 727 | X74: 554 | Y74: 551 | Z74: 279 | AA74: 70 | AB74: 2 | AC74: 0 | AD74: 1 | AE74: 34 | AF74: 218 | AG74: 506 | AH74: 660 | AI74: 0 | AJ74: 0 | AK74: 0 | AL74: 6 | AM74: 51 | AN74: 160 | AO74: 224 | AP74: 198 | AQ74: 56 | AR74: 2 | AS74: 0 | AT74: 0 | AU74: 21.9 | AV74: 19.22 | AW74: 24.1 | AX74: 27.68 | AY74: 36 | AZ74: 45.68 | BA74: 47.66 | BB74: 48.38 | BC74: 40.3 | BD74: 24.6 | BE74: 24.6 | BF74: 12.9 | BG74: 0.8072289157 | BH74: 0.1581645955 | BI74: 81 | BJ74: 51 | BK74: 32 | BL74: 37 | BM74: =IF(OR(C74="OA",C74="OB",C74="1B",C74="1A",C74="2A",C74="2B",C74="3A",C74="3B",C74="3C"),TAN((LEFT(I74, 5)+VLOOKUP(C74,Main!$K$3:$L$21,2,FALSE))*PI()/180),IF(Checklist!$I$385="No",TAN((LEFT(I74, 5)+VLOOKUP(C74,Main!$K$3:$L$21,2,FALSE))*PI()/180),"NR")) -> NR | BN74: =VLOOKUP(C74,Main!$A$49:$I$67,Main!$B$47,FALSE) -> NR | BO74: =VLOOKUP(C74,Main!$A$49:$I$67,Main!$C$47,FALSE) -> NR | BP74: =VLOOKUP(C74,Main!$A$49:$I$67,Main!$E$47,FALSE)&":"&" "&VLOOKUP(C74,Main!$A$49:$I$67,Main!$F$47,FALSE) -> Minimum COP @ 5°F:: 1.75 | BQ74: =VLOOKUP(C74,Main!$A$49:$I$67,Main!$G$47,FALSE) -> 15 | BR74: =VLOOKUP(C74,Main!$A$49:$I$67,Main!$H$47,FALSE) -> 3.1 | BS74: =VLOOKUP(C74,Main!$A$49:$I$67,Main!$I$47,FALSE) -> 16.1 | BT74: 697
A75: AK | B75: SLEETMUTE | C75: 7 | D75: 13125 | E75: 933 | F75: -32.2 | G75: 93.2 | H75: 0.1892 | I75: 61.717N | J75: -32.7 | K75: -2.6 | L75: 8.7 | M75: 14.2 | N75: 31.2 | O75: 45 | P75: 54.2 | Q75: 56.4 | R75: 53.5 | S75: 45.6 | T75: 28.3 | U75: 12.6 | V75: 0.6 | W75: 1631 | X75: 1155 | Y75: 1109 | Z75: 565 | AA75: 188 | AB75: 15 | AC75: 3 | AD75: 19 | AE75: 149 | AF75: 673 | AG75: 1124 | AH75: 1532 | AI75: 0 | AJ75: 0 | AK75: 0 | AL75: 0 | AM75: 33 | AN75: 140 | AO75: 201 | AP75: 126 | AQ75: 15 | AR75: 1 | AS75: 0 | AT75: 0 | AU75: -9.4 | AV75: 17.6 | AW75: 7.9 | AX75: 36.32 | AY75: 30.4 | AZ75: 38.12 | BA75: 41.72 | BB75: 39.38 | BC75: 32.7 | BD75: 13.5 | BE75: 13.5 | BF75: 5.7 | BG75: 0.8866855524 | BH75: 0.09769451676 | BI75: 103 | BJ75: 69 | BK75: 38 | BL75: 43 | BM75: =IF(OR(C75="OA",C75="OB",C75="1B",C75="1A",C75="2A",C75="2B",C75="3A",C75="3B",C75="3C"),TAN((LEFT(I75, 5)+VLOOKUP(C75,Main!$K$3:$L$21,2,FALSE))*PI()/180),IF(Checklist!$I$385="No",TAN((LEFT(I75, 5)+VLOOKUP(C75,Main!$K$3:$L$21,2,FALSE))*PI()/180),"NR")) -> NR | BN75: =VLOOKUP(C75,Main!$A$49:$I$67,Main!$B$47,FALSE) -> NR | BO75: =VLOOKUP(C75,Main!$A$49:$I$67,Main!$C$47,FALSE) -> NR | BP75: =VLOOKUP(C75,Main!$A$49:$I$67,Main!$E$47,FALSE)&":"&" "&VLOOKUP(C75,Main!$A$49:$I$67,Main!$F$47,FALSE) -> Minimum COP @ 5°F:: 1.75 | BQ75: =VLOOKUP(C75,Main!$A$49:$I$67,Main!$G$47,FALSE) -> 15 | BR75: =VLOOKUP(C75,Main!$A$49:$I$67,Main!$H$47,FALSE) -> 3.1 | BS75: =VLOOKUP(C75,Main!$A$49:$I$67,Main!$I$47,FALSE) -> 16.1 | BT75: 516
A76: AK | B76: SOLDOTNA | C76: 7 | D76: 11073 | E76: 1065 | F76: 2.25 | G76: 61.9 | H76: 0.1892 | I76: 60.476N | J76: -17.9 | K76: 12.2 | L76: 19.5 | M76: 23.2 | N76: 35.5 | O76: 44.6 | P76: 51.7 | Q76: 55.9 | R76: 54.6 | S76: 46.9 | T76: 34.4 | U76: 21.2 | V76: 15.4 | W76: 1172 | X76: 854 | Y76: 832 | Z76: 436 | AA76: 176 | AB76: 27 | AC76: 1 | AD76: 5 | AE76: 117 | AF76: 486 | AG76: 865 | AH76: 1074 | AI76: 0 | AJ76: 0 | AK76: 0 | AL76: 0 | AM76: 10 | AN76: 78 | AO76: 185 | AP76: 148 | AQ76: 24 | AR76: 1 | AS76: 0 | AT76: 0 | AU76: 17.8 | AV76: 26.42 | AW76: 16.3 | AX76: 27.68 | AY76: 32.9 | AZ76: 39.56 | BA76: 44.78 | BB76: 39.38 | BC76: 34.9 | BD76: 14.5 | BE76: 14.5 | BF76: 20.5 | BG76: 0.8566308244 | BH76: 0.1145266337 | BI76: 94 | BJ76: 62 | BK76: 39 | BL76: 44 | BM76: =IF(OR(C76="OA",C76="OB",C76="1B",C76="1A",C76="2A",C76="2B",C76="3A",C76="3B",C76="3C"),TAN((LEFT(I76, 5)+VLOOKUP(C76,Main!$K$3:$L$21,2,FALSE))*PI()/180),IF(Checklist!$I$385="No",TAN((LEFT(I76, 5)+VLOOKUP(C76,Main!$K$3:$L$21,2,FALSE))*PI()/180),"NR")) -> NR | BN76: =VLOOKUP(C76,Main!$A$49:$I$67,Main!$B$47,FALSE) -> NR | BO76: =VLOOKUP(C76,Main!$A$49:$I$67,Main!$C$47,FALSE) -> NR | BP76: =VLOOKUP(C76,Main!$A$49:$I$67,Main!$E$47,FALSE)&":"&" "&VLOOKUP(C76,Main!$A$49:$I$67,Main!$F$47,FALSE) -> Minimum COP @ 5°F:: 1.75 | BQ76: =VLOOKUP(C76,Main!$A$49:$I$67,Main!$G$47,FALSE) -> 15 | BR76: =VLOOKUP(C76,Main!$A$49:$I$67,Main!$H$47,FALSE) -> 3.1 | BS76: =VLOOKUP(C76,Main!$A$49:$I$67,Main!$I$47,FALSE) -> 16.1 | BT76: 446
A77: AK | B77: ST PAUL ISLAND ARPT | C77: 7 | D77: 10845 | E77: 712 | F77: 15.9 | G77: 44.8 | H77: 0.1892 | I77: 57.155N | J77: 4.7 | K77: 24.4 | L77: 24 | M77: 24.4 | N77: 29.1 | O77: 35.8 | P77: 42.2 | Q77: 47.1 | R77: 48.9 | S77: 45.5 | T77: 38.9 | U77: 33.6 | V77: 28.7 | W77: 793 | X77: 727 | Y77: 794 | Z77: 626 | AA77: 441 | AB77: 233 | AC77: 97 | AD77: 48 | AE77: 137 | AF77: 345 | AG77: 492 | AH77: 661 | AI77: 0 | AJ77: 0 | AK77: 0 | AL77: 0 | AM77: 0 | AN77: 0 | AO77: 7 | AP77: 14 | AQ77: 2 | AR77: 0 | AS77: 0 | AT77: 0 | AU77: 24.3 | AV77: 22.46 | AW77: 22.3 | AX77: 26.96 | AY77: 32.2 | AZ77: 38.66 | BA77: 44.42 | BB77: 46.4 | BC77: 42.1 | BD77: 25.7 | BE77: 25.7 | BF77: 26.2 | BG77: 0.8181818182 | BH77: 0.1554160796 | BI77: 87 | BJ77: 61 | BK77: 43 | BL77: 48 | BM77: =IF(OR(C77="OA",C77="OB",C77="1B",C77="1A",C77="2A",C77="2B",C77="3A",C77="3B",C77="3C"),TAN((LEFT(I77, 5)+VLOOKUP(C77,Main!$K$3:$L$21,2,FALSE))*PI()/180),IF(Checklist!$I$385="No",TAN((LEFT(I77, 5)+VLOOKUP(C77,Main!$K$3:$L$21,2,FALSE))*PI()/180),"NR")) -> NR | BN77: =VLOOKUP(C77,Main!$A$49:$I$67,Main!$B$47,FALSE) -> NR | BO77: =VLOOKUP(C77,Main!$A$49:$I$67,Main!$C$47,FALSE) -> NR | BP77: =VLOOKUP(C77,Main!$A$49:$I$67,Main!$E$47,FALSE)&":"&" "&VLOOKUP(C77,Main!$A$49:$I$67,Main!$F$47,FALSE) -> Minimum COP @ 5°F:: 1.75 | BQ77: =VLOOKUP(C77,Main!$A$49:$I$67,Main!$G$47,FALSE) -> 15 | BR77: =VLOOKUP(C77,Main!$A$49:$I$67,Main!$H$47,FALSE) -> 3.1 | BS77: =VLOOKUP(C77,Main!$A$49:$I$67,Main!$I$47,FALSE) -> 16.1 | BT77: 23
A78: AK | B78: TALKEETNA STATE ARPT | C78: 7 | D78: 10679 | E78: 908 | F78: -8.5 | G78: 61.3 | H78: 0.1892 | I78: 62.320N | J78: -17.6 | K78: 13.8 | L78: 18.3 | M78: 23.9 | N78: 36 | O78: 47.5 | P78: 56.9 | Q78: 59.6 | R78: 56.4 | S78: 47.4 | T78: 33.7 | U78: 19.4 | V78: 15.3 | W78: 1121 | X78: 888 | Y78: 809 | Z78: 421 | AA78: 123 | AB78: 3 | AC78: 0 | AD78: 3 | AE78: 111 | AF78: 508 | AG78: 918 | AH78: 1075 | AI78: 0 | AJ78: 0 | AK78: 0 | AL78: 1 | AM78: 46 | AN78: 211 | AO78: 297 | AP78: 202 | AQ78: 33 | AR78: 1 | AS78: 0 | AT78: 0 | AU78: 11.8 | AV78: 6.26 | AW78: 14.9 | AX78: 24.62 | AY78: 34.2 | AZ78: 41 | BA78: 49.28 | BB78: 48.74 | BC78: 42.1 | BD78: 10.4 | BE78: 10.4 | BF78: 7.3 | BG78: 0.852398524 | BH78: 0.1149280121 | BI78: 93 | BJ78: 60 | BK78: 38 | BL78: 43 | BM78: =IF(OR(C78="OA",C78="OB",C78="1B",C78="1A",C78="2A",C78="2B",C78="3A",C78="3B",C78="3C"),TAN((LEFT(I78, 5)+VLOOKUP(C78,Main!$K$3:$L$21,2,FALSE))*PI()/180),IF(Checklist!$I$385="No",TAN((LEFT(I78, 5)+VLOOKUP(C78,Main!$K$3:$L$21,2,FALSE))*PI()/180),"NR")) -> NR | BN78: =VLOOKUP(C78,Main!$A$49:$I$67,Main!$B$47,FALSE) -> NR | BO78: =VLOOKUP(C78,Main!$A$49:$I$67,Main!$C$47,FALSE) -> NR | BP78: =VLOOKUP(C78,Main!$A$49:$I$67,Main!$E$47,FALSE)&":"&" "&VLOOKUP(C78,Main!$A$49:$I$67,Main!$F$47,FALSE) -> Minimum COP @ 5°F:: 1.75 | BQ78: =VLOOKUP(C78,Main!$A$49:$I$67,Main!$G$47,FALSE) -> 15 | BR78: =VLOOKUP(C78,Main!$A$49:$I$67,Main!$H$47,FALSE) -> 3.1 | BS78: =VLOOKUP(C78,Main!$A$49:$I$67,Main!$I$47,FALSE) -> 16.1 | BT78: 791
A79: AK | B79: TANANA RALPH M CALHOUN MEM AP | C79: 8 | D79: 14366 | E79: 769 | F79: -38.55 | G79: 61.9 | H79: 0.1892 | I79: 65.175N | J79: -42.2 | K79: -9.1 | L79: 0.2 | M79: 5.3 | N79: 26.9 | O79: 46 | P79: 58.3 | Q79: 59.4 | R79: 53.7 | S79: 43 | T79: 25.4 | U79: 2.6 | V79: -5 | W79: 1831 | X79: 1395 | Y79: 1386 | Z79: 693 | AA79: 184 | AB79: 4 | AC79: 3 | AD79: 25 | AE79: 226 | AF79: 762 | AG79: 1421 | AH79: 1704 | AI79: 0 | AJ79: 0 | AK79: 0 | AL79: 0 | AM79: 61 | AN79: 252 | AO79: 293 | AP79: 139 | AQ79: 17 | AR79: 1 | AS79: 0 | AT79: 0 | AU79: -9.6 | AV79: 3.38 | AW79: 7.2 | AX79: 13.64 | AY79: 24.8 | AZ79: 41 | BA79: 48.56 | BB79: 40.28 | BC79: 28.9 | BD79: 3 | BE79: 3 | BF79: -0.8 | BG79: 0.8962386511 | BH79: 0.08927257566 | BI79: 108 | BJ79: 74 | BK79: 47 | BL79: 52 | BM79: =IF(OR(C79="OA",C79="OB",C79="1B",C79="1A",C79="2A",C79="2B",C79="3A",C79="3B",C79="3C"),TAN((LEFT(I79, 5)+VLOOKUP(C79,Main!$K$3:$L$21,2,FALSE))*PI()/180),IF(Checklist!$I$385="No",TAN((LEFT(I79, 5)+VLOOKUP(C79,Main!$K$3:$L$21,2,FALSE))*PI()/180),"NR")) -> NR | BN79: =VLOOKUP(C79,Main!$A$49:$I$67,Main!$B$47,FALSE) -> NR | BO79: =VLOOKUP(C79,Main!$A$49:$I$67,Main!$C$47,FALSE) -> NR | BP79: =VLOOKUP(C79,Main!$A$49:$I$67,Main!$E$47,FALSE)&":"&" "&VLOOKUP(C79,Main!$A$49:$I$67,Main!$F$47,FALSE) -> Minimum COP @ 5°F:: 1.75 | BQ79: =VLOOKUP(C79,Main!$A$49:$I$67,Main!$G$47,FALSE) -> 15 | BR79: =VLOOKUP(C79,Main!$A$49:$I$67,Main!$H$47,FALSE) -> 3.1 | BS79: =VLOOKUP(C79,Main!$A$49:$I$67,Main!$I$47,FALSE) -> 16.1 | BT79: 763
A80: AK | B80: TOGIAK VILLAGE AWOS | C80: 7 | D80: 11313 | E80: 880 | F80: -2.2 | G80: 62.6 | H80: 0.1892 | I80: 59.067N | J80: -13.6 | K80: 16.8 | L80: 19.8 | M80: 19.1 | N80: 31.4 | O80: 41.6 | P80: 49.7 | Q80: 53.4 | R80: 52.6 | S80: 46.4 | T80: 34.7 | U80: 23.5 | V80: 18.2 | W80: 1030 | X80: 846 | Y80: 958 | Z80: 557 | AA80: 270 | AB80: 61 | AC80: 12 | AD80: 15 | AE80: 124 | AF80: 476 | AG80: 794 | AH80: 986 | AI80: 0 | AJ80: 0 | AK80: 0 | AL80: 0 | AM80: 9 | AN80: 51 | AO80: 118 | AP80: 96 | AQ80: 17 | AR80: 0 | AS80: 0 | AT80: 0 | AU80: 20.5 | AV80: 30.2 | AW80: 20.3 | AX80: 21.02 | AY80: 28.4 | AZ80: 39.2 | BA80: 47.48 | BB80: 44.96 | BC80: 33.8 | BD80: 23.9 | BE80: 23.9 | BF80: 17.8 | BG80: 0.84375 | BH80: 0.1205617382 | BI80: 93 | BJ80: 62 | BK80: 40 | BL80: 45 | BM80: =IF(OR(C80="OA",C80="OB",C80="1B",C80="1A",C80="2A",C80="2B",C80="3A",C80="3B",C80="3C"),TAN((LEFT(I80, 5)+VLOOKUP(C80,Main!$K$3:$L$21,2,FALSE))*PI()/180),IF(Checklist!$I$385="No",TAN((LEFT(I80, 5)+VLOOKUP(C80,Main!$K$3:$L$21,2,FALSE))*PI()/180),"NR")) -> NR | BN80: =VLOOKUP(C80,Main!$A$49:$I$67,Main!$B$47,FALSE) -> NR | BO80: =VLOOKUP(C80,Main!$A$49:$I$67,Main!$C$47,FALSE) -> NR | BP80: =VLOOKUP(C80,Main!$A$49:$I$67,Main!$E$47,FALSE)&":"&" "&VLOOKUP(C80,Main!$A$49:$I$67,Main!$F$47,FALSE) -> Minimum COP @ 5°F:: 1.75 | BQ80: =VLOOKUP(C80,Main!$A$49:$I$67,Main!$G$47,FALSE) -> 15 | BR80: =VLOOKUP(C80,Main!$A$49:$I$67,Main!$H$47,FALSE) -> 3.1 | BS80: =VLOOKUP(C80,Main!$A$49:$I$67,Main!$I$47,FALSE) -> 16.1 | BT80: 291
A81: AK | B81: UNALAKLEET FIELD | C81: 8 | D81: 13224 | E81: 819 | F81: -25.55 | G81: 54.9 | H81: 0.1892 | I81: 63.883N | J81: -25.2 | K81: 5.8 | L81: 10.5 | M81: 11.4 | N81: 25 | O81: 38.3 | P81: 49.4 | Q81: 55.3 | R81: 52.5 | S81: 44.4 | T81: 28.2 | U81: 13.5 | V81: 9.8 | W81: 1369 | X81: 1105 | Y81: 1198 | Z81: 751 | AA81: 369 | AB81: 84 | AC81: 8 | AD81: 32 | AE81: 184 | AF81: 675 | AG81: 1094 | AH81: 1247 | AI81: 0 | AJ81: 0 | AK81: 0 | AL81: 0 | AM81: 7 | AN81: 67 | AO81: 171 | AP81: 108 | AQ81: 18 | AR81: 0 | AS81: 0 | AT81: 0 | AU81: 0.3 | AV81: 6.98 | AW81: 11.3 | AX81: 18.86 | AY81: 29.3 | AZ81: 37.22 | BA81: 44.42 | BB81: 40.64 | BC81: 31.6 | BD81: 12.9 | BE81: 12.9 | BF81: 6.6 | BG81: 0.8713826367 | BH81: 0.1055562 | BI81: 101 | BJ81: 70 | BK81: 46 | BL81: 51 | BM81: =IF(OR(C81="OA",C81="OB",C81="1B",C81="1A",C81="2A",C81="2B",C81="3A",C81="3B",C81="3C"),TAN((LEFT(I81, 5)+VLOOKUP(C81,Main!$K$3:$L$21,2,FALSE))*PI()/180),IF(Checklist!$I$385="No",TAN((LEFT(I81, 5)+VLOOKUP(C81,Main!$K$3:$L$21,2,FALSE))*PI()/180),"NR")) -> NR | BN81: =VLOOKUP(C81,Main!$A$49:$I$67,Main!$B$47,FALSE) -> NR | BO81: =VLOOKUP(C81,Main!$A$49:$I$67,Main!$C$47,FALSE) -> NR | BP81: =VLOOKUP(C81,Main!$A$49:$I$67,Main!$E$47,FALSE)&":"&" "&VLOOKUP(C81,Main!$A$49:$I$67,Main!$F$47,FALSE) -> Minimum COP @ 5°F:: 1.75 | BQ81: =VLOOKUP(C81,Main!$A$49:$I$67,Main!$G$47,FALSE) -> 15 | BR81: =VLOOKUP(C81,Main!$A$49:$I$67,Main!$H$47,FALSE) -> 3.1 | BS81: =VLOOKUP(C81,Main!$A$49:$I$67,Main!$I$47,FALSE) -> 16.1 | BT81: 371
A82: AK | B82: VALDEZ PIONEER FIEL | C82: 7 | D82: 9319 | E82: 783 | F82: 12.25 | G82: 55.2 | H82: 0.1892 | I82: 61.130N | J82: 7.1 | K82: 23.8 | L82: 26.4 | M82: 30.7 | N82: 39.1 | O82: 47.2 | P82: 54.2 | Q82: 55.8 | R82: 54.2 | S82: 47.4 | T82: 38.7 | U82: 29.4 | V82: 25.8 | W82: 813 | X82: 661 | Y82: 599 | Z82: 328 | AA82: 110 | AB82: 6 | AC82: 0 | AD82: 4 | AE82: 95 | AF82: 349 | AG82: 617 | AH82: 750 | AI82: 0 | AJ82: 0 | AK82: 0 | AL82: 2 | AM82: 24 | AN82: 133 | AO82: 178 | AP82: 136 | AQ82: 17 | AR82: 0 | AS82: 0 | AT82: 0 | AU82: 28.2 | AV82: 26.06 | AW82: 25.3 | AX82: 23.9 | AY82: 33.4 | AZ82: 39.92 | BA82: 48.02 | BB82: 44.24 | BC82: 32.2 | BD82: 27.5 | BE82: 27.5 | BF82: 24.1 | BG82: 0.8190045249 | BH82: 0.1615408512 | BI82: 83 | BJ82: 55 | BK82: 36 | BL82: 41 | BM82: =IF(OR(C82="OA",C82="OB",C82="1B",C82="1A",C82="2A",C82="2B",C82="3A",C82="3B",C82="3C"),TAN((LEFT(I82, 5)+VLOOKUP(C82,Main!$K$3:$L$21,2,FALSE))*PI()/180),IF(Checklist!$I$385="No",TAN((LEFT(I82, 5)+VLOOKUP(C82,Main!$K$3:$L$21,2,FALSE))*PI()/180),"NR")) -> NR | BN82: =VLOOKUP(C82,Main!$A$49:$I$67,Main!$B$47,FALSE) -> NR | BO82: =VLOOKUP(C82,Main!$A$49:$I$67,Main!$C$47,FALSE) -> NR | BP82: =VLOOKUP(C82,Main!$A$49:$I$67,Main!$E$47,FALSE)&":"&" "&VLOOKUP(C82,Main!$A$49:$I$67,Main!$F$47,FALSE) -> Minimum COP @ 5°F:: 1.75 | BQ82: =VLOOKUP(C82,Main!$A$49:$I$67,Main!$G$47,FALSE) -> 15 | BR82: =VLOOKUP(C82,Main!$A$49:$I$67,Main!$H$47,FALSE) -> 3.1 | BS82: =VLOOKUP(C82,Main!$A$49:$I$67,Main!$I$47,FALSE) -> 16.1 | BT82: 490
A83: AK | B83: VALDEZ WSO | C83: 7 | D83: 9882 | E83: 746 | F83: 14.35 | G83: 59.4 | H83: 0.1892 | I83: 61.132N | J83: 5.3 | K83: 22.3 | L83: 25.3 | M83: 28 | N83: 36.5 | O83: 45.7 | P83: 52 | Q83: 54.1 | R83: 52.6 | S83: 47.3 | T83: 38.7 | U83: 27.6 | V83: 24.2 | W83: 858 | X83: 691 | Y83: 683 | Z83: 405 | AA83: 153 | AB83: 17 | AC83: 3 | AD83: 6 | AE83: 91 | AF83: 352 | AG83: 673 | AH83: 799 | AI83: 0 | AJ83: 0 | AK83: 0 | AL83: 1 | AM83: 21 | AN83: 77 | AO83: 129 | AP83: 86 | AQ83: 11 | AR83: 0 | AS83: 0 | AT83: 0 | AU83: 15.3 | AV83: 19.76 | AW83: 21.2 | AX83: 31.82 | AY83: 39.9 | AZ83: 45.32 | BA83: 48.74 | BB83: 48.2 | BC83: 43.7 | BD83: 11.7 | BE83: 11.7 | BF83: 18.7 | BG83: 0.8249452954 | BH83: 0.1569033148 | BI83: 85 | BJ83: 57 | BK83: 37 | BL83: 42 | BM83: =IF(OR(C83="OA",C83="OB",C83="1B",C83="1A",C83="2A",C83="2B",C83="3A",C83="3B",C83="3C"),TAN((LEFT(I83, 5)+VLOOKUP(C83,Main!$K$3:$L$21,2,FALSE))*PI()/180),IF(Checklist!$I$385="No",TAN((LEFT(I83, 5)+VLOOKUP(C83,Main!$K$3:$L$21,2,FALSE))*PI()/180),"NR")) -> NR | BN83: =VLOOKUP(C83,Main!$A$49:$I$67,Main!$B$47,FALSE) -> NR | BO83: =VLOOKUP(C83,Main!$A$49:$I$67,Main!$C$47,FALSE) -> NR | BP83: =VLOOKUP(C83,Main!$A$49:$I$67,Main!$E$47,FALSE)&":"&" "&VLOOKUP(C83,Main!$A$49:$I$67,Main!$F$47,FALSE) -> Minimum COP @ 5°F:: 1.75 | BQ83: =VLOOKUP(C83,Main!$A$49:$I$67,Main!$G$47,FALSE) -> 15 | BR83: =VLOOKUP(C83,Main!$A$49:$I$67,Main!$H$47,FALSE) -> 3.1 | BS83: =VLOOKUP(C83,Main!$A$49:$I$67,Main!$I$47,FALSE) -> 16.1 | BT83: 325
A84: AK | B84: WHITTIER | C84: 7 | D84: 8745 | E84: 803 | F84: 12.5 | G84: 59.9 | H84: 0.1892 | I84: 60.777N | J84: 9.8 | K84: 28.4 | L84: 29.1 | M84: 32.1 | N84: 39.1 | O84: 46.4 | P84: 54.1 | Q84: 56.7 | R84: 55.8 | S84: 48.7 | T84: 39.8 | U84: 32.1 | V84: 29.7 | W84: 670 | X84: 584 | Y84: 554 | Z84: 330 | AA84: 135 | AB84: 14 | AC84: 0 | AD84: 1 | AE84: 72 | AF84: 316 | AG84: 537 | AH84: 630 | AI84: 0 | AJ84: 0 | AK84: 0 | AL84: 1 | AM84: 24 | AN84: 136 | AO84: 207 | AP84: 181 | AQ84: 32 | AR84: 0 | AS84: 0 | AT84: 0 | AU84: 23.7 | AV84: 26.06 | AW84: 25.2 | AX84: 23.18 | AY84: 35.8 | AZ84: 45.68 | BA84: 49.64 | BB84: 47.84 | BC84: 37.6 | BD84: 21 | BE84: 21 | BF84: 25.5 | BG84: 0.797979798 | BH84: 0.1690350144 | BI84: 81 | BJ84: 53 | BK84: 33 | BL84: 38 | BM84: =IF(OR(C84="OA",C84="OB",C84="1B",C84="1A",C84="2A",C84="2B",C84="3A",C84="3B",C84="3C"),TAN((LEFT(I84, 5)+VLOOKUP(C84,Main!$K$3:$L$21,2,FALSE))*PI()/180),IF(Checklist!$I$385="No",TAN((LEFT(I84, 5)+VLOOKUP(C84,Main!$K$3:$L$21,2,FALSE))*PI()/180),"NR")) -> NR | BN84: =VLOOKUP(C84,Main!$A$49:$I$67,Main!$B$47,FALSE) -> NR | BO84: =VLOOKUP(C84,Main!$A$49:$I$67,Main!$C$47,FALSE) -> NR | BP84: =VLOOKUP(C84,Main!$A$49:$I$67,Main!$E$47,FALSE)&":"&" "&VLOOKUP(C84,Main!$A$49:$I$67,Main!$F$47,FALSE) -> Minimum COP @ 5°F:: 1.75 | BQ84: =VLOOKUP(C84,Main!$A$49:$I$67,Main!$G$47,FALSE) -> 15 | BR84: =VLOOKUP(C84,Main!$A$49:$I$67,Main!$H$47,FALSE) -> 3.1 | BS84: =VLOOKUP(C84,Main!$A$49:$I$67,Main!$I$47,FALSE) -> 16.1 | BT84: 581
A85: AK | B85: WRANGELL | C85: 6B | D85: 7476 | E85: 933 | F85: 13.8 | G85: 63.5 | H85: 0.1892 | I85: 56.473N | J85: 15.8 | K85: 32.1 | L85: 34.3 | M85: 36.8 | N85: 42.9 | O85: 49.6 | P85: 54.6 | Q85: 57 | R85: 56.9 | S85: 52.2 | T85: 45.2 | U85: 37.9 | V85: 33.9 | W85: 554 | X85: 439 | Y85: 408 | Z85: 215 | AA85: 64 | AB85: 4 | AC85: 0 | AD85: 0 | AE85: 13 | AF85: 156 | AG85: 362 | AH85: 499 | AI85: 0 | AJ85: 0 | AK85: 0 | AL85: 4 | AM85: 52 | AN85: 142 | AO85: 218 | AP85: 213 | AQ85: 80 | AR85: 7 | AS85: 0 | AT85: 0 | AU85: 21.9 | AV85: 24.62 | AW85: 26.1 | AX85: 30.56 | AY85: 37.8 | AZ85: 46.58 | BA85: 51.44 | BB85: 50.36 | BC85: 44.8 | BD85: 28.9 | BE85: 28.9 | BF85: 25.5 | BG85: 0.7771587744 | BH85: 0.1884643264 | BI85: 76 | BJ85: 48 | BK85: 29 | BL85: 34 | BM85: =IF(OR(C85="OA",C85="OB",C85="1B",C85="1A",C85="2A",C85="2B",C85="3A",C85="3B",C85="3C"),TAN((LEFT(I85, 5)+VLOOKUP(C85,Main!$K$3:$L$21,2,FALSE))*PI()/180),IF(Checklist!$I$385="No",TAN((LEFT(I85, 5)+VLOOKUP(C85,Main!$K$3:$L$21,2,FALSE))*PI()/180),"NR")) -> NR | BN85: =VLOOKUP(C85,Main!$A$49:$I$67,Main!$B$47,FALSE) -> NR | BO85: =VLOOKUP(C85,Main!$A$49:$I$67,Main!$C$47,FALSE) -> NR | BP85: =VLOOKUP(C85,Main!$A$49:$I$67,Main!$E$47,FALSE)&":"&" "&VLOOKUP(C85,Main!$A$49:$I$67,Main!$F$47,FALSE) -> Minimum COP @ 5°F:: 1.75 | BQ85: =VLOOKUP(C85,Main!$A$49:$I$67,Main!$G$47,FALSE) -> 15 | BR85: =VLOOKUP(C85,Main!$A$49:$I$67,Main!$H$47,FALSE) -> 3.1 | BS85: =VLOOKUP(C85,Main!$A$49:$I$67,Main!$I$47,FALSE) -> 16.1 | BT85: 716
A86: AK | B86: YAKUTAT STATE ARPT | C86: 6A | D86: 8981 | E86: 796 | F86: 15.35 | G86: 55.4 | H86: 0.1892 | I86: 59.512N | J86: 7 | K86: 27.7 | L86: 29.9 | M86: 31.3 | N86: 37.9 | O86: 44.9 | P86: 51.3 | Q86: 54.6 | R86: 54.1 | S86: 49 | T86: 41.2 | U86: 32.6 | V86: 29.6 | W86: 690 | X86: 564 | Y86: 581 | Z86: 362 | AA86: 169 | AB86: 23 | AC86: 1 | AD86: 4 | AE86: 65 | AF86: 274 | AG86: 522 | AH86: 633 | AI86: 0 | AJ86: 0 | AK86: 0 | AL86: 0 | AM86: 10 | AN86: 62 | AO86: 143 | AP86: 131 | AQ86: 35 | AR86: 1 | AS86: 0 | AT86: 0 | AU86: 23 | AV86: 19.4 | AW86: 25 | AX86: 33.62 | AY86: 40.1 | AZ86: 45.86 | BA86: 50 | BB86: 50.9 | BC86: 44.8 | BD86: 28 | BE86: 28 | BF86: 26.8 | BG86: 0.8014888337 | BH86: 0.1612760301 | BI86: 82 | BJ86: 54 | BK86: 35 | BL86: 40 | BM86: =IF(OR(C86="OA",C86="OB",C86="1B",C86="1A",C86="2A",C86="2B",C86="3A",C86="3B",C86="3C"),TAN((LEFT(I86, 5)+VLOOKUP(C86,Main!$K$3:$L$21,2,FALSE))*PI()/180),IF(Checklist!$I$385="No",TAN((LEFT(I86, 5)+VLOOKUP(C86,Main!$K$3:$L$21,2,FALSE))*PI()/180),"NR")) -> NR | BN86: =VLOOKUP(C86,Main!$A$49:$I$67,Main!$B$47,FALSE) -> NR | BO86: =VLOOKUP(C86,Main!$A$49:$I$67,Main!$C$47,FALSE) -> NR | BP86: =VLOOKUP(C86,Main!$A$49:$I$67,Main!$E$47,FALSE)&":"&" "&VLOOKUP(C86,Main!$A$49:$I$67,Main!$F$47,FALSE) -> Minimum COP @ 5°F:: 1.75 | BQ86: =VLOOKUP(C86,Main!$A$49:$I$67,Main!$G$47,FALSE) -> 15 | BR86: =VLOOKUP(C86,Main!$A$49:$I$67,Main!$H$47,FALSE) -> 3.1 | BS86: =VLOOKUP(C86,Main!$A$49:$I$67,Main!$I$47,FALSE) -> 16.1 | BT86: 382
A87: AL | B87: ANNISTON METROPOLITAN AP | C87: 3A | D87: 2677 | E87: 1464 | F87: 39.75 | G87: 78.8 | H87: 0.1114 | I87: 33.587N | J87: 24.9 | K87: 44.4 | L87: 47.9 | M87: 55 | N87: 62.4 | O87: 70.2 | P87: 77.1 | Q87: 80 | R87: 79.7 | S87: 74 | T87: 63.2 | U87: 52.9 | V87: 46.5 | W87: 230 | X87: 135 | Y87: 52 | Z87: 5 | AA87: 0 | AB87: 0 | AC87: 0 | AD87: 0 | AE87: 0 | AF87: 5 | AG87: 64 | AH87: 181 | AI87: 57 | AJ87: 76 | AK87: 206 | AL87: 379 | AM87: 627 | AN87: 813 | AO87: 931 | AP87: 920 | AQ87: 721 | AR87: 415 | AS87: 152 | AT87: 72 | AU87: 39.6 | AV87: 42.08 | AW87: 41.5 | AX87: 55.4 | AY87: 65.3 | AZ87: 64.22 | BA87: 71.24 | BB87: 67.28 | BC87: 62.4 | BD87: 45.1 | BE87: 45.1 | BF87: 35.8 | BG87: 0.6610169492 | BH87: 0.2282560983 | BI87: 58 | BJ87: 28 | BK87: 12 | BL87: 17 | BM87: =IF(OR(C87="OA",C87="OB",C87="1B",C87="1A",C87="2A",C87="2B",C87="3A",C87="3B",C87="3C"),TAN((LEFT(I87, 5)+VLOOKUP(C87,Main!$K$3:$L$21,2,FALSE))*PI()/180),IF(Checklist!$I$385="No",TAN((LEFT(I87, 5)+VLOOKUP(C87,Main!$K$3:$L$21,2,FALSE))*PI()/180),"NR")) -> 0.6638953758 | BN87: =VLOOKUP(C87,Main!$A$49:$I$67,Main!$B$47,FALSE) -> 0.6 | BO87: =VLOOKUP(C87,Main!$A$49:$I$67,Main!$C$47,FALSE) -> 0.25 | BP87: =VLOOKUP(C87,Main!$A$49:$I$67,Main!$E$47,FALSE)&":"&" "&VLOOKUP(C87,Main!$A$49:$I$67,Main!$F$47,FALSE) -> Minimum HSPF:: 9.6 | BQ87: =VLOOKUP(C87,Main!$A$49:$I$67,Main!$G$47,FALSE) -> 18 | BR87: =VLOOKUP(C87,Main!$A$49:$I$67,Main!$H$47,FALSE) -> 3.1 | BS87: =VLOOKUP(C87,Main!$A$49:$I$67,Main!$I$47,FALSE) -> 16.1 | BT87: 5369
A88: AL | B88: AUBURN-OPELIKA APT | C88: 3A | D88: 2416 | E88: 1729 | F88: 30.9 | G88: 74.8 | H88: 0.1114 | I88: 32.616N | J88: 27.5 | K88: 46.3 | L88: 49.3 | M88: 55.8 | N88: 62.8 | O88: 71.1 | P88: 77.3 | Q88: 79.7 | R88: 79.3 | S88: 74.1 | T88: 64.5 | U88: 55 | V88: 47.5 | W88: 190 | X88: 114 | Y88: 45 | Z88: 4 | AA88: 0 | AB88: 0 | AC88: 0 | AD88: 0 | AE88: 0 | AF88: 3 | AG88: 43 | AH88: 154 | AI88: 77 | AJ88: 93 | AK88: 223 | AL88: 388 | AM88: 653 | AN88: 820 | AO88: 919 | AP88: 909 | AQ88: 723 | AR88: 454 | AS88: 193 | AT88: 76 | AU88: 28.9 | AV88: 34.88 | AW88: 36.3 | AX88: 43.7 | AY88: 55 | AZ88: 68.54 | BA88: 69.08 | BB88: 67.28 | BC88: 62.4 | BD88: 43 | BE88: 43 | BF88: 36.1 | BG88: 0.6313364055 | BH88: 0.2429095762 | BI88: 57 | BJ88: 27 | BK88: 11 | BL88: 16 | BM88: =IF(OR(C88="OA",C88="OB",C88="1B",C88="1A",C88="2A",C88="2B",C88="3A",C88="3B",C88="3C"),TAN((LEFT(I88, 5)+VLOOKUP(C88,Main!$K$3:$L$21,2,FALSE))*PI()/180),IF(Checklist!$I$385="No",TAN((LEFT(I88, 5)+VLOOKUP(C88,Main!$K$3:$L$21,2,FALSE))*PI()/180),"NR")) -> 0.6397726239 | BN88: =VLOOKUP(C88,Main!$A$49:$I$67,Main!$B$47,FALSE) -> 0.6 | BO88: =VLOOKUP(C88,Main!$A$49:$I$67,Main!$C$47,FALSE) -> 0.25 | BP88: =VLOOKUP(C88,Main!$A$49:$I$67,Main!$E$47,FALSE)&":"&" "&VLOOKUP(C88,Main!$A$49:$I$67,Main!$F$47,FALSE) -> Minimum HSPF:: 9.6 | BQ88: =VLOOKUP(C88,Main!$A$49:$I$67,Main!$G$47,FALSE) -> 18 | BR88: =VLOOKUP(C88,Main!$A$49:$I$67,Main!$H$47,FALSE) -> 3.1 | BS88: =VLOOKUP(C88,Main!$A$49:$I$67,Main!$I$47,FALSE) -> 16.1 | BT88: 5528
A89: AL | B89: BIRMINGHAM MUNICIPAL AP | C89: 3A | D89: 2610 | E89: 1607 | F89: 37.3 | G89: 80.1 | H89: 0.1114 | I89: 33.566N | J89: 25.1 | K89: 44.6 | L89: 48.3 | M89: 55.4 | N89: 63.1 | O89: 70.9 | P89: 77.8 | Q89: 80.8 | R89: 80.6 | S89: 74.8 | T89: 64 | U89: 53.7 | V89: 46.8 | W89: 232 | X89: 135 | Y89: 55 | Z89: 6 | AA89: 0 | AB89: 0 | AC89: 0 | AD89: 0 | AE89: 0 | AF89: 4 | AG89: 61 | AH89: 180 | AI89: 66 | AJ89: 86 | AK89: 223 | AL89: 400 | AM89: 646 | AN89: 834 | AO89: 955 | AP89: 947 | AQ89: 744 | AR89: 438 | AS89: 171 | AT89: 80 | AU89: 31.8 | AV89: 32.72 | AW89: 39.6 | AX89: 50 | AY89: 57.6 | AZ89: 67.82 | BA89: 71.42 | BB89: 68.54 | BC89: 63.3 | BD89: 46.8 | BE89: 46.8 | BF89: 33.4 | BG89: 0.6581196581 | BH89: 0.2293202293 | BI89: 58 | BJ89: 28 | BK89: 12 | BL89: 17 | BM89: =IF(OR(C89="OA",C89="OB",C89="1B",C89="1A",C89="2A",C89="2B",C89="3A",C89="3B",C89="3C"),TAN((LEFT(I89, 5)+VLOOKUP(C89,Main!$K$3:$L$21,2,FALSE))*PI()/180),IF(Checklist!$I$385="No",TAN((LEFT(I89, 5)+VLOOKUP(C89,Main!$K$3:$L$21,2,FALSE))*PI()/180),"NR")) -> 0.6633925732 | BN89: =VLOOKUP(C89,Main!$A$49:$I$67,Main!$B$47,FALSE) -> 0.6 | BO89: =VLOOKUP(C89,Main!$A$49:$I$67,Main!$C$47,FALSE) -> 0.25 | BP89: =VLOOKUP(C89,Main!$A$49:$I$67,Main!$E$47,FALSE)&":"&" "&VLOOKUP(C89,Main!$A$49:$I$67,Main!$F$47,FALSE) -> Minimum HSPF:: 9.6 | BQ89: =VLOOKUP(C89,Main!$A$49:$I$67,Main!$G$47,FALSE) -> 18 | BR89: =VLOOKUP(C89,Main!$A$49:$I$67,Main!$H$47,FALSE) -> 3.1 | BS89: =VLOOKUP(C89,Main!$A$49:$I$67,Main!$I$47,FALSE) -> 16.1 | BT89: 5590
A90: AL | B90: CAIRNS FIELD FORT RUCKER | C90: 2A | D90: 1797 | E90: 1608 | F90: 38.1 | G90: 81.5 | H90: 0.1114 | I90: 31.267N | J90: 29.8 | K90: 50.3 | L90: 53.4 | M90: 59.4 | N90: 65.7 | O90: 73.8 | P90: 79.5 | Q90: 81.4 | R90: 80.4 | S90: 76.7 | T90: 67.4 | U90: 57.7 | V90: 52.4 | W90: 119 | X90: 62 | Y90: 21 | Z90: 0 | AA90: 0 | AB90: 0 | AC90: 0 | AD90: 0 | AE90: 0 | AF90: 1 | AG90: 22 | AH90: 82 | AI90: 129 | AJ90: 157 | AK90: 314 | AL90: 472 | AM90: 739 | AN90: 885 | AO90: 974 | AP90: 944 | AQ90: 801 | AR90: 539 | AS90: 254 | AT90: 155 | AU90: 35.4 | AV90: 41.36 | AW90: 42.8 | AX90: 47.3 | AY90: 68.9 | AZ90: 68.9 | BA90: 73.76 | BB90: 70.52 | BC90: 66.6 | BD90: 45.7 | BE90: 45.7 | BF90: 39.6 | BG90: 0.6 | BH90: 0.2575350219 | BI90: 55 | BJ90: 25 | BK90: 11 | BL90: 16 | BM90: =IF(OR(C90="OA",C90="OB",C90="1B",C90="1A",C90="2A",C90="2B",C90="3A",C90="3B",C90="3C"),TAN((LEFT(I90, 5)+VLOOKUP(C90,Main!$K$3:$L$21,2,FALSE))*PI()/180),IF(Checklist!$I$385="No",TAN((LEFT(I90, 5)+VLOOKUP(C90,Main!$K$3:$L$21,2,FALSE))*PI()/180),"NR")) -> 0.6070537218 | BN90: =VLOOKUP(C90,Main!$A$49:$I$67,Main!$B$47,FALSE) -> 0.6 | BO90: =VLOOKUP(C90,Main!$A$49:$I$67,Main!$C$47,FALSE) -> 0.25 | BP90: =VLOOKUP(C90,Main!$A$49:$I$67,Main!$E$47,FALSE)&":"&" "&VLOOKUP(C90,Main!$A$49:$I$67,Main!$F$47,FALSE) -> Minimum HSPF:: 9.6 | BQ90: =VLOOKUP(C90,Main!$A$49:$I$67,Main!$G$47,FALSE) -> 18 | BR90: =VLOOKUP(C90,Main!$A$49:$I$67,Main!$H$47,FALSE) -> 3.1 | BS90: =VLOOKUP(C90,Main!$A$49:$I$67,Main!$I$47,FALSE) -> 16.1 | BT90: 6363
A91: AL | B91: DOTHAN MUNICIPAL AP | C91: 2A | D91: 1735 | E91: 1687 | F91: 41.9 | G91: 80.4 | H91: 0.1114 | I91: 31.317N | J91: 30.9 | K91: 50.5 | L91: 53.8 | M91: 59.8 | N91: 66.5 | O91: 74.8 | P91: 80.5 | Q91: 82 | R91: 81.4 | S91: 77.3 | T91: 67.9 | U91: 58.1 | V91: 52.3 | W91: 114 | X91: 54 | Y91: 18 | Z91: 1 | AA91: 0 | AB91: 0 | AC91: 0 | AD91: 0 | AE91: 0 | AF91: 0 | AG91: 20 | AH91: 82 | AI91: 130 | AJ91: 161 | AK91: 320 | AL91: 495 | AM91: 770 | AN91: 914 | AO91: 993 | AP91: 973 | AQ91: 818 | AR91: 556 | AS91: 264 | AT91: 154 | AU91: 29.7 | AV91: 35.24 | AW91: 52.3 | AX91: 49.46 | AY91: 61 | AZ91: 68.54 | BA91: 70.88 | BB91: 72.86 | BC91: 71.6 | BD91: 47.3 | BE91: 47.3 | BF91: 35.6 | BG91: 0.6 | BH91: 0.2651708312 | BI91: 55 | BJ91: 25 | BK91: 11 | BL91: 16 | BM91: =IF(OR(C91="OA",C91="OB",C91="1B",C91="1A",C91="2A",C91="2B",C91="3A",C91="3B",C91="3C"),TAN((LEFT(I91, 5)+VLOOKUP(C91,Main!$K$3:$L$21,2,FALSE))*PI()/180),IF(Checklist!$I$385="No",TAN((LEFT(I91, 5)+VLOOKUP(C91,Main!$K$3:$L$21,2,FALSE))*PI()/180),"NR")) -> 0.6082486091 | BN91: =VLOOKUP(C91,Main!$A$49:$I$67,Main!$B$47,FALSE) -> 0.6 | BO91: =VLOOKUP(C91,Main!$A$49:$I$67,Main!$C$47,FALSE) -> 0.25 | BP91: =VLOOKUP(C91,Main!$A$49:$I$67,Main!$E$47,FALSE)&":"&" "&VLOOKUP(C91,Main!$A$49:$I$67,Main!$F$47,FALSE) -> Minimum HSPF:: 9.6 | BQ91: =VLOOKUP(C91,Main!$A$49:$I$67,Main!$G$47,FALSE) -> 18 | BR91: =VLOOKUP(C91,Main!$A$49:$I$67,Main!$H$47,FALSE) -> 3.1 | BS91: =VLOOKUP(C91,Main!$A$49:$I$67,Main!$I$47,FALSE) -> 16.1 | BT91: 6548
A92: AL | B92: HUNTSVILLE INTL/JONES FIELD | C92: 3A | D92: 3052 | E92: 1575 | F92: 21.55 | G92: 81.9 | H92: 0.1114 | I92: 34.644N | J92: 22.9 | K92: 41.8 | L92: 45.4 | M92: 53 | N92: 61.8 | O92: 69.9 | P92: 77.2 | Q92: 79.7 | R92: 79.3 | S92: 73.3 | T92: 62.3 | U92: 51.5 | V92: 44.2 | W92: 296 | X92: 182 | Y92: 80 | Z92: 9 | AA92: 0 | AB92: 0 | AC92: 0 | AD92: 0 | AE92: 0 | AF92: 7 | AG92: 88 | AH92: 233 | AI92: 41 | AJ92: 55 | AK92: 173 | AL92: 363 | AM92: 617 | AN92: 815 | AO92: 921 | AP92: 907 | AQ92: 699 | AR92: 389 | AS92: 132 | AT92: 53 | AU92: 26.6 | AV92: 32.54 | AW92: 41 | AX92: 45.86 | AY92: 57.6 | AZ92: 65.3 | BA92: 68 | BB92: 68 | BC92: 60.8 | BD92: 44.8 | BE92: 44.8 | BF92: 30.7 | BG92: 0.6946564885 | BH92: 0.2181338767 | BI92: 59 | BJ92: 29 | BK92: 13 | BL92: 18 | BM92: =IF(OR(C92="OA",C92="OB",C92="1B",C92="1A",C92="2A",C92="2B",C92="3A",C92="3B",C92="3C"),TAN((LEFT(I92, 5)+VLOOKUP(C92,Main!$K$3:$L$21,2,FALSE))*PI()/180),IF(Checklist!$I$385="No",TAN((LEFT(I92, 5)+VLOOKUP(C92,Main!$K$3:$L$21,2,FALSE))*PI()/180),"NR")) -> 0.6908846599 | BN92: =VLOOKUP(C92,Main!$A$49:$I$67,Main!$B$47,FALSE) -> 0.6 | BO92: =VLOOKUP(C92,Main!$A$49:$I$67,Main!$C$47,FALSE) -> 0.25 | BP92: =VLOOKUP(C92,Main!$A$49:$I$67,Main!$E$47,FALSE)&":"&" "&VLOOKUP(C92,Main!$A$49:$I$67,Main!$F$47,FALSE) -> Minimum HSPF:: 9.6 | BQ92: =VLOOKUP(C92,Main!$A$49:$I$67,Main!$G$47,FALSE) -> 18 | BR92: =VLOOKUP(C92,Main!$A$49:$I$67,Main!$H$47,FALSE) -> 3.1 | BS92: =VLOOKUP(C92,Main!$A$49:$I$67,Main!$I$47,FALSE) -> 16.1 | BT92: 5165
A93: AL | B93: MAXWELL AFB | C93: 2A | D93: 1957 | E93: 1623 | F93: 38.3 | G93: 82.9 | H93: 0.1114 | I93: 32.383N | J93: 29.6 | K93: 48.3 | L93: 52.6 | M93: 58.8 | N93: 65.8 | O93: 74.1 | P93: 81 | Q93: 82.8 | R93: 82.7 | S93: 77.8 | T93: 67.1 | U93: 56 | V93: 51.5 | W93: 146 | X93: 66 | Y93: 25 | Z93: 2 | AA93: 0 | AB93: 0 | AC93: 0 | AD93: 0 | AE93: 0 | AF93: 1 | AG93: 30 | AH93: 96 | AI93: 92 | AJ93: 139 | AK93: 297 | AL93: 476 | AM93: 747 | AN93: 931 | AO93: 1017 | AP93: 1013 | AQ93: 834 | AR93: 531 | AS93: 211 | AT93: 141 | AU93: 32.4 | AV93: 36.5 | AW93: 39.7 | AX93: 47.84 | AY93: 61.3 | AZ93: 69.98 | BA93: 73.58 | BB93: 69.8 | BC93: 64.9 | BD93: 42.3 | BE93: 42.3 | BF93: 36.1 | BG93: 0.6 | BH93: 0.2561936937 | BI93: 56 | BJ93: 26 | BK93: 12 | BL93: 17 | BM93: =IF(OR(C93="OA",C93="OB",C93="1B",C93="1A",C93="2A",C93="2B",C93="3A",C93="3B",C93="3C"),TAN((LEFT(I93, 5)+VLOOKUP(C93,Main!$K$3:$L$21,2,FALSE))*PI()/180),IF(Checklist!$I$385="No",TAN((LEFT(I93, 5)+VLOOKUP(C93,Main!$K$3:$L$21,2,FALSE))*PI()/180),"NR")) -> 0.6341297568 | BN93: =VLOOKUP(C93,Main!$A$49:$I$67,Main!$B$47,FALSE) -> 0.6 | BO93: =VLOOKUP(C93,Main!$A$49:$I$67,Main!$C$47,FALSE) -> 0.25 | BP93: =VLOOKUP(C93,Main!$A$49:$I$67,Main!$E$47,FALSE)&":"&" "&VLOOKUP(C93,Main!$A$49:$I$67,Main!$F$47,FALSE) -> Minimum HSPF:: 9.6 | BQ93: =VLOOKUP(C93,Main!$A$49:$I$67,Main!$G$47,FALSE) -> 18 | BR93: =VLOOKUP(C93,Main!$A$49:$I$67,Main!$H$47,FALSE) -> 3.1 | BS93: =VLOOKUP(C93,Main!$A$49:$I$67,Main!$I$47,FALSE) -> 16.1 | BT93: 6429
A94: AL | B94: MOBILE DOWNTOWN AP | C94: 2A | D94: 1603 | E94: 1728 | F94: 44.5 | G94: 83.1 | H94: 0.1114 | I94: 30.626N | J94: 32.5 | K94: 51 | L94: 53.9 | M94: 60.3 | N94: 67.1 | O94: 74.4 | P94: 80.4 | Q94: 82 | R94: 82.4 | S94: 78.8 | T94: 69.5 | U94: 59.6 | V94: 53 | W94: 103 | X94: 46 | Y94: 11 | Z94: 0 | AA94: 0 | AB94: 0 | AC94: 0 | AD94: 0 | AE94: 0 | AF94: 0 | AG94: 13 | AH94: 72 | AI94: 135 | AJ94: 155 | AK94: 330 | AL94: 512 | AM94: 757 | AN94: 912 | AO94: 993 | AP94: 1003 | AQ94: 865 | AR94: 604 | AS94: 302 | AT94: 164 | AU94: 48.2 | AV94: 47.48 | AW94: 47.3 | AX94: 56.48 | AY94: 67.8 | AZ94: 66.56 | BA94: 74.12 | BB94: 72.32 | BC94: 67.5 | BD94: 50.2 | BE94: 50.2 | BF94: 40.3 | BG94: 0.6 | BH94: 0.2771221926 | BI94: 54 | BJ94: 25 | BK94: 11 | BL94: 16 | BM94: =IF(OR(C94="OA",C94="OB",C94="1B",C94="1A",C94="2A",C94="2B",C94="3A",C94="3B",C94="3C"),TAN((LEFT(I94, 5)+VLOOKUP(C94,Main!$K$3:$L$21,2,FALSE))*PI()/180),IF(Checklist!$I$385="No",TAN((LEFT(I94, 5)+VLOOKUP(C94,Main!$K$3:$L$21,2,FALSE))*PI()/180),"NR")) -> 0.591869601 | BN94: =VLOOKUP(C94,Main!$A$49:$I$67,Main!$B$47,FALSE) -> 0.6 | BO94: =VLOOKUP(C94,Main!$A$49:$I$67,Main!$C$47,FALSE) -> 0.25 | BP94: =VLOOKUP(C94,Main!$A$49:$I$67,Main!$E$47,FALSE)&":"&" "&VLOOKUP(C94,Main!$A$49:$I$67,Main!$F$47,FALSE) -> Minimum HSPF:: 9.6 | BQ94: =VLOOKUP(C94,Main!$A$49:$I$67,Main!$G$47,FALSE) -> 18 | BR94: =VLOOKUP(C94,Main!$A$49:$I$67,Main!$H$47,FALSE) -> 3.1 | BS94: =VLOOKUP(C94,Main!$A$49:$I$67,Main!$I$47,FALSE) -> 16.1 | BT94: 6732
A95: AL | B95: MOBILE REGIONAL AP | C95: 2A | D95: 1642 | E95: 1643 | F95: 43.35 | G95: 81.3 | H95: 0.1114 | I95: 30.688N | J95: 31.1 | K95: 51.3 | L95: 54.5 | M95: 60.3 | N95: 66.7 | O95: 74.2 | P95: 79.9 | Q95: 81.6 | R95: 81.7 | S95: 77.7 | T95: 68.3 | U95: 58.8 | V95: 53 | W95: 103 | X95: 49 | Y95: 16 | Z95: 0 | AA95: 0 | AB95: 0 | AC95: 0 | AD95: 0 | AE95: 0 | AF95: 1 | AG95: 20 | AH95: 79 | AI95: 144 | AJ95: 175 | AK95: 336 | AL95: 502 | AM95: 750 | AN95: 896 | AO95: 980 | AP95: 981 | AQ95: 830 | AR95: 570 | AS95: 282 | AT95: 171 | AU95: 38.5 | AV95: 44.06 | AW95: 51.3 | AX95: 53.6 | AY95: 65.1 | AZ95: 71.24 | BA95: 72.32 | BB95: 71.6 | BC95: 66.2 | BD95: 50.4 | BE95: 50.4 | BF95: 42.3 | BG95: 0.6 | BH95: 0.2666080715 | BI95: 55 | BJ95: 25 | BK95: 11 | BL95: 16 | BM95: =IF(OR(C95="OA",C95="OB",C95="1B",C95="1A",C95="2A",C95="2B",C95="3A",C95="3B",C95="3C"),TAN((LEFT(I95, 5)+VLOOKUP(C95,Main!$K$3:$L$21,2,FALSE))*PI()/180),IF(Checklist!$I$385="No",TAN((LEFT(I95, 5)+VLOOKUP(C95,Main!$K$3:$L$21,2,FALSE))*PI()/180),"NR")) -> 0.5932845195 | BN95: =VLOOKUP(C95,Main!$A$49:$I$67,Main!$B$47,FALSE) -> 0.6 | BO95: =VLOOKUP(C95,Main!$A$49:$I$67,Main!$C$47,FALSE) -> 0.25 | BP95: =VLOOKUP(C95,Main!$A$49:$I$67,Main!$E$47,FALSE)&":"&" "&VLOOKUP(C95,Main!$A$49:$I$67,Main!$F$47,FALSE) -> Minimum HSPF:: 9.6 | BQ95: =VLOOKUP(C95,Main!$A$49:$I$67,Main!$G$47,FALSE) -> 18 | BR95: =VLOOKUP(C95,Main!$A$49:$I$67,Main!$H$47,FALSE) -> 3.1 | BS95: =VLOOKUP(C95,Main!$A$49:$I$67,Main!$I$47,FALSE) -> 16.1 | BT95: 6617
A96: AL | B96: MONTGOMERY DANNELLY FIELD | C96: 2A | D96: 2109 | E96: 1688 | F96: 46.5 | G96: 83.1 | H96: 0.1114 | I96: 32.300N | J96: 27.9 | K96: 47.7 | L96: 51.6 | M96: 58.2 | N96: 65 | O96: 72.8 | P96: 79.5 | Q96: 82 | R96: 81.8 | S96: 76.8 | T96: 66.2 | U96: 55.9 | V96: 49.5 | W96: 161 | X96: 82 | Y96: 27 | Z96: 1 | AA96: 0 | AB96: 0 | AC96: 0 | AD96: 0 | AE96: 0 | AF96: 2 | AG96: 35 | AH96: 124 | AI96: 91 | AJ96: 125 | AK96: 282 | AL96: 452 | AM96: 708 | AN96: 884 | AO96: 992 | AP96: 987 | AQ96: 804 | AR96: 504 | AS96: 213 | AT96: 110 | AU96: 34.5 | AV96: 38.12 | AW96: 48 | AX96: 55.22 | AY96: 61 | AZ96: 68.36 | BA96: 71.96 | BB96: 70.7 | BC96: 64 | BD96: 45.5 | BE96: 45.5 | BF96: 35.2 | BG96: 0.60591133 | BH96: 0.2453326144 | BI96: 56 | BJ96: 26 | BK96: 12 | BL96: 17 | BM96: =IF(OR(C96="OA",C96="OB",C96="1B",C96="1A",C96="2A",C96="2B",C96="3A",C96="3B",C96="3C"),TAN((LEFT(I96, 5)+VLOOKUP(C96,Main!$K$3:$L$21,2,FALSE))*PI()/180),IF(Checklist!$I$385="No",TAN((LEFT(I96, 5)+VLOOKUP(C96,Main!$K$3:$L$21,2,FALSE))*PI()/180),"NR")) -> 0.6321737577 | BN96: =VLOOKUP(C96,Main!$A$49:$I$67,Main!$B$47,FALSE) -> 0.6 | BO96: =VLOOKUP(C96,Main!$A$49:$I$67,Main!$C$47,FALSE) -> 0.25 | BP96: =VLOOKUP(C96,Main!$A$49:$I$67,Main!$E$47,FALSE)&":"&" "&VLOOKUP(C96,Main!$A$49:$I$67,Main!$F$47,FALSE) -> Minimum HSPF:: 9.6 | BQ96: =VLOOKUP(C96,Main!$A$49:$I$67,Main!$G$47,FALSE) -> 18 | BR96: =VLOOKUP(C96,Main!$A$49:$I$67,Main!$H$47,FALSE) -> 3.1 | BS96: =VLOOKUP(C96,Main!$A$49:$I$67,Main!$I$47,FALSE) -> 16.1 | BT96: 6152
A97: AL | B97: MUSCLE SHOALS REGIONAL AP | C97: 3A | D97: 2997 | E97: 1404 | F97: 24 | G97: 81 | H97: 0.1114 | I97: 34.744N | J97: 23.8 | K97: 42.5 | L97: 45.8 | M97: 53.2 | N97: 62.3 | O97: 70.1 | P97: 77.3 | Q97: 80.3 | R97: 79.7 | S97: 73.7 | T97: 62.4 | U97: 51.7 | V97: 44.1 | W97: 277 | X97: 172 | Y97: 72 | Z97: 8 | AA97: 0 | AB97: 0 | AC97: 0 | AD97: 0 | AE97: 0 | AF97: 6 | AG97: 85 | AH97: 234 | AI97: 45 | AJ97: 54 | AK97: 172 | AL97: 376 | AM97: 622 | AN97: 819 | AO97: 939 | AP97: 922 | AQ97: 711 | AR97: 390 | AS97: 134 | AT97: 51 | AU97: 39.2 | AV97: 32.36 | AW97: 41.5 | AX97: 49.64 | AY97: 60.4 | AZ97: 64.76 | BA97: 73.04 | BB97: 66.38 | BC97: 61 | BD97: 47.1 | BE97: 47.1 | BF97: 39.9 | BG97: 0.6862745098 | BH97: 0.2225755167 | BI97: 59 | BJ97: 29 | BK97: 13 | BL97: 18 | BM97: =IF(OR(C97="OA",C97="OB",C97="1B",C97="1A",C97="2A",C97="2B",C97="3A",C97="3B",C97="3C"),TAN((LEFT(I97, 5)+VLOOKUP(C97,Main!$K$3:$L$21,2,FALSE))*PI()/180),IF(Checklist!$I$385="No",TAN((LEFT(I97, 5)+VLOOKUP(C97,Main!$K$3:$L$21,2,FALSE))*PI()/180),"NR")) -> 0.693466188 | BN97: =VLOOKUP(C97,Main!$A$49:$I$67,Main!$B$47,FALSE) -> 0.6 | BO97: =VLOOKUP(C97,Main!$A$49:$I$67,Main!$C$47,FALSE) -> 0.25 | BP97: =VLOOKUP(C97,Main!$A$49:$I$67,Main!$E$47,FALSE)&":"&" "&VLOOKUP(C97,Main!$A$49:$I$67,Main!$F$47,FALSE) -> Minimum HSPF:: 9.6 | BQ97: =VLOOKUP(C97,Main!$A$49:$I$67,Main!$G$47,FALSE) -> 18 | BR97: =VLOOKUP(C97,Main!$A$49:$I$67,Main!$H$47,FALSE) -> 3.1 | BS97: =VLOOKUP(C97,Main!$A$49:$I$67,Main!$I$47,FALSE) -> 16.1 | BT97: 5235
A98: AL | B98: TUSCALOOSA MUNICIPAL AP | C98: 3A | D98: 2450 | E98: 1500 | F98: 39.2 | G98: 81.1 | H98: 0.1114 | I98: 33.212N | J98: 26.6 | K98: 45.4 | L98: 49.3 | M98: 56.4 | N98: 64.1 | O98: 71.9 | P98: 78.9 | Q98: 81.6 | R98: 81.3 | S98: 75.5 | T98: 64.5 | U98: 54.1 | V98: 47.8 | W98: 209 | X98: 115 | Y98: 40 | Z98: 3 | AA98: 0 | AB98: 0 | AC98: 0 | AD98: 0 | AE98: 0 | AF98: 3 | AG98: 53 | AH98: 157 | AI98: 66 | AJ98: 96 | AK98: 238 | AL98: 424 | AM98: 679 | AN98: 867 | AO98: 979 | AP98: 971 | AQ98: 765 | AR98: 454 | AS98: 177 | AT98: 87 | AU98: 39.6 | AV98: 39.02 | AW98: 37.6 | AX98: 56.66 | AY98: 65.5 | AZ98: 65.48 | BA98: 70.7 | BB98: 67.46 | BC98: 68 | BD98: 52.3 | BE98: 52.3 | BF98: 28.8 | BG98: 0.6460176991 | BH98: 0.2376289333 | BI98: 57 | BJ98: 27 | BK98: 12 | BL98: 17 | BM98: =IF(OR(C98="OA",C98="OB",C98="1B",C98="1A",C98="2A",C98="2B",C98="3A",C98="3B",C98="3C"),TAN((LEFT(I98, 5)+VLOOKUP(C98,Main!$K$3:$L$21,2,FALSE))*PI()/180),IF(Checklist!$I$385="No",TAN((LEFT(I98, 5)+VLOOKUP(C98,Main!$K$3:$L$21,2,FALSE))*PI()/180),"NR")) -> 0.6546309627 | BN98: =VLOOKUP(C98,Main!$A$49:$I$67,Main!$B$47,FALSE) -> 0.6 | BO98: =VLOOKUP(C98,Main!$A$49:$I$67,Main!$C$47,FALSE) -> 0.25 | BP98: =VLOOKUP(C98,Main!$A$49:$I$67,Main!$E$47,FALSE)&":"&" "&VLOOKUP(C98,Main!$A$49:$I$67,Main!$F$47,FALSE) -> Minimum HSPF:: 9.6 | BQ98: =VLOOKUP(C98,Main!$A$49:$I$67,Main!$G$47,FALSE) -> 18 | BR98: =VLOOKUP(C98,Main!$A$49:$I$67,Main!$H$47,FALSE) -> 3.1 | BS98: =VLOOKUP(C98,Main!$A$49:$I$67,Main!$I$47,FALSE) -> 16.1 | BT98: 5803
A99: AR | B99: BATESVILLE (AWOS) | C99: 4A | D99: 3450 | E99: 1599 | F99: 25.7 | G99: 82.2 | H99: 0.0912 | I99: 35.726N | J99: 20.2 | K99: 39.4 | L99: 42.8 | M99: 51.1 | N99: 60.7 | O99: 68.9 | P99: 77.1 | Q99: 80.7 | R99: 80 | S99: 72.1 | T99: 61.4 | U99: 50.4 | V99: 41.5 | W99: 359 | X99: 242 | Y99: 112 | Z99: 13 | AA99: 1 | AB99: 0 | AC99: 0 | AD99: 0 | AE99: 0 | AF99: 10 | AG99: 105 | AH99: 298 | AI99: 30 | AJ99: 42 | AK99: 147 | AL99: 334 | AM99: 588 | AN99: 812 | AO99: 953 | AP99: 931 | AQ99: 662 | AR99: 362 | AS99: 117 | AT99: 34 | AU99: 33.6 | AV99: 26.6 | AW99: 29.5 | AX99: 39.92 | AY99: 53.1 | AZ99: 65.12 | BA99: 65.66 | BB99: 61.16 | BC99: 63 | BD99: 35.6 | BE99: 35.6 | BF99: 32.9 | BG99: 0.7202797203 | BH99: 0.2058125071 | BI99: 59 | BJ99: 29 | BK99: 14 | BL99: 19 | BM99: =IF(OR(C99="OA",C99="OB",C99="1B",C99="1A",C99="2A",C99="2B",C99="3A",C99="3B",C99="3C"),TAN((LEFT(I99, 5)+VLOOKUP(C99,Main!$K$3:$L$21,2,FALSE))*PI()/180),IF(Checklist!$I$385="No",TAN((LEFT(I99, 5)+VLOOKUP(C99,Main!$K$3:$L$21,2,FALSE))*PI()/180),"NR")) -> NR | BN99: =VLOOKUP(C99,Main!$A$49:$I$67,Main!$B$47,FALSE) -> 0.5 | BO99: =VLOOKUP(C99,Main!$A$49:$I$67,Main!$C$47,FALSE) -> 0.25 | BP99: =VLOOKUP(C99,Main!$A$49:$I$67,Main!$E$47,FALSE)&":"&" "&VLOOKUP(C99,Main!$A$49:$I$67,Main!$F$47,FALSE) -> Minimum HSPF:: 9.6 | BQ99: =VLOOKUP(C99,Main!$A$49:$I$67,Main!$G$47,FALSE) -> 18 | BR99: =VLOOKUP(C99,Main!$A$49:$I$67,Main!$H$47,FALSE) -> 3.1 | BS99: =VLOOKUP(C99,Main!$A$49:$I$67,Main!$I$47,FALSE) -> 16.1 | BT99: 5012
A100: AR | B100: BENTONVILLE (AWOS) | C100: 4A | D100: 4043 | E100: 1591 | F100: 28.75 | G100: 81.3 | H100: 0.0912 | I100: 36.350N | J100: 15.9 | K100: 36.3 | L100: 40.2 | M100: 48.4 | N100: 57.2 | O100: 65.7 | P100: 74.3 | Q100: 78.4 | R100: 77.9 | S100: 69.3 | T100: 58.8 | U100: 48.1 | V100: 38.8 | W100: 444 | X100: 303 | Y100: 155 | Z100: 32 | AA100: 3 | AB100: 0 | AC100: 0 | AD100: 0 | AE100: 0 | AF100: 22 | AG100: 146 | AH100: 370 | AI100: 19 | AJ100: 30 | AK100: 104 | AL100: 247 | AM100: 490 | AN100: 729 | AO100: 879 | AP100: 864 | AQ100: 579 | AR100: 295 | AS100: 88 | AT100: 22 | AU100: 25.9 | AV100: 33.98 | AW100: 29.3 | AX100: 43.7 | AY100: 58.8 | AZ100: 62.06 | BA100: 66.92 | BB100: 66.2 | BC100: 58.6 | BD100: 32.5 | BE100: 32.5 | BF100: 23.9 | BG100: 0.7476340694 | BH100: 0.1888260621 | BI100: 61 | BJ100: 31 | BK100: 15 | BL100: 20 | BM100: =IF(OR(C100="OA",C100="OB",C100="1B",C100="1A",C100="2A",C100="2B",C100="3A",C100="3B",C100="3C"),TAN((LEFT(I100, 5)+VLOOKUP(C100,Main!$K$3:$L$21,2,FALSE))*PI()/180),IF(Checklist!$I$385="No",TAN((LEFT(I100, 5)+VLOOKUP(C100,Main!$K$3:$L$21,2,FALSE))*PI()/180),"NR")) -> NR | BN100: =VLOOKUP(C100,Main!$A$49:$I$67,Main!$B$47,FALSE) -> 0.5 | BO100: =VLOOKUP(C100,Main!$A$49:$I$67,Main!$C$47,FALSE) -> 0.25 | BP100: =VLOOKUP(C100,Main!$A$49:$I$67,Main!$E$47,FALSE)&":"&" "&VLOOKUP(C100,Main!$A$49:$I$67,Main!$F$47,FALSE) -> Minimum HSPF:: 9.6 | BQ100: =VLOOKUP(C100,Main!$A$49:$I$67,Main!$G$47,FALSE) -> 18 | BR100: =VLOOKUP(C100,Main!$A$49:$I$67,Main!$H$47,FALSE) -> 3.1 | BS100: =VLOOKUP(C100,Main!$A$49:$I$67,Main!$I$47,FALSE) -> 16.1 | BT100: 4346
A101: AR | B101: EL DORADO GOODWIN FIELD | C101: 3A | D101: 2622 | E101: 1604 | F101: 39.2 | G101: 87.3 | H101: 0.0912 | I101: 33.221N | J101: 25.3 | K101: 44.8 | L101: 48.1 | M101: 55.8 | N101: 63.7 | O101: 71.5 | P101: 78.8 | Q101: 82 | R101: 81.8 | S101: 75 | T101: 64.1 | U101: 53.3 | V101: 46.4 | W101: 228 | X101: 142 | Y101: 50 | Z101: 4 | AA101: 0 | AB101: 0 | AC101: 0 | AD101: 0 | AE101: 0 | AF101: 4 | AG101: 68 | AH101: 192 | AI101: 66 | AJ101: 88 | AK101: 229 | AL101: 415 | AM101: 668 | AN101: 864 | AO101: 991 | AP101: 985 | AQ101: 749 | AR101: 441 | AS101: 168 | AT101: 79 | AU101: 37.2 | AV101: 31.46 | AW101: 50.4 | AX101: 52.34 | AY101: 66.9 | AZ101: 69.8 | BA101: 72.14 | BB101: 68.72 | BC101: 69.3 | BD101: 50.7 | BE101: 50.7 | BF101: 35.6 | BG101: 0.6551724138 | BH101: 0.2303943288 | BI101: 57 | BJ101: 27 | BK101: 13 | BL101: 18 | BM101: =IF(OR(C101="OA",C101="OB",C101="1B",C101="1A",C101="2A",C101="2B",C101="3A",C101="3B",C101="3C"),TAN((LEFT(I101, 5)+VLOOKUP(C101,Main!$K$3:$L$21,2,FALSE))*PI()/180),IF(Checklist!$I$385="No",TAN((LEFT(I101, 5)+VLOOKUP(C101,Main!$K$3:$L$21,2,FALSE))*PI()/180),"NR")) -> 0.6548803187 | BN101: =VLOOKUP(C101,Main!$A$49:$I$67,Main!$B$47,FALSE) -> 0.6 | BO101: =VLOOKUP(C101,Main!$A$49:$I$67,Main!$C$47,FALSE) -> 0.25 | BP101: =VLOOKUP(C101,Main!$A$49:$I$67,Main!$E$47,FALSE)&":"&" "&VLOOKUP(C101,Main!$A$49:$I$67,Main!$F$47,FALSE) -> Minimum HSPF:: 9.6 | BQ101: =VLOOKUP(C101,Main!$A$49:$I$67,Main!$G$47,FALSE) -> 18 | BR101: =VLOOKUP(C101,Main!$A$49:$I$67,Main!$H$47,FALSE) -> 3.1 | BS101: =VLOOKUP(C101,Main!$A$49:$I$67,Main!$I$47,FALSE) -> 16.1 | BT101: 5743
A102: AR | B102: FAYETTEVILLE DRAKE FIELD | C102: 4A | D102: 3962 | E102: 1538 | F102: 21.55 | G102: 86 | H102: 0.0912 | I102: 36.010N | J102: 16.3 | K102: 37.2 | L102: 41 | M102: 48.8 | N102: 57.8 | O102: 65.9 | P102: 74 | Q102: 78.3 | R102: 77.7 | S102: 69.3 | T102: 58.5 | U102: 47.9 | V102: 39.1 | W102: 417 | X102: 283 | Y102: 148 | Z102: 27 | AA102: 3 | AB102: 0 | AC102: 0 | AD102: 0 | AE102: 0 | AF102: 22 | AG102: 154 | AH102: 362 | AI102: 21 | AJ102: 32 | AK102: 111 | AL102: 261 | AM102: 494 | AN102: 720 | AO102: 877 | AP102: 860 | AQ102: 578 | AR102: 286 | AS102: 92 | AT102: 23 | AU102: 29.8 | AV102: 25.7 | AW102: 40.1 | AX102: 50.72 | AY102: 53.1 | AZ102: 65.48 | BA102: 70.16 | BB102: 66.92 | BC102: 63.5 | BD102: 43.5 | BE102: 43.5 | BF102: 24.4 | BG102: 0.7402597403 | BH102: 0.1902869988 | BI102: 61 | BJ102: 31 | BK102: 15 | BL102: 20 | BM102: =IF(OR(C102="OA",C102="OB",C102="1B",C102="1A",C102="2A",C102="2B",C102="3A",C102="3B",C102="3C"),TAN((LEFT(I102, 5)+VLOOKUP(C102,Main!$K$3:$L$21,2,FALSE))*PI()/180),IF(Checklist!$I$385="No",TAN((LEFT(I102, 5)+VLOOKUP(C102,Main!$K$3:$L$21,2,FALSE))*PI()/180),"NR")) -> NR | BN102: =VLOOKUP(C102,Main!$A$49:$I$67,Main!$B$47,FALSE) -> 0.5 | BO102: =VLOOKUP(C102,Main!$A$49:$I$67,Main!$C$47,FALSE) -> 0.25 | BP102: =VLOOKUP(C102,Main!$A$49:$I$67,Main!$E$47,FALSE)&":"&" "&VLOOKUP(C102,Main!$A$49:$I$67,Main!$F$47,FALSE) -> Minimum HSPF:: 9.6 | BQ102: =VLOOKUP(C102,Main!$A$49:$I$67,Main!$G$47,FALSE) -> 18 | BR102: =VLOOKUP(C102,Main!$A$49:$I$67,Main!$H$47,FALSE) -> 3.1 | BS102: =VLOOKUP(C102,Main!$A$49:$I$67,Main!$I$47,FALSE) -> 16.1 | BT102: 4355
A103: AR | B103: FLIPPIN (AWOS) | C103: 4A | D103: 3801 | E103: 1555 | F103: 28.4 | G103: 83.3 | H103: 0.0912 | I103: 36.291N | J103: 17.8 | K103: 37.1 | L103: 41.1 | M103: 49.2 | N103: 59.2 | O103: 67 | P103: 75.3 | Q103: 79.2 | R103: 79.1 | S103: 70.4 | T103: 60 | U103: 48.9 | V103: 39.6 | W103: 422 | X103: 285 | Y103: 134 | Z103: 20 | AA103: 1 | AB103: 0 | AC103: 0 | AD103: 0 | AE103: 0 | AF103: 12 | AG103: 130 | AH103: 347 | AI103: 23 | AJ103: 36 | AK103: 110 | AL103: 297 | AM103: 528 | AN103: 759 | AO103: 905 | AP103: 901 | AQ103: 613 | AR103: 320 | AS103: 98 | AT103: 26 | AU103: 25.7 | AV103: 30.74 | AW103: 30.7 | AX103: 42.62 | AY103: 55.9 | AZ103: 60.26 | BA103: 66.74 | BB103: 61.7 | BC103: 60.8 | BD103: 41.4 | BE103: 41.4 | BF103: 24.6 | BG103: 0.7411003236 | BH103: 0.1959728653 | BI103: 60 | BJ103: 30 | BK103: 14 | BL103: 19 | BM103: =IF(OR(C103="OA",C103="OB",C103="1B",C103="1A",C103="2A",C103="2B",C103="3A",C103="3B",C103="3C"),TAN((LEFT(I103, 5)+VLOOKUP(C103,Main!$K$3:$L$21,2,FALSE))*PI()/180),IF(Checklist!$I$385="No",TAN((LEFT(I103, 5)+VLOOKUP(C103,Main!$K$3:$L$21,2,FALSE))*PI()/180),"NR")) -> NR | BN103: =VLOOKUP(C103,Main!$A$49:$I$67,Main!$B$47,FALSE) -> 0.5 | BO103: =VLOOKUP(C103,Main!$A$49:$I$67,Main!$C$47,FALSE) -> 0.25 | BP103: =VLOOKUP(C103,Main!$A$49:$I$67,Main!$E$47,FALSE)&":"&" "&VLOOKUP(C103,Main!$A$49:$I$67,Main!$F$47,FALSE) -> Minimum HSPF:: 9.6 | BQ103: =VLOOKUP(C103,Main!$A$49:$I$67,Main!$G$47,FALSE) -> 18 | BR103: =VLOOKUP(C103,Main!$A$49:$I$67,Main!$H$47,FALSE) -> 3.1 | BS103: =VLOOKUP(C103,Main!$A$49:$I$67,Main!$I$47,FALSE) -> 16.1 | BT103: 4616
A104: AR | B104: FORT SMITH REGIONAL AP | C104: 3A | D104: 3122 | E104: 1678 | F104: 26.05 | G104: 83.1 | H104: 0.0912 | I104: 35.333N | J104: 22.4 | K104: 40.6 | L104: 44.9 | M104: 53.3 | N104: 62.1 | O104: 70.2 | P104: 78.5 | Q104: 82.8 | R104: 82.4 | S104: 74.2 | T104: 63.2 | U104: 51.7 | V104: 42.4 | W104: 319 | X104: 191 | Y104: 76 | Z104: 8 | AA104: 1 | AB104: 0 | AC104: 0 | AD104: 0 | AE104: 0 | AF104: 5 | AG104: 87 | AH104: 270 | AI104: 26 | AJ104: 49 | AK104: 176 | AL104: 372 | AM104: 627 | AN104: 856 | AO104: 1015 | AP104: 1005 | AQ104: 726 | AR104: 414 | AS104: 138 | AT104: 34 | AU104: 26.1 | AV104: 26.42 | AW104: 39.6 | AX104: 47.84 | AY104: 57.9 | AZ104: 67.64 | BA104: 70.7 | BB104: 68.72 | BC104: 64.4 | BD104: 43.7 | BE104: 43.7 | BF104: 26.1 | BG104: 0.7080291971 | BH104: 0.2157420578 | BI104: 58 | BJ104: 28 | BK104: 13 | BL104: 18 | BM104: =IF(OR(C104="OA",C104="OB",C104="1B",C104="1A",C104="2A",C104="2B",C104="3A",C104="3B",C104="3C"),TAN((LEFT(I104, 5)+VLOOKUP(C104,Main!$K$3:$L$21,2,FALSE))*PI()/180),IF(Checklist!$I$385="No",TAN((LEFT(I104, 5)+VLOOKUP(C104,Main!$K$3:$L$21,2,FALSE))*PI()/180),"NR")) -> 0.708825848 | BN104: =VLOOKUP(C104,Main!$A$49:$I$67,Main!$B$47,FALSE) -> 0.6 | BO104: =VLOOKUP(C104,Main!$A$49:$I$67,Main!$C$47,FALSE) -> 0.25 | BP104: =VLOOKUP(C104,Main!$A$49:$I$67,Main!$E$47,FALSE)&":"&" "&VLOOKUP(C104,Main!$A$49:$I$67,Main!$F$47,FALSE) -> Minimum HSPF:: 9.6 | BQ104: =VLOOKUP(C104,Main!$A$49:$I$67,Main!$G$47,FALSE) -> 18 | BR104: =VLOOKUP(C104,Main!$A$49:$I$67,Main!$H$47,FALSE) -> 3.1 | BS104: =VLOOKUP(C104,Main!$A$49:$I$67,Main!$I$47,FALSE) -> 16.1 | BT104: 5438
A105: AR | B105: HARRISON FAA AP | C105: 4A | D105: 3861 | E105: 1483 | F105: 24.45 | G105: 83.5 | H105: 0.0912 | I105: 36.267N | J105: 16.3 | K105: 37.5 | L105: 41.1 | M105: 49 | N105: 58.7 | O105: 66.2 | P105: 74.4 | Q105: 78.6 | R105: 78 | S105: 69.7 | T105: 59.5 | U105: 48.7 | V105: 39.4 | W105: 412 | X105: 282 | Y105: 150 | Z105: 25 | AA105: 2 | AB105: 0 | AC105: 0 | AD105: 0 | AE105: 0 | AF105: 17 | AG105: 142 | AH105: 355 | AI105: 25 | AJ105: 33 | AK105: 121 | AL105: 284 | AM105: 506 | AN105: 732 | AO105: 885 | AP105: 868 | AQ105: 590 | AR105: 311 | AS105: 104 | AT105: 26 | AU105: 27.9 | AV105: 28.04 | AW105: 38.5 | AX105: 43.34 | AY105: 54.9 | AZ105: 63.86 | BA105: 67.1 | BB105: 66.2 | BC105: 63.1 | BD105: 39 | BE105: 39 | BF105: 30.9 | BG105: 0.737704918 | BH105: 0.1902869988 | BI105: 61 | BJ105: 30 | BK105: 14 | BL105: 19 | BM105: =IF(OR(C105="OA",C105="OB",C105="1B",C105="1A",C105="2A",C105="2B",C105="3A",C105="3B",C105="3C"),TAN((LEFT(I105, 5)+VLOOKUP(C105,Main!$K$3:$L$21,2,FALSE))*PI()/180),IF(Checklist!$I$385="No",TAN((LEFT(I105, 5)+VLOOKUP(C105,Main!$K$3:$L$21,2,FALSE))*PI()/180),"NR")) -> NR | BN105: =VLOOKUP(C105,Main!$A$49:$I$67,Main!$B$47,FALSE) -> 0.5 | BO105: =VLOOKUP(C105,Main!$A$49:$I$67,Main!$C$47,FALSE) -> 0.25 | BP105: =VLOOKUP(C105,Main!$A$49:$I$67,Main!$E$47,FALSE)&":"&" "&VLOOKUP(C105,Main!$A$49:$I$67,Main!$F$47,FALSE) -> Minimum HSPF:: 9.6 | BQ105: =VLOOKUP(C105,Main!$A$49:$I$67,Main!$G$47,FALSE) -> 18 | BR105: =VLOOKUP(C105,Main!$A$49:$I$67,Main!$H$47,FALSE) -> 3.1 | BS105: =VLOOKUP(C105,Main!$A$49:$I$67,Main!$I$47,FALSE) -> 16.1 | BT105: 4485
A106: AR | B106: JONESBORO MUNI | C106: 3A | D106: 3504 | E106: 1552 | F106: 27.75 | G106: 83.7 | H106: 0.0912 | I106: 35.831N | J106: 20.7 | K106: 38.7 | L106: 42.3 | M106: 50.7 | N106: 61 | O106: 69.9 | P106: 78.7 | Q106: 81 | R106: 80.5 | S106: 73.2 | T106: 61.7 | U106: 49.9 | V106: 40.6 | W106: 379 | X106: 251 | Y106: 110 | Z106: 12 | AA106: 1 | AB106: 0 | AC106: 0 | AD106: 0 | AE106: 0 | AF106: 7 | AG106: 110 | AH106: 320 | AI106: 29 | AJ106: 34 | AK106: 133 | AL106: 342 | AM106: 618 | AN106: 862 | AO106: 960 | AP106: 945 | AQ106: 696 | AR106: 368 | AS106: 106 | AT106: 29 | AU106: 24.1 | AV106: 31.64 | AW106: 40.8 | AX106: 52.7 | AY106: 57.7 | AZ106: 64.58 | BA106: 69.8 | BB106: 66.38 | BC106: 64.6 | BD106: 37.6 | BE106: 37.6 | BF106: 21.6 | BG106: 0.7269624573 | BH106: 0.207988115 | BI106: 60 | BJ106: 29 | BK106: 14 | BL106: 19 | BM106: =IF(OR(C106="OA",C106="OB",C106="1B",C106="1A",C106="2A",C106="2B",C106="3A",C106="3B",C106="3C"),TAN((LEFT(I106, 5)+VLOOKUP(C106,Main!$K$3:$L$21,2,FALSE))*PI()/180),IF(Checklist!$I$385="No",TAN((LEFT(I106, 5)+VLOOKUP(C106,Main!$K$3:$L$21,2,FALSE))*PI()/180),"NR")) -> 0.7220190022 | BN106: =VLOOKUP(C106,Main!$A$49:$I$67,Main!$B$47,FALSE) -> 0.6 | BO106: =VLOOKUP(C106,Main!$A$49:$I$67,Main!$C$47,FALSE) -> 0.25 | BP106: =VLOOKUP(C106,Main!$A$49:$I$67,Main!$E$47,FALSE)&":"&" "&VLOOKUP(C106,Main!$A$49:$I$67,Main!$F$47,FALSE) -> Minimum HSPF:: 9.6 | BQ106: =VLOOKUP(C106,Main!$A$49:$I$67,Main!$G$47,FALSE) -> 18 | BR106: =VLOOKUP(C106,Main!$A$49:$I$67,Main!$H$47,FALSE) -> 3.1 | BS106: =VLOOKUP(C106,Main!$A$49:$I$67,Main!$I$47,FALSE) -> 16.1 | BT106: 5122
A107: AR | B107: LITTLE ROCK ADAMS FIELD | C107: 3A | D107: 2897 | E107: 1637 | F107: 30.45 | G107: 84 | H107: 0.0912 | I107: 34.727N | J107: 24.5 | K107: 42.4 | L107: 46.2 | M107: 54 | N107: 63 | O107: 71.1 | P107: 79.3 | Q107: 82.6 | R107: 82.2 | S107: 74.9 | T107: 63.8 | U107: 52.6 | V107: 44.1 | W107: 279 | X107: 169 | Y107: 66 | Z107: 5 | AA107: 1 | AB107: 0 | AC107: 0 | AD107: 0 | AE107: 0 | AF107: 3 | AG107: 72 | AH107: 232 | AI107: 42 | AJ107: 63 | AK107: 191 | AL107: 394 | AM107: 656 | AN107: 879 | AO107: 1011 | AP107: 999 | AQ107: 748 | AR107: 430 | AS107: 150 | AT107: 48 | AU107: 26.6 | AV107: 30.02 | AW107: 41.5 | AX107: 50.36 | AY107: 61.9 | AZ107: 68.72 | BA107: 70.88 | BB107: 69.44 | BC107: 64.8 | BD107: 43.5 | BE107: 43.5 | BF107: 30.2 | BG107: 0.6875 | BH107: 0.2261571917 | BI107: 58 | BJ107: 28 | BK107: 13 | BL107: 18 | BM107: =IF(OR(C107="OA",C107="OB",C107="1B",C107="1A",C107="2A",C107="2B",C107="3A",C107="3B",C107="3C"),TAN((LEFT(I107, 5)+VLOOKUP(C107,Main!$K$3:$L$21,2,FALSE))*PI()/180),IF(Checklist!$I$385="No",TAN((LEFT(I107, 5)+VLOOKUP(C107,Main!$K$3:$L$21,2,FALSE))*PI()/180),"NR")) -> 0.6929493831 | BN107: =VLOOKUP(C107,Main!$A$49:$I$67,Main!$B$47,FALSE) -> 0.6 | BO107: =VLOOKUP(C107,Main!$A$49:$I$67,Main!$C$47,FALSE) -> 0.25 | BP107: =VLOOKUP(C107,Main!$A$49:$I$67,Main!$E$47,FALSE)&":"&" "&VLOOKUP(C107,Main!$A$49:$I$67,Main!$F$47,FALSE) -> Minimum HSPF:: 9.6 | BQ107: =VLOOKUP(C107,Main!$A$49:$I$67,Main!$G$47,FALSE) -> 18 | BR107: =VLOOKUP(C107,Main!$A$49:$I$67,Main!$H$47,FALSE) -> 3.1 | BS107: =VLOOKUP(C107,Main!$A$49:$I$67,Main!$I$47,FALSE) -> 16.1 | BT107: 5611
A108: AR | B108: LITTLE ROCK AFB | C108: 3A | D108: 3135 | E108: 1524 | F108: 28.15 | G108: 85.1 | H108: 0.0912 | I108: 34.917N | J108: 22.2 | K108: 40.8 | L108: 46 | M108: 53.4 | N108: 62.6 | O108: 70.1 | P108: 79.1 | Q108: 82.4 | R108: 81.4 | S108: 73.6 | T108: 63 | U108: 49.9 | V108: 42.5 | W108: 317 | X108: 176 | Y108: 75 | Z108: 6 | AA108: 1 | AB108: 0 | AC108: 0 | AD108: 0 | AE108: 0 | AF108: 5 | AG108: 112 | AH108: 274 | AI108: 31 | AJ108: 64 | AK108: 182 | AL108: 384 | AM108: 626 | AN108: 872 | AO108: 1005 | AP108: 975 | AQ108: 709 | AR108: 407 | AS108: 109 | AT108: 41 | AU108: 31.3 | AV108: 34.34 | AW108: 33.1 | AX108: 43.7 | AY108: 66.9 | AZ108: 70.34 | BA108: 70.88 | BB108: 70.16 | BC108: 57 | BD108: 36.9 | BE108: 36.9 | BF108: 32.5 | BG108: 0.7058823529 | BH108: 0.2147999528 | BI108: 58 | BJ108: 28 | BK108: 13 | BL108: 18 | BM108: =IF(OR(C108="OA",C108="OB",C108="1B",C108="1A",C108="2A",C108="2B",C108="3A",C108="3B",C108="3C"),TAN((LEFT(I108, 5)+VLOOKUP(C108,Main!$K$3:$L$21,2,FALSE))*PI()/180),IF(Checklist!$I$385="No",TAN((LEFT(I108, 5)+VLOOKUP(C108,Main!$K$3:$L$21,2,FALSE))*PI()/180),"NR")) -> 0.6978691652 | BN108: =VLOOKUP(C108,Main!$A$49:$I$67,Main!$B$47,FALSE) -> 0.6 | BO108: =VLOOKUP(C108,Main!$A$49:$I$67,Main!$C$47,FALSE) -> 0.25 | BP108: =VLOOKUP(C108,Main!$A$49:$I$67,Main!$E$47,FALSE)&":"&" "&VLOOKUP(C108,Main!$A$49:$I$67,Main!$F$47,FALSE) -> Minimum HSPF:: 9.6 | BQ108: =VLOOKUP(C108,Main!$A$49:$I$67,Main!$G$47,FALSE) -> 18 | BR108: =VLOOKUP(C108,Main!$A$49:$I$67,Main!$H$47,FALSE) -> 3.1 | BS108: =VLOOKUP(C108,Main!$A$49:$I$67,Main!$I$47,FALSE) -> 16.1 | BT108: 5405
A109: AR | B109: PINE BLUFF FAA AP | C109: 3A | D109: 2745 | E109: 1559 | F109: 29.9 | G109: 87.3 | H109: 0.0912 | I109: 34.175N | J109: 25.8 | K109: 43.5 | L109: 47.3 | M109: 54.8 | N109: 63.8 | O109: 72 | P109: 79.7 | Q109: 82.3 | R109: 81.5 | S109: 74.8 | T109: 64 | U109: 53 | V109: 45.3 | W109: 255 | X109: 153 | Y109: 59 | Z109: 4 | AA109: 0 | AB109: 0 | AC109: 0 | AD109: 0 | AE109: 0 | AF109: 3 | AG109: 69 | AH109: 208 | AI109: 53 | AJ109: 77 | AK109: 207 | AL109: 418 | AM109: 681 | AN109: 890 | AO109: 1000 | AP109: 976 | AQ109: 745 | AR109: 439 | AS109: 159 | AT109: 61 | AU109: 31.3 | AV109: 38.84 | AW109: 35.4 | AX109: 55.22 | AY109: 64.4 | AZ109: 68.36 | BA109: 72.32 | BB109: 70.16 | BC109: 67.8 | BD109: 40.5 | BE109: 40.5 | BF109: 27 | BG109: 0.6734693878 | BH109: 0.2331241194 | BI109: 57 | BJ109: 27 | BK109: 13 | BL109: 18 | BM109: =IF(OR(C109="OA",C109="OB",C109="1B",C109="1A",C109="2A",C109="2B",C109="3A",C109="3B",C109="3C"),TAN((LEFT(I109, 5)+VLOOKUP(C109,Main!$K$3:$L$21,2,FALSE))*PI()/180),IF(Checklist!$I$385="No",TAN((LEFT(I109, 5)+VLOOKUP(C109,Main!$K$3:$L$21,2,FALSE))*PI()/180),"NR")) -> 0.6788341448 | BN109: =VLOOKUP(C109,Main!$A$49:$I$67,Main!$B$47,FALSE) -> 0.6 | BO109: =VLOOKUP(C109,Main!$A$49:$I$67,Main!$C$47,FALSE) -> 0.25 | BP109: =VLOOKUP(C109,Main!$A$49:$I$67,Main!$E$47,FALSE)&":"&" "&VLOOKUP(C109,Main!$A$49:$I$67,Main!$F$47,FALSE) -> Minimum HSPF:: 9.6 | BQ109: =VLOOKUP(C109,Main!$A$49:$I$67,Main!$G$47,FALSE) -> 18 | BR109: =VLOOKUP(C109,Main!$A$49:$I$67,Main!$H$47,FALSE) -> 3.1 | BS109: =VLOOKUP(C109,Main!$A$49:$I$67,Main!$I$47,FALSE) -> 16.1 | BT109: 5706
A110: AR | B110: ROGERS (AWOS) | C110: 4A | D110: 4046 | E110: 1677 | F110: 16.8 | G110: 83.8 | H110: 0.0912 | I110: 36.372N | J110: 15.7 | K110: 36.6 | L110: 40.3 | M110: 47.8 | N110: 57 | O110: 65.3 | P110: 74.1 | Q110: 78.3 | R110: 77.5 | S110: 69.7 | T110: 59.1 | U110: 48.3 | V110: 38.8 | W110: 435 | X110: 298 | Y110: 168 | Z110: 33 | AA110: 4 | AB110: 0 | AC110: 0 | AD110: 0 | AE110: 1 | AF110: 22 | AG110: 145 | AH110: 371 | AI110: 20 | AJ110: 28 | AK110: 98 | AL110: 244 | AM110: 478 | AN110: 723 | AO110: 877 | AP110: 854 | AQ110: 592 | AR110: 305 | AS110: 93 | AT110: 23 | AU110: 22.3 | AV110: 24.26 | AW110: 25.2 | AX110: 36.5 | AY110: 53.1 | AZ110: 65.48 | BA110: 66.56 | BB110: 64.58 | BC110: 60.1 | BD110: 37.6 | BE110: 37.6 | BF110: 31.6 | BG110: 0.7452229299 | BH110: 0.188103974 | BI110: 61 | BJ110: 31 | BK110: 15 | BL110: 20 | BM110: =IF(OR(C110="OA",C110="OB",C110="1B",C110="1A",C110="2A",C110="2B",C110="3A",C110="3B",C110="3C"),TAN((LEFT(I110, 5)+VLOOKUP(C110,Main!$K$3:$L$21,2,FALSE))*PI()/180),IF(Checklist!$I$385="No",TAN((LEFT(I110, 5)+VLOOKUP(C110,Main!$K$3:$L$21,2,FALSE))*PI()/180),"NR")) -> NR | BN110: =VLOOKUP(C110,Main!$A$49:$I$67,Main!$B$47,FALSE) -> 0.5 | BO110: =VLOOKUP(C110,Main!$A$49:$I$67,Main!$C$47,FALSE) -> 0.25 | BP110: =VLOOKUP(C110,Main!$A$49:$I$67,Main!$E$47,FALSE)&":"&" "&VLOOKUP(C110,Main!$A$49:$I$67,Main!$F$47,FALSE) -> Minimum HSPF:: 9.6 | BQ110: =VLOOKUP(C110,Main!$A$49:$I$67,Main!$G$47,FALSE) -> 18 | BR110: =VLOOKUP(C110,Main!$A$49:$I$67,Main!$H$47,FALSE) -> 3.1 | BS110: =VLOOKUP(C110,Main!$A$49:$I$67,Main!$I$47,FALSE) -> 16.1 | BT110: 4335
A111: AR | B111: SILOAM SPRING(AWOS) | C111: 4A | D111: 3954 | E111: 1609 | F111: 25.05 | G111: 85.1 | H111: 0.0912 | I111: 36.191N | J111: 16.1 | K111: 36.8 | L111: 40.5 | M111: 48.8 | N111: 58.1 | O111: 66.3 | P111: 73.8 | Q111: 79.1 | R111: 78.3 | S111: 69.6 | T111: 59.2 | U111: 48.4 | V111: 39 | W111: 431 | X111: 299 | Y111: 154 | Z111: 31 | AA111: 2 | AB111: 0 | AC111: 0 | AD111: 0 | AE111: 0 | AF111: 21 | AG111: 144 | AH111: 365 | AI111: 20 | AJ111: 34 | AK111: 117 | AL111: 274 | AM111: 508 | AN111: 715 | AO111: 901 | AP111: 877 | AQ111: 587 | AR111: 305 | AS111: 96 | AT111: 24 | AU111: 27 | AV111: 33.8 | AW111: 35.4 | AX111: 44.78 | AY111: 57.2 | AZ111: 63.86 | BA111: 67.46 | BB111: 61.7 | BC111: 58.3 | BD111: 40.5 | BE111: 40.5 | BF111: 26.1 | BG111: 0.7435897436 | BH111: 0.1895537156 | BI111: 61 | BJ111: 31 | BK111: 15 | BL111: 20 | BM111: =IF(OR(C111="OA",C111="OB",C111="1B",C111="1A",C111="2A",C111="2B",C111="3A",C111="3B",C111="3C"),TAN((LEFT(I111, 5)+VLOOKUP(C111,Main!$K$3:$L$21,2,FALSE))*PI()/180),IF(Checklist!$I$385="No",TAN((LEFT(I111, 5)+VLOOKUP(C111,Main!$K$3:$L$21,2,FALSE))*PI()/180),"NR")) -> NR | BN111: =VLOOKUP(C111,Main!$A$49:$I$67,Main!$B$47,FALSE) -> 0.5 | BO111: =VLOOKUP(C111,Main!$A$49:$I$67,Main!$C$47,FALSE) -> 0.25 | BP111: =VLOOKUP(C111,Main!$A$49:$I$67,Main!$E$47,FALSE)&":"&" "&VLOOKUP(C111,Main!$A$49:$I$67,Main!$F$47,FALSE) -> Minimum HSPF:: 9.6 | BQ111: =VLOOKUP(C111,Main!$A$49:$I$67,Main!$G$47,FALSE) -> 18 | BR111: =VLOOKUP(C111,Main!$A$49:$I$67,Main!$H$47,FALSE) -> 3.1 | BS111: =VLOOKUP(C111,Main!$A$49:$I$67,Main!$I$47,FALSE) -> 16.1 | BT111: 4458
A112: AR | B112: SPRINGDALE MUNI | C112: 4A | D112: 4103 | E112: 1536 | F112: 23.35 | G112: 84 | H112: 0.0912 | I112: 36.283N | J112: 15.6 | K112: 36.1 | L112: 38.3 | M112: 48.9 | N112: 57.5 | O112: 65.5 | P112: 74.3 | Q112: 78 | R112: 78.1 | S112: 69.4 | T112: 58.1 | U112: 48.1 | V112: 38.3 | W112: 450 | X112: 350 | Y112: 149 | Z112: 32 | AA112: 4 | AB112: 0 | AC112: 0 | AD112: 0 | AE112: 0 | AF112: 23 | AG112: 146 | AH112: 379 | AI112: 19 | AJ112: 23 | AK112: 115 | AL112: 258 | AM112: 485 | AN112: 730 | AO112: 869 | AP112: 871 | AQ112: 582 | AR112: 275 | AS112: 88 | AT112: 16 | AU112: 24.8 | AV112: 27.5 | AW112: 36.7 | AX112: 46.4 | AY112: 54.9 | AZ112: 63.32 | BA112: 65.48 | BB112: 67.1 | BC112: 57.2 | BD112: 37.4 | BE112: 37.4 | BF112: 27.7 | BG112: 0.7492163009 | BH112: 0.1877449969 | BI112: 61 | BJ112: 31 | BK112: 15 | BL112: 20 | BM112: =IF(OR(C112="OA",C112="OB",C112="1B",C112="1A",C112="2A",C112="2B",C112="3A",C112="3B",C112="3C"),TAN((LEFT(I112, 5)+VLOOKUP(C112,Main!$K$3:$L$21,2,FALSE))*PI()/180),IF(Checklist!$I$385="No",TAN((LEFT(I112, 5)+VLOOKUP(C112,Main!$K$3:$L$21,2,FALSE))*PI()/180),"NR")) -> NR | BN112: =VLOOKUP(C112,Main!$A$49:$I$67,Main!$B$47,FALSE) -> 0.5 | BO112: =VLOOKUP(C112,Main!$A$49:$I$67,Main!$C$47,FALSE) -> 0.25 | BP112: =VLOOKUP(C112,Main!$A$49:$I$67,Main!$E$47,FALSE)&":"&" "&VLOOKUP(C112,Main!$A$49:$I$67,Main!$F$47,FALSE) -> Minimum HSPF:: 9.6 | BQ112: =VLOOKUP(C112,Main!$A$49:$I$67,Main!$G$47,FALSE) -> 18 | BR112: =VLOOKUP(C112,Main!$A$49:$I$67,Main!$H$47,FALSE) -> 3.1 | BS112: =VLOOKUP(C112,Main!$A$49:$I$67,Main!$I$47,FALSE) -> 16.1 | BT112: 4331
A113: AR | B113: STUTTGART (AWOS) | C113: 3A | D113: 2994 | E113: 1670 | F113: 32.3 | G113: 82.8 | H113: 0.0912 | I113: 34.600N | J113: 25.3 | K113: 41.7 | L113: 45.5 | M113: 53.3 | N113: 62.9 | O113: 71.8 | P113: 79.8 | Q113: 82.2 | R113: 81.1 | S113: 73.6 | T113: 63.1 | U113: 52.1 | V113: 44.2 | W113: 294 | X113: 184 | Y113: 75 | Z113: 7 | AA113: 1 | AB113: 0 | AC113: 0 | AD113: 0 | AE113: 0 | AF113: 5 | AG113: 76 | AH113: 229 | AI113: 37 | AJ113: 58 | AK113: 177 | AL113: 393 | AM113: 676 | AN113: 895 | AO113: 998 | AP113: 966 | AQ113: 708 | AR113: 411 | AS113: 139 | AT113: 48 | AU113: 36 | AV113: 37.94 | AW113: 38.3 | AX113: 49.28 | AY113: 61.7 | AZ113: 68 | BA113: 72.68 | BB113: 69.44 | BC113: 65.7 | BD113: 43 | BE113: 43 | BF113: 31.6 | BG113: 0.6958174905 | BH113: 0.2303943288 | BI113: 58 | BJ113: 28 | BK113: 13 | BL113: 18 | BM113: =IF(OR(C113="OA",C113="OB",C113="1B",C113="1A",C113="2A",C113="2B",C113="3A",C113="3B",C113="3C"),TAN((LEFT(I113, 5)+VLOOKUP(C113,Main!$K$3:$L$21,2,FALSE))*PI()/180),IF(Checklist!$I$385="No",TAN((LEFT(I113, 5)+VLOOKUP(C113,Main!$K$3:$L$21,2,FALSE))*PI()/180),"NR")) -> 0.6898537919 | BN113: =VLOOKUP(C113,Main!$A$49:$I$67,Main!$B$47,FALSE) -> 0.6 | BO113: =VLOOKUP(C113,Main!$A$49:$I$67,Main!$C$47,FALSE) -> 0.25 | BP113: =VLOOKUP(C113,Main!$A$49:$I$67,Main!$E$47,FALSE)&":"&" "&VLOOKUP(C113,Main!$A$49:$I$67,Main!$F$47,FALSE) -> Minimum HSPF:: 9.6 | BQ113: =VLOOKUP(C113,Main!$A$49:$I$67,Main!$G$47,FALSE) -> 18 | BR113: =VLOOKUP(C113,Main!$A$49:$I$67,Main!$H$47,FALSE) -> 3.1 | BS113: =VLOOKUP(C113,Main!$A$49:$I$67,Main!$I$47,FALSE) -> 16.1 | BT113: 5506
A114: AR | B114: TEXARKANA WEBB FIELD | C114: 3A | D114: 2448 | E114: 1595 | F114: 40.35 | G114: 86.7 | H114: 0.0912 | I114: 33.454N | J114: 27.2 | K114: 45.6 | L114: 49.2 | M114: 56.5 | N114: 64.4 | O114: 72.1 | P114: 79.7 | Q114: 83.1 | R114: 83 | S114: 75.8 | T114: 65.4 | U114: 54.6 | V114: 46.9 | W114: 205 | X114: 123 | Y114: 44 | Z114: 4 | AA114: 0 | AB114: 0 | AC114: 0 | AD114: 0 | AE114: 0 | AF114: 2 | AG114: 56 | AH114: 176 | AI114: 70 | AJ114: 101 | AK114: 245 | AL114: 437 | AM114: 686 | AN114: 891 | AO114: 1025 | AP114: 1022 | AQ114: 775 | AR114: 479 | AS114: 195 | AT114: 81 | AU114: 36.3 | AV114: 41.18 | AW114: 43.3 | AX114: 57.92 | AY114: 60.8 | AZ114: 66.74 | BA114: 71.24 | BB114: 69.08 | BC114: 69.3 | BD114: 41.2 | BE114: 41.2 | BF114: 37.4 | BG114: 0.6428571429 | BH114: 0.2411234764 | BI114: 56 | BJ114: 27 | BK114: 13 | BL114: 18 | BM114: =IF(OR(C114="OA",C114="OB",C114="1B",C114="1A",C114="2A",C114="2B",C114="3A",C114="3B",C114="3C"),TAN((LEFT(I114, 5)+VLOOKUP(C114,Main!$K$3:$L$21,2,FALSE))*PI()/180),IF(Checklist!$I$385="No",TAN((LEFT(I114, 5)+VLOOKUP(C114,Main!$K$3:$L$21,2,FALSE))*PI()/180),"NR")) -> 0.6606313129 | BN114: =VLOOKUP(C114,Main!$A$49:$I$67,Main!$B$47,FALSE) -> 0.6 | BO114: =VLOOKUP(C114,Main!$A$49:$I$67,Main!$C$47,FALSE) -> 0.25 | BP114: =VLOOKUP(C114,Main!$A$49:$I$67,Main!$E$47,FALSE)&":"&" "&VLOOKUP(C114,Main!$A$49:$I$67,Main!$F$47,FALSE) -> Minimum HSPF:: 9.6 | BQ114: =VLOOKUP(C114,Main!$A$49:$I$67,Main!$G$47,FALSE) -> 18 | BR114: =VLOOKUP(C114,Main!$A$49:$I$67,Main!$H$47,FALSE) -> 3.1 | BS114: =VLOOKUP(C114,Main!$A$49:$I$67,Main!$I$47,FALSE) -> 16.1 | BT114: 6007
A115: AR | B115: WALNUT RIDGE (AWOS) | C115: 4A | D115: 3694 | E115: 1569 | F115: 29.3 | G115: 81 | H115: 0.0912 | I115: 36.125N | J115: 19.2 | K115: 37.6 | L115: 41.2 | M115: 50.1 | N115: 59.9 | O115: 69.2 | P115: 77.8 | Q115: 80.3 | R115: 78.8 | S115: 70.9 | T115: 60.7 | U115: 48.9 | V115: 39.8 | W115: 404 | X115: 274 | Y115: 119 | Z115: 14 | AA115: 1 | AB115: 0 | AC115: 0 | AD115: 0 | AE115: 0 | AF115: 10 | AG115: 127 | AH115: 339 | AI115: 20 | AJ115: 28 | AK115: 122 | AL115: 312 | AM115: 597 | AN115: 834 | AO115: 939 | AP115: 893 | AQ115: 627 | AR115: 343 | AS115: 93 | AT115: 22 | AU115: 28.8 | AV115: 34.52 | AW115: 32.2 | AX115: 42.8 | AY115: 54.3 | AZ115: 63.14 | BA115: 70.34 | BB115: 66.2 | BC115: 64.2 | BD115: 36.3 | BE115: 36.3 | BF115: 27.7 | BG115: 0.7368421053 | BH115: 0.2015950377 | BI115: 60 | BJ115: 30 | BK115: 14 | BL115: 19 | BM115: =IF(OR(C115="OA",C115="OB",C115="1B",C115="1A",C115="2A",C115="2B",C115="3A",C115="3B",C115="3C"),TAN((LEFT(I115, 5)+VLOOKUP(C115,Main!$K$3:$L$21,2,FALSE))*PI()/180),IF(Checklist!$I$385="No",TAN((LEFT(I115, 5)+VLOOKUP(C115,Main!$K$3:$L$21,2,FALSE))*PI()/180),"NR")) -> NR | BN115: =VLOOKUP(C115,Main!$A$49:$I$67,Main!$B$47,FALSE) -> 0.5 | BO115: =VLOOKUP(C115,Main!$A$49:$I$67,Main!$C$47,FALSE) -> 0.25 | BP115: =VLOOKUP(C115,Main!$A$49:$I$67,Main!$E$47,FALSE)&":"&" "&VLOOKUP(C115,Main!$A$49:$I$67,Main!$F$47,FALSE) -> Minimum HSPF:: 9.6 | BQ115: =VLOOKUP(C115,Main!$A$49:$I$67,Main!$G$47,FALSE) -> 18 | BR115: =VLOOKUP(C115,Main!$A$49:$I$67,Main!$H$47,FALSE) -> 3.1 | BS115: =VLOOKUP(C115,Main!$A$49:$I$67,Main!$I$47,FALSE) -> 16.1 | BT115: 4830
A116: AZ | B116: CASA GRANDE (AWOS) | C116: 2B | D116: 1498 | E116: 2069 | F116: 48.2 | G116: 95 | H116: 0.1145 | I116: 32.950N | J116: 34.9 | K116: 52.6 | L116: 54.5 | M116: 61.4 | N116: 67.6 | O116: 77.3 | P116: 86.2 | Q116: 90.8 | R116: 89.5 | S116: 84.1 | T116: 71.9 | U116: 60 | V116: 51.4 | W116: 39 | X116: 18 | Y116: 2 | Z116: 0 | AA116: 0 | AB116: 0 | AC116: 0 | AD116: 0 | AE116: 0 | AF116: 0 | AG116: 7 | AH116: 52 | AI116: 120 | AJ116: 145 | AK116: 355 | AL116: 527 | AM116: 845 | AN116: 1085 | AO116: 1264 | AP116: 1225 | AQ116: 1022 | AR116: 679 | AS116: 307 | AT116: 95 | AU116: 33.4 | AV116: 32.36 | AW116: 37.4 | AX116: 28.58 | AY116: 29.3 | AZ116: 40.64 | BA116: 48.02 | BB116: 51.08 | BC116: 46.9 | BD116: 36.9 | BE116: 36.9 | BF116: 19.4 | BG116: 0.6 | BH116: 0.2972156446 | BI116: 54 | BJ116: 24 | BK116: 14 | BL116: 19 | BM116: =IF(OR(C116="OA",C116="OB",C116="1B",C116="1A",C116="2A",C116="2B",C116="3A",C116="3B",C116="3C"),TAN((LEFT(I116, 5)+VLOOKUP(C116,Main!$K$3:$L$21,2,FALSE))*PI()/180),IF(Checklist!$I$385="No",TAN((LEFT(I116, 5)+VLOOKUP(C116,Main!$K$3:$L$21,2,FALSE))*PI()/180),"NR")) -> 0.6481676019 | BN116: =VLOOKUP(C116,Main!$A$49:$I$67,Main!$B$47,FALSE) -> 0.6 | BO116: =VLOOKUP(C116,Main!$A$49:$I$67,Main!$C$47,FALSE) -> 0.25 | BP116: =VLOOKUP(C116,Main!$A$49:$I$67,Main!$E$47,FALSE)&":"&" "&VLOOKUP(C116,Main!$A$49:$I$67,Main!$F$47,FALSE) -> Minimum HSPF:: 9.6 | BQ116: =VLOOKUP(C116,Main!$A$49:$I$67,Main!$G$47,FALSE) -> 18 | BR116: =VLOOKUP(C116,Main!$A$49:$I$67,Main!$H$47,FALSE) -> 3.1 | BS116: =VLOOKUP(C116,Main!$A$49:$I$67,Main!$I$47,FALSE) -> 16.1 | BT116: 7669
A117: AZ | B117: DAVIS MONTHAN AFB | C117: 2B | D117: 1457 | E117: 2007 | F117: 52.1 | G117: 91.4 | H117: 0.1145 | I117: 32.167N | J117: 35.5 | K117: 53.1 | L117: 55.2 | M117: 60.8 | N117: 67 | O117: 76.1 | P117: 85.2 | Q117: 86.9 | R117: 85.6 | S117: 82.2 | T117: 71.9 | U117: 60.8 | V117: 52.4 | W117: 42 | X117: 23 | Y117: 7 | Z117: 1 | AA117: 0 | AB117: 0 | AC117: 0 | AD117: 0 | AE117: 0 | AF117: 0 | AG117: 8 | AH117: 52 | AI117: 139 | AJ117: 168 | AK117: 340 | AL117: 510 | AM117: 808 | AN117: 1057 | AO117: 1143 | AP117: 1104 | AQ117: 965 | AR117: 679 | AS117: 333 | AT117: 127 | AU117: 30.6 | AV117: 43.34 | AW117: 35.4 | AX117: 24.62 | AY117: 23.2 | AZ117: 32.36 | BA117: 49.82 | BB117: 51.98 | BC117: 52.5 | BD117: 34.7 | BE117: 34.7 | BF117: 21.4 | BG117: NR | BH117: 0.3027027027 | BI117: 54 | BJ117: 24 | BK117: 12 | BL117: 17 | BM117: =IF(OR(C117="OA",C117="OB",C117="1B",C117="1A",C117="2A",C117="2B",C117="3A",C117="3B",C117="3C"),TAN((LEFT(I117, 5)+VLOOKUP(C117,Main!$K$3:$L$21,2,FALSE))*PI()/180),IF(Checklist!$I$385="No",TAN((LEFT(I117, 5)+VLOOKUP(C117,Main!$K$3:$L$21,2,FALSE))*PI()/180),"NR")) -> 0.628759051 | BN117: =VLOOKUP(C117,Main!$A$49:$I$67,Main!$B$47,FALSE) -> 0.6 | BO117: =VLOOKUP(C117,Main!$A$49:$I$67,Main!$C$47,FALSE) -> 0.25 | BP117: =VLOOKUP(C117,Main!$A$49:$I$67,Main!$E$47,FALSE)&":"&" "&VLOOKUP(C117,Main!$A$49:$I$67,Main!$F$47,FALSE) -> Minimum HSPF:: 9.6 | BQ117: =VLOOKUP(C117,Main!$A$49:$I$67,Main!$G$47,FALSE) -> 18 | BR117: =VLOOKUP(C117,Main!$A$49:$I$67,Main!$H$47,FALSE) -> 3.1 | BS117: =VLOOKUP(C117,Main!$A$49:$I$67,Main!$I$47,FALSE) -> 16.1 | BT117: 7373
A118: AZ | B118: DEER VALLEY/PHOENIX | C118: 1B | D118: 1187 | E118: 2045 | F118: 50.1 | G118: 97.9 | H118: 0.1145 | I118: 33.688N | J118: 39.3 | K118: 55.1 | L118: 56.8 | M118: 63 | N118: 69.4 | O118: 79.3 | P118: 88.3 | Q118: 92.8 | R118: 91.2 | S118: 86.4 | T118: 74.6 | U118: 63 | V118: 53.6 | W118: 23 | X118: 9 | Y118: 2 | Z118: 0 | AA118: 0 | AB118: 0 | AC118: 0 | AD118: 0 | AE118: 0 | AF118: 0 | AG118: 3 | AH118: 30 | AI118: 182 | AJ118: 199 | AK118: 404 | AL118: 583 | AM118: 908 | AN118: 1148 | AO118: 1327 | AP118: 1276 | AQ118: 1093 | AR118: 762 | AS118: 393 | AT118: 140 | AU118: 36.7 | AV118: 36.86 | AW118: 35.1 | AX118: 32.72 | AY118: 30.2 | AZ118: 42.8 | BA118: 57.92 | BB118: 50 | BC118: 48.9 | BD118: 33.4 | BE118: 33.4 | BF118: 19.8 | BG118: NR | BH118: 0.3427818062 | BI118: 53 | BJ118: 24 | BK118: 14 | BL118: 19 | BM118: =IF(OR(C118="OA",C118="OB",C118="1B",C118="1A",C118="2A",C118="2B",C118="3A",C118="3B",C118="3C"),TAN((LEFT(I118, 5)+VLOOKUP(C118,Main!$K$3:$L$21,2,FALSE))*PI()/180),IF(Checklist!$I$385="No",TAN((LEFT(I118, 5)+VLOOKUP(C118,Main!$K$3:$L$21,2,FALSE))*PI()/180),"NR")) -> 0.6664128909 | BN118: =VLOOKUP(C118,Main!$A$49:$I$67,Main!$B$47,FALSE) -> 0.6 | BO118: =VLOOKUP(C118,Main!$A$49:$I$67,Main!$C$47,FALSE) -> 0.25 | BP118: =VLOOKUP(C118,Main!$A$49:$I$67,Main!$E$47,FALSE)&":"&" "&VLOOKUP(C118,Main!$A$49:$I$67,Main!$F$47,FALSE) -> Minimum HSPF:: 9.6 | BQ118: =VLOOKUP(C118,Main!$A$49:$I$67,Main!$G$47,FALSE) -> 18 | BR118: =VLOOKUP(C118,Main!$A$49:$I$67,Main!$H$47,FALSE) -> 3.1 | BS118: =VLOOKUP(C118,Main!$A$49:$I$67,Main!$I$47,FALSE) -> 16.1 | BT118: 8415
A119: AZ | B119: DOUGLAS BISBEE-DOUGLAS INTL A | C119: 3B | D119: 2473 | E119: 2064 | F119: 49.55 | G119: 83.8 | H119: 0.1145 | I119: 31.458N | J119: 25.3 | K119: 46.4 | L119: 49.5 | M119: 55 | N119: 61.6 | O119: 70.2 | P119: 78.9 | Q119: 80.1 | R119: 78.1 | S119: 74.6 | T119: 64.8 | U119: 53.8 | V119: 46.1 | W119: 140 | X119: 73 | Y119: 26 | Z119: 3 | AA119: 0 | AB119: 0 | AC119: 0 | AD119: 0 | AE119: 0 | AF119: 2 | AG119: 37 | AH119: 151 | AI119: 28 | AJ119: 58 | AK119: 181 | AL119: 352 | AM119: 626 | AN119: 868 | AO119: 932 | AP119: 872 | AQ119: 739 | AR119: 460 | AS119: 150 | AT119: 29 | AU119: 27 | AV119: 25.16 | AW119: 34.5 | AX119: 22.1 | AY119: 27.3 | AZ119: 35.96 | BA119: 58.28 | BB119: 57.56 | BC119: 45.7 | BD119: 28.8 | BE119: 28.8 | BF119: 24.3 | BG119: 0.6347031963 | BH119: 0.2303943288 | BI119: 58 | BJ119: 27 | BK119: 12 | BL119: 17 | BM119: =IF(OR(C119="OA",C119="OB",C119="1B",C119="1A",C119="2A",C119="2B",C119="3A",C119="3B",C119="3C"),TAN((LEFT(I119, 5)+VLOOKUP(C119,Main!$K$3:$L$21,2,FALSE))*PI()/180),IF(Checklist!$I$385="No",TAN((LEFT(I119, 5)+VLOOKUP(C119,Main!$K$3:$L$21,2,FALSE))*PI()/180),"NR")) -> 0.6116010576 | BN119: =VLOOKUP(C119,Main!$A$49:$I$67,Main!$B$47,FALSE) -> NR | BO119: =VLOOKUP(C119,Main!$A$49:$I$67,Main!$C$47,FALSE) -> 0.25 | BP119: =VLOOKUP(C119,Main!$A$49:$I$67,Main!$E$47,FALSE)&":"&" "&VLOOKUP(C119,Main!$A$49:$I$67,Main!$F$47,FALSE) -> Minimum HSPF:: 9.6 | BQ119: =VLOOKUP(C119,Main!$A$49:$I$67,Main!$G$47,FALSE) -> 18 | BR119: =VLOOKUP(C119,Main!$A$49:$I$67,Main!$H$47,FALSE) -> 3.1 | BS119: =VLOOKUP(C119,Main!$A$49:$I$67,Main!$I$47,FALSE) -> 16.1 | BT119: 5295
A120: AZ | B120: FLAGSTAFF PULLIAM ARPT | C120: 5B | D120: 6801 | E120: 1900 | F120: 25.1 | G120: 70.2 | H120: 0.1145 | I120: 35.144N | J120: 9.4 | K120: 30.3 | L120: 32.3 | M120: 37.8 | N120: 43.4 | O120: 51.8 | P120: 60.8 | Q120: 66.5 | R120: 64.4 | S120: 58.1 | T120: 47.3 | U120: 37.4 | V120: 29.7 | W120: 611 | X120: 496 | Y120: 379 | Z120: 211 | AA120: 52 | AB120: 4 | AC120: 0 | AD120: 0 | AE120: 3 | AF120: 123 | AG120: 378 | AH120: 630 | AI120: 0 | AJ120: 0 | AK120: 0 | AL120: 12 | AM120: 107 | AN120: 328 | AO120: 511 | AP120: 447 | AQ120: 246 | AR120: 38 | AS120: 0 | AT120: 0 | AU120: 16.7 | AV120: 13.46 | AW120: 19.9 | AX120: 24.8 | AY120: 21.4 | AZ120: 32.54 | BA120: 38.66 | BB120: 41.36 | BC120: 37.4 | BD120: 19 | BE120: 19 | BF120: 15.4 | BG120: 0.7911227154 | BH120: 0.1678811918 | BI120: 70 | BJ120: 40 | BK120: 22 | BL120: 27 | BM120: =IF(OR(C120="OA",C120="OB",C120="1B",C120="1A",C120="2A",C120="2B",C120="3A",C120="3B",C120="3C"),TAN((LEFT(I120, 5)+VLOOKUP(C120,Main!$K$3:$L$21,2,FALSE))*PI()/180),IF(Checklist!$I$385="No",TAN((LEFT(I120, 5)+VLOOKUP(C120,Main!$K$3:$L$21,2,FALSE))*PI()/180),"NR")) -> NR | BN120: =VLOOKUP(C120,Main!$A$49:$I$67,Main!$B$47,FALSE) -> NR | BO120: =VLOOKUP(C120,Main!$A$49:$I$67,Main!$C$47,FALSE) -> NR | BP120: =VLOOKUP(C120,Main!$A$49:$I$67,Main!$E$47,FALSE)&":"&" "&VLOOKUP(C120,Main!$A$49:$I$67,Main!$F$47,FALSE) -> Minimum COP @ 5°F:: 1.75 | BQ120: =VLOOKUP(C120,Main!$A$49:$I$67,Main!$G$47,FALSE) -> 15 | BR120: =VLOOKUP(C120,Main!$A$49:$I$67,Main!$H$47,FALSE) -> 3.1 | BS120: =VLOOKUP(C120,Main!$A$49:$I$67,Main!$I$47,FALSE) -> 16.1 | BT120: 1689
A121: AZ | B121: GRAND CANYON NATL P | C121: 5B | D121: 6901 | E121: 1907 | F121: 31.9 | G121: 69.8 | H121: 0.1145 | I121: 35.946N | J121: 4.9 | K121: 29.4 | L121: 31.5 | M121: 37.8 | N121: 42.7 | O121: 51.4 | P121: 60.1 | Q121: 67.2 | R121: 65.5 | S121: 58.4 | T121: 46.8 | U121: 37.1 | V121: 29 | W121: 639 | X121: 517 | Y121: 380 | Z121: 228 | AA121: 60 | AB121: 4 | AC121: 0 | AD121: 0 | AE121: 6 | AF121: 134 | AG121: 389 | AH121: 650 | AI121: 0 | AJ121: 0 | AK121: 1 | AL121: 9 | AM121: 103 | AN121: 306 | AO121: 535 | AP121: 480 | AQ121: 257 | AR121: 35 | AS121: 1 | AT121: 0 | AU121: 14.2 | AV121: 20.12 | AW121: 23.2 | AX121: 17.96 | AY121: 20.5 | AZ121: 21.74 | BA121: 35.42 | BB121: 42.8 | BC121: 46.9 | BD121: 16.2 | BE121: 16.2 | BF121: 16 | BG121: 0.7948717949 | BH121: 0.1559086821 | BI121: 71 | BJ121: 40 | BK121: 23 | BL121: 28 | BM121: =IF(OR(C121="OA",C121="OB",C121="1B",C121="1A",C121="2A",C121="2B",C121="3A",C121="3B",C121="3C"),TAN((LEFT(I121, 5)+VLOOKUP(C121,Main!$K$3:$L$21,2,FALSE))*PI()/180),IF(Checklist!$I$385="No",TAN((LEFT(I121, 5)+VLOOKUP(C121,Main!$K$3:$L$21,2,FALSE))*PI()/180),"NR")) -> NR | BN121: =VLOOKUP(C121,Main!$A$49:$I$67,Main!$B$47,FALSE) -> NR | BO121: =VLOOKUP(C121,Main!$A$49:$I$67,Main!$C$47,FALSE) -> NR | BP121: =VLOOKUP(C121,Main!$A$49:$I$67,Main!$E$47,FALSE)&":"&" "&VLOOKUP(C121,Main!$A$49:$I$67,Main!$F$47,FALSE) -> Minimum COP @ 5°F:: 1.75 | BQ121: =VLOOKUP(C121,Main!$A$49:$I$67,Main!$G$47,FALSE) -> 15 | BR121: =VLOOKUP(C121,Main!$A$49:$I$67,Main!$H$47,FALSE) -> 3.1 | BS121: =VLOOKUP(C121,Main!$A$49:$I$67,Main!$I$47,FALSE) -> 16.1 | BT121: 1727
A122: AZ | B122: KINGMAN (AMOS) | C122: 3B | D122: 3037 | E122: 2084 | F122: 39.2 | G122: 89.6 | H122: 0.1145 | I122: 35.258N | J122: 26.9 | K122: 44 | L122: 47 | M122: 52.6 | N122: 58.7 | O122: 68.6 | P122: 78 | Q122: 83.6 | R122: 82.2 | S122: 75.4 | T122: 63.2 | U122: 51.4 | V122: 42.7 | W122: 197 | X122: 118 | Y122: 52 | Z122: 16 | AA122: 0 | AB122: 0 | AC122: 0 | AD122: 0 | AE122: 0 | AF122: 5 | AG122: 70 | AH122: 239 | AI122: 12 | AJ122: 34 | AK122: 134 | AL122: 275 | AM122: 578 | AN122: 840 | AO122: 1041 | AP122: 999 | AQ122: 763 | AR122: 414 | AS122: 111 | AT122: 11 | AU122: 18.3 | AV122: 26.24 | AW122: 30.4 | AX122: 23.54 | AY122: 27.7 | AZ122: 28.94 | BA122: 45.5 | BB122: 47.48 | BC122: 41.7 | BD122: 33.4 | BE122: 33.4 | BF122: 28.2 | BG122: 0.6837944664 | BH122: 0.239363451 | BI122: 59 | BJ122: 29 | BK122: 14 | BL122: 19 | BM122: =IF(OR(C122="OA",C122="OB",C122="1B",C122="1A",C122="2A",C122="2B",C122="3A",C122="3B",C122="3C"),TAN((LEFT(I122, 5)+VLOOKUP(C122,Main!$K$3:$L$21,2,FALSE))*PI()/180),IF(Checklist!$I$385="No",TAN((LEFT(I122, 5)+VLOOKUP(C122,Main!$K$3:$L$21,2,FALSE))*PI()/180),"NR")) -> 0.7067301271 | BN122: =VLOOKUP(C122,Main!$A$49:$I$67,Main!$B$47,FALSE) -> NR | BO122: =VLOOKUP(C122,Main!$A$49:$I$67,Main!$C$47,FALSE) -> 0.25 | BP122: =VLOOKUP(C122,Main!$A$49:$I$67,Main!$E$47,FALSE)&":"&" "&VLOOKUP(C122,Main!$A$49:$I$67,Main!$F$47,FALSE) -> Minimum HSPF:: 9.6 | BQ122: =VLOOKUP(C122,Main!$A$49:$I$67,Main!$G$47,FALSE) -> 18 | BR122: =VLOOKUP(C122,Main!$A$49:$I$67,Main!$H$47,FALSE) -> 3.1 | BS122: =VLOOKUP(C122,Main!$A$49:$I$67,Main!$I$47,FALSE) -> 16.1 | BT122: 5212
A123: AZ | B123: LUKE AFB | C123: 1B | D123: 1222 | E123: 2043 | F123: 50.55 | G123: 102 | H123: 0.1145 | I123: 33.550N | J123: 37.3 | K123: 53.8 | L123: 57.1 | M123: 63.5 | N123: 70.2 | O123: 79.1 | P123: 88 | Q123: 93.4 | R123: 92.5 | S123: 86.4 | T123: 73.4 | U123: 61.6 | V123: 52.7 | W123: 20 | X123: 9 | Y123: 0 | Z123: 0 | AA123: 0 | AB123: 0 | AC123: 0 | AD123: 0 | AE123: 0 | AF123: 0 | AG123: 2 | AH123: 34 | AI123: 137 | AJ123: 207 | AK123: 418 | AL123: 608 | AM123: 903 | AN123: 1140 | AO123: 1346 | AP123: 1316 | AQ123: 1092 | AR123: 725 | AS123: 352 | AT123: 117 | AU123: 46.4 | AV123: 38.84 | AW123: 40.6 | AX123: 31.28 | AY123: 33.1 | AZ123: 28.76 | BA123: 47.48 | BB123: 47.12 | BC123: 50 | BD123: 31.3 | BE123: 31.3 | BF123: 33.3 | BG123: NR | BH123: 0.3204507439 | BI123: 53 | BJ123: 24 | BK123: 15 | BL123: 20 | BM123: =IF(OR(C123="OA",C123="OB",C123="1B",C123="1A",C123="2A",C123="2B",C123="3A",C123="3B",C123="3C"),TAN((LEFT(I123, 5)+VLOOKUP(C123,Main!$K$3:$L$21,2,FALSE))*PI()/180),IF(Checklist!$I$385="No",TAN((LEFT(I123, 5)+VLOOKUP(C123,Main!$K$3:$L$21,2,FALSE))*PI()/180),"NR")) -> 0.6631412593 | BN123: =VLOOKUP(C123,Main!$A$49:$I$67,Main!$B$47,FALSE) -> 0.6 | BO123: =VLOOKUP(C123,Main!$A$49:$I$67,Main!$C$47,FALSE) -> 0.25 | BP123: =VLOOKUP(C123,Main!$A$49:$I$67,Main!$E$47,FALSE)&":"&" "&VLOOKUP(C123,Main!$A$49:$I$67,Main!$F$47,FALSE) -> Minimum HSPF:: 9.6 | BQ123: =VLOOKUP(C123,Main!$A$49:$I$67,Main!$G$47,FALSE) -> 18 | BR123: =VLOOKUP(C123,Main!$A$49:$I$67,Main!$H$47,FALSE) -> 3.1 | BS123: =VLOOKUP(C123,Main!$A$49:$I$67,Main!$I$47,FALSE) -> 16.1 | BT123: 8361
A124: AZ | B124: PAGE MUNI (AMOS) | C124: 5B | D124: 3861 | E124: 1964 | F124: 38.3 | G124: 85.3 | H124: 0.1145 | I124: 36.926N | J124: 24.8 | K124: 37.1 | L124: 42.3 | M124: 50.8 | N124: 58.1 | O124: 68.7 | P124: 78.6 | Q124: 84.4 | R124: 81 | S124: 73.7 | T124: 60.2 | U124: 46.3 | V124: 36.3 | W124: 399 | X124: 222 | Y124: 73 | Z124: 19 | AA124: 0 | AB124: 0 | AC124: 0 | AD124: 0 | AE124: 0 | AF124: 9 | AG124: 148 | AH124: 424 | AI124: 0 | AJ124: 7 | AK124: 97 | AL124: 263 | AM124: 579 | AN124: 859 | AO124: 1068 | AP124: 962 | AQ124: 711 | AR124: 325 | AS124: 38 | AT124: 1 | AU124: 20.7 | AV124: 24.62 | AW124: 28.2 | AX124: 22.82 | AY124: 22.1 | AZ124: 32 | BA124: 38.48 | BB124: 50.36 | BC124: 39.7 | BD124: 30.4 | BE124: 30.4 | BF124: 19 | BG124: 0.7476340694 | BH124: 0.2277277277 | BI124: 61 | BJ124: 31 | BK124: 15 | BL124: 20 | BM124: =IF(OR(C124="OA",C124="OB",C124="1B",C124="1A",C124="2A",C124="2B",C124="3A",C124="3B",C124="3C"),TAN((LEFT(I124, 5)+VLOOKUP(C124,Main!$K$3:$L$21,2,FALSE))*PI()/180),IF(Checklist!$I$385="No",TAN((LEFT(I124, 5)+VLOOKUP(C124,Main!$K$3:$L$21,2,FALSE))*PI()/180),"NR")) -> NR | BN124: =VLOOKUP(C124,Main!$A$49:$I$67,Main!$B$47,FALSE) -> NR | BO124: =VLOOKUP(C124,Main!$A$49:$I$67,Main!$C$47,FALSE) -> NR | BP124: =VLOOKUP(C124,Main!$A$49:$I$67,Main!$E$47,FALSE)&":"&" "&VLOOKUP(C124,Main!$A$49:$I$67,Main!$F$47,FALSE) -> Minimum COP @ 5°F:: 1.75 | BQ124: =VLOOKUP(C124,Main!$A$49:$I$67,Main!$G$47,FALSE) -> 15 | BR124: =VLOOKUP(C124,Main!$A$49:$I$67,Main!$H$47,FALSE) -> 3.1 | BS124: =VLOOKUP(C124,Main!$A$49:$I$67,Main!$I$47,FALSE) -> 16.1 | BT124: 4910
A125: AZ | B125: PHOENIX SKY HARBOR INTL AP | C125: 1B | D125: 912 | E125: 2094 | F125: 47.75 | G125: 97 | H125: 0.1145 | I125: 33.428N | J125: 41.8 | K125: 56.7 | L125: 59.5 | M125: 65.6 | N125: 72.6 | O125: 81.9 | P125: 90.9 | Q125: 94.8 | R125: 93.6 | S125: 88.8 | T125: 76.9 | U125: 64.6 | V125: 55.6 | W125: 9 | X125: 3 | Y125: 0 | Z125: 0 | AA125: 0 | AB125: 0 | AC125: 0 | AD125: 0 | AE125: 0 | AF125: 0 | AG125: 1 | AH125: 14 | AI125: 216 | AJ125: 268 | AK125: 484 | AL125: 677 | AM125: 989 | AN125: 1226 | AO125: 1390 | AP125: 1352 | AQ125: 1165 | AR125: 835 | AS125: 440 | AT125: 187 | AU125: 28 | AV125: 39.38 | AW125: 36.5 | AX125: 29.12 | AY125: 36.1 | AZ125: 42.62 | BA125: 56.48 | BB125: 56.3 | BC125: 48 | BD125: 35.4 | BE125: 35.4 | BF125: 32.9 | BG125: NR | BH125: 0.3754899938 | BI125: 52 | BJ125: 23 | BK125: 14 | BL125: 19 | BM125: =IF(OR(C125="OA",C125="OB",C125="1B",C125="1A",C125="2A",C125="2B",C125="3A",C125="3B",C125="3C"),TAN((LEFT(I125, 5)+VLOOKUP(C125,Main!$K$3:$L$21,2,FALSE))*PI()/180),IF(Checklist!$I$385="No",TAN((LEFT(I125, 5)+VLOOKUP(C125,Main!$K$3:$L$21,2,FALSE))*PI()/180),"NR")) -> 0.6598794579 | BN125: =VLOOKUP(C125,Main!$A$49:$I$67,Main!$B$47,FALSE) -> 0.6 | BO125: =VLOOKUP(C125,Main!$A$49:$I$67,Main!$C$47,FALSE) -> 0.25 | BP125: =VLOOKUP(C125,Main!$A$49:$I$67,Main!$E$47,FALSE)&":"&" "&VLOOKUP(C125,Main!$A$49:$I$67,Main!$F$47,FALSE) -> Minimum HSPF:: 9.6 | BQ125: =VLOOKUP(C125,Main!$A$49:$I$67,Main!$G$47,FALSE) -> 18 | BR125: =VLOOKUP(C125,Main!$A$49:$I$67,Main!$H$47,FALSE) -> 3.1 | BS125: =VLOOKUP(C125,Main!$A$49:$I$67,Main!$I$47,FALSE) -> 16.1 | BT125: 9229
A126: AZ | B126: PRESCOTT LOVE FIELD | C126: 4B | D126: 4145 | E126: 1954 | F126: 33.8 | G126: 77.2 | H126: 0.1145 | I126: 34.652N | J126: 20.8 | K126: 39.2 | L126: 41.8 | M126: 47.3 | N126: 53.2 | O126: 62.2 | P126: 71.3 | Q126: 76.2 | R126: 74.2 | S126: 68.6 | T126: 57.4 | U126: 46.6 | V126: 38.3 | W126: 337 | X126: 236 | Y126: 129 | Z126: 47 | AA126: 4 | AB126: 0 | AC126: 0 | AD126: 0 | AE126: 0 | AF126: 21 | AG126: 142 | AH126: 362 | AI126: 1 | AJ126: 5 | AK126: 45 | AL126: 143 | AM126: 380 | AN126: 639 | AO126: 814 | AP126: 751 | AQ126: 559 | AR126: 250 | AS126: 39 | AT126: 1 | AU126: 24.8 | AV126: 23.54 | AW126: 25 | AX126: 24.44 | AY126: 27 | AZ126: 33.8 | BA126: 48.74 | BB126: 53.42 | BC126: 38.3 | BD126: 25 | BE126: 25 | BF126: 17.4 | BG126: 0.7306397306 | BH126: 0.2084287678 | BI126: 62 | BJ126: 32 | BK126: 16 | BL126: 21 | BM126: =IF(OR(C126="OA",C126="OB",C126="1B",C126="1A",C126="2A",C126="2B",C126="3A",C126="3B",C126="3C"),TAN((LEFT(I126, 5)+VLOOKUP(C126,Main!$K$3:$L$21,2,FALSE))*PI()/180),IF(Checklist!$I$385="No",TAN((LEFT(I126, 5)+VLOOKUP(C126,Main!$K$3:$L$21,2,FALSE))*PI()/180),"NR")) -> NR | BN126: =VLOOKUP(C126,Main!$A$49:$I$67,Main!$B$47,FALSE) -> NR | BO126: =VLOOKUP(C126,Main!$A$49:$I$67,Main!$C$47,FALSE) -> 0.25 | BP126: =VLOOKUP(C126,Main!$A$49:$I$67,Main!$E$47,FALSE)&":"&" "&VLOOKUP(C126,Main!$A$49:$I$67,Main!$F$47,FALSE) -> Minimum HSPF:: 9.6 | BQ126: =VLOOKUP(C126,Main!$A$49:$I$67,Main!$G$47,FALSE) -> 18 | BR126: =VLOOKUP(C126,Main!$A$49:$I$67,Main!$H$47,FALSE) -> 3.1 | BS126: =VLOOKUP(C126,Main!$A$49:$I$67,Main!$I$47,FALSE) -> 16.1 | BT126: 3627
A127: AZ | B127: SAFFORD (AMOS) | C127: 3B | D127: 2220 | E127: 2083 | F127: 45.3 | G127: 88 | H127: 0.1145 | I127: 32.855N | J127: 28.5 | K127: 47.3 | L127: 50.9 | M127: 57 | N127: 64.5 | O127: 73.5 | P127: 83.1 | Q127: 85.3 | R127: 83.4 | S127: 78.8 | T127: 67.3 | U127: 55 | V127: 46.6 | W127: 118 | X127: 58 | Y127: 15 | Z127: 1 | AA127: 0 | AB127: 0 | AC127: 0 | AD127: 0 | AE127: 0 | AF127: 1 | AG127: 34 | AH127: 137 | AI127: 33 | AJ127: 83 | AK127: 232 | AL127: 436 | AM127: 730 | AN127: 994 | AO127: 1096 | AP127: 1035 | AQ127: 863 | AR127: 538 | AS127: 186 | AT127: 31 | AU127: 19.8 | AV127: 21.2 | AW127: 36.1 | AX127: 28.94 | AY127: 30.6 | AZ127: 33.8 | BA127: 46.4 | BB127: 56.3 | BC127: 43.3 | BD127: 27 | BE127: 27 | BF127: 27 | BG127: 0.6261682243 | BH127: 0.2490591858 | BI127: 57 | BJ127: 27 | BK127: 13 | BL127: 18 | BM127: =IF(OR(C127="OA",C127="OB",C127="1B",C127="1A",C127="2A",C127="2B",C127="3A",C127="3B",C127="3C"),TAN((LEFT(I127, 5)+VLOOKUP(C127,Main!$K$3:$L$21,2,FALSE))*PI()/180),IF(Checklist!$I$385="No",TAN((LEFT(I127, 5)+VLOOKUP(C127,Main!$K$3:$L$21,2,FALSE))*PI()/180),"NR")) -> 0.645691821 | BN127: =VLOOKUP(C127,Main!$A$49:$I$67,Main!$B$47,FALSE) -> NR | BO127: =VLOOKUP(C127,Main!$A$49:$I$67,Main!$C$47,FALSE) -> 0.25 | BP127: =VLOOKUP(C127,Main!$A$49:$I$67,Main!$E$47,FALSE)&":"&" "&VLOOKUP(C127,Main!$A$49:$I$67,Main!$F$47,FALSE) -> Minimum HSPF:: 9.6 | BQ127: =VLOOKUP(C127,Main!$A$49:$I$67,Main!$G$47,FALSE) -> 18 | BR127: =VLOOKUP(C127,Main!$A$49:$I$67,Main!$H$47,FALSE) -> 3.1 | BS127: =VLOOKUP(C127,Main!$A$49:$I$67,Main!$I$47,FALSE) -> 16.1 | BT127: 6257
A128: AZ | B128: SCOTTSDALE MUNI | C128: 1B | D128: 1139 | E128: 2063 | F128: 49.9 | G128: 100 | H128: 0.1145 | I128: 33.623N | J128: 38.7 | K128: 55 | L128: 56.7 | M128: 63.9 | N128: 70.5 | O128: 79.7 | P128: 89.3 | Q128: 93.5 | R128: 91.8 | S128: 86.6 | T128: 74.7 | U128: 63.4 | V128: 53.4 | W128: 21 | X128: 9 | Y128: 1 | Z128: 0 | AA128: 0 | AB128: 0 | AC128: 0 | AD128: 0 | AE128: 0 | AF128: 0 | AG128: 3 | AH128: 31 | AI128: 177 | AJ128: 198 | AK128: 431 | AL128: 614 | AM128: 919 | AN128: 1179 | AO128: 1349 | AP128: 1295 | AQ128: 1097 | AR128: 764 | AS128: 405 | AT128: 136 | AU128: 29.1 | AV128: 33.62 | AW128: 31.1 | AX128: 35.06 | AY128: 37.4 | AZ128: 37.94 | BA128: 57.2 | BB128: 61.7 | BC128: 50.4 | BD128: 37 | BE128: 37 | BF128: 30 | BG128: NR | BH128: 0.3357623835 | BI128: 53 | BJ128: 23 | BK128: 15 | BL128: 20 | BM128: =IF(OR(C128="OA",C128="OB",C128="1B",C128="1A",C128="2A",C128="2B",C128="3A",C128="3B",C128="3C"),TAN((LEFT(I128, 5)+VLOOKUP(C128,Main!$K$3:$L$21,2,FALSE))*PI()/180),IF(Checklist!$I$385="No",TAN((LEFT(I128, 5)+VLOOKUP(C128,Main!$K$3:$L$21,2,FALSE))*PI()/180),"NR")) -> 0.6649016806 | BN128: =VLOOKUP(C128,Main!$A$49:$I$67,Main!$B$47,FALSE) -> 0.6 | BO128: =VLOOKUP(C128,Main!$A$49:$I$67,Main!$C$47,FALSE) -> 0.25 | BP128: =VLOOKUP(C128,Main!$A$49:$I$67,Main!$E$47,FALSE)&":"&" "&VLOOKUP(C128,Main!$A$49:$I$67,Main!$F$47,FALSE) -> Minimum HSPF:: 9.6 | BQ128: =VLOOKUP(C128,Main!$A$49:$I$67,Main!$G$47,FALSE) -> 18 | BR128: =VLOOKUP(C128,Main!$A$49:$I$67,Main!$H$47,FALSE) -> 3.1 | BS128: =VLOOKUP(C128,Main!$A$49:$I$67,Main!$I$47,FALSE) -> 16.1 | BT128: 8564
A129: AZ | B129: TUCSON INTERNATIONAL AP | C129: 2B | D129: 1401 | E129: 2065 | F129: 46.3 | G129: 89.6 | H129: 0.1145 | I129: 32.131N | J129: 34.4 | K129: 53.3 | L129: 55.6 | M129: 61.3 | N129: 67.6 | O129: 76.7 | P129: 85.8 | Q129: 87.5 | R129: 86 | S129: 82.4 | T129: 72.1 | U129: 61 | V129: 52.5 | W129: 37 | X129: 19 | Y129: 6 | Z129: 1 | AA129: 0 | AB129: 0 | AC129: 0 | AD129: 0 | AE129: 0 | AF129: 0 | AG129: 8 | AH129: 48 | AI129: 140 | AJ129: 175 | AK129: 357 | AL129: 529 | AM129: 828 | AN129: 1073 | AO129: 1164 | AP129: 1115 | AQ129: 973 | AR129: 684 | AS129: 337 | AT129: 127 | AU129: 22.3 | AV129: 35.42 | AW129: 29.1 | AX129: 30.2 | AY129: 28.8 | AZ129: 39.56 | BA129: 57.02 | BB129: 57.56 | BC129: 52.3 | BD129: 31.6 | BE129: 31.6 | BF129: 30.2 | BG129: NR | BH129: 0.2927927928 | BI129: 54 | BJ129: 24 | BK129: 12 | BL129: 17 | BM129: =IF(OR(C129="OA",C129="OB",C129="1B",C129="1A",C129="2A",C129="2B",C129="3A",C129="3B",C129="3C"),TAN((LEFT(I129, 5)+VLOOKUP(C129,Main!$K$3:$L$21,2,FALSE))*PI()/180),IF(Checklist!$I$385="No",TAN((LEFT(I129, 5)+VLOOKUP(C129,Main!$K$3:$L$21,2,FALSE))*PI()/180),"NR")) -> 0.6280286941 | BN129: =VLOOKUP(C129,Main!$A$49:$I$67,Main!$B$47,FALSE) -> 0.6 | BO129: =VLOOKUP(C129,Main!$A$49:$I$67,Main!$C$47,FALSE) -> 0.25 | BP129: =VLOOKUP(C129,Main!$A$49:$I$67,Main!$E$47,FALSE)&":"&" "&VLOOKUP(C129,Main!$A$49:$I$67,Main!$F$47,FALSE) -> Minimum HSPF:: 9.6 | BQ129: =VLOOKUP(C129,Main!$A$49:$I$67,Main!$G$47,FALSE) -> 18 | BR129: =VLOOKUP(C129,Main!$A$49:$I$67,Main!$H$47,FALSE) -> 3.1 | BS129: =VLOOKUP(C129,Main!$A$49:$I$67,Main!$I$47,FALSE) -> 16.1 | BT129: 7502
A130: AZ | B130: WINSLOW MUNICIPAL AP | C130: 3B | D130: 4489 | E130: 2003 | F130: 29.5 | G130: 81.7 | H130: 0.1145 | I130: 35.028N | J130: 15 | K130: 35.6 | L130: 40.1 | M130: 47.4 | N130: 54 | O130: 63.3 | P130: 72.7 | Q130: 78.2 | R130: 75.9 | S130: 69 | T130: 56.3 | U130: 43.7 | V130: 34.4 | W130: 447 | X130: 281 | Y130: 130 | Z130: 40 | AA130: 3 | AB130: 0 | AC130: 0 | AD130: 0 | AE130: 0 | AF130: 27 | AG130: 212 | AH130: 484 | AI130: 1 | AJ130: 5 | AK130: 49 | AL130: 161 | AM130: 415 | AN130: 680 | AO130: 875 | AP130: 803 | AQ130: 569 | AR130: 224 | AS130: 23 | AT130: 1 | AU130: 20.7 | AV130: 21.38 | AW130: 21.4 | AX130: 23.18 | AY130: 30.6 | AZ130: 30.56 | BA130: 49.28 | BB130: 53.78 | BC130: 46.8 | BD130: 25 | BE130: 25 | BF130: 16.2 | BG130: 0.7619047619 | BH130: 0.1856195818 | BI130: 64 | BJ130: 33 | BK130: 16 | BL130: 21 | BM130: =IF(OR(C130="OA",C130="OB",C130="1B",C130="1A",C130="2A",C130="2B",C130="3A",C130="3B",C130="3C"),TAN((LEFT(I130, 5)+VLOOKUP(C130,Main!$K$3:$L$21,2,FALSE))*PI()/180),IF(Checklist!$I$385="No",TAN((LEFT(I130, 5)+VLOOKUP(C130,Main!$K$3:$L$21,2,FALSE))*PI()/180),"NR")) -> 0.700727875 | BN130: =VLOOKUP(C130,Main!$A$49:$I$67,Main!$B$47,FALSE) -> NR | BO130: =VLOOKUP(C130,Main!$A$49:$I$67,Main!$C$47,FALSE) -> 0.25 | BP130: =VLOOKUP(C130,Main!$A$49:$I$67,Main!$E$47,FALSE)&":"&" "&VLOOKUP(C130,Main!$A$49:$I$67,Main!$F$47,FALSE) -> Minimum HSPF:: 9.6 | BQ130: =VLOOKUP(C130,Main!$A$49:$I$67,Main!$G$47,FALSE) -> 18 | BR130: =VLOOKUP(C130,Main!$A$49:$I$67,Main!$H$47,FALSE) -> 3.1 | BS130: =VLOOKUP(C130,Main!$A$49:$I$67,Main!$I$47,FALSE) -> 16.1 | BT130: 3806
A131: AZ | B131: YUMA INTL ARPT | C131: 1B | D131: 657 | E131: 1982 | F131: 57.85 | G131: 97.2 | H131: 0.1145 | I131: 32.650N | J131: 44.8 | K131: 59.2 | L131: 61.8 | M131: 67.6 | N131: 73.2 | O131: 81.2 | P131: 89.4 | Q131: 94.8 | R131: 94.6 | S131: 89.8 | T131: 78.1 | U131: 66.3 | V131: 57.7 | W131: 3 | X131: 1 | Y131: 0 | Z131: 0 | AA131: 0 | AB131: 0 | AC131: 0 | AD131: 0 | AE131: 0 | AF131: 0 | AG131: 0 | AH131: 4 | AI131: 288 | AJ131: 332 | AK131: 546 | AL131: 695 | AM131: 966 | AN131: 1181 | AO131: 1388 | AP131: 1383 | AQ131: 1195 | AR131: 871 | AS131: 489 | AT131: 242 | AU131: 33.4 | AV131: 29.84 | AW131: 34.5 | AX131: 31.28 | AY131: 35.6 | AZ131: 40.64 | BA131: 61.34 | BB131: 59.36 | BC131: 53.1 | BD131: 35.6 | BE131: 35.6 | BF131: 32.9 | BG131: NR | BH131: 0.4240447344 | BI131: 51 | BJ131: 22 | BK131: 14 | BL131: 19 | BM131: =IF(OR(C131="OA",C131="OB",C131="1B",C131="1A",C131="2A",C131="2B",C131="3A",C131="3B",C131="3C"),TAN((LEFT(I131, 5)+VLOOKUP(C131,Main!$K$3:$L$21,2,FALSE))*PI()/180),IF(Checklist!$I$385="No",TAN((LEFT(I131, 5)+VLOOKUP(C131,Main!$K$3:$L$21,2,FALSE))*PI()/180),"NR")) -> 0.640756947 | BN131: =VLOOKUP(C131,Main!$A$49:$I$67,Main!$B$47,FALSE) -> 0.6 | BO131: =VLOOKUP(C131,Main!$A$49:$I$67,Main!$C$47,FALSE) -> 0.25 | BP131: =VLOOKUP(C131,Main!$A$49:$I$67,Main!$E$47,FALSE)&":"&" "&VLOOKUP(C131,Main!$A$49:$I$67,Main!$F$47,FALSE) -> Minimum HSPF:: 9.6 | BQ131: =VLOOKUP(C131,Main!$A$49:$I$67,Main!$G$47,FALSE) -> 18 | BR131: =VLOOKUP(C131,Main!$A$49:$I$67,Main!$H$47,FALSE) -> 3.1 | BS131: =VLOOKUP(C131,Main!$A$49:$I$67,Main!$I$47,FALSE) -> 16.1 | BT131: 9576
A132: AZ | B132: YUMA MCAS | C132: 1B | D132: 665 | E132: 1944 | F132: 55.4 | G132: 98.6 | H132: 0.1145 | I132: 32.62N | J132: 44.7 | K132: 58.9 | L132: 62.1 | M132: 67.6 | N132: 73.6 | O132: 81.2 | P132: 89.3 | Q132: 94.7 | R132: 94.3 | S132: 89.2 | T132: 78 | U132: 66 | V132: 57.5 | W132: 3 | X132: 1 | Y132: 0 | Z132: 0 | AA132: 0 | AB132: 0 | AC132: 0 | AD132: 0 | AE132: 0 | AF132: 0 | AG132: 0 | AH132: 6 | AI132: 278 | AJ132: 339 | AK132: 544 | AL132: 708 | AM132: 967 | AN132: 1178 | AO132: 1384 | AP132: 1374 | AQ132: 1176 | AR132: 869 | AS132: 481 | AT132: 238 | AU132: 32.2 | AV132: 29.84 | AW132: 34.5 | AX132: 37.58 | AY132: 38.5 | AZ132: 40.46 | BA132: 54.68 | BB132: 66.74 | BC132: 52.9 | BD132: 38.5 | BE132: 38.5 | BF132: 40.3 | BG132: NR | BH132: 0.4222247999 | BI132: 51 | BJ132: 22 | BK132: 15 | BL132: 20 | BM132: =IF(OR(C132="OA",C132="OB",C132="1B",C132="1A",C132="2A",C132="2B",C132="3A",C132="3B",C132="3C"),TAN((LEFT(I132, 5)+VLOOKUP(C132,Main!$K$3:$L$21,2,FALSE))*PI()/180),IF(Checklist!$I$385="No",TAN((LEFT(I132, 5)+VLOOKUP(C132,Main!$K$3:$L$21,2,FALSE))*PI()/180),"NR")) -> 0.6400186222 | BN132: =VLOOKUP(C132,Main!$A$49:$I$67,Main!$B$47,FALSE) -> 0.6 | BO132: =VLOOKUP(C132,Main!$A$49:$I$67,Main!$C$47,FALSE) -> 0.25 | BP132: =VLOOKUP(C132,Main!$A$49:$I$67,Main!$E$47,FALSE)&":"&" "&VLOOKUP(C132,Main!$A$49:$I$67,Main!$F$47,FALSE) -> Minimum HSPF:: 9.6 | BQ132: =VLOOKUP(C132,Main!$A$49:$I$67,Main!$G$47,FALSE) -> 18 | BR132: =VLOOKUP(C132,Main!$A$49:$I$67,Main!$H$47,FALSE) -> 3.1 | BS132: =VLOOKUP(C132,Main!$A$49:$I$67,Main!$I$47,FALSE) -> 16.1 | BT132: 9536
A133: BC | B133: ABBOTSFORD AP | C133: 4C | D133: 5240 | E133: 1156 | F133: 29.95 | G133: 72.1 | H133: 0.1183 | I133: 49.030N | J133: 22.9 | K133: 38.4 | L133: 41.2 | M133: 44.6 | N133: 49.6 | O133: 55.6 | P133: 60.1 | Q133: 65.1 | R133: 65.2 | S133: 60.1 | T133: 51.1 | U133: 43.1 | V133: 37.8 | W133: 361 | X133: 249 | Y133: 178 | Z133: 64 | AA133: 9 | AB133: 0 | AC133: 0 | AD133: 0 | AE133: 0 | AF133: 46 | AG133: 216 | AH133: 380 | AI133: 1 | AJ133: 1 | AK133: 10 | AL133: 52 | AM133: 182 | AN133: 304 | AO133: 467 | AP133: 471 | AQ133: 304 | AR133: 81 | AS133: 9 | AT133: 1 | AU133: 32.4 | AV133: 32.18 | AW133: 35.4 | AX133: 38.48 | AY133: 44.2 | AZ133: 49.1 | BA133: 53.06 | BB133: 53.06 | BC133: 49.8 | BD133: 37.4 | BE133: 37.4 | BF133: 31.5 | BG133: 0.7350993377 | BH133: 0.2181338767 | BI133: 65 | BJ133: 36 | BK133: 19 | BL133: 24 | BM133: =IF(OR(C133="OA",C133="OB",C133="1B",C133="1A",C133="2A",C133="2B",C133="3A",C133="3B",C133="3C"),TAN((LEFT(I133, 5)+VLOOKUP(C133,Main!$K$3:$L$21,2,FALSE))*PI()/180),IF(Checklist!$I$385="No",TAN((LEFT(I133, 5)+VLOOKUP(C133,Main!$K$3:$L$21,2,FALSE))*PI()/180),"NR")) -> NR | BN133: =VLOOKUP(C133,Main!$A$49:$I$67,Main!$B$47,FALSE) -> NR | BO133: =VLOOKUP(C133,Main!$A$49:$I$67,Main!$C$47,FALSE) -> NR | BP133: =VLOOKUP(C133,Main!$A$49:$I$67,Main!$E$47,FALSE)&":"&" "&VLOOKUP(C133,Main!$A$49:$I$67,Main!$F$47,FALSE) -> Minimum HSPF:: 9.6 | BQ133: =VLOOKUP(C133,Main!$A$49:$I$67,Main!$G$47,FALSE) -> 18 | BR133: =VLOOKUP(C133,Main!$A$49:$I$67,Main!$H$47,FALSE) -> 3.1 | BS133: =VLOOKUP(C133,Main!$A$49:$I$67,Main!$I$47,FALSE) -> 16.1 | BT133: 1883
A134: BC | B134: AGASSIZ CDA | C134: 4C | D134: 5142 | E134: 1185 | F134: 23.65 | G134: 74.1 | H134: 0.1183 | I134: 49.240N | J134: 23.1 | K134: 38 | L134: 41.4 | M134: 44.5 | N134: 50.2 | O134: 56.7 | P134: 60.8 | Q134: 65.8 | R134: 65.7 | S134: 61.1 | T134: 51.9 | U134: 42.9 | V134: 38.3 | W134: 374 | X134: 244 | Y134: 184 | Z134: 61 | AA134: 9 | AB134: 0 | AC134: 0 | AD134: 0 | AE134: 0 | AF134: 33 | AG134: 220 | AH134: 364 | AI134: 0 | AJ134: 2 | AK134: 14 | AL134: 66 | AM134: 215 | AN134: 323 | AO134: 489 | AP134: 488 | AQ134: 333 | AR134: 93 | AS134: 7 | AT134: 0 | AU134: 28.2 | AV134: 31.64 | AW134: 36.9 | AX134: 41.18 | AY134: 47.8 | AZ134: 53.42 | BA134: 57.74 | BB134: 57.38 | BC134: 53.1 | BD134: 37.9 | BE134: 37.9 | BF134: 28.8 | BG134: 0.7333333333 | BH134: 0.2191055198 | BI134: =ROUNDDOWN((33.97238548+(2.143484655*3.14219615)+(0.00253108806*D134)+(-0.2767683543*J134)+(66.9384076*H134)+((3.14219615-3.14219615)^2*-1.607593659)+((J134-12.48681818)*(H134-0.2016890909)*-1.8168457)+8.4234),0) -> 65 | BJ134: =ROUNDDOWN((2.975122788+(0.003896731237*D134)+(59.88697433*H134)+((D134-5520.854545)*(H134-0.2016890909)*0.01119327314)+5.3792),0) -> 35 | BK134: 18 | BL134: =ROUNDDOWN(BK134+5.9089,0) -> 23 | BM134: =IF(OR(C134="OA",C134="OB",C134="1B",C134="1A",C134="2A",C134="2B",C134="3A",C134="3B",C134="3C"),TAN((LEFT(I134, 5)+VLOOKUP(C134,Main!$K$3:$L$21,2,FALSE))*PI()/180),IF(Checklist!$I$385="No",TAN((LEFT(I134, 5)+VLOOKUP(C134,Main!$K$3:$L$21,2,FALSE))*PI()/180),"NR")) -> NR | BN134: =VLOOKUP(C134,Main!$A$49:$I$67,Main!$B$47,FALSE) -> NR | BO134: =VLOOKUP(C134,Main!$A$49:$I$67,Main!$C$47,FALSE) -> NR | BP134: =VLOOKUP(C134,Main!$A$49:$I$67,Main!$E$47,FALSE)&":"&" "&VLOOKUP(C134,Main!$A$49:$I$67,Main!$F$47,FALSE) -> Minimum HSPF:: 9.6 | BQ134: =VLOOKUP(C134,Main!$A$49:$I$67,Main!$G$47,FALSE) -> 18 | BR134: =VLOOKUP(C134,Main!$A$49:$I$67,Main!$H$47,FALSE) -> 3.1 | BS134: =VLOOKUP(C134,Main!$A$49:$I$67,Main!$I$47,FALSE) -> 16.1 | BT134: 2030
A135: BC | B135: BALLENAS ISLAND | C135: 4C | D135: 4772 | E135: 1222 | F135: 28.9 | G135: 74.8 | H135: 0.1183 | I135: 49.350N | J135: 32.9 | K135: 42.3 | L135: 42.6 | M135: 45.2 | N135: 49.1 | O135: 55.3 | P135: 60.2 | Q135: 64.8 | R135: 64.9 | S135: 60 | T135: 52.4 | U135: 45.8 | V135: 43 | W135: 239 | X135: 207 | Y135: 151 | Z135: 59 | AA135: 6 | AB135: 0 | AC135: 0 | AD135: 0 | AE135: 0 | AF135: 17 | AG135: 137 | AH135: 219 | AI135: 2 | AJ135: 0 | AK135: 4 | AL135: 32 | AM135: 170 | AN135: 307 | AO135: 460 | AP135: 461 | AQ135: 301 | AR135: 92 | AS135: 11 | AT135: 1 | AU135: 34.7 | AV135: 33.8 | AW135: 36.1 | AX135: 39.2 | AY135: 44.6 | AZ135: 49.28 | BA135: 53.78 | BB135: 53.78 | BC135: 50.2 | BD135: 38.8 | BE135: 38.8 | BF135: 34 | BG135: 0.6887159533 | BH135: 0.2802802803 | BI135: 63 | BJ135: 34 | BK135: 18 | BL135: 23 | BM135: =IF(OR(C135="OA",C135="OB",C135="1B",C135="1A",C135="2A",C135="2B",C135="3A",C135="3B",C135="3C"),TAN((LEFT(I135, 5)+VLOOKUP(C135,Main!$K$3:$L$21,2,FALSE))*PI()/180),IF(Checklist!$I$385="No",TAN((LEFT(I135, 5)+VLOOKUP(C135,Main!$K$3:$L$21,2,FALSE))*PI()/180),"NR")) -> NR | BN135: =VLOOKUP(C135,Main!$A$49:$I$67,Main!$B$47,FALSE) -> NR | BO135: =VLOOKUP(C135,Main!$A$49:$I$67,Main!$C$47,FALSE) -> NR | BP135: =VLOOKUP(C135,Main!$A$49:$I$67,Main!$E$47,FALSE)&":"&" "&VLOOKUP(C135,Main!$A$49:$I$67,Main!$F$47,FALSE) -> Minimum HSPF:: 9.6 | BQ135: =VLOOKUP(C135,Main!$A$49:$I$67,Main!$G$47,FALSE) -> 18 | BR135: =VLOOKUP(C135,Main!$A$49:$I$67,Main!$H$47,FALSE) -> 3.1 | BS135: =VLOOKUP(C135,Main!$A$49:$I$67,Main!$I$47,FALSE) -> 16.1 | BT135: 1841
A136: BC | B136: COMOX AP | C136: 5C | D136: 5561 | E136: 1200 | F136: 32.9 | G136: 69.3 | H136: 0.1183 | I136: 49.720N | J136: 27.1 | K136: 38.8 | L136: 39.5 | M136: 42.6 | N136: 47.7 | O136: 54.2 | P136: 59.6 | Q136: 64.7 | R136: 64.4 | S136: 58.4 | T136: 49 | U136: 42.4 | V136: 38.5 | W136: 348 | X136: 294 | Y136: 231 | Z136: 92 | AA136: 14 | AB136: 0 | AC136: 0 | AD136: 0 | AE136: 1 | AF136: 69 | AG136: 230 | AH136: 357 | AI136: 1 | AJ136: 0 | AK136: 1 | AL136: 22 | AM136: 144 | AN136: 289 | AO136: 454 | AP136: 446 | AQ136: 253 | AR136: 39 | AS136: 3 | AT136: 0 | AU136: 35.8 | AV136: 34.34 | AW136: 36.1 | AX136: 38.84 | AY136: 44.2 | AZ136: 49.1 | BA136: 53.06 | BB136: 53.42 | BC136: 49.8 | BD136: 39 | BE136: 39 | BF136: 35.2 | BG136: 0.7288135593 | BH136: 0.2405339325 | BI136: 65 | BJ136: 37 | BK136: =ROUNDDOWN(-18.64576148+(5.900367721*3.14219615)+(0.002662134083*D136)+(38.92365332*H136)+((BT136-3890.577273)*(G136-78.59)*0.00005765875867)+((D136-5520.854545)*(H136-0.2016890909)*0.006047043516),0) -> 20 | BL136: 25 | BM136: =IF(OR(C136="OA",C136="OB",C136="1B",C136="1A",C136="2A",C136="2B",C136="3A",C136="3B",C136="3C"),TAN((LEFT(I136, 5)+VLOOKUP(C136,Main!$K$3:$L$21,2,FALSE))*PI()/180),IF(Checklist!$I$385="No",TAN((LEFT(I136, 5)+VLOOKUP(C136,Main!$K$3:$L$21,2,FALSE))*PI()/180),"NR")) -> NR | BN136: =VLOOKUP(C136,Main!$A$49:$I$67,Main!$B$47,FALSE) -> NR | BO136: =VLOOKUP(C136,Main!$A$49:$I$67,Main!$C$47,FALSE) -> NR | BP136: =VLOOKUP(C136,Main!$A$49:$I$67,Main!$E$47,FALSE)&":"&" "&VLOOKUP(C136,Main!$A$49:$I$67,Main!$F$47,FALSE) -> Minimum HSPF:: 9.6 | BQ136: =VLOOKUP(C136,Main!$A$49:$I$67,Main!$G$47,FALSE) -> 18 | BR136: =VLOOKUP(C136,Main!$A$49:$I$67,Main!$H$47,FALSE) -> 3.1 | BS136: =VLOOKUP(C136,Main!$A$49:$I$67,Main!$I$47,FALSE) -> 16.1 | BT136: 1652
A137: BC | B137: CRANBROOK AP | C137: 6A | D137: 8209 | E137: 1363 | F137: 4.9 | G137: 75.4 | H137: 0.1183 | I137: 49.610N | J137: -4.1 | K137: 21.3 | L137: 26.2 | M137: 35.2 | N137: 43.4 | O137: 52.1 | P137: 58.3 | Q137: 66.4 | R137: 65.1 | S137: 55.9 | T137: 42.2 | U137: 29.7 | V137: 20 | W137: 889 | X137: 668 | Y137: 460 | Z137: 213 | AA137: 57 | AB137: 6 | AC137: 0 | AD137: 1 | AE137: 25 | AF137: 260 | AG137: 608 | AH137: 930 | AI137: 0 | AJ137: 0 | AK137: 0 | AL137: 16 | AM137: 124 | AN137: 256 | AO137: 509 | AP137: 470 | AQ137: 202 | AR137: 18 | AS137: 0 | AT137: 0 | AU137: 16 | AV137: 17.78 | AW137: 23 | AX137: 27.86 | AY137: 35.4 | AZ137: 42.08 | BA137: 44.96 | BB137: 43.34 | BC137: 39.2 | BD137: 23.5 | BE137: 23.5 | BF137: 14.7 | BG137: 0.8333333333 | BH137: 0.1364471267 | BI137: 76 | BJ137: 44 | BK137: 25 | BL137: 30 | BM137: =IF(OR(C137="OA",C137="OB",C137="1B",C137="1A",C137="2A",C137="2B",C137="3A",C137="3B",C137="3C"),TAN((LEFT(I137, 5)+VLOOKUP(C137,Main!$K$3:$L$21,2,FALSE))*PI()/180),IF(Checklist!$I$385="No",TAN((LEFT(I137, 5)+VLOOKUP(C137,Main!$K$3:$L$21,2,FALSE))*PI()/180),"NR")) -> NR | BN137: =VLOOKUP(C137,Main!$A$49:$I$67,Main!$B$47,FALSE) -> NR | BO137: =VLOOKUP(C137,Main!$A$49:$I$67,Main!$C$47,FALSE) -> NR | BP137: =VLOOKUP(C137,Main!$A$49:$I$67,Main!$E$47,FALSE)&":"&" "&VLOOKUP(C137,Main!$A$49:$I$67,Main!$F$47,FALSE) -> Minimum COP @ 5°F:: 1.75 | BQ137: =VLOOKUP(C137,Main!$A$49:$I$67,Main!$G$47,FALSE) -> 15 | BR137: =VLOOKUP(C137,Main!$A$49:$I$67,Main!$H$47,FALSE) -> 3.1 | BS137: =VLOOKUP(C137,Main!$A$49:$I$67,Main!$I$47,FALSE) -> 16.1 | BT137: 1595
A138: BC | B138: DISCOVERY ISLAND | C138: 4C | D138: 4995 | E138: 1112 | F138: 32.35 | G138: 67.6 | H138: 0.1183 | I138: 48.420N | J138: 34.1 | K138: 44.1 | L138: 44.6 | M138: 46.1 | N138: 49.5 | O138: 53.5 | P138: 56.9 | Q138: 59.3 | R138: 59.7 | S138: 58 | T138: 52.5 | U138: 47.5 | V138: 44.2 | W138: 186 | X138: 152 | Y138: 126 | Z138: 48 | AA138: 7 | AB138: 0 | AC138: 0 | AD138: 0 | AE138: 0 | AF138: 12 | AG138: 91 | AH138: 183 | AI138: 3 | AJ138: 1 | AK138: 6 | AL138: 33 | AM138: 116 | AN138: 208 | AO138: 288 | AP138: 300 | AQ138: 241 | AR138: 88 | AS138: 15 | AT138: 3 | AU138: 36.3 | AV138: 35.96 | AW138: 38.5 | AX138: 40.46 | AY138: 45.1 | AZ138: 49.1 | BA138: 52.7 | BB138: 53.24 | BC138: 50.7 | BD138: 41 | BE138: 41 | BF138: 36 | BG138: 0.6652719665 | BH138: 0.2902017061 | BI138: 63 | BJ138: 35 | BK138: 19 | BL138: 24 | BM138: =IF(OR(C138="OA",C138="OB",C138="1B",C138="1A",C138="2A",C138="2B",C138="3A",C138="3B",C138="3C"),TAN((LEFT(I138, 5)+VLOOKUP(C138,Main!$K$3:$L$21,2,FALSE))*PI()/180),IF(Checklist!$I$385="No",TAN((LEFT(I138, 5)+VLOOKUP(C138,Main!$K$3:$L$21,2,FALSE))*PI()/180),"NR")) -> NR | BN138: =VLOOKUP(C138,Main!$A$49:$I$67,Main!$B$47,FALSE) -> NR | BO138: =VLOOKUP(C138,Main!$A$49:$I$67,Main!$C$47,FALSE) -> NR | BP138: =VLOOKUP(C138,Main!$A$49:$I$67,Main!$E$47,FALSE)&":"&" "&VLOOKUP(C138,Main!$A$49:$I$67,Main!$F$47,FALSE) -> Minimum HSPF:: 9.6 | BQ138: =VLOOKUP(C138,Main!$A$49:$I$67,Main!$G$47,FALSE) -> 18 | BR138: =VLOOKUP(C138,Main!$A$49:$I$67,Main!$H$47,FALSE) -> 3.1 | BS138: =VLOOKUP(C138,Main!$A$49:$I$67,Main!$I$47,FALSE) -> 16.1 | BT138: 1302
A139: BC | B139: ENTRANCE ISLAND | C139: 4C | D139: 4848 | E139: 1220 | F139: 29 | G139: 75 | H139: 0.1183 | I139: 49.210N | J139: 32.3 | K139: 42.1 | L139: 42.8 | M139: 45.1 | N139: 49.3 | O139: 54.9 | P139: 60 | Q139: 64.6 | R139: 64.8 | S139: 60 | T139: 51.8 | U139: 45.8 | V139: 42.2 | W139: 245 | X139: 203 | Y139: 155 | Z139: 54 | AA139: 6 | AB139: 0 | AC139: 0 | AD139: 0 | AE139: 0 | AF139: 21 | AG139: 136 | AH139: 242 | AI139: 1 | AJ139: 0 | AK139: 4 | AL139: 31 | AM139: 157 | AN139: 299 | AO139: 454 | AP139: 460 | AQ139: 299 | AR139: 77 | AS139: 9 | AT139: 2 | AU139: 34.9 | AV139: 33.98 | AW139: 36.5 | AX139: 39.38 | AY139: 44.8 | AZ139: 49.46 | BA139: 53.78 | BB139: 53.78 | BC139: 50.2 | BD139: 38.8 | BE139: 38.8 | BF139: 34.3 | BG139: 0.6911196911 | BH139: 0.2755696873 | BI139: 63 | BJ139: 34 | BK139: 18 | BL139: 23 | BM139: =IF(OR(C139="OA",C139="OB",C139="1B",C139="1A",C139="2A",C139="2B",C139="3A",C139="3B",C139="3C"),TAN((LEFT(I139, 5)+VLOOKUP(C139,Main!$K$3:$L$21,2,FALSE))*PI()/180),IF(Checklist!$I$385="No",TAN((LEFT(I139, 5)+VLOOKUP(C139,Main!$K$3:$L$21,2,FALSE))*PI()/180),"NR")) -> NR | BN139: =VLOOKUP(C139,Main!$A$49:$I$67,Main!$B$47,FALSE) -> NR | BO139: =VLOOKUP(C139,Main!$A$49:$I$67,Main!$C$47,FALSE) -> NR | BP139: =VLOOKUP(C139,Main!$A$49:$I$67,Main!$E$47,FALSE)&":"&" "&VLOOKUP(C139,Main!$A$49:$I$67,Main!$F$47,FALSE) -> Minimum HSPF:: 9.6 | BQ139: =VLOOKUP(C139,Main!$A$49:$I$67,Main!$G$47,FALSE) -> 18 | BR139: =VLOOKUP(C139,Main!$A$49:$I$67,Main!$H$47,FALSE) -> 3.1 | BS139: =VLOOKUP(C139,Main!$A$49:$I$67,Main!$I$47,FALSE) -> 16.1 | BT139: 1793
A140: BC | B140: ESQUIMALT HARBOUR | C140: 5C | D140: 5475 | E140: 1183 | F140: 33 | G140: 66.7 | H140: 0.1183 | I140: 48.430N | J140: 30.7 | K140: 41.6 | L140: 42.3 | M140: 44.4 | N140: 48.1 | O140: 52.9 | P140: 56.9 | Q140: 60.3 | R140: 60.1 | S140: 56.6 | T140: 50.3 | U140: 44.9 | V140: 41.4 | W140: 262 | X140: 216 | Y140: 177 | Z140: 81 | AA140: 18 | AB140: 1 | AC140: 0 | AD140: 0 | AE140: 1 | AF140: 40 | AG140: 160 | AH140: 269 | AI140: 1 | AJ140: 0 | AK140: 4 | AL140: 23 | AM140: 109 | AN140: 208 | AO140: 320 | AP140: 314 | AQ140: 199 | AR140: 48 | AS140: 6 | AT140: 1 | AU140: 36.5 | AV140: 36.14 | AW140: 38.8 | AX140: 40.82 | AY140: 45.5 | AZ140: 49.46 | BA140: 52.7 | BB140: 53.42 | BC140: 51.1 | BD140: 41.4 | BE140: 41.4 | BF140: 36 | BG140: 0.6992481203 | BH140: 0.2637490037 | BI140: 65 | BJ140: 36 | BK140: 20 | BL140: 25 | BM140: =IF(OR(C140="OA",C140="OB",C140="1B",C140="1A",C140="2A",C140="2B",C140="3A",C140="3B",C140="3C"),TAN((LEFT(I140, 5)+VLOOKUP(C140,Main!$K$3:$L$21,2,FALSE))*PI()/180),IF(Checklist!$I$385="No",TAN((LEFT(I140, 5)+VLOOKUP(C140,Main!$K$3:$L$21,2,FALSE))*PI()/180),"NR")) -> NR | BN140: =VLOOKUP(C140,Main!$A$49:$I$67,Main!$B$47,FALSE) -> NR | BO140: =VLOOKUP(C140,Main!$A$49:$I$67,Main!$C$47,FALSE) -> NR | BP140: =VLOOKUP(C140,Main!$A$49:$I$67,Main!$E$47,FALSE)&":"&" "&VLOOKUP(C140,Main!$A$49:$I$67,Main!$F$47,FALSE) -> Minimum HSPF:: 9.6 | BQ140: =VLOOKUP(C140,Main!$A$49:$I$67,Main!$G$47,FALSE) -> 18 | BR140: =VLOOKUP(C140,Main!$A$49:$I$67,Main!$H$47,FALSE) -> 3.1 | BS140: =VLOOKUP(C140,Main!$A$49:$I$67,Main!$I$47,FALSE) -> 16.1 | BT140: 1233
A141: BC | B141: FORT NELSON | C141: 7 | D141: 12340 | E141: 1068 | F141: -23.1 | G141: 67.5 | H141: 0.1183 | I141: 58.840N | J141: -28.3 | K141: -4.6 | L141: 5.2 | M141: 17.5 | N141: 37 | O141: 49.3 | P141: 58.7 | Q141: 62.7 | R141: 59.2 | S141: 49 | T141: 33.2 | U141: 9.8 | V141: -2.3 | W141: 1693 | X141: 1253 | Y141: 1006 | Z141: 393 | AA141: 106 | AB141: 6 | AC141: 1 | AD141: 10 | AE141: 103 | AF141: 523 | AG141: 1207 | AH141: 1622 | AI141: 0 | AJ141: 0 | AK141: 0 | AL141: 3 | AM141: 85 | AN141: 269 | AO141: 395 | AP141: 296 | AQ141: 73 | AR141: 4 | AS141: 0 | AT141: 0 | AU141: -10.1 | AV141: -1.3 | AW141: 4.8 | AX141: 21.02 | AY141: 31.6 | AZ141: 44.78 | BA141: 51.62 | BB141: 48.38 | BC141: 39.7 | BD141: 8.6 | BE141: 8.6 | BF141: -6.5 | BG141: 0.8898071625 | BH141: 0.102158233 | BI141: 89 | BJ141: 57 | BK141: 35 | BL141: 40 | BM141: =IF(OR(C141="OA",C141="OB",C141="1B",C141="1A",C141="2A",C141="2B",C141="3A",C141="3B",C141="3C"),TAN((LEFT(I141, 5)+VLOOKUP(C141,Main!$K$3:$L$21,2,FALSE))*PI()/180),IF(Checklist!$I$385="No",TAN((LEFT(I141, 5)+VLOOKUP(C141,Main!$K$3:$L$21,2,FALSE))*PI()/180),"NR")) -> NR | BN141: =VLOOKUP(C141,Main!$A$49:$I$67,Main!$B$47,FALSE) -> NR | BO141: =VLOOKUP(C141,Main!$A$49:$I$67,Main!$C$47,FALSE) -> NR | BP141: =VLOOKUP(C141,Main!$A$49:$I$67,Main!$E$47,FALSE)&":"&" "&VLOOKUP(C141,Main!$A$49:$I$67,Main!$F$47,FALSE) -> Minimum COP @ 5°F:: 1.75 | BQ141: =VLOOKUP(C141,Main!$A$49:$I$67,Main!$G$47,FALSE) -> 15 | BR141: =VLOOKUP(C141,Main!$A$49:$I$67,Main!$H$47,FALSE) -> 3.1 | BS141: =VLOOKUP(C141,Main!$A$49:$I$67,Main!$I$47,FALSE) -> 16.1 | BT141: 1125
